Workbook

Sheet Introduction
A2: Debt Sizing with P50, P90 and Maximum Debt to Capital
B4: Website Link Describing Upside Incentives
B6: Video Describing Mechanics of Hurdle Rates
B8: Powerpoint Slides Reference (beginning on slide 312)
B10: Link to Relevant Part of this Workbook
B12: Chapter in Book Describing Flip Modelling | I12: Chapter 10 | M12: Find the Book in Chapter 2 of the USB Drive

Sheet Summary
C2: P50 or P99 | F2: Initial Tariff (Euro/MWH) | I2: =price -> 43.21713633 | L2: 1-Year Uncertainty | O2: ='Inputs and Operations'!F19 -> 0.1218
C3: Inflate Price | F3: O&M Expense | L3: P50/P99 Ratio | O3: ='Inputs and Operations'!F199 -> 0.6472283975
F4: In Fixed Terms (USD/kW-yr) | I4: ='Inputs and Operations'!F48 -> 54.1089489 | L4: Project Life | O4: =life -> 35
C5: Pre-tax Project IRR | D5: ='Financial Model'!F8 -> 0.06375357807 | F5: In Variable Terms (USD/kW-yr) | I5: ='Inputs and Operations'!I48 -> 15.91878001 | L5: Target IRR | O5: ='Financial Model'!F28 -> 0.11
C6: After-tax Project IRR | D6: ='Financial Model'!F7 -> 0.05326978862
C7: Debt IRR (pre-tax) | D7: ='Financial Model'!F5 -> 0.03991530836 | F7: Capacity (MW) | I7: ='Inputs and Operations'!$F$16 -> 120 | L7: Credit Spread Changes
C8: Equity IRR | D8: ='Financial Model'!F4 -> 0.1033206522 | F8: Net Capacity Factor | I8: ='Inputs and Operations'!$F$17 -> 0.3880209819
F9: Gross Capacity Factor | I9: ='Wind Study Back-up'!C4 -> 0.475 | L9: Refinance
C10: Construction Cost | D10: ='Financial Model'!F23 -> 168000
C11: Construction Period | D11: ='Financial Model'!$F$13 -> 36 | F11: Uses | I11: Cost | J11: Cost/kW | N11: Refi 1 | O11: Refi 2 | P11: Refi 2
C12: Development Fee | D12: ='Financial Model'!F27 -> 0.2 | F12: EPC | I12: ='Financial Model'!I136 -> 168000 | J12: =I12/$I$7 -> 1400 | L12: Refi Year | N12: =refi1 -> 36 | O12: ='Financial Model'!F87 -> 36 | P12: =refi3 -> 36
F13: Development Fee | I13: ='Financial Model'!I137 -> 45095.19249 | J13: 375.7932708 | L13: DSCR | N13: ='Financial Model'!F78 -> 1.25 | O13: ='Financial Model'!F90 -> 1.25 | P13: ='Financial Model'!F102 -> 1.2
C14: Max Debt to Capital | D14: ='Financial Model'!$F$39 -> 0.89 | F14: IDC | I14: ='Financial Model'!I138 -> 8292.527548 | J14: 69.10439623 | L14: Interest Rate | N14: ='Financial Model'!F84 -> 0.035 | O14: ='Financial Model'!F96 -> 0.03 | P14: ='Financial Model'!F108 -> 0.029
C15: P50 DSCR Target | D15: ='Financial Model'!F35 -> 1.35 | F15: IDC on Equity Bridge Loan | I15: ='Financial Model'!I139 -> 0 | J15: 0 | L15: Tail | N15: ='Financial Model'!F79 -> 2 | O15: ='Financial Model'!F91 -> 1 | P15: ='Financial Model'!F103 -> 0
C16: P99 DSCR Target | D16: ='Financial Model'!$F$36 -> 1 | F16: Up-Front Fees | I16: ='Financial Model'!I140 -> 2226.552436 | J16: 18.55460364
F17: Commitment Fees | I17: ='Financial Model'!I141 -> 1861.690014 | J17: 15.51408345 | N17: Cap Fac | O17: vs P50 | P17: Debt | Q17: P50/EBITDA
C18: Up-Front Equity Pct | D18: ='Financial Model'!F41 -> 0.5 | F18: DSRA | I18: ='Financial Model'!I142 -> 0 | J18: 0 | L18: P50 DSCR/Amount | N18: ='Inputs and Operations'!F88 -> 0.3880209819 | O18: =N18/$N$18 -> 1 | P18: ='Inputs and Operations'!F150 -> 143274.8728 | Q18: 1
F19: Total | I19: =SUM(I12:I18) -> 225475.9625 | J19: 1878.966354 | L19: P90 DSCR/Amount | N19: ='Inputs and Operations'!F90 -> 0.3274536303 | O19: =N19/$N$18 -> 0.8439070193 | P19: ='Inputs and Operations'!F169 -> 115433.6166 | Q19: ='Inputs and Operations'!I176 -> 1.241864853
C20: Maturity | D20: ='Financial Model'!$G$43 -> 27 | F20: Sources | J20: Percent | L20: P99 DSCR/Amount | N20: ='Inputs and Operations'!F91 -> 0.2780755584 | O20: =N20/$N$18 -> 0.7166508289 | P20: ='Inputs and Operations'!F190 -> 125193.3095 | Q20: ='Inputs and Operations'!I200 -> 1.245613063
C21: Credit Spread | D21: ='Financial Model'!F49 -> 0.017 | F21: Senior Debt (From Minimum) | I21: ='Financial Model'!I146 -> 148436.8291 | J21: =I21/I24 -> 0.6583266236
F22: Mezzanine Debt | I22: ='Financial Model'!I147 -> 0 | L22: Levelised O&M (Euro/MWH) | O22: ='Inputs and Operations'!I48 -> 15.91878001
C23: Cash Flow Applied | D23: ='Financial Model'!E206 -> P99 Applied | F23: Equity | I23: ='Financial Model'!I148 -> 77039.13339 | J23: =I23/I24 -> 0.3416733764
C24: Debt Sizing | D24: ='Financial Model'!E207 -> DSCR | F24: Total | I24: =SUM(I21:I23) -> 225475.9625 | J24: =J21+J23 -> 1
C97: Credit Spread Scenario | D97: 1
C99: Credit Spread Scenarios
C100: Base | D100: ='Financial Model'!F49 -> 0.017 | E100: =D100+0.25% -> 0.0195 | F100: =E100+0.25% -> 0.022 | G100: 0.0245 | H100: 0.027
C101: Flat | D101: =D100 -> 0.017 | E101: =D101 -> 0.017 | F101: =E101 -> 0.017 | G101: 0.017 | H101: 0.017
C102: Declining | D102: =D101 -> 0.017 | E102: =D102-0.25% -> 0.0145 | F102: =E102-0.25% -> 0.012 | G102: 0.0095 | H102: 0.007
C104: =INDEX(C100:C102,$D$97) -> Base | D104: =INDEX(D100:D102,$D$97) -> 0.017 | E104: 0.0195 | F104: 0.022 | G104: 0.0245 | H104: 0.027

Sheet Inputs and Operations
A1: Time Line | G1: 0 | H1: 1 | I1: 2 | J1: 3 | K1: 4 | L1: 5 | M1: 6 | N1: 7 | O1: 8 | P1: 9 | Q1: 10 | R1: 11 | S1: 12 | T1: 13 | U1: 14 | V1: 15 | W1: 16 | X1: 17 | Y1: 18 | Z1: 19 | AA1: 20 | AB1: 21 | AC1: 22 | AD1: 23 | AE1: 24 | AF1: 25 | AG1: 26 | AH1: 27 | AI1: 28 | AJ1: 29 | AK1: 30 | AL1: 31 | AM1: 32 | AN1: 33 | AO1: 34 | AP1: 35 | AQ1: 36 | AR1: 37 | AS1: 38 | AT1: 39 | AU1: 40 | AV1: 41 | AW1: 42 | AX1: 43 | AY1: 44 | AZ1: 45 | BA1: 46 | BB1: 47 | BC1: 48 | BD1: 49 | BE1: 50 | BF1: 51 | BG1: 52 | BH1: 53 | BI1: 54 | BJ1: 55 | BK1: 56 | BL1: 57 | BM1: 58 | BN1: 59 | BO1: 60 | BP1: 61 | BQ1: 62 | BR1: 63 | BS1: 64 | BT1: 65 | BU1: 66 | BV1: 67 | BW1: 68 | BX1: 69 | BY1: 70 | BZ1: 71 | CA1: 72 | CB1: 73 | CC1: 74 | CD1: 75 | CE1: 76 | CF1: 77 | CG1: 78 | CH1: 79 | CI1: 80 | CJ1: 81 | CK1: 82 | CL1: 83 | CM1: 84 | CN1: 85 | CO1: 86 | CP1: 87 | CQ1: 88 | CR1: 89 | CS1: 90 | CT1: 91 | CU1: 92 | CV1: 93 | CW1: 94 | CX1: 95 | CY1: 96 | CZ1: 97 | DA1: 98 | DB1: 99 | DC1: 100
B2: Start of period | E2: Price | F2: =price -> 43.21713633 | H2: =$F$9 -> 2020-08-01 | I2: =EDATE(H2,6) -> 2021-02-01 | J2: =EDATE(I2,6) -> 2021-08-01 | K2: 2022-02-01 | L2: 2022-08-01 | M2: 2023-02-01 | N2: 2023-08-01 | O2: 2024-02-01 | P2: 2024-08-01 | Q2: 2025-02-01 | R2: 2025-08-01 | S2: 2026-02-01 | T2: 2026-08-01 | U2: 2027-02-01 | V2: 2027-08-01 | W2: 2028-02-01 | X2: 2028-08-01 | Y2: 2029-02-01 | Z2: 2029-08-01 | AA2: 2030-02-01 | AB2: 2030-08-01 | AC2: 2031-02-01 | AD2: 2031-08-01 | AE2: 2032-02-01 | AF2: 2032-08-01 | AG2: 2033-02-01 | AH2: 2033-08-01 | AI2: 2034-02-01 | AJ2: 2034-08-01 | AK2: 2035-02-01 | AL2: 2035-08-01 | AM2: 2036-02-01 | AN2: 2036-08-01 | AO2: 2037-02-01 | AP2: 2037-08-01 | AQ2: 2038-02-01 | AR2: 2038-08-01 | AS2: 2039-02-01 | AT2: 2039-08-01 | AU2: 2040-02-01 | AV2: 2040-08-01 | AW2: 2041-02-01 | AX2: 2041-08-01 | AY2: 2042-02-01 | AZ2: 2042-08-01 | BA2: 2043-02-01 | BB2: 2043-08-01 | BC2: 2044-02-01 | BD2: 2044-08-01 | BE2: 2045-02-01 | BF2: 2045-08-01 | BG2: 2046-02-01 | BH2: 2046-08-01 | BI2: 2047-02-01 | BJ2: 2047-08-01 | BK2: 2048-02-01 | BL2: 2048-08-01 | BM2: 2049-02-01 | BN2: 2049-08-01 | BO2: 2050-02-01 | BP2: 2050-08-01 | BQ2: 2051-02-01 | BR2: 2051-08-01 | BS2: 2052-02-01 | BT2: 2052-08-01 | BU2: 2053-02-01 | BV2: =EDATE(BU2,6) -> 2053-08-01 | BW2: 2054-02-01 | BX2: 2054-08-01 | BY2: 2055-02-01 | BZ2: 2055-08-01 | CA2: 2056-02-01 | CB2: 2056-08-01 | CC2: 2057-02-01 | CD2: 2057-08-01 | CE2: 2058-02-01 | CF2: 2058-08-01 | CG2: 2059-02-01 | CH2: 2059-08-01 | CI2: 2060-02-01 | CJ2: 2060-08-01 | CK2: 2061-02-01 | CL2: 2061-08-01 | CM2: 2062-02-01 | CN2: 2062-08-01 | CO2: 2063-02-01 | CP2: 2063-08-01 | CQ2: 2064-02-01 | CR2: 2064-08-01 | CS2: 2065-02-01 | CT2: 2065-08-01 | CU2: 2066-02-01 | CV2: 2066-08-01 | CW2: 2067-02-01 | CX2: 2067-08-01 | CY2: 2068-02-01 | CZ2: 2068-08-01 | DA2: 2069-02-01 | DB2: 2069-08-01 | DC2: 2070-02-01
B3: End of period | E3: Equity IRR | F3: =E267 -> 0.09759152532 | H3: =EDATE(H2,6)-1 -> 2021-01-31 | I3: =EDATE(I2,6)-1 -> 2021-07-31 | J3: 2022-01-31 | K3: 2022-07-31 | L3: 2023-01-31 | M3: 2023-07-31 | N3: 2024-01-31 | O3: 2024-07-31 | P3: 2025-01-31 | Q3: 2025-07-31 | R3: 2026-01-31 | S3: 2026-07-31 | T3: 2027-01-31 | U3: 2027-07-31 | V3: 2028-01-31 | W3: 2028-07-31 | X3: 2029-01-31 | Y3: 2029-07-31 | Z3: 2030-01-31 | AA3: 2030-07-31 | AB3: 2031-01-31 | AC3: 2031-07-31 | AD3: 2032-01-31 | AE3: 2032-07-31 | AF3: 2033-01-31 | AG3: 2033-07-31 | AH3: 2034-01-31 | AI3: 2034-07-31 | AJ3: 2035-01-31 | AK3: 2035-07-31 | AL3: 2036-01-31 | AM3: 2036-07-31 | AN3: 2037-01-31 | AO3: 2037-07-31 | AP3: 2038-01-31 | AQ3: 2038-07-31 | AR3: 2039-01-31 | AS3: 2039-07-31 | AT3: 2040-01-31 | AU3: 2040-07-31 | AV3: 2041-01-31 | AW3: 2041-07-31 | AX3: 2042-01-31 | AY3: 2042-07-31 | AZ3: 2043-01-31 | BA3: 2043-07-31 | BB3: 2044-01-31 | BC3: 2044-07-31 | BD3: 2045-01-31 | BE3: 2045-07-31 | BF3: 2046-01-31 | BG3: 2046-07-31 | BH3: 2047-01-31 | BI3: 2047-07-31 | BJ3: 2048-01-31 | BK3: 2048-07-31 | BL3: 2049-01-31 | BM3: 2049-07-31 | BN3: 2050-01-31 | BO3: 2050-07-31 | BP3: 2051-01-31 | BQ3: 2051-07-31 | BR3: 2052-01-31 | BS3: 2052-07-31 | BT3: 2053-01-31 | BU3: =EDATE(BU2,6)-1 -> 2053-07-31 | BV3: 2054-01-31 | BW3: 2054-07-31 | BX3: 2055-01-31 | BY3: 2055-07-31 | BZ3: 2056-01-31 | CA3: 2056-07-31 | CB3: 2057-01-31 | CC3: 2057-07-31 | CD3: 2058-01-31 | CE3: 2058-07-31 | CF3: 2059-01-31 | CG3: 2059-07-31 | CH3: 2060-01-31 | CI3: 2060-07-31 | CJ3: 2061-01-31 | CK3: 2061-07-31 | CL3: 2062-01-31 | CM3: 2062-07-31 | CN3: 2063-01-31 | CO3: 2063-07-31 | CP3: 2064-01-31 | CQ3: 2064-07-31 | CR3: 2065-01-31 | CS3: 2065-07-31 | CT3: 2066-01-31 | CU3: 2066-07-31 | CV3: 2067-01-31 | CW3: 2067-07-31 | CX3: 2068-01-31 | CY3: 2068-07-31 | CZ3: 2069-01-31 | DA3: 2069-07-31 | DB3: 2070-01-31 | DC3: 2070-07-31
B4: Construction phase | F4: =F11 -> 2021-02-01 | H4: =H2<$F$4 -> TRUE | I4: =I2<$F$4 -> FALSE | J4: FALSE | K4: FALSE | L4: FALSE | M4: FALSE | N4: FALSE | O4: FALSE | P4: FALSE | Q4: FALSE | R4: FALSE | S4: FALSE | T4: FALSE | U4: FALSE | V4: FALSE | W4: FALSE | X4: FALSE | Y4: FALSE | Z4: FALSE | AA4: FALSE | AB4: FALSE | AC4: FALSE | AD4: FALSE | AE4: FALSE | AF4: FALSE | AG4: FALSE | AH4: FALSE | AI4: FALSE | AJ4: FALSE | AK4: FALSE | AL4: FALSE | AM4: FALSE | AN4: FALSE | AO4: FALSE | AP4: FALSE | AQ4: FALSE | AR4: FALSE | AS4: FALSE | AT4: FALSE | AU4: FALSE | AV4: FALSE | AW4: FALSE | AX4: FALSE | AY4: FALSE | AZ4: FALSE | BA4: FALSE | BB4: FALSE | BC4: FALSE | BD4: FALSE | BE4: FALSE | BF4: FALSE | BG4: FALSE | BH4: FALSE | BI4: FALSE | BJ4: FALSE | BK4: FALSE | BL4: FALSE | BM4: FALSE | BN4: FALSE | BO4: FALSE | BP4: FALSE | BQ4: FALSE | BR4: FALSE | BS4: FALSE | BT4: FALSE | BU4: =BU2<$F$4 -> FALSE | BV4: FALSE | BW4: FALSE | BX4: FALSE | BY4: FALSE | BZ4: FALSE | CA4: FALSE | CB4: FALSE | CC4: FALSE | CD4: FALSE | CE4: FALSE | CF4: FALSE | CG4: FALSE | CH4: FALSE | CI4: FALSE | CJ4: FALSE | CK4: FALSE | CL4: FALSE | CM4: FALSE | CN4: FALSE | CO4: FALSE | CP4: FALSE | CQ4: FALSE | CR4: FALSE | CS4: FALSE | CT4: FALSE | CU4: FALSE | CV4: FALSE | CW4: FALSE | CX4: FALSE | CY4: FALSE | CZ4: FALSE | DA4: FALSE | DB4: FALSE | DC4: FALSE
B5: Operating phase | F5: =F11 -> 2021-02-01 | G5: =F13 -> 2051-02-01 | H5: =AND(H2>=$F$5,H2<$G$5) -> FALSE | I5: =AND(I2>=$F$5,I2<$G$5) -> TRUE | J5: TRUE | K5: TRUE | L5: TRUE | M5: TRUE | N5: TRUE | O5: TRUE | P5: TRUE | Q5: TRUE | R5: TRUE | S5: TRUE | T5: TRUE | U5: TRUE | V5: TRUE | W5: TRUE | X5: TRUE | Y5: TRUE | Z5: TRUE | AA5: TRUE | AB5: TRUE | AC5: TRUE | AD5: TRUE | AE5: TRUE | AF5: TRUE | AG5: TRUE | AH5: TRUE | AI5: TRUE | AJ5: TRUE | AK5: TRUE | AL5: TRUE | AM5: TRUE | AN5: TRUE | AO5: TRUE | AP5: TRUE | AQ5: TRUE | AR5: TRUE | AS5: TRUE | AT5: TRUE | AU5: TRUE | AV5: TRUE | AW5: TRUE | AX5: TRUE | AY5: TRUE | AZ5: TRUE | BA5: TRUE | BB5: TRUE | BC5: TRUE | BD5: TRUE | BE5: TRUE | BF5: TRUE | BG5: TRUE | BH5: TRUE | BI5: TRUE | BJ5: TRUE | BK5: TRUE | BL5: TRUE | BM5: TRUE | BN5: TRUE | BO5: TRUE | BP5: TRUE | BQ5: FALSE | BR5: FALSE | BS5: FALSE | BT5: FALSE | BU5: =AND(BU2>=$F$5,BU2<$G$5) -> FALSE | BV5: FALSE | BW5: FALSE | BX5: FALSE | BY5: FALSE | BZ5: FALSE | CA5: FALSE | CB5: FALSE | CC5: FALSE | CD5: FALSE | CE5: FALSE | CF5: FALSE | CG5: FALSE | CH5: FALSE | CI5: FALSE | CJ5: FALSE | CK5: FALSE | CL5: FALSE | CM5: FALSE | CN5: FALSE | CO5: FALSE | CP5: FALSE | CQ5: FALSE | CR5: FALSE | CS5: FALSE | CT5: FALSE | CU5: FALSE | CV5: FALSE | CW5: FALSE | CX5: FALSE | CY5: FALSE | CZ5: FALSE | DA5: FALSE | DB5: FALSE | DC5: FALSE
A7: Non-Financing Inputs
B8: Timing Inputs
C9: Construction Start | E9: Date | F9: 2020-08-01
C10: Construction Period | E10: Periods | F10: 1
C11: Commercial Operation | E11: Date | F11: =EDATE(F9,F10*6) -> 2021-02-01
C12: Operating Period | E12: Years | F12: 30
C13: Decommissioning | E13: Date | F13: =EDATE(F11,F12*12) -> 2051-02-01
B15: Operation Inputs
D16: Capacity | E16: MW | F16: ='Wind Study Back-up'!C3 -> 120
D17: P50 Capacity Factor | E17: % p.a. | F17: ='Wind Study Back-up'!C13 -> 0.3880209819
F18: 1-yr | G18: 10-yr | H18: 20-yr
D19: Standard Deviation/P50 Case Production | F19: ='Wind Study Back-up'!D17 -> 0.1218 | G19: ='Wind Study Back-up'!E17 -> 0.08456922191 | H19: ='Wind Study Back-up'!F17 -> 0.08267092743
D21: Case applied (P50=1, P90=2, P99=3) | E21: Code | F21: 1 | J21: P50
J22: P90
B23: EPC, O&M and PPA contracts | J23: P99
C24: EPC and Development
D25: EPC Cost | E25: Euro/kW | F25: =G25 -> 1400 | G25: 1400
D26: Development Cost | E26: Euro/kW | F26: =F25*3% -> 42
D27: Owners Cost | E27: Euro/kW | F27: 46
D28: Total Cost | E28: Euro/kW | F28: =SUM(F25:F27) -> 1488
C30: General Inflation Rate | E30: % | F30: 0.02
C32: O&M Cost | F32: Euro/kW/yr | G32: Fixed | H32: Variable | I32: Euro/MWh
D33: Contracted Turbine O&M ($/MWh) | E33: Euro/kW-yr | F33: 18.53841379 | G33: TRUE | H33: =NOT(G33) -> FALSE | I33: =F33*1000/(8760*$F$17) -> 5.453976409
D34: BOP O&M | E34: Euro/kW-yr | F34: 4.211448549 | G34: TRUE | H34: =NOT(G34) -> FALSE | I34: =F34*1000/(8760*$F$17) -> 1.2390025
D35: BOP O&M Fee | E35: Euro/kW-yr | F35: 1.346821869 | G35: FALSE | H35: TRUE | I35: 0.3962331829
D36: Operation Expenses | E36: Euro/kW-yr | F36: 1.44934195 | G36: FALSE | H36: TRUE | I36: 0.4263944528
D37: Maintenance Expenses | E37: Euro/kW-yr | F37: 1.41528473 | G37: FALSE | H37: TRUE | I37: 0.4163748646
D38: G&A | E38: Euro/kW-yr | F38: 0.7683580345 | G38: FALSE | H38: TRUE | I38: 0.2260499006
D39: Asset Management | E39: Euro/kW-yr | F39: 0 | G39: FALSE | H39: TRUE | I39: 0
D40: Community Support | E40: Euro/kW-yr | F40: 0.0439061734 | G40: FALSE | H40: TRUE | I40: 0.01291713718
D41: 3rd Party Professional Services | E41: Euro/kW-yr | F41: 0.7244518611 | G41: FALSE | H41: TRUE | I41: 0.2131327634
D42: Landowner and Easement Royalties | E42: Euro/kW-yr | F42: 3.512650602 | G42: FALSE | H42: TRUE | I42: 1.033417084
D43: Royalties - based on % Revenues | E43: Euro/kW-yr | F43: 2.373185734 | G43: FALSE | H43: TRUE | I43: 0.698188052
D44: Property Taxes | E44: Euro/kW-yr | F44: 10.69409011 | G44: FALSE | H44: TRUE | I44: 3.146186931
D45: Environmental Monitoring | E45: Euro/kW-yr | F45: 0 | G45: FALSE | H45: TRUE | I45: 0
D46: Insurance | E46: Euro/kW-yr | F46: 1.56745039 | G46: FALSE | H46: TRUE | I46: 0.4611417972
D47: Annual Insurance Cash Premium & Origination Fee | E47: Euro/kW-yr | F47: 7.463545105 | G47: FALSE | H47: TRUE | I47: 2.195764934
D48: Total Operating Expenses | E48: Euro/kW-yr | F48: =SUM(F33:F47) -> 54.1089489 | I48: =SUM(I33:I47) -> 15.91878001
C50: PPA Price
D51: Starting Price | E51: USD/MWH | F51: 43.21713633 | G51: price
D52: Inflate | E52: Switch | F52: TRUE
A54: Financing Inputs
B55: Debt Size
C56: DSCR
D57: P50 Minimum | E57: x | F57: =G57/100 -> 1.35 | G57: 135
D58: P90 Minimum | E58: x | F58: =G58/100 -> 1.35 | G58: 135
D59: P99 Minimum | E59: x | F59: =G59/100 -> 1 | G59: 100
C61: Max Debt to Capital | E61: % | F61: =G61/100 -> 0.93 | G61: 93
B63: Debt Funding | E63: Pro-Rata | F63: TRUE
B65: Debt Repayment
D66: Sculpting (Not True is Level Repayment) | E66: Type | F66: TRUE
D67: Maturity | E67: Years | F67: =G67 -> 20 | G67: 20
D68: Grace Period | E68: Periods | F68: 1
D69: Start of Repayment | F69: =EDATE(F11,F68*6) -> 2021-08-01
D70: End of Repayment | F70: =EDATE(F11,F67*12) -> 2041-02-01
B72: Interest Rate and Fee
D73: Base Rate | E73: % p.a. | F73: 0.015
D74: Credit Spread | E74: % p.a. | F74: 0.018
D75: Annual interest rate | E75: % p.a. | F75: =F73+F74 -> 0.033
D77: Up-Front and Commitment Fee | E77: % | F77: 0.019
B79: DSRA, Covenants, Sweeps
A81: Operations and Pre-tax Free Cash Flow
B82: Operations
C83: Capacity and Generation
D84: Capacity | E84: MW | F84: =F16 -> 120 | H84: =$F84*H$5 -> 0 | I84: =$F84*I$5 -> 120 | J84: 120 | K84: 120 | L84: 120 | M84: 120 | N84: 120 | O84: 120 | P84: 120 | Q84: 120 | R84: 120 | S84: 120 | T84: 120 | U84: 120 | V84: 120 | W84: 120 | X84: 120 | Y84: 120 | Z84: 120 | AA84: 120 | AB84: 120 | AC84: 120 | AD84: 120 | AE84: 120 | AF84: 120 | AG84: 120 | AH84: 120 | AI84: 120 | AJ84: 120 | AK84: 120 | AL84: 120 | AM84: 120 | AN84: 120 | AO84: 120 | AP84: 120 | AQ84: 120 | AR84: 120 | AS84: 120 | AT84: 120 | AU84: 120 | AV84: 120 | AW84: 120 | AX84: 120 | AY84: 120 | AZ84: 120 | BA84: 120 | BB84: 120 | BC84: 120 | BD84: 120 | BE84: 120 | BF84: 120 | BG84: 120 | BH84: 120 | BI84: 120 | BJ84: 120 | BK84: 120 | BL84: 120 | BM84: 120 | BN84: 120 | BO84: 120 | BP84: 120 | BQ84: 0 | BR84: 0 | BS84: 0 | BT84: 0 | BU84: =$F84*BU$5 -> 0 | BV84: 0 | BW84: 0 | BX84: 0 | BY84: 0 | BZ84: 0 | CA84: 0 | CB84: 0 | CC84: 0 | CD84: 0 | CE84: 0 | CF84: 0 | CG84: 0 | CH84: 0 | CI84: 0 | CJ84: 0 | CK84: 0 | CL84: 0 | CM84: 0 | CN84: 0 | CO84: 0 | CP84: 0 | CQ84: 0 | CR84: 0 | CS84: 0 | CT84: 0 | CU84: 0 | CV84: 0 | CW84: 0 | CX84: 0 | CY84: 0 | CZ84: 0 | DA84: 0 | DB84: 0 | DC84: 0
D86: Hours in the period | E86: Hours | H86: =(H3-H2+1)*24 -> 4416 | I86: 4344 | J86: 4416 | K86: 4344 | L86: 4416 | M86: 4344 | N86: 4416 | O86: 4368 | P86: 4416 | Q86: 4344 | R86: 4416 | S86: 4344 | T86: 4416 | U86: 4344 | V86: 4416 | W86: 4368 | X86: 4416 | Y86: 4344 | Z86: 4416 | AA86: 4344 | AB86: 4416 | AC86: 4344 | AD86: 4416 | AE86: 4368 | AF86: 4416 | AG86: 4344 | AH86: 4416 | AI86: 4344 | AJ86: 4416 | AK86: 4344 | AL86: 4416 | AM86: 4368 | AN86: =(AN3-AN2+1)*24 -> 4416 | AO86: 4344 | AP86: 4416 | AQ86: 4344 | AR86: 4416 | AS86: 4344 | AT86: 4416 | AU86: 4368 | AV86: 4416 | AW86: 4344 | AX86: 4416 | AY86: 4344 | AZ86: 4416 | BA86: 4344 | BB86: 4416 | BC86: 4368 | BD86: 4416 | BE86: 4344 | BF86: 4416 | BG86: 4344 | BH86: 4416 | BI86: 4344 | BJ86: 4416 | BK86: 4368 | BL86: 4416 | BM86: 4344 | BN86: 4416 | BO86: 4344 | BP86: 4416 | BQ86: 4344 | BR86: 4416 | BS86: 4368 | BT86: =(BT3-BT2+1)*24 -> 4416 | BU86: 4344 | BV86: 4416 | BW86: 4344 | BX86: 4416 | BY86: 4344 | BZ86: 4416 | CA86: 4368 | CB86: 4416 | CC86: 4344 | CD86: 4416 | CE86: 4344 | CF86: 4416 | CG86: 4344 | CH86: 4416 | CI86: 4368 | CJ86: 4416 | CK86: 4344 | CL86: 4416 | CM86: 4344 | CN86: 4416 | CO86: 4344 | CP86: 4416 | CQ86: 4368 | CR86: 4416 | CS86: 4344 | CT86: 4416 | CU86: 4344 | CV86: 4416 | CW86: 4344 | CX86: 4416 | CY86: 4368 | CZ86: 4416 | DA86: 4344 | DB86: 4416 | DC86: 4344
D88: P50 Capacity Factor | E88: % | F88: =F17 -> 0.3880209819 | H88: =$F88*H$5 -> 0 | I88: 0.3880209819 | J88: 0.3880209819 | K88: 0.3880209819 | L88: 0.3880209819 | M88: 0.3880209819 | N88: 0.3880209819 | O88: 0.3880209819 | P88: 0.3880209819 | Q88: 0.3880209819 | R88: 0.3880209819 | S88: 0.3880209819 | T88: 0.3880209819 | U88: 0.3880209819 | V88: 0.3880209819 | W88: 0.3880209819 | X88: 0.3880209819 | Y88: 0.3880209819 | Z88: 0.3880209819 | AA88: 0.3880209819 | AB88: 0.3880209819 | AC88: 0.3880209819 | AD88: 0.3880209819 | AE88: 0.3880209819 | AF88: 0.3880209819 | AG88: 0.3880209819 | AH88: 0.3880209819 | AI88: 0.3880209819 | AJ88: 0.3880209819 | AK88: 0.3880209819 | AL88: 0.3880209819 | AM88: 0.3880209819 | AN88: 0.3880209819 | AO88: 0.3880209819 | AP88: 0.3880209819 | AQ88: 0.3880209819 | AR88: 0.3880209819 | AS88: 0.3880209819 | AT88: 0.3880209819 | AU88: 0.3880209819 | AV88: 0.3880209819 | AW88: 0.3880209819 | AX88: 0.3880209819 | AY88: 0.3880209819 | AZ88: 0.3880209819 | BA88: 0.3880209819 | BB88: 0.3880209819 | BC88: 0.3880209819 | BD88: 0.3880209819 | BE88: 0.3880209819 | BF88: 0.3880209819 | BG88: 0.3880209819 | BH88: 0.3880209819 | BI88: 0.3880209819 | BJ88: 0.3880209819 | BK88: 0.3880209819 | BL88: 0.3880209819 | BM88: 0.3880209819 | BN88: 0.3880209819 | BO88: 0.3880209819 | BP88: 0.3880209819 | BQ88: 0 | BR88: 0 | BS88: 0 | BT88: 0 | BU88: 0 | BV88: 0 | BW88: 0 | BX88: 0 | BY88: 0 | BZ88: 0 | CA88: 0 | CB88: 0 | CC88: 0 | CD88: 0 | CE88: 0 | CF88: 0 | CG88: 0 | CH88: 0 | CI88: 0 | CJ88: 0 | CK88: 0 | CL88: 0 | CM88: 0 | CN88: 0 | CO88: 0 | CP88: 0 | CQ88: 0 | CR88: 0 | CS88: 0 | CT88: 0 | CU88: 0 | CV88: 0 | CW88: 0 | CX88: 0 | CY88: 0 | CZ88: 0 | DA88: 0 | DB88: 0 | DC88: 0
D89: 1-Year Standard Deviation as Percent | E89: % | F89: =F19 -> 0.1218 | H89: 0 | I89: 0.1218 | J89: 0.1218 | K89: 0.1218 | L89: 0.1218 | M89: 0.1218 | N89: 0.1218 | O89: 0.1218 | P89: 0.1218 | Q89: 0.1218 | R89: 0.1218 | S89: 0.1218 | T89: 0.1218 | U89: 0.1218 | V89: 0.1218 | W89: 0.1218 | X89: 0.1218 | Y89: 0.1218 | Z89: 0.1218 | AA89: 0.1218 | AB89: 0.1218 | AC89: 0.1218 | AD89: 0.1218 | AE89: 0.1218 | AF89: 0.1218 | AG89: 0.1218 | AH89: 0.1218 | AI89: 0.1218 | AJ89: 0.1218 | AK89: 0.1218 | AL89: 0.1218 | AM89: 0.1218 | AN89: 0.1218 | AO89: 0.1218 | AP89: 0.1218 | AQ89: 0.1218 | AR89: 0.1218 | AS89: 0.1218 | AT89: 0.1218 | AU89: 0.1218 | AV89: 0.1218 | AW89: 0.1218 | AX89: 0.1218 | AY89: 0.1218 | AZ89: 0.1218 | BA89: 0.1218 | BB89: 0.1218 | BC89: 0.1218 | BD89: 0.1218 | BE89: 0.1218 | BF89: 0.1218 | BG89: 0.1218 | BH89: 0.1218 | BI89: 0.1218 | BJ89: 0.1218 | BK89: 0.1218 | BL89: 0.1218 | BM89: 0.1218 | BN89: 0.1218 | BO89: 0.1218 | BP89: 0.1218 | BQ89: 0 | BR89: 0 | BS89: 0 | BT89: 0 | BU89: 0 | BV89: 0 | BW89: 0 | BX89: 0 | BY89: 0 | BZ89: 0 | CA89: 0 | CB89: 0 | CC89: 0 | CD89: 0 | CE89: 0 | CF89: 0 | CG89: 0 | CH89: 0 | CI89: 0 | CJ89: 0 | CK89: 0 | CL89: 0 | CM89: 0 | CN89: 0 | CO89: 0 | CP89: 0 | CQ89: 0 | CR89: 0 | CS89: 0 | CT89: 0 | CU89: 0 | CV89: 0 | CW89: 0 | CX89: 0 | CY89: 0 | CZ89: 0 | DA89: 0 | DB89: 0 | DC89: 0
D90: P90 Capacity Factor | E90: % | F90: =_xlfn.NORM.INV(0.1,F88,F88*F89) -> 0.3274536303 | H90: 0 | I90: 0.3274536303 | J90: 0.3274536303 | K90: 0.3274536303 | L90: 0.3274536303 | M90: 0.3274536303 | N90: 0.3274536303 | O90: 0.3274536303 | P90: 0.3274536303 | Q90: 0.3274536303 | R90: 0.3274536303 | S90: 0.3274536303 | T90: 0.3274536303 | U90: 0.3274536303 | V90: 0.3274536303 | W90: 0.3274536303 | X90: 0.3274536303 | Y90: 0.3274536303 | Z90: 0.3274536303 | AA90: 0.3274536303 | AB90: 0.3274536303 | AC90: 0.3274536303 | AD90: 0.3274536303 | AE90: 0.3274536303 | AF90: 0.3274536303 | AG90: 0.3274536303 | AH90: 0.3274536303 | AI90: 0.3274536303 | AJ90: 0.3274536303 | AK90: 0.3274536303 | AL90: 0.3274536303 | AM90: 0.3274536303 | AN90: 0.3274536303 | AO90: 0.3274536303 | AP90: 0.3274536303 | AQ90: 0.3274536303 | AR90: 0.3274536303 | AS90: 0.3274536303 | AT90: 0.3274536303 | AU90: 0.3274536303 | AV90: 0.3274536303 | AW90: 0.3274536303 | AX90: 0.3274536303 | AY90: 0.3274536303 | AZ90: 0.3274536303 | BA90: 0.3274536303 | BB90: 0.3274536303 | BC90: 0.3274536303 | BD90: 0.3274536303 | BE90: 0.3274536303 | BF90: 0.3274536303 | BG90: 0.3274536303 | BH90: 0.3274536303 | BI90: 0.3274536303 | BJ90: 0.3274536303 | BK90: 0.3274536303 | BL90: 0.3274536303 | BM90: 0.3274536303 | BN90: 0.3274536303 | BO90: 0.3274536303 | BP90: 0.3274536303 | BQ90: 0 | BR90: 0 | BS90: 0 | BT90: 0 | BU90: 0 | BV90: 0 | BW90: 0 | BX90: 0 | BY90: 0 | BZ90: 0 | CA90: 0 | CB90: 0 | CC90: 0 | CD90: 0 | CE90: 0 | CF90: 0 | CG90: 0 | CH90: 0 | CI90: 0 | CJ90: 0 | CK90: 0 | CL90: 0 | CM90: 0 | CN90: 0 | CO90: 0 | CP90: 0 | CQ90: 0 | CR90: 0 | CS90: 0 | CT90: 0 | CU90: 0 | CV90: 0 | CW90: 0 | CX90: 0 | CY90: 0 | CZ90: 0 | DA90: 0 | DB90: 0 | DC90: 0
D91: P99 Capacity Factor | E91: % | F91: =_xlfn.NORM.INV(0.01,F88,F88*F89) -> 0.2780755584 | H91: 0 | I91: 0.2780755584 | J91: 0.2780755584 | K91: 0.2780755584 | L91: 0.2780755584 | M91: 0.2780755584 | N91: 0.2780755584 | O91: 0.2780755584 | P91: 0.2780755584 | Q91: 0.2780755584 | R91: 0.2780755584 | S91: 0.2780755584 | T91: 0.2780755584 | U91: 0.2780755584 | V91: 0.2780755584 | W91: 0.2780755584 | X91: 0.2780755584 | Y91: 0.2780755584 | Z91: 0.2780755584 | AA91: 0.2780755584 | AB91: 0.2780755584 | AC91: 0.2780755584 | AD91: 0.2780755584 | AE91: 0.2780755584 | AF91: 0.2780755584 | AG91: 0.2780755584 | AH91: 0.2780755584 | AI91: 0.2780755584 | AJ91: 0.2780755584 | AK91: 0.2780755584 | AL91: 0.2780755584 | AM91: 0.2780755584 | AN91: 0.2780755584 | AO91: 0.2780755584 | AP91: 0.2780755584 | AQ91: 0.2780755584 | AR91: 0.2780755584 | AS91: 0.2780755584 | AT91: 0.2780755584 | AU91: 0.2780755584 | AV91: 0.2780755584 | AW91: 0.2780755584 | AX91: 0.2780755584 | AY91: 0.2780755584 | AZ91: 0.2780755584 | BA91: 0.2780755584 | BB91: 0.2780755584 | BC91: 0.2780755584 | BD91: 0.2780755584 | BE91: 0.2780755584 | BF91: 0.2780755584 | BG91: 0.2780755584 | BH91: 0.2780755584 | BI91: 0.2780755584 | BJ91: 0.2780755584 | BK91: 0.2780755584 | BL91: 0.2780755584 | BM91: 0.2780755584 | BN91: 0.2780755584 | BO91: 0.2780755584 | BP91: =$F91*BP$5 -> 0.2780755584 | BQ91: 0 | BR91: 0 | BS91: 0 | BT91: 0 | BU91: 0 | BV91: 0 | BW91: 0 | BX91: 0 | BY91: 0 | BZ91: 0 | CA91: 0 | CB91: 0 | CC91: 0 | CD91: 0 | CE91: 0 | CF91: 0 | CG91: 0 | CH91: 0 | CI91: 0 | CJ91: 0 | CK91: 0 | CL91: 0 | CM91: 0 | CN91: 0 | CO91: 0 | CP91: 0 | CQ91: 0 | CR91: 0 | CS91: 0 | CT91: 0 | CU91: 0 | CV91: 0 | CW91: 0 | CX91: 0 | CY91: 0 | CZ91: 0 | DA91: 0 | DB91: 0 | DC91: 0
D93: Generation at P50 | E93: MWH | H93: =H$84*H88*H$86 -> 0 | I93: 202267.5775 | J93: 205620.0787 | K93: 202267.5775 | L93: 205620.0787 | M93: 202267.5775 | N93: 205620.0787 | O93: 203385.0779 | P93: 205620.0787 | Q93: 202267.5775 | R93: 205620.0787 | S93: 202267.5775 | T93: 205620.0787 | U93: 202267.5775 | V93: 205620.0787 | W93: 203385.0779 | X93: 205620.0787 | Y93: 202267.5775 | Z93: 205620.0787 | AA93: 202267.5775 | AB93: 205620.0787 | AC93: 202267.5775 | AD93: 205620.0787 | AE93: 203385.0779 | AF93: 205620.0787 | AG93: 202267.5775 | AH93: 205620.0787 | AI93: 202267.5775 | AJ93: 205620.0787 | AK93: 202267.5775 | AL93: 205620.0787 | AM93: 203385.0779 | AN93: 205620.0787 | AO93: 202267.5775 | AP93: 205620.0787 | AQ93: 202267.5775 | AR93: 205620.0787 | AS93: 202267.5775 | AT93: 205620.0787 | AU93: 203385.0779 | AV93: 205620.0787 | AW93: 202267.5775 | AX93: 205620.0787 | AY93: 202267.5775 | AZ93: 205620.0787 | BA93: 202267.5775 | BB93: 205620.0787 | BC93: 203385.0779 | BD93: 205620.0787 | BE93: 202267.5775 | BF93: 205620.0787 | BG93: 202267.5775 | BH93: 205620.0787 | BI93: 202267.5775 | BJ93: 205620.0787 | BK93: 203385.0779 | BL93: 205620.0787 | BM93: 202267.5775 | BN93: 205620.0787 | BO93: 202267.5775 | BP93: 205620.0787 | BQ93: 0 | BR93: 0 | BS93: 0 | BT93: =BT$84*BT88*BT$86 -> 0 | BU93: 0 | BV93: 0 | BW93: 0 | BX93: 0 | BY93: 0 | BZ93: 0 | CA93: 0 | CB93: 0 | CC93: 0 | CD93: 0 | CE93: 0 | CF93: 0 | CG93: 0 | CH93: 0 | CI93: 0 | CJ93: 0 | CK93: 0 | CL93: 0 | CM93: 0 | CN93: 0 | CO93: 0 | CP93: 0 | CQ93: 0 | CR93: 0 | CS93: 0 | CT93: 0 | CU93: 0 | CV93: 0 | CW93: 0 | CX93: 0 | CY93: 0 | CZ93: 0 | DA93: 0 | DB93: 0 | DC93: 0
D94: Generation at P90 | E94: MWH | H94: =H$84*H90*H$86 -> 0 | I94: 170695.0284 | J94: 173524.2278 | K94: 170695.0284 | L94: 173524.2278 | M94: 170695.0284 | N94: 173524.2278 | O94: 171638.0949 | P94: 173524.2278 | Q94: 170695.0284 | R94: 173524.2278 | S94: 170695.0284 | T94: 173524.2278 | U94: 170695.0284 | V94: 173524.2278 | W94: 171638.0949 | X94: 173524.2278 | Y94: 170695.0284 | Z94: 173524.2278 | AA94: 170695.0284 | AB94: 173524.2278 | AC94: 170695.0284 | AD94: 173524.2278 | AE94: 171638.0949 | AF94: 173524.2278 | AG94: 170695.0284 | AH94: 173524.2278 | AI94: 170695.0284 | AJ94: 173524.2278 | AK94: 170695.0284 | AL94: 173524.2278 | AM94: 171638.0949 | AN94: 173524.2278 | AO94: 170695.0284 | AP94: 173524.2278 | AQ94: 170695.0284 | AR94: 173524.2278 | AS94: 170695.0284 | AT94: 173524.2278 | AU94: 171638.0949 | AV94: 173524.2278 | AW94: 170695.0284 | AX94: 173524.2278 | AY94: 170695.0284 | AZ94: 173524.2278 | BA94: 170695.0284 | BB94: 173524.2278 | BC94: 171638.0949 | BD94: 173524.2278 | BE94: 170695.0284 | BF94: 173524.2278 | BG94: 170695.0284 | BH94: 173524.2278 | BI94: 170695.0284 | BJ94: 173524.2278 | BK94: 171638.0949 | BL94: 173524.2278 | BM94: 170695.0284 | BN94: 173524.2278 | BO94: 170695.0284 | BP94: 173524.2278 | BQ94: 0 | BR94: 0 | BS94: 0 | BT94: =BT$84*BT90*BT$86 -> 0 | BU94: 0 | BV94: 0 | BW94: 0 | BX94: 0 | BY94: 0 | BZ94: 0 | CA94: 0 | CB94: 0 | CC94: 0 | CD94: 0 | CE94: 0 | CF94: 0 | CG94: 0 | CH94: 0 | CI94: 0 | CJ94: 0 | CK94: 0 | CL94: 0 | CM94: 0 | CN94: 0 | CO94: 0 | CP94: 0 | CQ94: 0 | CR94: 0 | CS94: 0 | CT94: 0 | CU94: 0 | CV94: 0 | CW94: 0 | CX94: 0 | CY94: 0 | CZ94: 0 | DA94: 0 | DB94: 0 | DC94: 0
D95: Generation at P99 | E95: MWH | H95: =H84*H86*H91 -> 0 | I95: 144955.2271 | J95: 147357.7999 | K95: 144955.2271 | L95: 147357.7999 | M95: 144955.2271 | N95: 147357.7999 | O95: 145756.0847 | P95: 147357.7999 | Q95: 144955.2271 | R95: 147357.7999 | S95: 144955.2271 | T95: 147357.7999 | U95: 144955.2271 | V95: 147357.7999 | W95: 145756.0847 | X95: 147357.7999 | Y95: 144955.2271 | Z95: 147357.7999 | AA95: 144955.2271 | AB95: 147357.7999 | AC95: 144955.2271 | AD95: 147357.7999 | AE95: 145756.0847 | AF95: 147357.7999 | AG95: 144955.2271 | AH95: 147357.7999 | AI95: 144955.2271 | AJ95: 147357.7999 | AK95: 144955.2271 | AL95: 147357.7999 | AM95: 145756.0847 | AN95: 147357.7999 | AO95: 144955.2271 | AP95: 147357.7999 | AQ95: 144955.2271 | AR95: 147357.7999 | AS95: 144955.2271 | AT95: 147357.7999 | AU95: 145756.0847 | AV95: 147357.7999 | AW95: 144955.2271 | AX95: 147357.7999 | AY95: 144955.2271 | AZ95: 147357.7999 | BA95: 144955.2271 | BB95: 147357.7999 | BC95: 145756.0847 | BD95: 147357.7999 | BE95: 144955.2271 | BF95: 147357.7999 | BG95: 144955.2271 | BH95: 147357.7999 | BI95: 144955.2271 | BJ95: 147357.7999 | BK95: 145756.0847 | BL95: 147357.7999 | BM95: 144955.2271 | BN95: 147357.7999 | BO95: 144955.2271 | BP95: 147357.7999 | BQ95: 0 | BR95: 0 | BS95: 0 | BT95: 0 | BU95: 0 | BV95: 0 | BW95: 0 | BX95: 0 | BY95: 0 | BZ95: 0 | CA95: 0 | CB95: 0 | CC95: 0 | CD95: 0 | CE95: 0 | CF95: 0 | CG95: 0 | CH95: 0 | CI95: 0 | CJ95: 0 | CK95: 0 | CL95: 0 | CM95: 0 | CN95: 0 | CO95: 0 | CP95: 0 | CQ95: 0 | CR95: 0 | CS95: 0 | CT95: 0 | CU95: 0 | CV95: 0 | CW95: 0 | CX95: 0 | CY95: 0 | CZ95: 0 | DA95: 0 | DB95: 0 | DC95: 0
D96: MWH Applied | E96: MWH | F96: =F21 -> 1 | H96: =INDEX(H93:H95,$F$96) -> 0 | I96: 202267.5775 | J96: 205620.0787 | K96: 202267.5775 | L96: 205620.0787 | M96: 202267.5775 | N96: 205620.0787 | O96: 203385.0779 | P96: 205620.0787 | Q96: 202267.5775 | R96: 205620.0787 | S96: 202267.5775 | T96: 205620.0787 | U96: 202267.5775 | V96: 205620.0787 | W96: 203385.0779 | X96: 205620.0787 | Y96: 202267.5775 | Z96: 205620.0787 | AA96: 202267.5775 | AB96: 205620.0787 | AC96: 202267.5775 | AD96: 205620.0787 | AE96: 203385.0779 | AF96: 205620.0787 | AG96: 202267.5775 | AH96: 205620.0787 | AI96: 202267.5775 | AJ96: 205620.0787 | AK96: 202267.5775 | AL96: 205620.0787 | AM96: 203385.0779 | AN96: 205620.0787 | AO96: 202267.5775 | AP96: 205620.0787 | AQ96: 202267.5775 | AR96: 205620.0787 | AS96: 202267.5775 | AT96: 205620.0787 | AU96: 203385.0779 | AV96: 205620.0787 | AW96: 202267.5775 | AX96: 205620.0787 | AY96: 202267.5775 | AZ96: 205620.0787 | BA96: 202267.5775 | BB96: 205620.0787 | BC96: 203385.0779 | BD96: 205620.0787 | BE96: 202267.5775 | BF96: 205620.0787 | BG96: 202267.5775 | BH96: 205620.0787 | BI96: 202267.5775 | BJ96: 205620.0787 | BK96: 203385.0779 | BL96: 205620.0787 | BM96: 202267.5775 | BN96: 205620.0787 | BO96: 202267.5775 | BP96: 205620.0787 | BQ96: 0 | BR96: 0 | BS96: 0 | BT96: =INDEX(BT93:BT95,$F$96) -> 0 | BU96: 0 | BV96: 0 | BW96: 0 | BX96: 0 | BY96: 0 | BZ96: 0 | CA96: 0 | CB96: 0 | CC96: 0 | CD96: 0 | CE96: 0 | CF96: 0 | CG96: 0 | CH96: 0 | CI96: 0 | CJ96: 0 | CK96: 0 | CL96: 0 | CM96: 0 | CN96: 0 | CO96: 0 | CP96: 0 | CQ96: 0 | CR96: 0 | CS96: 0 | CT96: 0 | CU96: 0 | CV96: 0 | CW96: 0 | CX96: 0 | CY96: 0 | CZ96: 0 | DA96: 0 | DB96: 0 | DC96: 0
B98: Construction Costs
D99: EPC Cost | E99: Euro 000's | F99: =F25*$F$84 -> 168000 | H99: =$F99*H$4 -> 168000 | I99: =$F99*I$4 -> 0 | J99: 0 | K99: 0 | L99: 0 | M99: 0 | N99: 0 | O99: 0 | P99: 0 | Q99: 0 | R99: 0 | S99: 0 | T99: 0 | U99: 0 | V99: 0 | W99: 0 | X99: 0 | Y99: 0 | Z99: 0 | AA99: 0 | AB99: 0 | AC99: 0 | AD99: 0 | AE99: 0 | AF99: 0 | AG99: 0 | AH99: 0 | AI99: 0 | AJ99: 0 | AK99: 0 | AL99: 0 | AM99: 0 | AN99: 0 | AO99: 0 | AP99: 0 | AQ99: 0 | AR99: 0 | AS99: 0 | AT99: 0 | AU99: 0 | AV99: 0 | AW99: 0 | AX99: 0 | AY99: 0 | AZ99: 0 | BA99: 0 | BB99: 0 | BC99: 0 | BD99: 0 | BE99: 0 | BF99: 0 | BG99: 0 | BH99: 0 | BI99: 0 | BJ99: 0 | BK99: 0 | BL99: 0 | BM99: 0 | BN99: 0 | BO99: 0 | BP99: 0 | BQ99: 0 | BR99: 0 | BS99: 0 | BT99: 0 | BU99: =$F99*BU$4 -> 0 | BV99: 0 | BW99: 0 | BX99: 0 | BY99: 0 | BZ99: 0 | CA99: 0 | CB99: 0 | CC99: 0 | CD99: 0 | CE99: 0 | CF99: 0 | CG99: 0 | CH99: 0 | CI99: 0 | CJ99: 0 | CK99: 0 | CL99: 0 | CM99: 0 | CN99: 0 | CO99: 0 | CP99: 0 | CQ99: 0 | CR99: 0 | CS99: 0 | CT99: 0 | CU99: 0 | CV99: 0 | CW99: 0 | CX99: 0 | CY99: 0 | CZ99: 0 | DA99: 0 | DB99: 0 | DC99: 0
D100: Development Cost | E100: Euro 000's | F100: =F26*$F$84 -> 5040 | H100: =$F100*H$4 -> 5040 | I100: 0 | J100: 0 | K100: 0 | L100: 0 | M100: 0 | N100: 0 | O100: 0 | P100: 0 | Q100: 0 | R100: 0 | S100: 0 | T100: 0 | U100: 0 | V100: 0 | W100: 0 | X100: 0 | Y100: 0 | Z100: 0 | AA100: 0 | AB100: 0 | AC100: 0 | AD100: 0 | AE100: 0 | AF100: 0 | AG100: 0 | AH100: 0 | AI100: 0 | AJ100: 0 | AK100: 0 | AL100: 0 | AM100: 0 | AN100: 0 | AO100: 0 | AP100: 0 | AQ100: 0 | AR100: 0 | AS100: 0 | AT100: 0 | AU100: 0 | AV100: 0 | AW100: 0 | AX100: 0 | AY100: 0 | AZ100: 0 | BA100: 0 | BB100: 0 | BC100: 0 | BD100: 0 | BE100: 0 | BF100: 0 | BG100: 0 | BH100: 0 | BI100: 0 | BJ100: 0 | BK100: 0 | BL100: 0 | BM100: 0 | BN100: 0 | BO100: 0 | BP100: 0 | BQ100: 0 | BR100: 0 | BS100: 0 | BT100: 0 | BU100: 0 | BV100: 0 | BW100: 0 | BX100: 0 | BY100: 0 | BZ100: 0 | CA100: 0 | CB100: 0 | CC100: 0 | CD100: 0 | CE100: 0 | CF100: 0 | CG100: 0 | CH100: 0 | CI100: 0 | CJ100: 0 | CK100: 0 | CL100: 0 | CM100: 0 | CN100: 0 | CO100: 0 | CP100: 0 | CQ100: 0 | CR100: 0 | CS100: 0 | CT100: 0 | CU100: 0 | CV100: 0 | CW100: 0 | CX100: 0 | CY100: 0 | CZ100: 0 | DA100: 0 | DB100: 0 | DC100: 0
D101: Owners Cost | E101: Euro 000's | F101: =F27*$F$84 -> 5520 | H101: 5520 | I101: 0 | J101: 0 | K101: 0 | L101: 0 | M101: 0 | N101: 0 | O101: 0 | P101: 0 | Q101: 0 | R101: 0 | S101: 0 | T101: 0 | U101: 0 | V101: 0 | W101: 0 | X101: 0 | Y101: 0 | Z101: 0 | AA101: 0 | AB101: 0 | AC101: 0 | AD101: 0 | AE101: 0 | AF101: 0 | AG101: 0 | AH101: 0 | AI101: 0 | AJ101: 0 | AK101: 0 | AL101: 0 | AM101: 0 | AN101: 0 | AO101: 0 | AP101: 0 | AQ101: 0 | AR101: 0 | AS101: 0 | AT101: 0 | AU101: 0 | AV101: 0 | AW101: 0 | AX101: 0 | AY101: 0 | AZ101: 0 | BA101: 0 | BB101: 0 | BC101: 0 | BD101: 0 | BE101: 0 | BF101: 0 | BG101: 0 | BH101: 0 | BI101: 0 | BJ101: 0 | BK101: 0 | BL101: 0 | BM101: 0 | BN101: 0 | BO101: 0 | BP101: 0 | BQ101: 0 | BR101: 0 | BS101: 0 | BT101: 0 | BU101: 0 | BV101: 0 | BW101: 0 | BX101: 0 | BY101: 0 | BZ101: 0 | CA101: 0 | CB101: 0 | CC101: 0 | CD101: 0 | CE101: 0 | CF101: 0 | CG101: 0 | CH101: 0 | CI101: 0 | CJ101: 0 | CK101: 0 | CL101: 0 | CM101: 0 | CN101: 0 | CO101: 0 | CP101: 0 | CQ101: 0 | CR101: 0 | CS101: 0 | CT101: 0 | CU101: 0 | CV101: 0 | CW101: 0 | CX101: 0 | CY101: 0 | CZ101: 0 | DA101: 0 | DB101: 0 | DC101: 0
D102: Total Cost | E102: Euro 000's | F102: =F28*$F$84 -> 178560 | H102: 178560 | I102: 0 | J102: 0 | K102: 0 | L102: 0 | M102: 0 | N102: 0 | O102: 0 | P102: 0 | Q102: 0 | R102: 0 | S102: 0 | T102: 0 | U102: 0 | V102: 0 | W102: 0 | X102: 0 | Y102: 0 | Z102: 0 | AA102: 0 | AB102: 0 | AC102: 0 | AD102: 0 | AE102: 0 | AF102: 0 | AG102: 0 | AH102: 0 | AI102: 0 | AJ102: 0 | AK102: 0 | AL102: 0 | AM102: 0 | AN102: 0 | AO102: 0 | AP102: 0 | AQ102: 0 | AR102: 0 | AS102: 0 | AT102: 0 | AU102: 0 | AV102: 0 | AW102: 0 | AX102: 0 | AY102: 0 | AZ102: 0 | BA102: 0 | BB102: 0 | BC102: 0 | BD102: 0 | BE102: 0 | BF102: 0 | BG102: 0 | BH102: 0 | BI102: 0 | BJ102: 0 | BK102: 0 | BL102: 0 | BM102: 0 | BN102: 0 | BO102: 0 | BP102: 0 | BQ102: 0 | BR102: 0 | BS102: 0 | BT102: 0 | BU102: 0 | BV102: 0 | BW102: 0 | BX102: 0 | BY102: 0 | BZ102: 0 | CA102: 0 | CB102: 0 | CC102: 0 | CD102: 0 | CE102: 0 | CF102: 0 | CG102: 0 | CH102: 0 | CI102: 0 | CJ102: 0 | CK102: 0 | CL102: 0 | CM102: 0 | CN102: 0 | CO102: 0 | CP102: 0 | CQ102: 0 | CR102: 0 | CS102: 0 | CT102: 0 | CU102: 0 | CV102: 0 | CW102: 0 | CX102: 0 | CY102: 0 | CZ102: 0 | DA102: 0 | DB102: 0 | DC102: 0
B104: Operations and Maintenance Cost
D105: Real Variable Cost per MWH | E105: Euro/MWH | F105: =SUMPRODUCT(I33:I47*H33:H47) -> 9.2258011 | H105: =$F$105*H5 -> 0 | I105: 9.2258011 | J105: 9.2258011 | K105: 9.2258011 | L105: 9.2258011 | M105: 9.2258011 | N105: 9.2258011 | O105: 9.2258011 | P105: 9.2258011 | Q105: 9.2258011 | R105: 9.2258011 | S105: 9.2258011 | T105: 9.2258011 | U105: 9.2258011 | V105: 9.2258011 | W105: 9.2258011 | X105: 9.2258011 | Y105: 9.2258011 | Z105: 9.2258011 | AA105: 9.2258011 | AB105: 9.2258011 | AC105: 9.2258011 | AD105: 9.2258011 | AE105: 9.2258011 | AF105: 9.2258011 | AG105: 9.2258011 | AH105: 9.2258011 | AI105: 9.2258011 | AJ105: 9.2258011 | AK105: 9.2258011 | AL105: 9.2258011 | AM105: 9.2258011 | AN105: =$F$105*AN5 -> 9.2258011 | AO105: 9.2258011 | AP105: 9.2258011 | AQ105: 9.2258011 | AR105: 9.2258011 | AS105: 9.2258011 | AT105: 9.2258011 | AU105: 9.2258011 | AV105: 9.2258011 | AW105: 9.2258011 | AX105: 9.2258011 | AY105: 9.2258011 | AZ105: 9.2258011 | BA105: 9.2258011 | BB105: 9.2258011 | BC105: 9.2258011 | BD105: 9.2258011 | BE105: 9.2258011 | BF105: 9.2258011 | BG105: 9.2258011 | BH105: 9.2258011 | BI105: 9.2258011 | BJ105: 9.2258011 | BK105: 9.2258011 | BL105: 9.2258011 | BM105: 9.2258011 | BN105: 9.2258011 | BO105: 9.2258011 | BP105: 9.2258011 | BQ105: 0 | BR105: 0 | BS105: 0 | BT105: =$F$105*BT5 -> 0 | BU105: 0 | BV105: 0 | BW105: 0 | BX105: 0 | BY105: 0 | BZ105: 0 | CA105: 0 | CB105: 0 | CC105: 0 | CD105: 0 | CE105: 0 | CF105: 0 | CG105: 0 | CH105: 0 | CI105: 0 | CJ105: 0 | CK105: 0 | CL105: 0 | CM105: 0 | CN105: 0 | CO105: 0 | CP105: 0 | CQ105: 0 | CR105: 0 | CS105: 0 | CT105: 0 | CU105: 0 | CV105: 0 | CW105: 0 | CX105: 0 | CY105: 0 | CZ105: 0 | DA105: 0 | DB105: 0 | DC105: 0
D106: Real Fixed Cost per kW-year | E106: Euro/kW-yr | F106: =SUMPRODUCT(G33:G47*F33:F47) -> 22.74986234 | H106: =$F$106/2*H5 -> 0 | I106: 11.37493117 | J106: 11.37493117 | K106: 11.37493117 | L106: 11.37493117 | M106: 11.37493117 | N106: 11.37493117 | O106: 11.37493117 | P106: 11.37493117 | Q106: 11.37493117 | R106: 11.37493117 | S106: 11.37493117 | T106: 11.37493117 | U106: 11.37493117 | V106: 11.37493117 | W106: 11.37493117 | X106: 11.37493117 | Y106: 11.37493117 | Z106: 11.37493117 | AA106: 11.37493117 | AB106: 11.37493117 | AC106: 11.37493117 | AD106: 11.37493117 | AE106: 11.37493117 | AF106: 11.37493117 | AG106: 11.37493117 | AH106: 11.37493117 | AI106: 11.37493117 | AJ106: 11.37493117 | AK106: 11.37493117 | AL106: 11.37493117 | AM106: 11.37493117 | AN106: =$F$106/2*AN5 -> 11.37493117 | AO106: 11.37493117 | AP106: 11.37493117 | AQ106: 11.37493117 | AR106: 11.37493117 | AS106: 11.37493117 | AT106: 11.37493117 | AU106: 11.37493117 | AV106: 11.37493117 | AW106: 11.37493117 | AX106: 11.37493117 | AY106: 11.37493117 | AZ106: 11.37493117 | BA106: 11.37493117 | BB106: 11.37493117 | BC106: 11.37493117 | BD106: 11.37493117 | BE106: 11.37493117 | BF106: 11.37493117 | BG106: 11.37493117 | BH106: 11.37493117 | BI106: 11.37493117 | BJ106: 11.37493117 | BK106: 11.37493117 | BL106: 11.37493117 | BM106: 11.37493117 | BN106: 11.37493117 | BO106: 11.37493117 | BP106: 11.37493117 | BQ106: 0 | BR106: 0 | BS106: 0 | BT106: =$F$106/2*BT5 -> 0 | BU106: 0 | BV106: 0 | BW106: 0 | BX106: 0 | BY106: 0 | BZ106: 0 | CA106: 0 | CB106: 0 | CC106: 0 | CD106: 0 | CE106: 0 | CF106: 0 | CG106: 0 | CH106: 0 | CI106: 0 | CJ106: 0 | CK106: 0 | CL106: 0 | CM106: 0 | CN106: 0 | CO106: 0 | CP106: 0 | CQ106: 0 | CR106: 0 | CS106: 0 | CT106: 0 | CU106: 0 | CV106: 0 | CW106: 0 | CX106: 0 | CY106: 0 | CZ106: 0 | DA106: 0 | DB106: 0 | DC106: 0
D108: Inflation Rate | E108: % | F108: =F30 -> 0.02 | H108: =(1+$F$108)^(1/2)-1 -> 0.009950493836 | I108: =(1+$F$108)^(1/2)-1 -> 0.009950493836 | J108: 0.009950493836 | K108: 0.009950493836 | L108: 0.009950493836 | M108: 0.009950493836 | N108: 0.009950493836 | O108: 0.009950493836 | P108: 0.009950493836 | Q108: 0.009950493836 | R108: 0.009950493836 | S108: 0.009950493836 | T108: 0.009950493836 | U108: 0.009950493836 | V108: 0.009950493836 | W108: 0.009950493836 | X108: 0.009950493836 | Y108: 0.009950493836 | Z108: 0.009950493836 | AA108: 0.009950493836 | AB108: 0.009950493836 | AC108: 0.009950493836 | AD108: 0.009950493836 | AE108: 0.009950493836 | AF108: 0.009950493836 | AG108: 0.009950493836 | AH108: 0.009950493836 | AI108: 0.009950493836 | AJ108: 0.009950493836 | AK108: 0.009950493836 | AL108: 0.009950493836 | AM108: 0.009950493836 | AN108: 0.009950493836 | AO108: 0.009950493836 | AP108: 0.009950493836 | AQ108: 0.009950493836 | AR108: 0.009950493836 | AS108: 0.009950493836 | AT108: 0.009950493836 | AU108: 0.009950493836 | AV108: 0.009950493836 | AW108: 0.009950493836 | AX108: 0.009950493836 | AY108: 0.009950493836 | AZ108: 0.009950493836 | BA108: 0.009950493836 | BB108: 0.009950493836 | BC108: 0.009950493836 | BD108: 0.009950493836 | BE108: 0.009950493836 | BF108: 0.009950493836 | BG108: 0.009950493836 | BH108: 0.009950493836 | BI108: 0.009950493836 | BJ108: 0.009950493836 | BK108: 0.009950493836 | BL108: 0.009950493836 | BM108: 0.009950493836 | BN108: 0.009950493836 | BO108: 0.009950493836 | BP108: 0.009950493836 | BQ108: 0.009950493836 | BR108: 0.009950493836 | BS108: 0.009950493836 | BT108: 0.009950493836 | BU108: =(1+$F$108)^(1/2)-1 -> 0.009950493836 | BV108: 0.009950493836 | BW108: 0.009950493836 | BX108: 0.009950493836 | BY108: 0.009950493836 | BZ108: 0.009950493836 | CA108: 0.009950493836 | CB108: 0.009950493836 | CC108: 0.009950493836 | CD108: 0.009950493836 | CE108: 0.009950493836 | CF108: 0.009950493836 | CG108: 0.009950493836 | CH108: 0.009950493836 | CI108: 0.009950493836 | CJ108: 0.009950493836 | CK108: 0.009950493836 | CL108: 0.009950493836 | CM108: 0.009950493836 | CN108: 0.009950493836 | CO108: 0.009950493836 | CP108: 0.009950493836 | CQ108: 0.009950493836 | CR108: 0.009950493836 | CS108: 0.009950493836 | CT108: 0.009950493836 | CU108: 0.009950493836 | CV108: 0.009950493836 | CW108: 0.009950493836 | CX108: 0.009950493836 | CY108: 0.009950493836 | CZ108: 0.009950493836 | DA108: 0.009950493836 | DB108: 0.009950493836 | DC108: 0.009950493836
D109: Inflation Index | E109: Index | G109: 1 | H109: =G109*(1+H108*H5) -> 1 | I109: 1.009950494 | J109: 1.02 | K109: 1.030149504 | L109: 1.0404 | M109: 1.050752494 | N109: 1.061208 | O109: 1.071767544 | P109: 1.08243216 | Q109: 1.093202895 | R109: 1.104080803 | S109: 1.115066952 | T109: 1.126162419 | U109: 1.137368291 | V109: 1.148685668 | W109: 1.160115657 | X109: 1.171659381 | Y109: 1.18331797 | Z109: 1.195092569 | AA109: 1.20698433 | AB109: 1.21899442 | AC109: 1.231124016 | AD109: 1.243374308 | AE109: 1.255746497 | AF109: 1.268241795 | AG109: 1.280861427 | AH109: 1.29360663 | AI109: 1.306478655 | AJ109: 1.319478763 | AK109: 1.332608228 | AL109: 1.345868338 | AM109: 1.359260393 | AN109: =AM109*(1+AN108*AN5) -> 1.372785705 | AO109: 1.386445601 | AP109: 1.400241419 | AQ109: 1.414174513 | AR109: 1.428246248 | AS109: 1.442458003 | AT109: 1.456811173 | AU109: 1.471307163 | AV109: 1.485947396 | AW109: 1.500733306 | AX109: 1.515666344 | AY109: 1.530747973 | AZ109: 1.545979671 | BA109: 1.561362932 | BB109: 1.576899264 | BC109: 1.592590191 | BD109: 1.608437249 | BE109: 1.624441994 | BF109: 1.640605994 | BG109: 1.656930834 | BH109: 1.673418114 | BI109: 1.690069451 | BJ109: 1.706886477 | BK109: 1.72387084 | BL109: 1.741024206 | BM109: 1.758348257 | BN109: 1.77584469 | BO109: 1.793515222 | BP109: 1.811361584 | BQ109: 1.811361584 | BR109: 1.811361584 | BS109: 1.811361584 | BT109: =BS109*(1+BT108*BT5) -> 1.811361584 | BU109: 1.811361584 | BV109: 1.811361584 | BW109: 1.811361584 | BX109: 1.811361584 | BY109: 1.811361584 | BZ109: 1.811361584 | CA109: 1.811361584 | CB109: 1.811361584 | CC109: 1.811361584 | CD109: 1.811361584 | CE109: 1.811361584 | CF109: 1.811361584 | CG109: 1.811361584 | CH109: 1.811361584 | CI109: 1.811361584 | CJ109: 1.811361584 | CK109: 1.811361584 | CL109: 1.811361584 | CM109: 1.811361584 | CN109: 1.811361584 | CO109: 1.811361584 | CP109: 1.811361584 | CQ109: 1.811361584 | CR109: 1.811361584 | CS109: 1.811361584 | CT109: 1.811361584 | CU109: 1.811361584 | CV109: 1.811361584 | CW109: 1.811361584 | CX109: 1.811361584 | CY109: 1.811361584 | CZ109: =CY109*(1+CZ108*CZ5) -> 1.811361584 | DA109: 1.811361584 | DB109: 1.811361584 | DC109: 1.811361584
D111: Nominal Variable Cost per MWH | H111: =H105*H109 -> 0 | I111: =I105*I109 -> 9.317602377 | J111: 9.410317122 | K111: 9.503954424 | L111: 9.598523464 | M111: 9.694033513 | N111: 9.790493934 | O111: 9.887914183 | P111: 9.986303812 | Q111: 10.08567247 | R111: 10.18602989 | S111: 10.28738592 | T111: 10.38975049 | U111: 10.49313363 | V111: 10.5975455 | W111: 10.70299631 | X111: 10.80949641 | Y111: 10.91705623 | Z111: 11.02568633 | AA111: 11.13539736 | AB111: 11.24620006 | AC111: 11.35810531 | AD111: 11.47112406 | AE111: 11.58526741 | AF111: 11.70054654 | AG111: 11.81697276 | AH111: 11.93455747 | AI111: 12.05331221 | AJ111: 12.17324862 | AK111: 12.29437846 | AL111: 12.4167136 | AM111: 12.54026603 | AN111: 12.66504787 | AO111: 12.79107135 | AP111: 12.91834883 | AQ111: 13.04689278 | AR111: 13.1767158 | AS111: 13.30783063 | AT111: 13.44025012 | AU111: 13.57398724 | AV111: 13.70905512 | AW111: 13.84546699 | AX111: 13.98323622 | AY111: 14.12237633 | AZ111: 14.26290095 | BA111: 14.40482385 | BB111: 14.54815897 | BC111: 14.69292033 | BD111: 14.83912215 | BE111: 14.98677874 | BF111: 15.13590459 | BG111: 15.28651431 | BH111: 15.43862268 | BI111: 15.5922446 | BJ111: 15.74739513 | BK111: 15.90408949 | BL111: 16.06234304 | BM111: 16.22217128 | BN111: 16.3835899 | BO111: 16.54661471 | BP111: 16.71126169 | BQ111: 0 | BR111: 0 | BS111: 0 | BT111: 0 | BU111: =BU105*BU109 -> 0 | BV111: 0 | BW111: 0 | BX111: 0 | BY111: 0 | BZ111: 0 | CA111: 0 | CB111: 0 | CC111: 0 | CD111: 0 | CE111: 0 | CF111: 0 | CG111: 0 | CH111: 0 | CI111: 0 | CJ111: 0 | CK111: 0 | CL111: 0 | CM111: 0 | CN111: 0 | CO111: 0 | CP111: 0 | CQ111: 0 | CR111: 0 | CS111: 0 | CT111: 0 | CU111: 0 | CV111: 0 | CW111: 0 | CX111: 0 | CY111: 0 | CZ111: 0 | DA111: 0 | DB111: 0 | DC111: 0
D112: Nominal Fixed Cost per kW-year | H112: =H106*H109 -> 0 | I112: =I106*I109 -> 11.48811735 | J112: 11.60242979 | K112: 11.7178797 | L112: 11.83447839 | M112: 11.95223729 | N112: 12.07116795 | O112: 12.19128204 | P112: 12.31259131 | Q112: 12.43510768 | R112: 12.55884314 | S112: 12.68380983 | T112: 12.81002 | U112: 12.93748603 | V112: 13.0662204 | W112: 13.19623575 | X112: 13.32754481 | Y112: 13.46016046 | Z112: 13.59409571 | AA112: 13.72936367 | AB112: 13.86597762 | AC112: 14.00395095 | AD112: 14.14329717 | AE112: 14.28402997 | AF112: 14.42616312 | AG112: 14.56971056 | AH112: 14.71468638 | AI112: 14.86110478 | AJ112: 15.00898011 | AK112: 15.15832687 | AL112: 15.30915971 | AM112: 15.46149341 | AN112: 15.6153429 | AO112: 15.77072328 | AP112: 15.92764976 | AQ112: 16.08613774 | AR112: 16.24620276 | AS112: 16.4078605 | AT112: 16.57112681 | AU112: 16.73601771 | AV112: 16.90254935 | AW112: 17.07073806 | AX112: 17.24060034 | AY112: 17.41215282 | AZ112: 17.58541234 | BA112: 17.76039588 | BB112: 17.93712059 | BC112: 18.1156038 | BD112: 18.295863 | BE112: 18.47791587 | BF112: 18.66178026 | BG112: 18.84747419 | BH112: 19.03501587 | BI112: 19.22442367 | BJ112: 19.41571618 | BK112: 19.60891215 | BL112: 19.80403051 | BM112: 20.00109039 | BN112: 20.20011112 | BO112: 20.4011122 | BP112: 20.60411334 | BQ112: 0 | BR112: 0 | BS112: 0 | BT112: 0 | BU112: =BU106*BU109 -> 0 | BV112: 0 | BW112: 0 | BX112: 0 | BY112: 0 | BZ112: 0 | CA112: 0 | CB112: 0 | CC112: 0 | CD112: 0 | CE112: 0 | CF112: 0 | CG112: 0 | CH112: 0 | CI112: 0 | CJ112: 0 | CK112: 0 | CL112: 0 | CM112: 0 | CN112: 0 | CO112: 0 | CP112: 0 | CQ112: 0 | CR112: 0 | CS112: 0 | CT112: 0 | CU112: 0 | CV112: 0 | CW112: 0 | CX112: 0 | CY112: 0 | CZ112: 0 | DA112: 0 | DB112: 0 | DC112: 0
D114: Inflated Variable Cost | E114: Euro 000's | H114: =H96*H105*H109/1000 -> 0 | I114: 1884.648861 | J114: 1934.950148 | K114: 1922.341838 | L114: 1973.649151 | M114: 1960.788675 | N114: 2013.122134 | O114: 2011.054196 | P114: 2053.384576 | Q114: 2040.004537 | R114: 2094.452268 | S114: 2080.804628 | T114: 2136.341313 | U114: 2122.42072 | V114: 2179.068139 | W114: 2176.829738 | X114: 2222.649502 | Y114: 2208.166517 | Z114: 2267.102492 | AA114: 2252.329848 | AB114: 2312.444542 | AC114: 2297.376445 | AD114: 2358.693433 | AE114: 2356.270515 | AF114: 2405.867302 | AG114: 2390.190453 | AH114: 2453.984648 | AI114: 2437.994262 | AJ114: 2503.064341 | AK114: 2486.754147 | AL114: 2553.125627 | AM114: 2550.502983 | AN114: 2604.18814 | AO114: 2587.219015 | AP114: 2656.271903 | AQ114: 2638.963395 | AR114: 2709.397341 | AS114: 2691.742663 | AT114: 2763.585288 | AU114: 2760.746453 | AV114: 2818.856993 | AW114: 2800.489067 | AX114: 2875.234133 | AY114: 2856.498848 | AZ114: 2932.738816 | BA114: 2913.628825 | BB114: 2991.393592 | BC114: 2988.320746 | BD114: 3051.221464 | BE114: 3031.339429 | BF114: 3112.245893 | BG114: 3091.966218 | BH114: 3174.490811 | BI114: 3153.805542 | BJ114: 3237.980627 | BK114: 3234.65448 | BL114: 3302.74024 | BM114: 3281.219286 | BN114: 3368.795045 | BO114: 3346.843672 | BP114: 3436.170946 | BQ114: 0 | BR114: 0 | BS114: 0 | BT114: =BT96*BT105*BT109/1000 -> 0 | BU114: 0 | BV114: 0 | BW114: 0 | BX114: 0 | BY114: 0 | BZ114: 0 | CA114: 0 | CB114: 0 | CC114: 0 | CD114: 0 | CE114: 0 | CF114: 0 | CG114: 0 | CH114: 0 | CI114: 0 | CJ114: 0 | CK114: 0 | CL114: 0 | CM114: 0 | CN114: 0 | CO114: 0 | CP114: 0 | CQ114: 0 | CR114: 0 | CS114: 0 | CT114: 0 | CU114: 0 | CV114: 0 | CW114: 0 | CX114: 0 | CY114: 0 | CZ114: 0 | DA114: 0 | DB114: 0 | DC114: 0
D115: Inflated Fixed Cost | E115: Euro 000's | H115: =H84*H106*H109 -> 0 | I115: 1378.574082 | J115: 1392.291575 | K115: 1406.145564 | L115: 1420.137406 | M115: 1434.268475 | N115: 1448.540155 | O115: 1462.953844 | P115: 1477.510958 | Q115: 1492.212921 | R115: 1507.061177 | S115: 1522.05718 | T115: 1537.2024 | U115: 1552.498323 | V115: 1567.946448 | W115: 1583.54829 | X115: 1599.305377 | Y115: 1615.219256 | Z115: 1631.291485 | AA115: 1647.523641 | AB115: 1663.917315 | AC115: 1680.474114 | AD115: 1697.195661 | AE115: 1714.083596 | AF115: 1731.139574 | AG115: 1748.365268 | AH115: 1765.762366 | AI115: 1783.332573 | AJ115: 1801.077613 | AK115: 1818.999225 | AL115: 1837.099165 | AM115: 1855.379209 | AN115: 1873.841148 | AO115: 1892.486793 | AP115: 1911.317971 | AQ115: 1930.336529 | AR115: 1949.544331 | AS115: 1968.94326 | AT115: 1988.535217 | AU115: 2008.322125 | AV115: 2028.305922 | AW115: 2048.488567 | AX115: 2068.87204 | AY115: 2089.458339 | AZ115: 2110.249481 | BA115: 2131.247505 | BB115: 2152.454471 | BC115: 2173.872456 | BD115: 2195.50356 | BE115: 2217.349905 | BF115: 2239.413631 | BG115: 2261.696903 | BH115: 2284.201904 | BI115: 2306.930841 | BJ115: 2329.885942 | BK115: 2353.069458 | BL115: 2376.483661 | BM115: 2400.130847 | BN115: 2424.013334 | BO115: 2448.133464 | BP115: 2472.493601 | BQ115: 0 | BR115: 0 | BS115: 0 | BT115: =BT84*BT106*BT109 -> 0 | BU115: 0 | BV115: 0 | BW115: 0 | BX115: 0 | BY115: 0 | BZ115: 0 | CA115: 0 | CB115: 0 | CC115: 0 | CD115: 0 | CE115: 0 | CF115: 0 | CG115: 0 | CH115: 0 | CI115: 0 | CJ115: 0 | CK115: 0 | CL115: 0 | CM115: 0 | CN115: 0 | CO115: 0 | CP115: 0 | CQ115: 0 | CR115: 0 | CS115: 0 | CT115: 0 | CU115: 0 | CV115: 0 | CW115: 0 | CX115: 0 | CY115: 0 | CZ115: 0 | DA115: 0 | DB115: 0 | DC115: 0
D116: Total O&M Cost | E116: Euro 000's | H116: =SUM(H114:H115) -> 0 | I116: =SUM(I114:I115) -> 3263.222943 | J116: 3327.241723 | K116: 3328.487401 | L116: 3393.786557 | M116: 3395.057149 | N116: 3461.662288 | O116: 3474.008041 | P116: 3530.895534 | Q116: 3532.217458 | R116: 3601.513445 | S116: 3602.861807 | T116: 3673.543714 | U116: 3674.919044 | V116: 3747.014588 | W116: 3760.378027 | X116: 3821.95488 | Y116: 3823.385773 | Z116: 3898.393977 | AA116: 3899.853488 | AB116: 3976.361857 | AC116: 3977.850558 | AD116: 4055.889094 | AE116: 4070.354111 | AF116: 4137.006876 | AG116: 4138.555721 | AH116: 4219.747013 | AI116: 4221.326835 | AJ116: 4304.141953 | AK116: 4305.753372 | AL116: 4390.224793 | AM116: 4405.882192 | AN116: 4478.029288 | AO116: 4479.705808 | AP116: 4567.589874 | AQ116: 4569.299924 | AR116: 4658.941672 | AS116: 4660.685923 | AT116: 4752.120505 | AU116: 4769.068578 | AV116: 4847.162915 | AW116: 4848.977634 | AX116: 4944.106173 | AY116: 4945.957187 | AZ116: 5042.988297 | BA116: 5044.87633 | BB116: 5143.848063 | BC116: 5162.193202 | BD116: 5246.725024 | BE116: 5248.689334 | BF116: 5351.659525 | BG116: 5353.663121 | BH116: 5458.692715 | BI116: 5460.736383 | BJ116: 5567.866569 | BK116: 5587.723938 | BL116: 5679.223901 | BM116: 5681.350133 | BN116: 5792.808379 | BO116: 5794.977136 | BP116: 5908.664546 | BQ116: 0 | BR116: 0 | BS116: 0 | BT116: 0 | BU116: =SUM(BU114:BU115) -> 0 | BV116: 0 | BW116: 0 | BX116: 0 | BY116: 0 | BZ116: 0 | CA116: 0 | CB116: 0 | CC116: 0 | CD116: 0 | CE116: 0 | CF116: 0 | CG116: 0 | CH116: 0 | CI116: 0 | CJ116: 0 | CK116: 0 | CL116: 0 | CM116: 0 | CN116: 0 | CO116: 0 | CP116: 0 | CQ116: 0 | CR116: 0 | CS116: 0 | CT116: 0 | CU116: 0 | CV116: 0 | CW116: 0 | CX116: 0 | CY116: 0 | CZ116: 0 | DA116: 0 | DB116: 0 | DC116: 0
B118: Revenues and PPA
C119: PPA Contract
D120: Base Price | E120: USD/MWH | F120: =F51 -> 43.21713633 | H120: =$F$120*H5 -> 0 | I120: 43.21713633 | J120: 43.21713633 | K120: 43.21713633 | L120: 43.21713633 | M120: 43.21713633 | N120: 43.21713633 | O120: 43.21713633 | P120: 43.21713633 | Q120: 43.21713633 | R120: 43.21713633 | S120: 43.21713633 | T120: 43.21713633 | U120: 43.21713633 | V120: 43.21713633 | W120: 43.21713633 | X120: 43.21713633 | Y120: 43.21713633 | Z120: 43.21713633 | AA120: 43.21713633 | AB120: 43.21713633 | AC120: 43.21713633 | AD120: 43.21713633 | AE120: 43.21713633 | AF120: 43.21713633 | AG120: 43.21713633 | AH120: 43.21713633 | AI120: 43.21713633 | AJ120: 43.21713633 | AK120: 43.21713633 | AL120: 43.21713633 | AM120: 43.21713633 | AN120: =$F$120*AN5 -> 43.21713633 | AO120: 43.21713633 | AP120: 43.21713633 | AQ120: 43.21713633 | AR120: 43.21713633 | AS120: 43.21713633 | AT120: 43.21713633 | AU120: 43.21713633 | AV120: 43.21713633 | AW120: 43.21713633 | AX120: 43.21713633 | AY120: 43.21713633 | AZ120: 43.21713633 | BA120: 43.21713633 | BB120: 43.21713633 | BC120: 43.21713633 | BD120: 43.21713633 | BE120: 43.21713633 | BF120: 43.21713633 | BG120: 43.21713633 | BH120: 43.21713633 | BI120: 43.21713633 | BJ120: 43.21713633 | BK120: 43.21713633 | BL120: 43.21713633 | BM120: 43.21713633 | BN120: 43.21713633 | BO120: 43.21713633 | BP120: 43.21713633 | BQ120: 0 | BR120: 0 | BS120: 0 | BT120: =$F$120*BT5 -> 0 | BU120: 0 | BV120: 0 | BW120: 0 | BX120: 0 | BY120: 0 | BZ120: 0 | CA120: 0 | CB120: 0 | CC120: 0 | CD120: 0 | CE120: 0 | CF120: 0 | CG120: 0 | CH120: 0 | CI120: 0 | CJ120: 0 | CK120: 0 | CL120: 0 | CM120: 0 | CN120: 0 | CO120: 0 | CP120: 0 | CQ120: 0 | CR120: 0 | CS120: 0 | CT120: 0 | CU120: 0 | CV120: 0 | CW120: 0 | CX120: 0 | CY120: 0 | CZ120: 0 | DA120: 0 | DB120: 0 | DC120: 0
D121: Inflation Index/Applied | E121: Index | F121: =F52 -> TRUE | H121: =IF($F$121,H109,1) -> 1 | I121: =IF($F$121,I109,1) -> 1.009950494 | J121: 1.02 | K121: 1.030149504 | L121: 1.0404 | M121: 1.050752494 | N121: 1.061208 | O121: 1.071767544 | P121: 1.08243216 | Q121: 1.093202895 | R121: 1.104080803 | S121: 1.115066952 | T121: 1.126162419 | U121: 1.137368291 | V121: 1.148685668 | W121: 1.160115657 | X121: 1.171659381 | Y121: 1.18331797 | Z121: 1.195092569 | AA121: 1.20698433 | AB121: 1.21899442 | AC121: 1.231124016 | AD121: 1.243374308 | AE121: 1.255746497 | AF121: 1.268241795 | AG121: 1.280861427 | AH121: 1.29360663 | AI121: 1.306478655 | AJ121: 1.319478763 | AK121: 1.332608228 | AL121: 1.345868338 | AM121: 1.359260393 | AN121: 1.372785705 | AO121: 1.386445601 | AP121: 1.400241419 | AQ121: 1.414174513 | AR121: 1.428246248 | AS121: 1.442458003 | AT121: 1.456811173 | AU121: 1.471307163 | AV121: 1.485947396 | AW121: 1.500733306 | AX121: 1.515666344 | AY121: 1.530747973 | AZ121: 1.545979671 | BA121: 1.561362932 | BB121: 1.576899264 | BC121: 1.592590191 | BD121: 1.608437249 | BE121: 1.624441994 | BF121: 1.640605994 | BG121: 1.656930834 | BH121: 1.673418114 | BI121: 1.690069451 | BJ121: 1.706886477 | BK121: 1.72387084 | BL121: 1.741024206 | BM121: 1.758348257 | BN121: 1.77584469 | BO121: 1.793515222 | BP121: 1.811361584 | BQ121: 1.811361584 | BR121: 1.811361584 | BS121: 1.811361584 | BT121: 1.811361584 | BU121: =IF($F$121,BU109,1) -> 1.811361584 | BV121: 1.811361584 | BW121: 1.811361584 | BX121: 1.811361584 | BY121: 1.811361584 | BZ121: 1.811361584 | CA121: 1.811361584 | CB121: 1.811361584 | CC121: 1.811361584 | CD121: 1.811361584 | CE121: 1.811361584 | CF121: 1.811361584 | CG121: 1.811361584 | CH121: 1.811361584 | CI121: 1.811361584 | CJ121: 1.811361584 | CK121: 1.811361584 | CL121: 1.811361584 | CM121: 1.811361584 | CN121: 1.811361584 | CO121: 1.811361584 | CP121: 1.811361584 | CQ121: 1.811361584 | CR121: 1.811361584 | CS121: 1.811361584 | CT121: 1.811361584 | CU121: 1.811361584 | CV121: 1.811361584 | CW121: 1.811361584 | CX121: 1.811361584 | CY121: 1.811361584 | CZ121: 1.811361584 | DA121: 1.811361584 | DB121: 1.811361584 | DC121: 1.811361584
D122: Inflated Price | E122: USD/MWH | H122: =H120*H121 -> 0 | I122: =I120*I121 -> 43.64716817 | J122: 44.08147905 | K122: 44.52011154 | L122: 44.96310863 | M122: 45.41051377 | N122: 45.86237081 | O122: 46.31872404 | P122: 46.77961822 | Q122: 47.24509852 | R122: 47.71521059 | S122: 48.19000049 | T122: 48.6695148 | U122: 49.1538005 | V122: 49.64290509 | W122: 50.13687651 | X122: 50.6357632 | Y122: 51.13961405 | Z122: 51.64847846 | AA122: 52.16240633 | AB122: 52.68144803 | AC122: 53.20565445 | AD122: 53.73507699 | AE122: 54.26976754 | AF122: 54.80977853 | AG122: 55.35516289 | AH122: 55.9059741 | AI122: 56.46226615 | AJ122: 57.02409358 | AK122: 57.59151147 | AL122: 58.16457545 | AM122: 58.7433417 | AN122: 59.32786696 | AO122: 59.91820854 | AP122: 60.5144243 | AQ122: 61.11657271 | AR122: 61.72471279 | AS122: 62.33890416 | AT122: 62.95920704 | AU122: 63.58568225 | AV122: 64.21839118 | AW122: 64.85739589 | AX122: 65.50275901 | AY122: 66.15454381 | AZ122: 66.81281419 | BA122: 67.47763468 | BB122: 68.14907047 | BC122: 68.82718738 | BD122: 69.51205188 | BE122: 70.20373113 | BF122: 70.90229292 | BG122: 71.60780575 | BH122: 72.32033878 | BI122: 73.03996186 | BJ122: 73.76674555 | BK122: 74.5007611 | BL122: 75.24208046 | BM122: 75.99077632 | BN122: 76.74692207 | BO122: 77.51059185 | BP122: 78.28186051 | BQ122: 0 | BR122: 0 | BS122: 0 | BT122: 0 | BU122: =BU120*BU121 -> 0 | BV122: 0 | BW122: 0 | BX122: 0 | BY122: 0 | BZ122: 0 | CA122: 0 | CB122: 0 | CC122: 0 | CD122: 0 | CE122: 0 | CF122: 0 | CG122: 0 | CH122: 0 | CI122: 0 | CJ122: 0 | CK122: 0 | CL122: 0 | CM122: 0 | CN122: 0 | CO122: 0 | CP122: 0 | CQ122: 0 | CR122: 0 | CS122: 0 | CT122: 0 | CU122: 0 | CV122: 0 | CW122: 0 | CX122: 0 | CY122: 0 | CZ122: 0 | DA122: 0 | DB122: 0 | DC122: 0
D123: Revenues | E123: Euro 000's | H123: =H122*H96/1000 -> 0 | I123: =I122*I96/1000 -> 8828.40697 | J123: 9064.037194 | K123: 9004.975109 | L123: 9245.317938 | M123: 9185.074611 | N123: 9430.224297 | O123: 9420.537297 | P123: 9618.828783 | Q123: 9556.151626 | R123: 9811.205358 | S123: 9747.274658 | T123: 10007.42947 | U123: 9942.220151 | V123: 10207.57805 | W123: 10197.09254 | X123: 10411.72962 | Y123: 10343.88585 | Z123: 10619.96421 | AA123: 10550.76356 | AB123: 10832.36349 | AC123: 10761.77883 | AD123: 11049.01076 | AE123: 11037.6609 | AF123: 11269.99098 | AG123: 11196.5547 | AH123: 11495.3908 | AI123: 11420.48579 | AJ123: 11725.29861 | AK123: 11648.89551 | AL123: 11959.80459 | AM123: 11947.51913 | AN123: 12199.00068 | AO123: 12119.51089 | AP123: 12442.98069 | AQ123: 12361.9011 | AR123: 12691.8403 | AS123: 12609.13913 | AT123: 12945.67711 | AU123: 12932.37894 | AV123: 13204.59065 | AW123: 13118.54835 | AX123: 13468.68247 | AY123: 13380.91931 | AZ123: 13738.05611 | BA123: 13648.5377 | BB123: 14012.81724 | BC123: 13998.42287 | BD123: 14293.07358 | BE123: 14199.93862 | BF123: 14578.93505 | BG123: 14483.9374 | BH123: 14870.51375 | BI123: 14773.61614 | BJ123: 15167.92403 | BK123: 15152.3431 | BL123: 15471.28251 | BM123: 15370.47024 | BN123: 15780.70816 | BO123: 15677.87964 | BP123: 16096.32232 | BQ123: 0 | BR123: 0 | BS123: 0 | BT123: =BT122*BT96/1000 -> 0 | BU123: 0 | BV123: 0 | BW123: 0 | BX123: 0 | BY123: 0 | BZ123: 0 | CA123: 0 | CB123: 0 | CC123: 0 | CD123: 0 | CE123: 0 | CF123: 0 | CG123: 0 | CH123: 0 | CI123: 0 | CJ123: 0 | CK123: 0 | CL123: 0 | CM123: 0 | CN123: 0 | CO123: 0 | CP123: 0 | CQ123: 0 | CR123: 0 | CS123: 0 | CT123: 0 | CU123: 0 | CV123: 0 | CW123: 0 | CX123: 0 | CY123: 0 | CZ123: 0 | DA123: 0 | DB123: 0 | DC123: 0
A125: Pre-tax Cash Flow and IRR
D126: Revenues | E126: Euro 000's | H126: =H123 -> 0 | I126: =I123 -> 8828.40697 | J126: 9064.037194 | K126: 9004.975109 | L126: 9245.317938 | M126: 9185.074611 | N126: 9430.224297 | O126: 9420.537297 | P126: 9618.828783 | Q126: 9556.151626 | R126: 9811.205358 | S126: 9747.274658 | T126: 10007.42947 | U126: 9942.220151 | V126: 10207.57805 | W126: 10197.09254 | X126: 10411.72962 | Y126: 10343.88585 | Z126: 10619.96421 | AA126: 10550.76356 | AB126: 10832.36349 | AC126: 10761.77883 | AD126: 11049.01076 | AE126: 11037.6609 | AF126: 11269.99098 | AG126: 11196.5547 | AH126: 11495.3908 | AI126: 11420.48579 | AJ126: 11725.29861 | AK126: 11648.89551 | AL126: 11959.80459 | AM126: 11947.51913 | AN126: 12199.00068 | AO126: 12119.51089 | AP126: 12442.98069 | AQ126: 12361.9011 | AR126: 12691.8403 | AS126: 12609.13913 | AT126: 12945.67711 | AU126: 12932.37894 | AV126: 13204.59065 | AW126: 13118.54835 | AX126: 13468.68247 | AY126: 13380.91931 | AZ126: 13738.05611 | BA126: 13648.5377 | BB126: 14012.81724 | BC126: 13998.42287 | BD126: 14293.07358 | BE126: 14199.93862 | BF126: 14578.93505 | BG126: 14483.9374 | BH126: 14870.51375 | BI126: 14773.61614 | BJ126: 15167.92403 | BK126: 15152.3431 | BL126: 15471.28251 | BM126: 15370.47024 | BN126: 15780.70816 | BO126: 15677.87964 | BP126: 16096.32232 | BQ126: 0 | BR126: 0 | BS126: 0 | BT126: 0 | BU126: =BU123 -> 0 | BV126: 0 | BW126: 0 | BX126: 0 | BY126: 0 | BZ126: 0 | CA126: 0 | CB126: 0 | CC126: 0 | CD126: 0 | CE126: 0 | CF126: 0 | CG126: 0 | CH126: 0 | CI126: 0 | CJ126: 0 | CK126: 0 | CL126: 0 | CM126: 0 | CN126: 0 | CO126: 0 | CP126: 0 | CQ126: 0 | CR126: 0 | CS126: 0 | CT126: 0 | CU126: 0 | CV126: 0 | CW126: 0 | CX126: 0 | CY126: 0 | CZ126: 0 | DA126: 0 | DB126: 0 | DC126: 0
D127: Total O&M costs | E127: Euro 000's | H127: =H116 -> 0 | I127: =I116 -> 3263.222943 | J127: 3327.241723 | K127: 3328.487401 | L127: 3393.786557 | M127: 3395.057149 | N127: 3461.662288 | O127: 3474.008041 | P127: 3530.895534 | Q127: 3532.217458 | R127: 3601.513445 | S127: 3602.861807 | T127: 3673.543714 | U127: 3674.919044 | V127: 3747.014588 | W127: 3760.378027 | X127: 3821.95488 | Y127: 3823.385773 | Z127: 3898.393977 | AA127: 3899.853488 | AB127: 3976.361857 | AC127: 3977.850558 | AD127: 4055.889094 | AE127: 4070.354111 | AF127: 4137.006876 | AG127: 4138.555721 | AH127: 4219.747013 | AI127: 4221.326835 | AJ127: 4304.141953 | AK127: 4305.753372 | AL127: 4390.224793 | AM127: 4405.882192 | AN127: 4478.029288 | AO127: 4479.705808 | AP127: 4567.589874 | AQ127: 4569.299924 | AR127: 4658.941672 | AS127: 4660.685923 | AT127: 4752.120505 | AU127: 4769.068578 | AV127: 4847.162915 | AW127: 4848.977634 | AX127: 4944.106173 | AY127: 4945.957187 | AZ127: 5042.988297 | BA127: 5044.87633 | BB127: 5143.848063 | BC127: 5162.193202 | BD127: 5246.725024 | BE127: 5248.689334 | BF127: 5351.659525 | BG127: 5353.663121 | BH127: 5458.692715 | BI127: 5460.736383 | BJ127: 5567.866569 | BK127: 5587.723938 | BL127: 5679.223901 | BM127: 5681.350133 | BN127: 5792.808379 | BO127: 5794.977136 | BP127: 5908.664546 | BQ127: 0 | BR127: 0 | BS127: 0 | BT127: 0 | BU127: =BU116 -> 0 | BV127: 0 | BW127: 0 | BX127: 0 | BY127: 0 | BZ127: 0 | CA127: 0 | CB127: 0 | CC127: 0 | CD127: 0 | CE127: 0 | CF127: 0 | CG127: 0 | CH127: 0 | CI127: 0 | CJ127: 0 | CK127: 0 | CL127: 0 | CM127: 0 | CN127: 0 | CO127: 0 | CP127: 0 | CQ127: 0 | CR127: 0 | CS127: 0 | CT127: 0 | CU127: 0 | CV127: 0 | CW127: 0 | CX127: 0 | CY127: 0 | CZ127: 0 | DA127: 0 | DB127: 0 | DC127: 0
D128: EBITDA | E128: Euro 000's | H128: =H126-H127 -> 0 | I128: =I126-I127 -> 5565.184027 | J128: 5736.795471 | K128: 5676.487708 | L128: 5851.531381 | M128: 5790.017462 | N128: 5968.562008 | O128: 5946.529257 | P128: 6087.933249 | Q128: 6023.934167 | R128: 6209.691914 | S128: 6144.412851 | T128: 6333.885752 | U128: 6267.301108 | V128: 6460.563467 | W128: 6436.714508 | X128: 6589.774736 | Y128: 6520.500072 | Z128: 6721.570231 | AA128: 6650.910074 | AB128: 6856.001636 | AC128: 6783.928275 | AD128: 6993.121668 | AE128: 6967.306788 | AF128: 7132.984102 | AG128: 7057.998978 | AH128: 7275.643784 | AI128: 7199.158957 | AJ128: 7421.156659 | AK128: 7343.142136 | AL128: 7569.579793 | AM128: 7541.636936 | AN128: 7720.971388 | AO128: 7639.805079 | AP128: 7875.390816 | AQ128: 7792.60118 | AR128: 8032.898633 | AS128: 7948.453204 | AT128: 8193.556605 | AU128: 8163.310359 | AV128: 8357.427737 | AW128: 8269.570713 | AX128: 8524.576292 | AY128: 8434.962128 | AZ128: 8695.067818 | BA128: 8603.66137 | BB128: 8868.969174 | BC128: 8836.229664 | BD128: 9046.348558 | BE128: 8951.249289 | BF128: 9227.275529 | BG128: 9130.274275 | BH128: 9411.821039 | BI128: 9312.879761 | BJ128: 9600.05746 | BK128: 9564.619162 | BL128: 9792.058609 | BM128: 9689.120103 | BN128: 9987.899782 | BO128: 9882.902505 | BP128: 10187.65778 | BQ128: 0 | BR128: 0 | BS128: 0 | BT128: 0 | BU128: =BU126-BU127 -> 0 | BV128: 0 | BW128: 0 | BX128: 0 | BY128: 0 | BZ128: 0 | CA128: 0 | CB128: 0 | CC128: 0 | CD128: 0 | CE128: 0 | CF128: 0 | CG128: 0 | CH128: 0 | CI128: 0 | CJ128: 0 | CK128: 0 | CL128: 0 | CM128: 0 | CN128: 0 | CO128: 0 | CP128: 0 | CQ128: 0 | CR128: 0 | CS128: 0 | CT128: 0 | CU128: 0 | CV128: 0 | CW128: 0 | CX128: 0 | CY128: 0 | CZ128: 0 | DA128: 0 | DB128: 0 | DC128: 0
D129: CAPEX | E129: Euro 000's | H129: =H102 -> 178560 | I129: =I102 -> 0 | J129: 0 | K129: 0 | L129: 0 | M129: 0 | N129: 0 | O129: 0 | P129: 0 | Q129: 0 | R129: 0 | S129: 0 | T129: 0 | U129: 0 | V129: 0 | W129: 0 | X129: 0 | Y129: 0 | Z129: 0 | AA129: 0 | AB129: 0 | AC129: 0 | AD129: 0 | AE129: 0 | AF129: 0 | AG129: 0 | AH129: 0 | AI129: 0 | AJ129: 0 | AK129: 0 | AL129: 0 | AM129: 0 | AN129: 0 | AO129: 0 | AP129: 0 | AQ129: 0 | AR129: 0 | AS129: 0 | AT129: 0 | AU129: 0 | AV129: 0 | AW129: 0 | AX129: 0 | AY129: 0 | AZ129: 0 | BA129: 0 | BB129: 0 | BC129: 0 | BD129: 0 | BE129: 0 | BF129: 0 | BG129: 0 | BH129: 0 | BI129: 0 | BJ129: 0 | BK129: 0 | BL129: 0 | BM129: 0 | BN129: 0 | BO129: 0 | BP129: 0 | BQ129: 0 | BR129: 0 | BS129: 0 | BT129: 0 | BU129: =BU102 -> 0 | BV129: 0 | BW129: 0 | BX129: 0 | BY129: 0 | BZ129: 0 | CA129: 0 | CB129: 0 | CC129: 0 | CD129: 0 | CE129: 0 | CF129: 0 | CG129: 0 | CH129: 0 | CI129: 0 | CJ129: 0 | CK129: 0 | CL129: 0 | CM129: 0 | CN129: 0 | CO129: 0 | CP129: 0 | CQ129: 0 | CR129: 0 | CS129: 0 | CT129: 0 | CU129: 0 | CV129: 0 | CW129: 0 | CX129: 0 | CY129: 0 | CZ129: 0 | DA129: 0 | DB129: 0 | DC129: 0
D130: Free Cash Flow | H130: =H128-H129 -> -178560 | I130: =I128-I129 -> 5565.184027 | J130: 5736.795471 | K130: 5676.487708 | L130: 5851.531381 | M130: 5790.017462 | N130: 5968.562008 | O130: 5946.529257 | P130: 6087.933249 | Q130: 6023.934167 | R130: 6209.691914 | S130: 6144.412851 | T130: 6333.885752 | U130: 6267.301108 | V130: 6460.563467 | W130: 6436.714508 | X130: 6589.774736 | Y130: 6520.500072 | Z130: 6721.570231 | AA130: 6650.910074 | AB130: 6856.001636 | AC130: 6783.928275 | AD130: 6993.121668 | AE130: 6967.306788 | AF130: 7132.984102 | AG130: 7057.998978 | AH130: 7275.643784 | AI130: 7199.158957 | AJ130: 7421.156659 | AK130: 7343.142136 | AL130: 7569.579793 | AM130: 7541.636936 | AN130: 7720.971388 | AO130: 7639.805079 | AP130: 7875.390816 | AQ130: 7792.60118 | AR130: 8032.898633 | AS130: 7948.453204 | AT130: 8193.556605 | AU130: 8163.310359 | AV130: 8357.427737 | AW130: 8269.570713 | AX130: 8524.576292 | AY130: 8434.962128 | AZ130: 8695.067818 | BA130: 8603.66137 | BB130: 8868.969174 | BC130: 8836.229664 | BD130: 9046.348558 | BE130: 8951.249289 | BF130: 9227.275529 | BG130: 9130.274275 | BH130: 9411.821039 | BI130: 9312.879761 | BJ130: 9600.05746 | BK130: 9564.619162 | BL130: 9792.058609 | BM130: 9689.120103 | BN130: 9987.899782 | BO130: 9882.902505 | BP130: 10187.65778 | BQ130: 0 | BR130: 0 | BS130: 0 | BT130: 0 | BU130: =BU128-BU129 -> 0 | BV130: 0 | BW130: 0 | BX130: 0 | BY130: 0 | BZ130: 0 | CA130: 0 | CB130: 0 | CC130: 0 | CD130: 0 | CE130: 0 | CF130: 0 | CG130: 0 | CH130: 0 | CI130: 0 | CJ130: 0 | CK130: 0 | CL130: 0 | CM130: 0 | CN130: 0 | CO130: 0 | CP130: 0 | CQ130: 0 | CR130: 0 | CS130: 0 | CT130: 0 | CU130: 0 | CV130: 0 | CW130: 0 | CX130: 0 | CY130: 0 | CZ130: 0 | DA130: 0 | DB130: 0 | DC130: 0
D132: Project IRR | E132: =XIRR(H130:DC130,H3:DC3) -> 0.06830819547
D133: NPV at target IRR | E133: =#REF! ->  | F133: =XNPV(E133,H130:DC130,H3:DC3) ->  | G133: npv_out
A135: Debt Sizing
C136: Debt Repayment Switch | E136: True/False | F136: =F69 -> 2021-08-01 | G136: =F70 -> 2041-02-01 | H136: =AND(H$2>=$F$136,H$2<$G$136) -> FALSE | I136: FALSE | J136: TRUE | K136: TRUE | L136: TRUE | M136: TRUE | N136: TRUE | O136: TRUE | P136: TRUE | Q136: TRUE | R136: TRUE | S136: TRUE | T136: TRUE | U136: TRUE | V136: TRUE | W136: TRUE | X136: TRUE | Y136: TRUE | Z136: TRUE | AA136: TRUE | AB136: TRUE | AC136: TRUE | AD136: TRUE | AE136: TRUE | AF136: TRUE | AG136: TRUE | AH136: TRUE | AI136: TRUE | AJ136: TRUE | AK136: TRUE | AL136: TRUE | AM136: TRUE | AN136: =AND(AN$2>=$F$136,AN$2<$G$136) -> TRUE | AO136: TRUE | AP136: TRUE | AQ136: TRUE | AR136: TRUE | AS136: TRUE | AT136: TRUE | AU136: TRUE | AV136: TRUE | AW136: FALSE | AX136: FALSE | AY136: FALSE | AZ136: FALSE | BA136: FALSE | BB136: FALSE | BC136: FALSE | BD136: FALSE | BE136: FALSE | BF136: FALSE | BG136: FALSE | BH136: FALSE | BI136: FALSE | BJ136: FALSE | BK136: FALSE | BL136: FALSE | BM136: FALSE | BN136: FALSE | BO136: FALSE | BP136: FALSE | BQ136: FALSE | BR136: FALSE | BS136: FALSE | BT136: =AND(BT$2>=$F$136,BT$2<$G$136) -> FALSE | BU136: FALSE | BV136: FALSE | BW136: FALSE | BX136: FALSE | BY136: FALSE | BZ136: FALSE | CA136: FALSE | CB136: FALSE | CC136: FALSE | CD136: FALSE | CE136: FALSE | CF136: FALSE | CG136: FALSE | CH136: FALSE | CI136: FALSE | CJ136: FALSE | CK136: FALSE | CL136: FALSE | CM136: FALSE | CN136: FALSE | CO136: FALSE | CP136: FALSE | CQ136: FALSE | CR136: FALSE | CS136: FALSE | CT136: FALSE | CU136: FALSE | CV136: FALSE | CW136: FALSE | CX136: FALSE | CY136: FALSE | CZ136: FALSE | DA136: FALSE | DB136: FALSE | DC136: FALSE
B138: P50 DSCR
C139: Cash flow P50 case
D140: MWh P50 case | E140: MWh | H140: =H93 -> 0 | I140: 202267.5775 | J140: 205620.0787 | K140: 202267.5775 | L140: 205620.0787 | M140: 202267.5775 | N140: 205620.0787 | O140: 203385.0779 | P140: 205620.0787 | Q140: 202267.5775 | R140: 205620.0787 | S140: 202267.5775 | T140: 205620.0787 | U140: 202267.5775 | V140: 205620.0787 | W140: 203385.0779 | X140: 205620.0787 | Y140: 202267.5775 | Z140: 205620.0787 | AA140: 202267.5775 | AB140: 205620.0787 | AC140: 202267.5775 | AD140: 205620.0787 | AE140: 203385.0779 | AF140: 205620.0787 | AG140: 202267.5775 | AH140: 205620.0787 | AI140: 202267.5775 | AJ140: 205620.0787 | AK140: 202267.5775 | AL140: 205620.0787 | AM140: 203385.0779 | AN140: 205620.0787 | AO140: 202267.5775 | AP140: 205620.0787 | AQ140: 202267.5775 | AR140: 205620.0787 | AS140: 202267.5775 | AT140: 205620.0787 | AU140: 203385.0779 | AV140: 205620.0787 | AW140: 202267.5775 | AX140: 205620.0787 | AY140: 202267.5775 | AZ140: 205620.0787 | BA140: 202267.5775 | BB140: 205620.0787 | BC140: 203385.0779 | BD140: 205620.0787 | BE140: 202267.5775 | BF140: 205620.0787 | BG140: 202267.5775 | BH140: 205620.0787 | BI140: 202267.5775 | BJ140: 205620.0787 | BK140: 203385.0779 | BL140: 205620.0787 | BM140: 202267.5775 | BN140: 205620.0787 | BO140: 202267.5775 | BP140: 205620.0787 | BQ140: 0 | BR140: 0 | BS140: 0 | BT140: =BT93 -> 0 | BU140: 0 | BV140: 0 | BW140: 0 | BX140: 0 | BY140: 0 | BZ140: 0 | CA140: 0 | CB140: 0 | CC140: 0 | CD140: 0 | CE140: 0 | CF140: 0 | CG140: 0 | CH140: 0 | CI140: 0 | CJ140: 0 | CK140: 0 | CL140: 0 | CM140: 0 | CN140: 0 | CO140: 0 | CP140: 0 | CQ140: 0 | CR140: 0 | CS140: 0 | CT140: 0 | CU140: 0 | CV140: 0 | CW140: 0 | CX140: 0 | CY140: 0 | CZ140: 0 | DA140: 0 | DB140: 0 | DC140: 0
D141: Price - variable cost | E141: Euro/MWh | H141: =H122-(H105*H109) -> 0 | I141: 34.3295658 | J141: 34.67116193 | K141: 35.01615711 | L141: 35.36458517 | M141: 35.71648026 | N141: 36.07187687 | O141: 36.43080986 | P141: 36.79331441 | Q141: 37.15942606 | R141: 37.5291807 | S141: 37.90261458 | T141: 38.27976431 | U141: 38.66066687 | V141: 39.0453596 | W141: 39.43388021 | X141: 39.82626679 | Y141: 40.22255781 | Z141: 40.62279213 | AA141: 41.02700897 | AB141: 41.43524797 | AC141: 41.84754915 | AD141: 42.26395293 | AE141: 42.68450013 | AF141: 43.10923199 | AG141: 43.53819013 | AH141: 43.97141663 | AI141: 44.40895394 | AJ141: 44.85084496 | AK141: 45.29713301 | AL141: 45.74786186 | AM141: 46.20307567 | AN141: 46.66281909 | AO141: 47.12713719 | AP141: 47.59607548 | AQ141: 48.06967993 | AR141: 48.54799699 | AS141: 49.03107353 | AT141: 49.51895693 | AU141: 50.011695 | AV141: 50.50933606 | AW141: 51.0119289 | AX141: 51.51952279 | AY141: 52.03216748 | AZ141: 52.54991324 | BA141: 53.07281083 | BB141: 53.60091151 | BC141: 54.13426705 | BD141: 54.67292974 | BE141: 55.21695239 | BF141: 55.76638833 | BG141: 56.32129143 | BH141: 56.8817161 | BI141: 57.44771726 | BJ141: 58.01935042 | BK141: 58.59667161 | BL141: 59.17973743 | BM141: 59.76860504 | BN141: 60.36333218 | BO141: 60.96397714 | BP141: 61.57059882 | BQ141: 0 | BR141: 0 | BS141: 0 | BT141: =BT122-(BT105*BT109) -> 0 | BU141: 0 | BV141: 0 | BW141: 0 | BX141: 0 | BY141: 0 | BZ141: 0 | CA141: 0 | CB141: 0 | CC141: 0 | CD141: 0 | CE141: 0 | CF141: 0 | CG141: 0 | CH141: 0 | CI141: 0 | CJ141: 0 | CK141: 0 | CL141: 0 | CM141: 0 | CN141: 0 | CO141: 0 | CP141: 0 | CQ141: 0 | CR141: 0 | CS141: 0 | CT141: 0 | CU141: 0 | CV141: 0 | CW141: 0 | CX141: 0 | CY141: 0 | CZ141: 0 | DA141: 0 | DB141: 0 | DC141: 0
D142: Margin P50 case | E142: Euro 000's | H142: =H140*H141/1000 -> 0 | I142: =I140*I141/1000 -> 6943.758109 | J142: 7129.087046 | K142: 7082.633271 | L142: 7271.668787 | M142: 7224.285937 | N142: 7417.102163 | O142: 7409.483101 | P142: 7565.444206 | Q142: 7516.147089 | R142: 7716.75309 | S142: 7666.47003 | T142: 7871.088152 | U142: 7819.799431 | V142: 8028.509915 | W142: 8020.262798 | X142: 8189.080114 | Y142: 8135.719328 | Z142: 8352.861716 | AA142: 8298.433715 | AB142: 8519.91895 | AC142: 8464.402389 | AD142: 8690.317329 | AE142: 8681.390384 | AF142: 8864.123676 | AG142: 8806.364245 | AH142: 9041.406149 | AI142: 8982.49153 | AJ142: 9222.234272 | AK142: 9162.141361 | AL142: 9406.678958 | AM142: 9397.016145 | AN142: 9594.812537 | AO142: 9532.291872 | AP142: 9786.708788 | AQ142: 9722.937709 | AR142: 9982.442963 | AS142: 9917.396464 | AT142: 10182.09182 | AU142: 10171.63248 | AV142: 10385.73366 | AW142: 10318.05928 | AX142: 10593.44833 | AY142: 10524.42047 | AZ142: 10805.3173 | BA142: 10734.90888 | BB142: 11021.42364 | BC142: 11010.10212 | BD142: 11241.85212 | BE142: 11168.59919 | BF142: 11466.68916 | BG142: 11391.97118 | BH142: 11696.02294 | BI142: 11619.8106 | BJ142: 11929.9434 | BK142: 11917.68862 | BL142: 12168.54227 | BM142: 12089.25095 | BN142: 12411.91312 | BO142: 12331.03597 | BP142: 12660.15138 | BQ142: 0 | BR142: 0 | BS142: 0 | BT142: 0 | BU142: =BU140*BU141/1000 -> 0 | BV142: 0 | BW142: 0 | BX142: 0 | BY142: 0 | BZ142: 0 | CA142: 0 | CB142: 0 | CC142: 0 | CD142: 0 | CE142: 0 | CF142: 0 | CG142: 0 | CH142: 0 | CI142: 0 | CJ142: 0 | CK142: 0 | CL142: 0 | CM142: 0 | CN142: 0 | CO142: 0 | CP142: 0 | CQ142: 0 | CR142: 0 | CS142: 0 | CT142: 0 | CU142: 0 | CV142: 0 | CW142: 0 | CX142: 0 | CY142: 0 | CZ142: 0 | DA142: 0 | DB142: 0 | DC142: 0
D143: Fixed Cost | E143: Euro 000's | H143: =H115 -> 0 | I143: 1378.574082 | J143: 1392.291575 | K143: 1406.145564 | L143: 1420.137406 | M143: 1434.268475 | N143: 1448.540155 | O143: 1462.953844 | P143: 1477.510958 | Q143: 1492.212921 | R143: 1507.061177 | S143: 1522.05718 | T143: 1537.2024 | U143: 1552.498323 | V143: 1567.946448 | W143: 1583.54829 | X143: 1599.305377 | Y143: 1615.219256 | Z143: 1631.291485 | AA143: 1647.523641 | AB143: 1663.917315 | AC143: 1680.474114 | AD143: 1697.195661 | AE143: 1714.083596 | AF143: 1731.139574 | AG143: 1748.365268 | AH143: 1765.762366 | AI143: 1783.332573 | AJ143: 1801.077613 | AK143: 1818.999225 | AL143: 1837.099165 | AM143: 1855.379209 | AN143: 1873.841148 | AO143: 1892.486793 | AP143: 1911.317971 | AQ143: 1930.336529 | AR143: 1949.544331 | AS143: 1968.94326 | AT143: 1988.535217 | AU143: 2008.322125 | AV143: 2028.305922 | AW143: 2048.488567 | AX143: 2068.87204 | AY143: 2089.458339 | AZ143: 2110.249481 | BA143: 2131.247505 | BB143: 2152.454471 | BC143: 2173.872456 | BD143: 2195.50356 | BE143: 2217.349905 | BF143: 2239.413631 | BG143: 2261.696903 | BH143: 2284.201904 | BI143: 2306.930841 | BJ143: 2329.885942 | BK143: 2353.069458 | BL143: 2376.483661 | BM143: 2400.130847 | BN143: 2424.013334 | BO143: 2448.133464 | BP143: 2472.493601 | BQ143: 0 | BR143: 0 | BS143: 0 | BT143: =BT115 -> 0 | BU143: 0 | BV143: 0 | BW143: 0 | BX143: 0 | BY143: 0 | BZ143: 0 | CA143: 0 | CB143: 0 | CC143: 0 | CD143: 0 | CE143: 0 | CF143: 0 | CG143: 0 | CH143: 0 | CI143: 0 | CJ143: 0 | CK143: 0 | CL143: 0 | CM143: 0 | CN143: 0 | CO143: 0 | CP143: 0 | CQ143: 0 | CR143: 0 | CS143: 0 | CT143: 0 | CU143: 0 | CV143: 0 | CW143: 0 | CX143: 0 | CY143: 0 | CZ143: 0 | DA143: 0 | DB143: 0 | DC143: 0
D144: EBITDA P50 | E144: Euro 000's | H144: =H142-H143 -> 0 | I144: =I142-I143 -> 5565.184027 | J144: 5736.795471 | K144: 5676.487708 | L144: 5851.531381 | M144: 5790.017462 | N144: 5968.562008 | O144: 5946.529257 | P144: 6087.933249 | Q144: 6023.934167 | R144: 6209.691914 | S144: 6144.412851 | T144: 6333.885752 | U144: 6267.301108 | V144: 6460.563467 | W144: 6436.714508 | X144: 6589.774736 | Y144: 6520.500072 | Z144: 6721.570231 | AA144: 6650.910074 | AB144: 6856.001636 | AC144: 6783.928275 | AD144: 6993.121668 | AE144: 6967.306788 | AF144: 7132.984102 | AG144: 7057.998978 | AH144: 7275.643784 | AI144: 7199.158957 | AJ144: 7421.156659 | AK144: 7343.142136 | AL144: 7569.579793 | AM144: 7541.636936 | AN144: 7720.971388 | AO144: 7639.805079 | AP144: 7875.390816 | AQ144: 7792.60118 | AR144: 8032.898633 | AS144: 7948.453204 | AT144: 8193.556605 | AU144: 8163.310359 | AV144: 8357.427737 | AW144: 8269.570713 | AX144: 8524.576292 | AY144: 8434.962128 | AZ144: 8695.067818 | BA144: 8603.66137 | BB144: 8868.969174 | BC144: 8836.229664 | BD144: 9046.348558 | BE144: 8951.249289 | BF144: 9227.275529 | BG144: 9130.274275 | BH144: 9411.821039 | BI144: 9312.879761 | BJ144: 9600.05746 | BK144: 9564.619162 | BL144: 9792.058609 | BM144: 9689.120103 | BN144: 9987.899782 | BO144: 9882.902505 | BP144: 10187.65778 | BQ144: 0 | BR144: 0 | BS144: 0 | BT144: 0 | BU144: =BU142-BU143 -> 0 | BV144: 0 | BW144: 0 | BX144: 0 | BY144: 0 | BZ144: 0 | CA144: 0 | CB144: 0 | CC144: 0 | CD144: 0 | CE144: 0 | CF144: 0 | CG144: 0 | CH144: 0 | CI144: 0 | CJ144: 0 | CK144: 0 | CL144: 0 | CM144: 0 | CN144: 0 | CO144: 0 | CP144: 0 | CQ144: 0 | CR144: 0 | CS144: 0 | CT144: 0 | CU144: 0 | CV144: 0 | CW144: 0 | CX144: 0 | CY144: 0 | CZ144: 0 | DA144: 0 | DB144: 0 | DC144: 0
D145: CFADS P50 case | E145: Euro 000's | H145: =H144 -> 0 | I145: =I144 -> 5565.184027 | J145: 5736.795471 | K145: 5676.487708 | L145: 5851.531381 | M145: 5790.017462 | N145: 5968.562008 | O145: 5946.529257 | P145: 6087.933249 | Q145: 6023.934167 | R145: 6209.691914 | S145: 6144.412851 | T145: 6333.885752 | U145: 6267.301108 | V145: 6460.563467 | W145: 6436.714508 | X145: 6589.774736 | Y145: 6520.500072 | Z145: 6721.570231 | AA145: 6650.910074 | AB145: 6856.001636 | AC145: 6783.928275 | AD145: 6993.121668 | AE145: 6967.306788 | AF145: 7132.984102 | AG145: 7057.998978 | AH145: 7275.643784 | AI145: 7199.158957 | AJ145: 7421.156659 | AK145: 7343.142136 | AL145: 7569.579793 | AM145: 7541.636936 | AN145: 7720.971388 | AO145: 7639.805079 | AP145: 7875.390816 | AQ145: 7792.60118 | AR145: 8032.898633 | AS145: 7948.453204 | AT145: 8193.556605 | AU145: 8163.310359 | AV145: 8357.427737 | AW145: 8269.570713 | AX145: 8524.576292 | AY145: 8434.962128 | AZ145: 8695.067818 | BA145: 8603.66137 | BB145: 8868.969174 | BC145: 8836.229664 | BD145: 9046.348558 | BE145: 8951.249289 | BF145: 9227.275529 | BG145: 9130.274275 | BH145: 9411.821039 | BI145: 9312.879761 | BJ145: 9600.05746 | BK145: 9564.619162 | BL145: 9792.058609 | BM145: 9689.120103 | BN145: 9987.899782 | BO145: 9882.902505 | BP145: 10187.65778 | BQ145: 0 | BR145: 0 | BS145: 0 | BT145: 0 | BU145: =BU144 -> 0 | BV145: 0 | BW145: 0 | BX145: 0 | BY145: 0 | BZ145: 0 | CA145: 0 | CB145: 0 | CC145: 0 | CD145: 0 | CE145: 0 | CF145: 0 | CG145: 0 | CH145: 0 | CI145: 0 | CJ145: 0 | CK145: 0 | CL145: 0 | CM145: 0 | CN145: 0 | CO145: 0 | CP145: 0 | CQ145: 0 | CR145: 0 | CS145: 0 | CT145: 0 | CU145: 0 | CV145: 0 | CW145: 0 | CX145: 0 | CY145: 0 | CZ145: 0 | DA145: 0 | DB145: 0 | DC145: 0
D146: Target Debt service | E146: Euro 000's | F146: =F57 -> 1.35 | H146: =IF(H5,H145/$F$146) -> FALSE | I146: 4122.358539 | J146: 4249.478127 | K146: 4204.805709 | L146: 4334.46769 | M146: 4288.901824 | N146: 4421.157043 | O146: 4404.836486 | P146: 4509.580184 | Q146: 4462.173457 | R146: 4599.771788 | S146: 4551.416926 | T146: 4691.767224 | U146: 4642.445265 | V146: 4785.602568 | W146: 4767.936672 | X146: 4881.314619 | Y146: 4830.000054 | Z146: 4978.940912 | AA146: 4926.600055 | AB146: 5078.51973 | AC146: 5025.132056 | AD146: 5180.090125 | AE146: 5160.967991 | AF146: 5283.691927 | AG146: 5228.147391 | AH146: 5389.365766 | AI146: 5332.710339 | AJ146: 5497.153081 | AK146: 5439.364545 | AL146: 5607.096143 | AM146: 5586.39773 | AN146: =IF(AN5,AN145/$F$146) -> 5719.238065 | AO146: 5659.114873 | AP146: 5833.622827 | AQ146: 5772.297171 | AR146: 5950.295283 | AS146: 5887.743114 | AT146: 6069.301189 | AU146: 6046.896562 | AV146: 6190.687213 | AW146: 6125.607936 | AX146: 6314.500957 | AY146: 6248.120094 | AZ146: 6440.790976 | BA146: 6373.082496 | BB146: 6569.606796 | BC146: 6545.355307 | BD146: 6700.998932 | BE146: 6630.555029 | BF146: 6835.01891 | BG146: 6763.16613 | BH146: 6971.719288 | BI146: 6898.429452 | BJ146: 7111.153674 | BK146: 7084.903083 | BL146: 7253.376748 | BM146: 7177.126002 | BN146: 7398.444283 | BO146: 7320.668522 | BP146: 7546.413168 | BQ146: FALSE | BR146: FALSE | BS146: FALSE | BT146: =IF(BT5,BT145/$F$146) -> FALSE | BU146: FALSE | BV146: FALSE | BW146: FALSE | BX146: FALSE | BY146: FALSE | BZ146: FALSE | CA146: FALSE | CB146: FALSE | CC146: FALSE | CD146: FALSE | CE146: FALSE | CF146: FALSE | CG146: FALSE | CH146: FALSE | CI146: FALSE | CJ146: FALSE | CK146: FALSE | CL146: FALSE | CM146: FALSE | CN146: FALSE | CO146: FALSE | CP146: FALSE | CQ146: FALSE | CR146: FALSE | CS146: FALSE | CT146: FALSE | CU146: FALSE | CV146: FALSE | CW146: FALSE | CX146: FALSE | CY146: FALSE | CZ146: =IF(CZ5,CZ145/$F$146) -> FALSE | DA146: FALSE | DB146: FALSE | DC146: FALSE
D148: Target Debt Service over Debt Repayment | E148: Euro 000's | H148: =H146*H$136 -> 0 | I148: =I146*I136 -> 0 | J148: 4249.478127 | K148: 4204.805709 | L148: 4334.46769 | M148: 4288.901824 | N148: 4421.157043 | O148: 4404.836486 | P148: 4509.580184 | Q148: 4462.173457 | R148: 4599.771788 | S148: 4551.416926 | T148: 4691.767224 | U148: 4642.445265 | V148: 4785.602568 | W148: 4767.936672 | X148: 4881.314619 | Y148: 4830.000054 | Z148: 4978.940912 | AA148: 4926.600055 | AB148: 5078.51973 | AC148: 5025.132056 | AD148: 5180.090125 | AE148: 5160.967991 | AF148: 5283.691927 | AG148: 5228.147391 | AH148: 5389.365766 | AI148: 5332.710339 | AJ148: 5497.153081 | AK148: 5439.364545 | AL148: 5607.096143 | AM148: 5586.39773 | AN148: 5719.238065 | AO148: 5659.114873 | AP148: 5833.622827 | AQ148: 5772.297171 | AR148: 5950.295283 | AS148: 5887.743114 | AT148: 6069.301189 | AU148: 6046.896562 | AV148: 6190.687213 | AW148: 0 | AX148: 0 | AY148: 0 | AZ148: 0 | BA148: 0 | BB148: 0 | BC148: 0 | BD148: 0 | BE148: 0 | BF148: 0 | BG148: 0 | BH148: 0 | BI148: 0 | BJ148: 0 | BK148: 0 | BL148: 0 | BM148: 0 | BN148: 0 | BO148: 0 | BP148: 0 | BQ148: 0 | BR148: 0 | BS148: 0 | BT148: 0 | BU148: =BU146*BU136 -> 0 | BV148: 0 | BW148: 0 | BX148: 0 | BY148: 0 | BZ148: 0 | CA148: 0 | CB148: 0 | CC148: 0 | CD148: 0 | CE148: 0 | CF148: 0 | CG148: 0 | CH148: 0 | CI148: 0 | CJ148: 0 | CK148: 0 | CL148: 0 | CM148: 0 | CN148: 0 | CO148: 0 | CP148: 0 | CQ148: 0 | CR148: 0 | CS148: 0 | CT148: 0 | CU148: 0 | CV148: 0 | CW148: 0 | CX148: 0 | CY148: 0 | CZ148: 0 | DA148: 0 | DB148: 0 | DC148: 0
D149: NPV factor | E149: Index | F149: =F75/2 -> 0.0165 | G149: 1 | H149: =G149*(1+$F$149*H$136) -> 1 | I149: =H149*(1+$F$149*I136) -> 1 | J149: 1.0165 | K149: 1.03327225 | L149: 1.050321242 | M149: 1.067651543 | N149: 1.085267793 | O149: 1.103174712 | P149: 1.121377094 | Q149: 1.139879816 | R149: 1.158687833 | S149: 1.177806183 | T149: 1.197239985 | U149: 1.216994444 | V149: 1.237074853 | W149: 1.257486588 | X149: 1.278235117 | Y149: 1.299325996 | Z149: 1.320764875 | AA149: 1.342557495 | AB149: 1.364709694 | AC149: 1.387227404 | AD149: 1.410116656 | AE149: 1.433383581 | AF149: 1.45703441 | AG149: 1.481075478 | AH149: 1.505513223 | AI149: 1.530354191 | AJ149: 1.555605036 | AK149: 1.581272519 | AL149: 1.607363515 | AM149: 1.633885013 | AN149: 1.660844116 | AO149: 1.688248044 | AP149: 1.716104137 | AQ149: 1.744419855 | AR149: 1.773202782 | AS149: 1.802460628 | AT149: 1.832201229 | AU149: 1.862432549 | AV149: 1.893162686 | AW149: 1.893162686 | AX149: 1.893162686 | AY149: 1.893162686 | AZ149: 1.893162686 | BA149: 1.893162686 | BB149: 1.893162686 | BC149: 1.893162686 | BD149: 1.893162686 | BE149: 1.893162686 | BF149: 1.893162686 | BG149: 1.893162686 | BH149: 1.893162686 | BI149: 1.893162686 | BJ149: 1.893162686 | BK149: 1.893162686 | BL149: 1.893162686 | BM149: 1.893162686 | BN149: 1.893162686 | BO149: 1.893162686 | BP149: 1.893162686 | BQ149: 1.893162686 | BR149: 1.893162686 | BS149: 1.893162686 | BT149: 1.893162686 | BU149: =BT149*(1+$F$149*BU136) -> 1.893162686 | BV149: 1.893162686 | BW149: 1.893162686 | BX149: 1.893162686 | BY149: 1.893162686 | BZ149: 1.893162686 | CA149: 1.893162686 | CB149: 1.893162686 | CC149: 1.893162686 | CD149: 1.893162686 | CE149: 1.893162686 | CF149: 1.893162686 | CG149: 1.893162686 | CH149: 1.893162686 | CI149: 1.893162686 | CJ149: 1.893162686 | CK149: 1.893162686 | CL149: 1.893162686 | CM149: 1.893162686 | CN149: 1.893162686 | CO149: 1.893162686 | CP149: 1.893162686 | CQ149: 1.893162686 | CR149: 1.893162686 | CS149: 1.893162686 | CT149: 1.893162686 | CU149: 1.893162686 | CV149: 1.893162686 | CW149: 1.893162686 | CX149: 1.893162686 | CY149: 1.893162686 | CZ149: 1.893162686 | DA149: 1.893162686 | DB149: 1.893162686 | DC149: 1.893162686
D150: Size of Debt from P50 | E150: Euro 000's | F150: =SUMPRODUCT(H148:DC148/H149:DC149) -> 143274.8728 | G150: 1
D152: Opening Balance | H152: =G154 -> 143274.8728 | I152: =H154 -> 143274.8728 | J152: 143274.8728 | K152: 141389.4301 | L152: 139517.55 | M152: 137485.1219 | N152: 135464.7246 | O152: 133278.7355 | P152: 131072.9981 | Q152: 128726.1224 | R152: 126387.93 | S152: 123873.5591 | T152: 121366.0559 | U152: 118676.8285 | V152: 115992.551 | W152: 113120.8255 | X152: 110219.3824 | Y152: 107156.6876 | Z152: 104094.7729 | AA152: 100833.3957 | AB152: 97570.54672 | AC152: 94101.94101 | AD152: 90629.49099 | AE152: 86944.78746 | AF152: 83218.40846 | AG152: 79307.82028 | AH152: 75388.25192 | AI152: 71242.79231 | AJ152: 67085.58805 | AK152: 62695.34717 | AL152: 58290.45585 | AM152: 53645.15223 | AN152: 48943.89951 | AO152: 44032.23579 | AP152: 39099.6528 | AQ152: 33911.17425 | AR152: 28698.41145 | AS152: 23221.63996 | AT152: 17717.0539 | AU152: 11940.0841 | AV152: 6090.19893 | AW152: 3.674358595e-10 | AX152: 3.674358595e-10 | AY152: 3.674358595e-10 | AZ152: 3.674358595e-10 | BA152: 3.674358595e-10 | BB152: 3.674358595e-10 | BC152: 3.674358595e-10 | BD152: 3.674358595e-10 | BE152: 3.674358595e-10 | BF152: 3.674358595e-10 | BG152: 3.674358595e-10 | BH152: 3.674358595e-10 | BI152: 3.674358595e-10 | BJ152: 3.674358595e-10 | BK152: 3.674358595e-10 | BL152: 3.674358595e-10 | BM152: 3.674358595e-10 | BN152: 3.674358595e-10 | BO152: 3.674358595e-10 | BP152: 3.674358595e-10 | BQ152: 3.674358595e-10 | BR152: 3.674358595e-10 | BS152: 3.674358595e-10 | BT152: 3.674358595e-10 | BU152: =BT154 -> 3.674358595e-10 | BV152: 3.674358595e-10 | BW152: 3.674358595e-10 | BX152: 3.674358595e-10 | BY152: 3.674358595e-10 | BZ152: 3.674358595e-10 | CA152: 3.674358595e-10 | CB152: 3.674358595e-10 | CC152: 3.674358595e-10 | CD152: 3.674358595e-10 | CE152: 3.674358595e-10 | CF152: 3.674358595e-10 | CG152: 3.674358595e-10 | CH152: 3.674358595e-10 | CI152: 3.674358595e-10 | CJ152: 3.674358595e-10 | CK152: 3.674358595e-10 | CL152: 3.674358595e-10 | CM152: 3.674358595e-10 | CN152: 3.674358595e-10 | CO152: 3.674358595e-10 | CP152: 3.674358595e-10 | CQ152: 3.674358595e-10 | CR152: 3.674358595e-10 | CS152: 3.674358595e-10 | CT152: 3.674358595e-10 | CU152: 3.674358595e-10 | CV152: 3.674358595e-10 | CW152: 3.674358595e-10 | CX152: 3.674358595e-10 | CY152: 3.674358595e-10 | CZ152: 3.674358595e-10 | DA152: 3.674358595e-10 | DB152: 3.674358595e-10 | DC152: 3.674358595e-10
D153: Less Repayments | H153: =(H148-H155)*H$136 -> 0 | I153: =(I148-I155)*I136 -> 0 | J153: 1885.442725 | K153: 1871.880112 | L153: 2032.428114 | M153: 2020.397312 | N153: 2185.989088 | O153: 2205.737351 | P153: 2346.875715 | Q153: 2338.192437 | R153: 2514.370943 | S153: 2507.503202 | T153: 2689.227302 | U153: 2684.277594 | V153: 2871.725477 | W153: 2901.443052 | X153: 3062.694809 | Y153: 3061.914708 | Z153: 3261.377159 | AA153: 3262.849025 | AB153: 3468.605709 | AC153: 3472.450029 | AD153: 3684.703523 | AE153: 3726.378998 | AF153: 3910.588188 | AG153: 3919.568356 | AH153: 4145.459609 | AI153: 4157.204266 | AJ153: 4390.240878 | AK153: 4404.891317 | AL153: 4645.303621 | AM153: 4701.252719 | AN153: 4911.663724 | AO153: 4932.582983 | AP153: 5188.478556 | AQ153: 5212.762795 | AR153: 5476.771494 | AS153: 5504.586055 | AT153: 5776.9698 | AU153: 5849.885174 | AV153: 6090.19893 | AW153: 0 | AX153: 0 | AY153: 0 | AZ153: 0 | BA153: 0 | BB153: 0 | BC153: 0 | BD153: 0 | BE153: 0 | BF153: 0 | BG153: 0 | BH153: 0 | BI153: 0 | BJ153: 0 | BK153: 0 | BL153: 0 | BM153: 0 | BN153: 0 | BO153: 0 | BP153: 0 | BQ153: 0 | BR153: 0 | BS153: 0 | BT153: 0 | BU153: =(BU148-BU155)*BU136 -> 0 | BV153: 0 | BW153: 0 | BX153: 0 | BY153: 0 | BZ153: 0 | CA153: 0 | CB153: 0 | CC153: 0 | CD153: 0 | CE153: 0 | CF153: 0 | CG153: 0 | CH153: 0 | CI153: 0 | CJ153: 0 | CK153: 0 | CL153: 0 | CM153: 0 | CN153: 0 | CO153: 0 | CP153: 0 | CQ153: 0 | CR153: 0 | CS153: 0 | CT153: 0 | CU153: 0 | CV153: 0 | CW153: 0 | CX153: 0 | CY153: 0 | CZ153: 0 | DA153: 0 | DB153: 0 | DC153: 0
D154: Closing Balance | G154: =F150 -> 143274.8728 | H154: =H152-H153 -> 143274.8728 | I154: =I152-I153 -> 143274.8728 | J154: 141389.4301 | K154: 139517.55 | L154: 137485.1219 | M154: 135464.7246 | N154: 133278.7355 | O154: 131072.9981 | P154: 128726.1224 | Q154: 126387.93 | R154: 123873.5591 | S154: 121366.0559 | T154: 118676.8285 | U154: 115992.551 | V154: 113120.8255 | W154: 110219.3824 | X154: 107156.6876 | Y154: 104094.7729 | Z154: 100833.3957 | AA154: 97570.54672 | AB154: 94101.94101 | AC154: 90629.49099 | AD154: 86944.78746 | AE154: 83218.40846 | AF154: 79307.82028 | AG154: 75388.25192 | AH154: 71242.79231 | AI154: 67085.58805 | AJ154: 62695.34717 | AK154: 58290.45585 | AL154: 53645.15223 | AM154: 48943.89951 | AN154: 44032.23579 | AO154: 39099.6528 | AP154: 33911.17425 | AQ154: 28698.41145 | AR154: 23221.63996 | AS154: 17717.0539 | AT154: 11940.0841 | AU154: 6090.19893 | AV154: 3.674358595e-10 | AW154: 3.674358595e-10 | AX154: 3.674358595e-10 | AY154: 3.674358595e-10 | AZ154: 3.674358595e-10 | BA154: 3.674358595e-10 | BB154: 3.674358595e-10 | BC154: 3.674358595e-10 | BD154: 3.674358595e-10 | BE154: 3.674358595e-10 | BF154: 3.674358595e-10 | BG154: 3.674358595e-10 | BH154: 3.674358595e-10 | BI154: 3.674358595e-10 | BJ154: 3.674358595e-10 | BK154: 3.674358595e-10 | BL154: 3.674358595e-10 | BM154: 3.674358595e-10 | BN154: 3.674358595e-10 | BO154: 3.674358595e-10 | BP154: 3.674358595e-10 | BQ154: 3.674358595e-10 | BR154: 3.674358595e-10 | BS154: 3.674358595e-10 | BT154: 3.674358595e-10 | BU154: =BU152-BU153 -> 3.674358595e-10 | BV154: 3.674358595e-10 | BW154: 3.674358595e-10 | BX154: 3.674358595e-10 | BY154: 3.674358595e-10 | BZ154: 3.674358595e-10 | CA154: 3.674358595e-10 | CB154: 3.674358595e-10 | CC154: 3.674358595e-10 | CD154: 3.674358595e-10 | CE154: 3.674358595e-10 | CF154: 3.674358595e-10 | CG154: 3.674358595e-10 | CH154: 3.674358595e-10 | CI154: 3.674358595e-10 | CJ154: 3.674358595e-10 | CK154: 3.674358595e-10 | CL154: 3.674358595e-10 | CM154: 3.674358595e-10 | CN154: 3.674358595e-10 | CO154: 3.674358595e-10 | CP154: 3.674358595e-10 | CQ154: 3.674358595e-10 | CR154: 3.674358595e-10 | CS154: 3.674358595e-10 | CT154: 3.674358595e-10 | CU154: 3.674358595e-10 | CV154: 3.674358595e-10 | CW154: 3.674358595e-10 | CX154: 3.674358595e-10 | CY154: 3.674358595e-10 | CZ154: 3.674358595e-10 | DA154: 3.674358595e-10 | DB154: 3.674358595e-10 | DC154: 3.674358595e-10
D155: Interest | F155: =F149 -> 0.0165 | H155: =H152*$F$155*H$5 -> 0 | I155: =I152*$F$155*I5 -> 2364.035402 | J155: 2364.035402 | K155: 2332.925597 | L155: 2302.039575 | M155: 2268.504511 | N155: 2235.167956 | O155: 2199.099136 | P155: 2162.704469 | Q155: 2123.98102 | R155: 2085.400845 | S155: 2043.913724 | T155: 2002.539922 | U155: 1958.167671 | V155: 1913.877091 | W155: 1866.49362 | X155: 1818.61981 | Y155: 1768.085346 | Z155: 1717.563753 | AA155: 1663.75103 | AB155: 1609.914021 | AC155: 1552.682027 | AD155: 1495.386601 | AE155: 1434.588993 | AF155: 1373.10374 | AG155: 1308.579035 | AH155: 1243.906157 | AI155: 1175.506073 | AJ155: 1106.912203 | AK155: 1034.473228 | AL155: 961.7925215 | AM155: 885.1450118 | AN155: 807.5743419 | AO155: =AO152*$F$155*AO5 -> 726.5318905 | AP155: 645.1442713 | AQ155: 559.5343751 | AR155: 473.523789 | AS155: 383.1570593 | AT155: 292.3313894 | AU155: 197.0113877 | AV155: 100.4882824 | AW155: 6.062691682e-12 | AX155: 6.062691682e-12 | AY155: 6.062691682e-12 | AZ155: 6.062691682e-12 | BA155: 6.062691682e-12 | BB155: 6.062691682e-12 | BC155: 6.062691682e-12 | BD155: 6.062691682e-12 | BE155: 6.062691682e-12 | BF155: 6.062691682e-12 | BG155: 6.062691682e-12 | BH155: 6.062691682e-12 | BI155: 6.062691682e-12 | BJ155: 6.062691682e-12 | BK155: 6.062691682e-12 | BL155: 6.062691682e-12 | BM155: 6.062691682e-12 | BN155: 6.062691682e-12 | BO155: 6.062691682e-12 | BP155: 6.062691682e-12 | BQ155: 0 | BR155: 0 | BS155: 0 | BT155: 0 | BU155: =BU152*$F$155*BU5 -> 0 | BV155: 0 | BW155: 0 | BX155: 0 | BY155: 0 | BZ155: 0 | CA155: 0 | CB155: 0 | CC155: 0 | CD155: 0 | CE155: 0 | CF155: 0 | CG155: 0 | CH155: 0 | CI155: 0 | CJ155: 0 | CK155: 0 | CL155: 0 | CM155: 0 | CN155: 0 | CO155: 0 | CP155: 0 | CQ155: 0 | CR155: 0 | CS155: 0 | CT155: 0 | CU155: 0 | CV155: 0 | CW155: 0 | CX155: 0 | CY155: 0 | CZ155: 0 | DA155: 0 | DB155: 0 | DC155: 0
B157: P90 DSCR
C158: Cash flow P90 case
D159: MWh P90 case | E159: MWh | H159: =H94 -> 0 | I159: 170695.0284 | J159: 173524.2278 | K159: 170695.0284 | L159: 173524.2278 | M159: 170695.0284 | N159: 173524.2278 | O159: 171638.0949 | P159: 173524.2278 | Q159: 170695.0284 | R159: 173524.2278 | S159: 170695.0284 | T159: 173524.2278 | U159: 170695.0284 | V159: 173524.2278 | W159: 171638.0949 | X159: 173524.2278 | Y159: 170695.0284 | Z159: 173524.2278 | AA159: 170695.0284 | AB159: 173524.2278 | AC159: 170695.0284 | AD159: 173524.2278 | AE159: 171638.0949 | AF159: 173524.2278 | AG159: 170695.0284 | AH159: 173524.2278 | AI159: 170695.0284 | AJ159: 173524.2278 | AK159: 170695.0284 | AL159: 173524.2278 | AM159: 171638.0949 | AN159: 173524.2278 | AO159: 170695.0284 | AP159: 173524.2278 | AQ159: 170695.0284 | AR159: 173524.2278 | AS159: 170695.0284 | AT159: 173524.2278 | AU159: 171638.0949 | AV159: 173524.2278 | AW159: 170695.0284 | AX159: 173524.2278 | AY159: 170695.0284 | AZ159: 173524.2278 | BA159: 170695.0284 | BB159: 173524.2278 | BC159: 171638.0949 | BD159: 173524.2278 | BE159: 170695.0284 | BF159: 173524.2278 | BG159: 170695.0284 | BH159: 173524.2278 | BI159: 170695.0284 | BJ159: 173524.2278 | BK159: 171638.0949 | BL159: 173524.2278 | BM159: 170695.0284 | BN159: 173524.2278 | BO159: 170695.0284 | BP159: 173524.2278 | BQ159: 0 | BR159: 0 | BS159: 0 | BT159: =BT94 -> 0 | BU159: 0 | BV159: 0 | BW159: 0 | BX159: 0 | BY159: 0 | BZ159: 0 | CA159: 0 | CB159: 0 | CC159: 0 | CD159: 0 | CE159: 0 | CF159: 0 | CG159: 0 | CH159: 0 | CI159: 0 | CJ159: 0 | CK159: 0 | CL159: 0 | CM159: 0 | CN159: 0 | CO159: 0 | CP159: 0 | CQ159: 0 | CR159: 0 | CS159: 0 | CT159: 0 | CU159: 0 | CV159: 0 | CW159: 0 | CX159: 0 | CY159: 0 | CZ159: 0 | DA159: 0 | DB159: 0 | DC159: 0
D160: Price - variable cost | E160: Euro/MWh | H160: =H141 -> 0 | I160: 34.3295658 | J160: 34.67116193 | K160: 35.01615711 | L160: 35.36458517 | M160: 35.71648026 | N160: 36.07187687 | O160: 36.43080986 | P160: 36.79331441 | Q160: 37.15942606 | R160: 37.5291807 | S160: 37.90261458 | T160: 38.27976431 | U160: 38.66066687 | V160: 39.0453596 | W160: 39.43388021 | X160: 39.82626679 | Y160: 40.22255781 | Z160: 40.62279213 | AA160: 41.02700897 | AB160: 41.43524797 | AC160: 41.84754915 | AD160: 42.26395293 | AE160: 42.68450013 | AF160: 43.10923199 | AG160: 43.53819013 | AH160: 43.97141663 | AI160: 44.40895394 | AJ160: 44.85084496 | AK160: 45.29713301 | AL160: 45.74786186 | AM160: 46.20307567 | AN160: 46.66281909 | AO160: 47.12713719 | AP160: 47.59607548 | AQ160: 48.06967993 | AR160: 48.54799699 | AS160: 49.03107353 | AT160: 49.51895693 | AU160: 50.011695 | AV160: 50.50933606 | AW160: 51.0119289 | AX160: 51.51952279 | AY160: 52.03216748 | AZ160: 52.54991324 | BA160: 53.07281083 | BB160: 53.60091151 | BC160: 54.13426705 | BD160: 54.67292974 | BE160: 55.21695239 | BF160: 55.76638833 | BG160: 56.32129143 | BH160: 56.8817161 | BI160: 57.44771726 | BJ160: 58.01935042 | BK160: 58.59667161 | BL160: 59.17973743 | BM160: 59.76860504 | BN160: 60.36333218 | BO160: 60.96397714 | BP160: 61.57059882 | BQ160: 0 | BR160: 0 | BS160: 0 | BT160: =BT141 -> 0 | BU160: 0 | BV160: 0 | BW160: 0 | BX160: 0 | BY160: 0 | BZ160: 0 | CA160: 0 | CB160: 0 | CC160: 0 | CD160: 0 | CE160: 0 | CF160: 0 | CG160: 0 | CH160: 0 | CI160: 0 | CJ160: 0 | CK160: 0 | CL160: 0 | CM160: 0 | CN160: 0 | CO160: 0 | CP160: 0 | CQ160: 0 | CR160: 0 | CS160: 0 | CT160: 0 | CU160: 0 | CV160: 0 | CW160: 0 | CX160: 0 | CY160: 0 | CZ160: 0 | DA160: 0 | DB160: 0 | DC160: 0
D161: Margin P90 case | E161: Euro 000's | H161: =H159*H160/1000 -> 0 | I161: =I159*I160/1000 -> 5859.886209 | J161: 6016.2866 | K161: 5977.083933 | L161: 6136.612332 | M161: 6096.625612 | N161: 6259.344578 | O161: 6252.914799 | P161: 6384.53147 | Q161: 6342.929286 | R161: 6512.222099 | S161: 6469.787872 | T161: 6642.466541 | U161: 6599.183629 | V161: 6775.315872 | W161: 6768.356072 | X161: 6910.82219 | Y161: 6865.790648 | Z161: 7049.038633 | AA161: 7003.106461 | AB161: 7190.019406 | AC161: 7143.16859 | AD161: 7333.819794 | AE161: 7326.286282 | AF161: 7480.49619 | AG161: 7431.752601 | AH161: 7630.106114 | AI161: 7580.387653 | AJ161: 7782.708236 | AK161: 7731.995406 | AL161: 7938.362401 | AM161: 7930.207885 | AN161: 8097.129649 | AO161: 8044.368021 | AP161: 8259.072242 | AQ161: 8205.255381 | AR161: 8424.253687 | AS161: 8369.360489 | AT161: 8592.73876 | AU161: 8583.912051 | AV161: 8764.593536 | AW161: 8707.482653 | AX161: 8939.885406 | AY161: 8881.632306 | AZ161: 9118.683114 | BA161: 9059.264952 | BB161: 9301.056777 | BC161: 9291.502462 | BD161: 9487.077912 | BE161: 9425.259256 | BF161: 9676.819471 | BG161: 9613.764441 | BH161: 9870.35586 | BI161: 9806.03973 | BJ161: 10067.76298 | BK161: 10057.42108 | BL161: 10269.11824 | BM161: 10202.20373 | BN161: 10474.5006 | BO161: 10406.24781 | BP161: 10683.99061 | BQ161: 0 | BR161: 0 | BS161: 0 | BT161: 0 | BU161: =BU159*BU160/1000 -> 0 | BV161: 0 | BW161: 0 | BX161: 0 | BY161: 0 | BZ161: 0 | CA161: 0 | CB161: 0 | CC161: 0 | CD161: 0 | CE161: 0 | CF161: 0 | CG161: 0 | CH161: 0 | CI161: 0 | CJ161: 0 | CK161: 0 | CL161: 0 | CM161: 0 | CN161: 0 | CO161: 0 | CP161: 0 | CQ161: 0 | CR161: 0 | CS161: 0 | CT161: 0 | CU161: 0 | CV161: 0 | CW161: 0 | CX161: 0 | CY161: 0 | CZ161: 0 | DA161: 0 | DB161: 0 | DC161: 0
D162: Fixed Cost | E162: Euro 000's | H162: =H143 -> 0 | I162: 1378.574082 | J162: 1392.291575 | K162: 1406.145564 | L162: 1420.137406 | M162: 1434.268475 | N162: 1448.540155 | O162: 1462.953844 | P162: 1477.510958 | Q162: 1492.212921 | R162: 1507.061177 | S162: 1522.05718 | T162: 1537.2024 | U162: 1552.498323 | V162: 1567.946448 | W162: 1583.54829 | X162: 1599.305377 | Y162: 1615.219256 | Z162: 1631.291485 | AA162: 1647.523641 | AB162: 1663.917315 | AC162: 1680.474114 | AD162: 1697.195661 | AE162: 1714.083596 | AF162: 1731.139574 | AG162: 1748.365268 | AH162: 1765.762366 | AI162: 1783.332573 | AJ162: 1801.077613 | AK162: 1818.999225 | AL162: 1837.099165 | AM162: 1855.379209 | AN162: 1873.841148 | AO162: 1892.486793 | AP162: 1911.317971 | AQ162: 1930.336529 | AR162: 1949.544331 | AS162: 1968.94326 | AT162: 1988.535217 | AU162: 2008.322125 | AV162: 2028.305922 | AW162: 2048.488567 | AX162: 2068.87204 | AY162: 2089.458339 | AZ162: 2110.249481 | BA162: 2131.247505 | BB162: 2152.454471 | BC162: 2173.872456 | BD162: 2195.50356 | BE162: 2217.349905 | BF162: 2239.413631 | BG162: 2261.696903 | BH162: 2284.201904 | BI162: 2306.930841 | BJ162: 2329.885942 | BK162: 2353.069458 | BL162: 2376.483661 | BM162: 2400.130847 | BN162: 2424.013334 | BO162: 2448.133464 | BP162: 2472.493601 | BQ162: 0 | BR162: 0 | BS162: 0 | BT162: =BT143 -> 0 | BU162: 0 | BV162: 0 | BW162: 0 | BX162: 0 | BY162: 0 | BZ162: 0 | CA162: 0 | CB162: 0 | CC162: 0 | CD162: 0 | CE162: 0 | CF162: 0 | CG162: 0 | CH162: 0 | CI162: 0 | CJ162: 0 | CK162: 0 | CL162: 0 | CM162: 0 | CN162: 0 | CO162: 0 | CP162: 0 | CQ162: 0 | CR162: 0 | CS162: 0 | CT162: 0 | CU162: 0 | CV162: 0 | CW162: 0 | CX162: 0 | CY162: 0 | CZ162: 0 | DA162: 0 | DB162: 0 | DC162: 0
D163: EBITDA P90 | E163: Euro 000's | H163: =H161-H162 -> 0 | I163: =I161-I162 -> 4481.312127 | J163: 4623.995025 | K163: 4570.938369 | L163: 4716.474925 | M163: 4662.357137 | N163: 4810.804424 | O163: 4789.960954 | P163: 4907.020512 | Q163: 4850.716365 | R163: 5005.160923 | S163: 4947.730692 | T163: 5105.264141 | U163: 5046.685306 | V163: 5207.369424 | W163: 5184.807782 | X163: 5311.516812 | Y163: 5250.571393 | Z163: 5417.747149 | AA163: 5355.58282 | AB163: 5526.102091 | AC163: 5462.694477 | AD163: 5636.624133 | AE163: 5612.202687 | AF163: 5749.356616 | AG163: 5683.387334 | AH163: 5864.343748 | AI163: 5797.05508 | AJ163: 5981.630623 | AK163: 5912.996182 | AL163: 6101.263236 | AM163: 6074.828676 | AN163: 6223.2885 | AO163: 6151.881228 | AP163: 6347.75427 | AQ163: 6274.918852 | AR163: 6474.709356 | AS163: 6400.417229 | AT163: 6604.203543 | AU163: 6575.589926 | AV163: 6736.287614 | AW163: 6658.994085 | AX163: 6871.013366 | AY163: 6792.173967 | AZ163: 7008.433633 | BA163: 6928.017446 | BB163: 7148.602306 | BC163: 7117.630007 | BD163: 7291.574352 | BE163: 7207.909351 | BF163: 7437.405839 | BG163: 7352.067538 | BH163: 7586.153956 | BI163: 7499.108889 | BJ163: 7737.877035 | BK163: 7704.351622 | BL163: 7892.634576 | BM163: 7802.072888 | BN163: 8050.487267 | BO163: 7958.114346 | BP163: 8211.497013 | BQ163: 0 | BR163: 0 | BS163: 0 | BT163: 0 | BU163: =BU161-BU162 -> 0 | BV163: 0 | BW163: 0 | BX163: 0 | BY163: 0 | BZ163: 0 | CA163: 0 | CB163: 0 | CC163: 0 | CD163: 0 | CE163: 0 | CF163: 0 | CG163: 0 | CH163: 0 | CI163: 0 | CJ163: 0 | CK163: 0 | CL163: 0 | CM163: 0 | CN163: 0 | CO163: 0 | CP163: 0 | CQ163: 0 | CR163: 0 | CS163: 0 | CT163: 0 | CU163: 0 | CV163: 0 | CW163: 0 | CX163: 0 | CY163: 0 | CZ163: 0 | DA163: 0 | DB163: 0 | DC163: 0
D164: CFADS P90 case | E164: Euro 000's | H164: =H163 -> 0 | I164: =I163 -> 4481.312127 | J164: 4623.995025 | K164: 4570.938369 | L164: 4716.474925 | M164: 4662.357137 | N164: 4810.804424 | O164: 4789.960954 | P164: 4907.020512 | Q164: 4850.716365 | R164: 5005.160923 | S164: 4947.730692 | T164: 5105.264141 | U164: 5046.685306 | V164: 5207.369424 | W164: 5184.807782 | X164: 5311.516812 | Y164: 5250.571393 | Z164: 5417.747149 | AA164: 5355.58282 | AB164: 5526.102091 | AC164: 5462.694477 | AD164: 5636.624133 | AE164: 5612.202687 | AF164: 5749.356616 | AG164: 5683.387334 | AH164: 5864.343748 | AI164: 5797.05508 | AJ164: 5981.630623 | AK164: 5912.996182 | AL164: 6101.263236 | AM164: 6074.828676 | AN164: 6223.2885 | AO164: 6151.881228 | AP164: 6347.75427 | AQ164: 6274.918852 | AR164: 6474.709356 | AS164: 6400.417229 | AT164: 6604.203543 | AU164: 6575.589926 | AV164: 6736.287614 | AW164: 6658.994085 | AX164: 6871.013366 | AY164: 6792.173967 | AZ164: 7008.433633 | BA164: 6928.017446 | BB164: 7148.602306 | BC164: 7117.630007 | BD164: 7291.574352 | BE164: 7207.909351 | BF164: 7437.405839 | BG164: 7352.067538 | BH164: 7586.153956 | BI164: 7499.108889 | BJ164: 7737.877035 | BK164: 7704.351622 | BL164: 7892.634576 | BM164: 7802.072888 | BN164: 8050.487267 | BO164: 7958.114346 | BP164: 8211.497013 | BQ164: 0 | BR164: 0 | BS164: 0 | BT164: 0 | BU164: =BU163 -> 0 | BV164: 0 | BW164: 0 | BX164: 0 | BY164: 0 | BZ164: 0 | CA164: 0 | CB164: 0 | CC164: 0 | CD164: 0 | CE164: 0 | CF164: 0 | CG164: 0 | CH164: 0 | CI164: 0 | CJ164: 0 | CK164: 0 | CL164: 0 | CM164: 0 | CN164: 0 | CO164: 0 | CP164: 0 | CQ164: 0 | CR164: 0 | CS164: 0 | CT164: 0 | CU164: 0 | CV164: 0 | CW164: 0 | CX164: 0 | CY164: 0 | CZ164: 0 | DA164: 0 | DB164: 0 | DC164: 0
D165: Target Debt Service | E165: Times | F165: =F58 -> 1.35 | H165: =H164/$F$165 -> 0 | I165: =I164/$F$165 -> 3319.490464 | J165: 3425.1815 | K165: 3385.880274 | L165: 3493.68513 | M165: 3453.597879 | N165: 3563.558832 | O165: 3548.119225 | P165: 3634.830009 | Q165: 3593.123233 | R165: 3707.526609 | S165: 3664.985698 | T165: 3781.677141 | U165: 3738.285412 | V165: 3857.310684 | W165: 3840.598357 | X165: 3934.456898 | Y165: 3889.312143 | Z165: 4013.146036 | AA165: 3967.098385 | AB165: 4093.408957 | AC165: 4046.440353 | AD165: 4175.277136 | AE165: 4157.187175 | AF165: 4258.782679 | AG165: 4209.916543 | AH165: 4343.958332 | AI165: 4294.114874 | AJ165: 4430.837499 | AK165: 4379.997172 | AL165: 4519.454249 | AM165: 4499.873094 | AN165: 4609.843334 | AO165: 4556.949058 | AP165: 4702.0402 | AQ165: 4648.088039 | AR165: 4796.081004 | AS165: 4741.049799 | AT165: 4892.002624 | AU165: 4870.807352 | AV165: 4989.842677 | AW165: 4932.588211 | AX165: 5089.63953 | AY165: 5031.239976 | AZ165: 5191.432321 | BA165: 5131.864775 | BB165: 5295.260967 | BC165: 5272.318523 | BD165: 5401.166187 | BE165: 5339.192112 | BF165: 5509.189511 | BG165: 5445.975954 | BH165: 5619.373301 | BI165: 5554.895473 | BJ165: 5731.760767 | BK165: 5706.927128 | BL165: 5846.395982 | BM165: 5779.31325 | BN165: 5963.323902 | BO165: 5894.899515 | BP165: 6082.59038 | BQ165: 0 | BR165: 0 | BS165: 0 | BT165: 0 | BU165: =BU164/$F$165 -> 0 | BV165: 0 | BW165: 0 | BX165: 0 | BY165: 0 | BZ165: 0 | CA165: 0 | CB165: 0 | CC165: 0 | CD165: 0 | CE165: 0 | CF165: 0 | CG165: 0 | CH165: 0 | CI165: 0 | CJ165: 0 | CK165: 0 | CL165: 0 | CM165: 0 | CN165: 0 | CO165: 0 | CP165: 0 | CQ165: 0 | CR165: 0 | CS165: 0 | CT165: 0 | CU165: 0 | CV165: 0 | CW165: 0 | CX165: 0 | CY165: 0 | CZ165: 0 | DA165: 0 | DB165: 0 | DC165: 0
D167: Target Debt Service over debt maturity | E167: Euro 000's | H167: =H165*H$136 -> 0 | I167: =I165*I$136 -> 0 | J167: 3425.1815 | K167: 3385.880274 | L167: 3493.68513 | M167: 3453.597879 | N167: 3563.558832 | O167: 3548.119225 | P167: 3634.830009 | Q167: 3593.123233 | R167: 3707.526609 | S167: 3664.985698 | T167: 3781.677141 | U167: 3738.285412 | V167: 3857.310684 | W167: 3840.598357 | X167: 3934.456898 | Y167: 3889.312143 | Z167: 4013.146036 | AA167: 3967.098385 | AB167: 4093.408957 | AC167: 4046.440353 | AD167: 4175.277136 | AE167: 4157.187175 | AF167: 4258.782679 | AG167: 4209.916543 | AH167: 4343.958332 | AI167: 4294.114874 | AJ167: 4430.837499 | AK167: 4379.997172 | AL167: 4519.454249 | AM167: 4499.873094 | AN167: 4609.843334 | AO167: 4556.949058 | AP167: 4702.0402 | AQ167: 4648.088039 | AR167: 4796.081004 | AS167: 4741.049799 | AT167: 4892.002624 | AU167: 4870.807352 | AV167: 4989.842677 | AW167: 0 | AX167: 0 | AY167: 0 | AZ167: 0 | BA167: 0 | BB167: 0 | BC167: 0 | BD167: 0 | BE167: 0 | BF167: 0 | BG167: 0 | BH167: 0 | BI167: 0 | BJ167: 0 | BK167: 0 | BL167: 0 | BM167: 0 | BN167: 0 | BO167: 0 | BP167: 0 | BQ167: 0 | BR167: 0 | BS167: 0 | BT167: 0 | BU167: =BU165*BU$136 -> 0 | BV167: 0 | BW167: 0 | BX167: 0 | BY167: 0 | BZ167: 0 | CA167: 0 | CB167: 0 | CC167: 0 | CD167: 0 | CE167: 0 | CF167: 0 | CG167: 0 | CH167: 0 | CI167: 0 | CJ167: 0 | CK167: 0 | CL167: 0 | CM167: 0 | CN167: 0 | CO167: 0 | CP167: 0 | CQ167: 0 | CR167: 0 | CS167: 0 | CT167: 0 | CU167: 0 | CV167: 0 | CW167: 0 | CX167: 0 | CY167: 0 | CZ167: 0 | DA167: 0 | DB167: 0 | DC167: 0
D168: NPV of debt service =size of debt | E168: Euro 000's | F168: =F149 -> 0.0165 | G168: 1 | H168: =G168*(1+$F$168*H$136) -> 1 | I168: =H168*(1+$F$149*I$136) -> 1 | J168: 1.0165 | K168: 1.03327225 | L168: 1.050321242 | M168: 1.067651543 | N168: 1.085267793 | O168: 1.103174712 | P168: 1.121377094 | Q168: 1.139879816 | R168: 1.158687833 | S168: 1.177806183 | T168: 1.197239985 | U168: 1.216994444 | V168: 1.237074853 | W168: 1.257486588 | X168: 1.278235117 | Y168: 1.299325996 | Z168: 1.320764875 | AA168: 1.342557495 | AB168: 1.364709694 | AC168: 1.387227404 | AD168: 1.410116656 | AE168: 1.433383581 | AF168: 1.45703441 | AG168: 1.481075478 | AH168: 1.505513223 | AI168: 1.530354191 | AJ168: 1.555605036 | AK168: 1.581272519 | AL168: 1.607363515 | AM168: 1.633885013 | AN168: 1.660844116 | AO168: 1.688248044 | AP168: 1.716104137 | AQ168: 1.744419855 | AR168: 1.773202782 | AS168: 1.802460628 | AT168: 1.832201229 | AU168: 1.862432549 | AV168: 1.893162686 | AW168: 1.893162686 | AX168: 1.893162686 | AY168: 1.893162686 | AZ168: 1.893162686 | BA168: 1.893162686 | BB168: 1.893162686 | BC168: 1.893162686 | BD168: 1.893162686 | BE168: 1.893162686 | BF168: 1.893162686 | BG168: 1.893162686 | BH168: 1.893162686 | BI168: 1.893162686 | BJ168: 1.893162686 | BK168: 1.893162686 | BL168: 1.893162686 | BM168: 1.893162686 | BN168: 1.893162686 | BO168: 1.893162686 | BP168: 1.893162686 | BQ168: 1.893162686 | BR168: 1.893162686 | BS168: 1.893162686 | BT168: 1.893162686 | BU168: =BT168*(1+$F$149*BU$136) -> 1.893162686 | BV168: 1.893162686 | BW168: 1.893162686 | BX168: 1.893162686 | BY168: 1.893162686 | BZ168: 1.893162686 | CA168: 1.893162686 | CB168: 1.893162686 | CC168: 1.893162686 | CD168: 1.893162686 | CE168: 1.893162686 | CF168: 1.893162686 | CG168: 1.893162686 | CH168: 1.893162686 | CI168: 1.893162686 | CJ168: 1.893162686 | CK168: 1.893162686 | CL168: 1.893162686 | CM168: 1.893162686 | CN168: 1.893162686 | CO168: 1.893162686 | CP168: 1.893162686 | CQ168: 1.893162686 | CR168: 1.893162686 | CS168: 1.893162686 | CT168: 1.893162686 | CU168: 1.893162686 | CV168: 1.893162686 | CW168: 1.893162686 | CX168: 1.893162686 | CY168: 1.893162686 | CZ168: 1.893162686 | DA168: 1.893162686 | DB168: 1.893162686 | DC168: 1.893162686
D169: Size of Debt from P90 | E169: Euro 000's | F169: =SUMPRODUCT(H167:DC167/H168:DC168) -> 115433.6166 | G169: 2
D171: Opening Balance | H171: =G173 -> 115433.6166 | I171: =H173 -> 115433.6166 | J171: 115433.6166 | K171: 113913.0897 | L171: 112406.7754 | M171: 110767.8021 | N171: 109141.873 | O171: 107379.155 | P171: 105602.7919 | Q171: 103710.4079 | R171: 101828.5064 | S171: 99801.15017 | T171: 97782.88345 | U171: 95614.62389 | V171: 93453.97977 | W171: 91138.65975 | X171: 88801.84928 | Y171: 86332.6229 | Z171: 83867.79903 | AA171: 81238.47168 | AB171: 78611.80808 | AC171: 75815.49395 | AD171: 73020.00925 | AE171: 70049.56227 | AF171: 67048.19287 | AG171: 63895.70537 | AH171: 60740.06797 | AI171: 57398.32076 | AJ171: 54051.27818 | AK171: 50512.28677 | AL171: 46965.74233 | AM171: 43221.22283 | AN171: 39434.49991 | AO171: 35475.32582 | AP171: 31503.71964 | AQ171: 27321.49082 | AR171: 23124.20738 | AS171: 18709.67579 | AT171: 14277.33565 | AU171: 9620.909059 | AV171: 4908.846706 | AW171: 1.300577424e-10 | AX171: 1.300577424e-10 | AY171: 1.300577424e-10 | AZ171: 1.300577424e-10 | BA171: 1.300577424e-10 | BB171: 1.300577424e-10 | BC171: 1.300577424e-10 | BD171: 1.300577424e-10 | BE171: 1.300577424e-10 | BF171: 1.300577424e-10 | BG171: 1.300577424e-10 | BH171: 1.300577424e-10 | BI171: 1.300577424e-10 | BJ171: 1.300577424e-10 | BK171: 1.300577424e-10 | BL171: 1.300577424e-10 | BM171: 1.300577424e-10 | BN171: 1.300577424e-10 | BO171: 1.300577424e-10 | BP171: 1.300577424e-10 | BQ171: 1.300577424e-10 | BR171: 1.300577424e-10 | BS171: 1.300577424e-10 | BT171: 1.300577424e-10 | BU171: =BT173 -> 1.300577424e-10 | BV171: 1.300577424e-10 | BW171: 1.300577424e-10 | BX171: 1.300577424e-10 | BY171: 1.300577424e-10 | BZ171: 1.300577424e-10 | CA171: 1.300577424e-10 | CB171: 1.300577424e-10 | CC171: 1.300577424e-10 | CD171: 1.300577424e-10 | CE171: 1.300577424e-10 | CF171: 1.300577424e-10 | CG171: 1.300577424e-10 | CH171: 1.300577424e-10 | CI171: 1.300577424e-10 | CJ171: 1.300577424e-10 | CK171: 1.300577424e-10 | CL171: 1.300577424e-10 | CM171: 1.300577424e-10 | CN171: 1.300577424e-10 | CO171: 1.300577424e-10 | CP171: 1.300577424e-10 | CQ171: 1.300577424e-10 | CR171: 1.300577424e-10 | CS171: 1.300577424e-10 | CT171: 1.300577424e-10 | CU171: 1.300577424e-10 | CV171: 1.300577424e-10 | CW171: 1.300577424e-10 | CX171: 1.300577424e-10 | CY171: 1.300577424e-10 | CZ171: 1.300577424e-10 | DA171: 1.300577424e-10 | DB171: 1.300577424e-10 | DC171: 1.300577424e-10
D172: Less Repayments | H172: =(H167-H174)*H$136 -> 0 | I172: =(I167-I174)*I$136 -> 0 | J172: 1520.526827 | K172: 1506.314293 | L172: 1638.973335 | M172: 1625.929144 | N172: 1762.717928 | O172: 1776.363167 | P172: 1892.383943 | Q172: 1881.901503 | R172: 2027.356253 | S172: 2018.26672 | T172: 2168.259564 | U172: 2160.644118 | V172: 2315.320018 | W172: 2336.810471 | X172: 2469.226385 | Y172: 2464.823865 | Z172: 2629.327352 | AA172: 2626.663603 | AB172: 2796.314123 | AC172: 2795.484703 | AD172: 2970.446983 | AE172: 3001.369398 | AF172: 3152.487496 | AG172: 3155.637405 | AH172: 3341.747211 | AI172: 3347.042582 | AJ172: 3538.991409 | AK172: 3546.54444 | AL172: 3744.5195 | AM172: 3786.722917 | AN172: 3959.174085 | AO172: 3971.606181 | AP172: 4182.228826 | AQ172: 4197.28344 | AR172: 4414.531583 | AS172: 4432.340149 | AT172: 4656.426586 | AU172: 4712.062353 | AV172: 4908.846706 | AW172: 0 | AX172: 0 | AY172: 0 | AZ172: 0 | BA172: 0 | BB172: 0 | BC172: 0 | BD172: 0 | BE172: 0 | BF172: 0 | BG172: 0 | BH172: 0 | BI172: 0 | BJ172: 0 | BK172: 0 | BL172: 0 | BM172: 0 | BN172: 0 | BO172: 0 | BP172: 0 | BQ172: 0 | BR172: 0 | BS172: 0 | BT172: 0 | BU172: =(BU167-BU174)*BU$136 -> 0 | BV172: 0 | BW172: 0 | BX172: 0 | BY172: 0 | BZ172: 0 | CA172: 0 | CB172: 0 | CC172: 0 | CD172: 0 | CE172: 0 | CF172: 0 | CG172: 0 | CH172: 0 | CI172: 0 | CJ172: 0 | CK172: 0 | CL172: 0 | CM172: 0 | CN172: 0 | CO172: 0 | CP172: 0 | CQ172: 0 | CR172: 0 | CS172: 0 | CT172: 0 | CU172: 0 | CV172: 0 | CW172: 0 | CX172: 0 | CY172: 0 | CZ172: 0 | DA172: 0 | DB172: 0 | DC172: 0
D173: Closing Balance | G173: =F169 -> 115433.6166 | H173: =H171-H172 -> 115433.6166 | I173: =I171-I172 -> 115433.6166 | J173: 113913.0897 | K173: 112406.7754 | L173: 110767.8021 | M173: 109141.873 | N173: 107379.155 | O173: 105602.7919 | P173: 103710.4079 | Q173: 101828.5064 | R173: 99801.15017 | S173: 97782.88345 | T173: 95614.62389 | U173: 93453.97977 | V173: 91138.65975 | W173: 88801.84928 | X173: 86332.6229 | Y173: 83867.79903 | Z173: 81238.47168 | AA173: 78611.80808 | AB173: 75815.49395 | AC173: 73020.00925 | AD173: 70049.56227 | AE173: 67048.19287 | AF173: 63895.70537 | AG173: 60740.06797 | AH173: 57398.32076 | AI173: 54051.27818 | AJ173: 50512.28677 | AK173: 46965.74233 | AL173: 43221.22283 | AM173: 39434.49991 | AN173: 35475.32582 | AO173: 31503.71964 | AP173: 27321.49082 | AQ173: 23124.20738 | AR173: 18709.67579 | AS173: 14277.33565 | AT173: 9620.909059 | AU173: 4908.846706 | AV173: 1.300577424e-10 | AW173: 1.300577424e-10 | AX173: 1.300577424e-10 | AY173: 1.300577424e-10 | AZ173: 1.300577424e-10 | BA173: 1.300577424e-10 | BB173: 1.300577424e-10 | BC173: 1.300577424e-10 | BD173: 1.300577424e-10 | BE173: 1.300577424e-10 | BF173: 1.300577424e-10 | BG173: 1.300577424e-10 | BH173: 1.300577424e-10 | BI173: 1.300577424e-10 | BJ173: 1.300577424e-10 | BK173: 1.300577424e-10 | BL173: 1.300577424e-10 | BM173: 1.300577424e-10 | BN173: 1.300577424e-10 | BO173: 1.300577424e-10 | BP173: 1.300577424e-10 | BQ173: 1.300577424e-10 | BR173: 1.300577424e-10 | BS173: 1.300577424e-10 | BT173: 1.300577424e-10 | BU173: =BU171-BU172 -> 1.300577424e-10 | BV173: 1.300577424e-10 | BW173: 1.300577424e-10 | BX173: 1.300577424e-10 | BY173: 1.300577424e-10 | BZ173: 1.300577424e-10 | CA173: 1.300577424e-10 | CB173: 1.300577424e-10 | CC173: 1.300577424e-10 | CD173: 1.300577424e-10 | CE173: 1.300577424e-10 | CF173: 1.300577424e-10 | CG173: 1.300577424e-10 | CH173: 1.300577424e-10 | CI173: 1.300577424e-10 | CJ173: 1.300577424e-10 | CK173: 1.300577424e-10 | CL173: 1.300577424e-10 | CM173: 1.300577424e-10 | CN173: 1.300577424e-10 | CO173: 1.300577424e-10 | CP173: 1.300577424e-10 | CQ173: 1.300577424e-10 | CR173: 1.300577424e-10 | CS173: 1.300577424e-10 | CT173: 1.300577424e-10 | CU173: 1.300577424e-10 | CV173: 1.300577424e-10 | CW173: 1.300577424e-10 | CX173: 1.300577424e-10 | CY173: 1.300577424e-10 | CZ173: 1.300577424e-10 | DA173: 1.300577424e-10 | DB173: 1.300577424e-10 | DC173: 1.300577424e-10
D174: Interest | F174: =F155 -> 0.0165 | H174: =H171*$F$155*H$5 -> 0 | I174: =I171*$F$174*I$5 -> 1904.654673 | J174: =J171*$F$155*J$5 -> 1904.654673 | K174: 1879.565981 | L174: 1854.711795 | M174: 1827.668735 | N174: 1800.840904 | O174: 1771.756058 | P174: 1742.446066 | Q174: 1711.221731 | R174: 1680.170356 | S174: 1646.718978 | T174: 1613.417577 | U174: 1577.641294 | V174: 1541.990666 | W174: 1503.787886 | X174: 1465.230513 | Y174: 1424.488278 | Z174: 1383.818684 | AA174: 1340.434783 | AB174: 1297.094833 | AC174: 1250.95565 | AD174: 1204.830153 | AE174: 1155.817777 | AF174: 1106.295182 | AG174: 1054.279139 | AH174: 1002.211121 | AI174: 947.0722925 | AJ174: 891.8460899 | AK174: 833.4527317 | AL174: 774.9347484 | AM174: 713.1501766 | AN174: 650.6692485 | AO174: 585.3428761 | AP174: =AP171*$F$155*AP$5 -> 519.8113741 | AQ174: 450.8045985 | AR174: 381.5494217 | AS174: 308.7096506 | AT174: 235.5760382 | AU174: 158.7449995 | AV174: 80.99597065 | AW174: 2.145952749e-12 | AX174: 2.145952749e-12 | AY174: 2.145952749e-12 | AZ174: 2.145952749e-12 | BA174: 2.145952749e-12 | BB174: 2.145952749e-12 | BC174: 2.145952749e-12 | BD174: 2.145952749e-12 | BE174: 2.145952749e-12 | BF174: 2.145952749e-12 | BG174: 2.145952749e-12 | BH174: 2.145952749e-12 | BI174: 2.145952749e-12 | BJ174: 2.145952749e-12 | BK174: 2.145952749e-12 | BL174: 2.145952749e-12 | BM174: 2.145952749e-12 | BN174: 2.145952749e-12 | BO174: 2.145952749e-12 | BP174: 2.145952749e-12 | BQ174: 0 | BR174: 0 | BS174: 0 | BT174: 0 | BU174: 0 | BV174: =BV171*$F$155*BV$5 -> 0 | BW174: 0 | BX174: 0 | BY174: 0 | BZ174: 0 | CA174: 0 | CB174: 0 | CC174: 0 | CD174: 0 | CE174: 0 | CF174: 0 | CG174: 0 | CH174: 0 | CI174: 0 | CJ174: 0 | CK174: 0 | CL174: 0 | CM174: 0 | CN174: 0 | CO174: 0 | CP174: 0 | CQ174: 0 | CR174: 0 | CS174: 0 | CT174: 0 | CU174: 0 | CV174: 0 | CW174: 0 | CX174: 0 | CY174: 0 | CZ174: 0 | DA174: 0 | DB174: 0 | DC174: 0
D176: P50/P90 EBITDA | I176: =I145/I163 -> 1.241864853 | J176: =J145/J163 -> 1.240657795 | K176: 1.241864853 | L176: 1.240657795 | M176: 1.241864853 | N176: 1.240657795 | O176: 1.241456729 | P176: 1.240657795 | Q176: 1.241864853 | R176: 1.240657795 | S176: 1.241864853 | T176: 1.240657795 | U176: 1.241864853 | V176: 1.240657795 | W176: 1.241456729 | X176: 1.240657795 | Y176: 1.241864853 | Z176: 1.240657795 | AA176: 1.241864853 | AB176: 1.240657795 | AC176: 1.241864853 | AD176: 1.240657795 | AE176: 1.241456729 | AF176: 1.240657795 | AG176: 1.241864853 | AH176: 1.240657795 | AI176: 1.241864853 | AJ176: 1.240657795 | AK176: 1.241864853 | AL176: 1.240657795 | AM176: 1.241456729 | AN176: 1.240657795 | AO176: 1.241864853 | AP176: 1.240657795 | AQ176: 1.241864853 | AR176: 1.240657795 | AS176: 1.241864853 | AT176: 1.240657795 | AU176: 1.241456729 | AV176: 1.240657795 | AW176: 1.241864853 | AX176: 1.240657795 | AY176: 1.241864853 | AZ176: 1.240657795 | BA176: 1.241864853 | BB176: 1.240657795 | BC176: 1.241456729 | BD176: 1.240657795 | BE176: 1.241864853 | BF176: 1.240657795 | BG176: 1.241864853 | BH176: 1.240657795 | BI176: 1.241864853 | BJ176: 1.240657795 | BK176: 1.241456729 | BL176: 1.240657795 | BM176: 1.241864853 | BN176: 1.240657795 | BO176: 1.241864853 | BP176: 1.240657795 | BV176: =BV145/BV163 -> 
B178: P99 DSCR
C179: Cash flow P99 case
D180: MWh P99 case | E180: MWh | H180: =H95 -> 0 | I180: 144955.2271 | J180: 147357.7999 | K180: 144955.2271 | L180: 147357.7999 | M180: 144955.2271 | N180: 147357.7999 | O180: 145756.0847 | P180: 147357.7999 | Q180: 144955.2271 | R180: 147357.7999 | S180: 144955.2271 | T180: 147357.7999 | U180: 144955.2271 | V180: 147357.7999 | W180: 145756.0847 | X180: 147357.7999 | Y180: 144955.2271 | Z180: 147357.7999 | AA180: 144955.2271 | AB180: 147357.7999 | AC180: 144955.2271 | AD180: 147357.7999 | AE180: 145756.0847 | AF180: 147357.7999 | AG180: 144955.2271 | AH180: 147357.7999 | AI180: 144955.2271 | AJ180: 147357.7999 | AK180: 144955.2271 | AL180: 147357.7999 | AM180: 145756.0847 | AN180: 147357.7999 | AO180: 144955.2271 | AP180: 147357.7999 | AQ180: 144955.2271 | AR180: 147357.7999 | AS180: 144955.2271 | AT180: 147357.7999 | AU180: 145756.0847 | AV180: 147357.7999 | AW180: 144955.2271 | AX180: 147357.7999 | AY180: 144955.2271 | AZ180: 147357.7999 | BA180: 144955.2271 | BB180: 147357.7999 | BC180: 145756.0847 | BD180: 147357.7999 | BE180: 144955.2271 | BF180: 147357.7999 | BG180: 144955.2271 | BH180: 147357.7999 | BI180: 144955.2271 | BJ180: 147357.7999 | BK180: 145756.0847 | BL180: 147357.7999 | BM180: 144955.2271 | BN180: 147357.7999 | BO180: 144955.2271 | BP180: 147357.7999 | BQ180: 0 | BR180: 0 | BS180: 0 | BT180: =BT95 -> 0 | BU180: 0 | BV180: 0 | BW180: 0 | BX180: 0 | BY180: 0 | BZ180: 0 | CA180: 0 | CB180: 0 | CC180: 0 | CD180: 0 | CE180: 0 | CF180: 0 | CG180: 0 | CH180: 0 | CI180: 0 | CJ180: 0 | CK180: 0 | CL180: 0 | CM180: 0 | CN180: 0 | CO180: 0 | CP180: 0 | CQ180: 0 | CR180: 0 | CS180: 0 | CT180: 0 | CU180: 0 | CV180: 0 | CW180: 0 | CX180: 0 | CY180: 0 | CZ180: 0 | DA180: 0 | DB180: 0 | DC180: 0
D181: Price - variable cost | E181: Euro/MWh | H181: =H141 -> 0 | I181: 34.3295658 | J181: 34.67116193 | K181: 35.01615711 | L181: 35.36458517 | M181: 35.71648026 | N181: 36.07187687 | O181: 36.43080986 | P181: 36.79331441 | Q181: 37.15942606 | R181: 37.5291807 | S181: 37.90261458 | T181: 38.27976431 | U181: 38.66066687 | V181: 39.0453596 | W181: 39.43388021 | X181: 39.82626679 | Y181: 40.22255781 | Z181: 40.62279213 | AA181: 41.02700897 | AB181: 41.43524797 | AC181: 41.84754915 | AD181: 42.26395293 | AE181: 42.68450013 | AF181: 43.10923199 | AG181: 43.53819013 | AH181: 43.97141663 | AI181: 44.40895394 | AJ181: 44.85084496 | AK181: 45.29713301 | AL181: 45.74786186 | AM181: 46.20307567 | AN181: 46.66281909 | AO181: 47.12713719 | AP181: 47.59607548 | AQ181: 48.06967993 | AR181: 48.54799699 | AS181: 49.03107353 | AT181: 49.51895693 | AU181: 50.011695 | AV181: 50.50933606 | AW181: 51.0119289 | AX181: 51.51952279 | AY181: 52.03216748 | AZ181: 52.54991324 | BA181: 53.07281083 | BB181: 53.60091151 | BC181: 54.13426705 | BD181: 54.67292974 | BE181: 55.21695239 | BF181: 55.76638833 | BG181: 56.32129143 | BH181: 56.8817161 | BI181: 57.44771726 | BJ181: 58.01935042 | BK181: 58.59667161 | BL181: 59.17973743 | BM181: 59.76860504 | BN181: 60.36333218 | BO181: 60.96397714 | BP181: 61.57059882 | BQ181: 0 | BR181: 0 | BS181: 0 | BT181: =BT141 -> 0 | BU181: 0 | BV181: 0 | BW181: 0 | BX181: 0 | BY181: 0 | BZ181: 0 | CA181: 0 | CB181: 0 | CC181: 0 | CD181: 0 | CE181: 0 | CF181: 0 | CG181: 0 | CH181: 0 | CI181: 0 | CJ181: 0 | CK181: 0 | CL181: 0 | CM181: 0 | CN181: 0 | CO181: 0 | CP181: 0 | CQ181: 0 | CR181: 0 | CS181: 0 | CT181: 0 | CU181: 0 | CV181: 0 | CW181: 0 | CX181: 0 | CY181: 0 | CZ181: 0 | DA181: 0 | DB181: 0 | DC181: 0
D182: Margin P99 case | E182: Euro 000's | H182: =H180*H181/1000 -> 0 | I182: =I180*I181/1000 -> 4976.250005 | J182: 5109.066141 | K182: 5075.775005 | L182: 5211.247464 | M182: 5177.290505 | N182: 5315.472413 | O182: 5310.012206 | P182: 5421.781862 | Q182: 5386.453042 | R182: 5530.217499 | S182: 5494.182102 | T182: 5640.821849 | U182: 5604.065744 | V182: 5753.638286 | W182: 5747.727982 | X182: 5868.711052 | Y182: 5830.47 | Z182: 5986.085273 | AA182: 5947.0794 | AB182: 6105.806978 | AC182: 6066.020988 | AD182: 6227.923118 | AE182: 6221.525615 | AF182: 6352.48158 | AG182: 6311.088236 | AH182: 6479.531212 | AI182: 6437.310001 | AJ182: 6609.121836 | AK182: 6566.056201 | AL182: 6741.304273 | AM182: 6734.37941 | AN182: 6876.130358 | AO182: 6831.324872 | AP182: 7013.652965 | AQ182: 6967.951369 | AR182: 7153.926025 | AS182: 7107.310397 | AT182: 7297.004545 | AU182: 7289.508851 | AV182: 7442.944636 | AW182: 7394.445737 | AX182: 7591.803529 | AY182: 7542.334651 | AZ182: 7743.639599 | BA182: 7693.181344 | BB182: 7898.512391 | BC182: 7890.398811 | BD182: 8056.482639 | BE182: 8003.985871 | BF182: 8217.612292 | BG182: 8164.065588 | BH182: 8381.964538 | BI182: 8327.3469 | BJ182: 8549.603828 | BK182: 8540.821428 | BL182: 8720.595905 | BM182: 8663.771715 | BN182: 8895.007823 | BO182: 8837.047149 | BP182: 9072.90798 | BQ182: 0 | BR182: 0 | BS182: 0 | BT182: 0 | BU182: =BU180*BU181/1000 -> 0 | BV182: 0 | BW182: 0 | BX182: 0 | BY182: 0 | BZ182: 0 | CA182: 0 | CB182: 0 | CC182: 0 | CD182: 0 | CE182: 0 | CF182: 0 | CG182: 0 | CH182: 0 | CI182: 0 | CJ182: 0 | CK182: 0 | CL182: 0 | CM182: 0 | CN182: 0 | CO182: 0 | CP182: 0 | CQ182: 0 | CR182: 0 | CS182: 0 | CT182: 0 | CU182: 0 | CV182: 0 | CW182: 0 | CX182: 0 | CY182: 0 | CZ182: 0 | DA182: 0 | DB182: 0 | DC182: 0
D183: Fixed Cost | E183: Euro 000's | H183: =H115 -> 0 | I183: 1378.574082 | J183: 1392.291575 | K183: 1406.145564 | L183: 1420.137406 | M183: 1434.268475 | N183: 1448.540155 | O183: 1462.953844 | P183: 1477.510958 | Q183: 1492.212921 | R183: 1507.061177 | S183: 1522.05718 | T183: 1537.2024 | U183: 1552.498323 | V183: 1567.946448 | W183: 1583.54829 | X183: 1599.305377 | Y183: 1615.219256 | Z183: 1631.291485 | AA183: 1647.523641 | AB183: 1663.917315 | AC183: 1680.474114 | AD183: 1697.195661 | AE183: 1714.083596 | AF183: 1731.139574 | AG183: 1748.365268 | AH183: 1765.762366 | AI183: 1783.332573 | AJ183: 1801.077613 | AK183: 1818.999225 | AL183: 1837.099165 | AM183: 1855.379209 | AN183: 1873.841148 | AO183: 1892.486793 | AP183: 1911.317971 | AQ183: 1930.336529 | AR183: 1949.544331 | AS183: 1968.94326 | AT183: 1988.535217 | AU183: 2008.322125 | AV183: 2028.305922 | AW183: 2048.488567 | AX183: 2068.87204 | AY183: 2089.458339 | AZ183: 2110.249481 | BA183: 2131.247505 | BB183: 2152.454471 | BC183: 2173.872456 | BD183: 2195.50356 | BE183: 2217.349905 | BF183: 2239.413631 | BG183: 2261.696903 | BH183: 2284.201904 | BI183: 2306.930841 | BJ183: 2329.885942 | BK183: 2353.069458 | BL183: 2376.483661 | BM183: 2400.130847 | BN183: 2424.013334 | BO183: 2448.133464 | BP183: 2472.493601 | BQ183: 0 | BR183: 0 | BS183: 0 | BT183: =BT115 -> 0 | BU183: 0 | BV183: 0 | BW183: 0 | BX183: 0 | BY183: 0 | BZ183: 0 | CA183: 0 | CB183: 0 | CC183: 0 | CD183: 0 | CE183: 0 | CF183: 0 | CG183: 0 | CH183: 0 | CI183: 0 | CJ183: 0 | CK183: 0 | CL183: 0 | CM183: 0 | CN183: 0 | CO183: 0 | CP183: 0 | CQ183: 0 | CR183: 0 | CS183: 0 | CT183: 0 | CU183: 0 | CV183: 0 | CW183: 0 | CX183: 0 | CY183: 0 | CZ183: 0 | DA183: 0 | DB183: 0 | DC183: 0
D184: EBITDA P99 | E184: Euro 000's | H184: =H182-H183 -> 0 | I184: =I182-I183 -> 3597.675923 | J184: 3716.774566 | K184: 3669.629441 | L184: 3791.110058 | M184: 3743.02203 | N184: 3866.932259 | O184: 3847.058362 | P184: 3944.270904 | Q184: 3894.24012 | R184: 4023.156322 | S184: 3972.124923 | T184: 4103.619449 | U184: 4051.567421 | V184: 4185.691838 | W184: 4164.179692 | X184: 4269.405674 | Y184: 4215.250745 | Z184: 4354.793788 | AA184: 4299.55576 | AB184: 4441.889664 | AC184: 4385.546875 | AD184: 4530.727457 | AE184: 4507.442019 | AF184: 4621.342006 | AG184: 4562.722969 | AH184: 4713.768846 | AI184: 4653.977428 | AJ184: 4808.044223 | AK184: 4747.056977 | AL184: 4904.205107 | AM184: 4879.000201 | AN184: 5002.28921 | AO184: 4938.838079 | AP184: 5102.334994 | AQ184: 5037.61484 | AR184: 5204.381694 | AS184: 5138.367137 | AT184: 5308.469328 | AU184: 5281.186726 | AV184: 5414.638714 | AW184: 5345.957169 | AX184: 5522.931488 | AY184: 5452.876313 | AZ184: 5633.390118 | BA184: 5561.933839 | BB184: 5746.057921 | BC184: 5716.526355 | BD184: 5860.979079 | BE184: 5786.635966 | BF184: 5978.198661 | BG184: 5902.368685 | BH184: 6097.762634 | BI184: 6020.416059 | BJ184: 6219.717886 | BK184: 6187.75197 | BL184: 6344.112244 | BM184: 6263.640868 | BN184: 6470.994489 | BO184: 6388.913685 | BP184: 6600.414379 | BQ184: 0 | BR184: 0 | BS184: 0 | BT184: 0 | BU184: =BU182-BU183 -> 0 | BV184: 0 | BW184: 0 | BX184: 0 | BY184: 0 | BZ184: 0 | CA184: 0 | CB184: 0 | CC184: 0 | CD184: 0 | CE184: 0 | CF184: 0 | CG184: 0 | CH184: 0 | CI184: 0 | CJ184: 0 | CK184: 0 | CL184: 0 | CM184: 0 | CN184: 0 | CO184: 0 | CP184: 0 | CQ184: 0 | CR184: 0 | CS184: 0 | CT184: 0 | CU184: 0 | CV184: 0 | CW184: 0 | CX184: 0 | CY184: 0 | CZ184: 0 | DA184: 0 | DB184: 0 | DC184: 0
D185: CFADS P99 case | E185: Euro 000's | H185: =H184 -> 0 | I185: =I184 -> 3597.675923 | J185: 3716.774566 | K185: 3669.629441 | L185: 3791.110058 | M185: 3743.02203 | N185: 3866.932259 | O185: 3847.058362 | P185: 3944.270904 | Q185: 3894.24012 | R185: 4023.156322 | S185: 3972.124923 | T185: 4103.619449 | U185: 4051.567421 | V185: 4185.691838 | W185: 4164.179692 | X185: 4269.405674 | Y185: 4215.250745 | Z185: 4354.793788 | AA185: 4299.55576 | AB185: 4441.889664 | AC185: 4385.546875 | AD185: 4530.727457 | AE185: 4507.442019 | AF185: 4621.342006 | AG185: 4562.722969 | AH185: 4713.768846 | AI185: 4653.977428 | AJ185: 4808.044223 | AK185: 4747.056977 | AL185: 4904.205107 | AM185: 4879.000201 | AN185: 5002.28921 | AO185: 4938.838079 | AP185: 5102.334994 | AQ185: 5037.61484 | AR185: 5204.381694 | AS185: 5138.367137 | AT185: 5308.469328 | AU185: 5281.186726 | AV185: 5414.638714 | AW185: 5345.957169 | AX185: 5522.931488 | AY185: 5452.876313 | AZ185: 5633.390118 | BA185: 5561.933839 | BB185: 5746.057921 | BC185: 5716.526355 | BD185: 5860.979079 | BE185: 5786.635966 | BF185: 5978.198661 | BG185: 5902.368685 | BH185: 6097.762634 | BI185: 6020.416059 | BJ185: 6219.717886 | BK185: 6187.75197 | BL185: 6344.112244 | BM185: 6263.640868 | BN185: 6470.994489 | BO185: 6388.913685 | BP185: 6600.414379 | BQ185: 0 | BR185: 0 | BS185: 0 | BT185: 0 | BU185: =BU184 -> 0 | BV185: 0 | BW185: 0 | BX185: 0 | BY185: 0 | BZ185: 0 | CA185: 0 | CB185: 0 | CC185: 0 | CD185: 0 | CE185: 0 | CF185: 0 | CG185: 0 | CH185: 0 | CI185: 0 | CJ185: 0 | CK185: 0 | CL185: 0 | CM185: 0 | CN185: 0 | CO185: 0 | CP185: 0 | CQ185: 0 | CR185: 0 | CS185: 0 | CT185: 0 | CU185: 0 | CV185: 0 | CW185: 0 | CX185: 0 | CY185: 0 | CZ185: 0 | DA185: 0 | DB185: 0 | DC185: 0
D186: Target Debt Service | E186: Times | F186: =F59 -> 1 | H186: =H185/$F$186 -> 0 | I186: =I185/$F$186 -> 3597.675923 | J186: 3716.774566 | K186: 3669.629441 | L186: 3791.110058 | M186: 3743.02203 | N186: 3866.932259 | O186: 3847.058362 | P186: 3944.270904 | Q186: 3894.24012 | R186: 4023.156322 | S186: 3972.124923 | T186: 4103.619449 | U186: 4051.567421 | V186: 4185.691838 | W186: 4164.179692 | X186: 4269.405674 | Y186: 4215.250745 | Z186: 4354.793788 | AA186: 4299.55576 | AB186: 4441.889664 | AC186: 4385.546875 | AD186: 4530.727457 | AE186: 4507.442019 | AF186: 4621.342006 | AG186: 4562.722969 | AH186: 4713.768846 | AI186: 4653.977428 | AJ186: 4808.044223 | AK186: 4747.056977 | AL186: 4904.205107 | AM186: 4879.000201 | AN186: 5002.28921 | AO186: 4938.838079 | AP186: 5102.334994 | AQ186: 5037.61484 | AR186: 5204.381694 | AS186: 5138.367137 | AT186: 5308.469328 | AU186: 5281.186726 | AV186: 5414.638714 | AW186: 5345.957169 | AX186: 5522.931488 | AY186: 5452.876313 | AZ186: 5633.390118 | BA186: 5561.933839 | BB186: 5746.057921 | BC186: 5716.526355 | BD186: 5860.979079 | BE186: 5786.635966 | BF186: 5978.198661 | BG186: 5902.368685 | BH186: 6097.762634 | BI186: 6020.416059 | BJ186: 6219.717886 | BK186: 6187.75197 | BL186: 6344.112244 | BM186: 6263.640868 | BN186: 6470.994489 | BO186: 6388.913685 | BP186: 6600.414379 | BQ186: 0 | BR186: 0 | BS186: 0 | BT186: 0 | BU186: =BU185/$F$186 -> 0 | BV186: 0 | BW186: 0 | BX186: 0 | BY186: 0 | BZ186: 0 | CA186: 0 | CB186: 0 | CC186: 0 | CD186: 0 | CE186: 0 | CF186: 0 | CG186: 0 | CH186: 0 | CI186: 0 | CJ186: 0 | CK186: 0 | CL186: 0 | CM186: 0 | CN186: 0 | CO186: 0 | CP186: 0 | CQ186: 0 | CR186: 0 | CS186: 0 | CT186: 0 | CU186: 0 | CV186: 0 | CW186: 0 | CX186: 0 | CY186: 0 | CZ186: 0 | DA186: 0 | DB186: 0 | DC186: 0
D188: Target Debt Service over debt maturity | E188: Euro 000's | H188: =H186*H$136 -> 0 | I188: =I186*I$136 -> 0 | J188: 3716.774566 | K188: 3669.629441 | L188: 3791.110058 | M188: 3743.02203 | N188: 3866.932259 | O188: 3847.058362 | P188: 3944.270904 | Q188: 3894.24012 | R188: 4023.156322 | S188: 3972.124923 | T188: 4103.619449 | U188: 4051.567421 | V188: 4185.691838 | W188: 4164.179692 | X188: 4269.405674 | Y188: 4215.250745 | Z188: 4354.793788 | AA188: 4299.55576 | AB188: 4441.889664 | AC188: 4385.546875 | AD188: 4530.727457 | AE188: 4507.442019 | AF188: 4621.342006 | AG188: 4562.722969 | AH188: 4713.768846 | AI188: 4653.977428 | AJ188: 4808.044223 | AK188: 4747.056977 | AL188: 4904.205107 | AM188: 4879.000201 | AN188: 5002.28921 | AO188: 4938.838079 | AP188: 5102.334994 | AQ188: 5037.61484 | AR188: 5204.381694 | AS188: 5138.367137 | AT188: 5308.469328 | AU188: 5281.186726 | AV188: 5414.638714 | AW188: 0 | AX188: 0 | AY188: 0 | AZ188: 0 | BA188: 0 | BB188: 0 | BC188: 0 | BD188: 0 | BE188: 0 | BF188: 0 | BG188: 0 | BH188: 0 | BI188: 0 | BJ188: 0 | BK188: 0 | BL188: 0 | BM188: 0 | BN188: 0 | BO188: 0 | BP188: 0 | BQ188: 0 | BR188: 0 | BS188: 0 | BT188: 0 | BU188: =BU186*BU$136 -> 0 | BV188: 0 | BW188: 0 | BX188: 0 | BY188: 0 | BZ188: 0 | CA188: 0 | CB188: 0 | CC188: 0 | CD188: 0 | CE188: 0 | CF188: 0 | CG188: 0 | CH188: 0 | CI188: 0 | CJ188: 0 | CK188: 0 | CL188: 0 | CM188: 0 | CN188: 0 | CO188: 0 | CP188: 0 | CQ188: 0 | CR188: 0 | CS188: 0 | CT188: 0 | CU188: 0 | CV188: 0 | CW188: 0 | CX188: 0 | CY188: 0 | CZ188: 0 | DA188: 0 | DB188: 0 | DC188: 0
D189: NPV of debt service =size of debt | E189: Euro 000's | F189: =F168 -> 0.0165 | G189: 1 | H189: =G189*(1+$F$189*H$136) -> 1 | I189: =H189*(1+$F$168*I$136) -> 1 | J189: 1.0165 | K189: 1.03327225 | L189: 1.050321242 | M189: 1.067651543 | N189: 1.085267793 | O189: 1.103174712 | P189: 1.121377094 | Q189: 1.139879816 | R189: 1.158687833 | S189: 1.177806183 | T189: 1.197239985 | U189: 1.216994444 | V189: 1.237074853 | W189: 1.257486588 | X189: 1.278235117 | Y189: 1.299325996 | Z189: 1.320764875 | AA189: 1.342557495 | AB189: 1.364709694 | AC189: 1.387227404 | AD189: 1.410116656 | AE189: 1.433383581 | AF189: 1.45703441 | AG189: 1.481075478 | AH189: 1.505513223 | AI189: 1.530354191 | AJ189: 1.555605036 | AK189: 1.581272519 | AL189: 1.607363515 | AM189: 1.633885013 | AN189: 1.660844116 | AO189: 1.688248044 | AP189: 1.716104137 | AQ189: 1.744419855 | AR189: 1.773202782 | AS189: 1.802460628 | AT189: 1.832201229 | AU189: 1.862432549 | AV189: 1.893162686 | AW189: 1.893162686 | AX189: 1.893162686 | AY189: 1.893162686 | AZ189: 1.893162686 | BA189: 1.893162686 | BB189: 1.893162686 | BC189: 1.893162686 | BD189: 1.893162686 | BE189: 1.893162686 | BF189: 1.893162686 | BG189: 1.893162686 | BH189: 1.893162686 | BI189: 1.893162686 | BJ189: 1.893162686 | BK189: 1.893162686 | BL189: 1.893162686 | BM189: 1.893162686 | BN189: 1.893162686 | BO189: 1.893162686 | BP189: 1.893162686 | BQ189: 1.893162686 | BR189: 1.893162686 | BS189: 1.893162686 | BT189: 1.893162686 | BU189: =BT189*(1+$F$168*BU$136) -> 1.893162686 | BV189: 1.893162686 | BW189: 1.893162686 | BX189: 1.893162686 | BY189: 1.893162686 | BZ189: 1.893162686 | CA189: 1.893162686 | CB189: 1.893162686 | CC189: 1.893162686 | CD189: 1.893162686 | CE189: 1.893162686 | CF189: 1.893162686 | CG189: 1.893162686 | CH189: 1.893162686 | CI189: 1.893162686 | CJ189: 1.893162686 | CK189: 1.893162686 | CL189: 1.893162686 | CM189: 1.893162686 | CN189: 1.893162686 | CO189: 1.893162686 | CP189: 1.893162686 | CQ189: 1.893162686 | CR189: 1.893162686 | CS189: 1.893162686 | CT189: 1.893162686 | CU189: 1.893162686 | CV189: 1.893162686 | CW189: 1.893162686 | CX189: 1.893162686 | CY189: 1.893162686 | CZ189: 1.893162686 | DA189: 1.893162686 | DB189: 1.893162686 | DC189: 1.893162686
D190: Size of Debt from P99 | E190: Euro 000's | F190: =SUMPRODUCT(H188:DC188/H189:DC189) -> 125193.3095 | G190: 3
D192: Opening Balance | H192: =G194 -> 125193.3095 | I192: =H194 -> 125193.3095 | J192: 125193.3095 | K192: 123542.2246 | L192: 121911.0418 | M192: 120131.464 | N192: 118370.6111 | O192: 116456.7939 | P192: 114531.2727 | Q192: 112476.7677 | R192: 110438.3943 | S192: 108237.4715 | T192: 106051.2648 | U192: 103697.4913 | V192: 101356.9324 | W192: 98843.62999 | X192: 96310.37019 | Y192: 93630.08562 | Z192: 90959.73129 | AA192: 88105.77307 | AB192: 85259.96257 | AC192: 82224.86228 | AD192: 79196.02564 | AE192: 75972.0326 | AF192: 72718.12912 | AG192: 69296.63625 | AH192: 65877.30778 | AI192: 62250.51451 | AJ192: 58623.67057 | AK192: 54782.91691 | AL192: 50939.77806 | AM192: 46876.07929 | AN192: 42770.5344 | AO192: 38473.95901 | AP192: 34169.94125 | AQ192: 29631.41029 | AR192: 25082.71372 | AS192: 20292.1968 | AT192: 15488.65091 | AU192: 10435.74433 | AV192: 5326.747382 | AW192: 1.809894457e-10 | AX192: 1.809894457e-10 | AY192: 1.809894457e-10 | AZ192: 1.809894457e-10 | BA192: 1.809894457e-10 | BB192: 1.809894457e-10 | BC192: 1.809894457e-10 | BD192: 1.809894457e-10 | BE192: 1.809894457e-10 | BF192: 1.809894457e-10 | BG192: 1.809894457e-10 | BH192: 1.809894457e-10 | BI192: 1.809894457e-10 | BJ192: 1.809894457e-10 | BK192: 1.809894457e-10 | BL192: 1.809894457e-10 | BM192: 1.809894457e-10 | BN192: 1.809894457e-10 | BO192: 1.809894457e-10 | BP192: 1.809894457e-10 | BQ192: 1.809894457e-10 | BR192: 1.809894457e-10 | BS192: 1.809894457e-10 | BT192: 1.809894457e-10 | BU192: =BT194 -> 1.809894457e-10 | BV192: 1.809894457e-10 | BW192: 1.809894457e-10 | BX192: 1.809894457e-10 | BY192: 1.809894457e-10 | BZ192: 1.809894457e-10 | CA192: 1.809894457e-10 | CB192: 1.809894457e-10 | CC192: 1.809894457e-10 | CD192: 1.809894457e-10 | CE192: 1.809894457e-10 | CF192: 1.809894457e-10 | CG192: 1.809894457e-10 | CH192: 1.809894457e-10 | CI192: 1.809894457e-10 | CJ192: 1.809894457e-10 | CK192: 1.809894457e-10 | CL192: 1.809894457e-10 | CM192: 1.809894457e-10 | CN192: 1.809894457e-10 | CO192: 1.809894457e-10 | CP192: 1.809894457e-10 | CQ192: 1.809894457e-10 | CR192: 1.809894457e-10 | CS192: 1.809894457e-10 | CT192: 1.809894457e-10 | CU192: 1.809894457e-10 | CV192: 1.809894457e-10 | CW192: 1.809894457e-10 | CX192: 1.809894457e-10 | CY192: 1.809894457e-10 | CZ192: 1.809894457e-10 | DA192: 1.809894457e-10 | DB192: 1.809894457e-10 | DC192: 1.809894457e-10
D193: Less Repayments | H193: =(H188-H195)*H$136 -> 0 | I193: =(I188-I195)*I$136 -> 0 | J193: 1651.084959 | K193: 1631.182736 | L193: 1779.577868 | M193: 1760.852875 | N193: 1913.817176 | O193: 1925.521262 | P193: 2054.504905 | Q193: 2038.373452 | R193: 2200.922816 | S193: 2186.206643 | T193: 2353.773579 | U193: 2340.558815 | V193: 2513.302452 | W193: 2533.259798 | X193: 2680.284566 | Y193: 2670.354332 | Z193: 2853.958222 | AA193: 2845.810504 | AB193: 3035.100281 | AC193: 3028.836647 | AD193: 3223.993034 | AE193: 3253.903481 | AF193: 3421.492875 | AG193: 3419.328471 | AH193: 3626.793268 | AI193: 3626.843939 | AJ193: 3840.753659 | AK193: 3843.138848 | AL193: 4063.698769 | AM193: 4105.544892 | AN193: 4296.575392 | AO193: 4304.017755 | AP193: 4538.530963 | AQ193: 4548.69657 | AR193: 4790.516917 | AS193: 4803.54589 | AT193: 5052.906588 | AU193: 5108.996945 | AV193: 5326.747382 | AW193: 0 | AX193: 0 | AY193: 0 | AZ193: 0 | BA193: 0 | BB193: 0 | BC193: 0 | BD193: 0 | BE193: 0 | BF193: 0 | BG193: 0 | BH193: 0 | BI193: 0 | BJ193: 0 | BK193: 0 | BL193: 0 | BM193: 0 | BN193: 0 | BO193: 0 | BP193: 0 | BQ193: 0 | BR193: 0 | BS193: 0 | BT193: 0 | BU193: =(BU188-BU195)*BU$136 -> 0 | BV193: 0 | BW193: 0 | BX193: 0 | BY193: 0 | BZ193: 0 | CA193: 0 | CB193: 0 | CC193: 0 | CD193: 0 | CE193: 0 | CF193: 0 | CG193: 0 | CH193: 0 | CI193: 0 | CJ193: 0 | CK193: 0 | CL193: 0 | CM193: 0 | CN193: 0 | CO193: 0 | CP193: 0 | CQ193: 0 | CR193: 0 | CS193: 0 | CT193: 0 | CU193: 0 | CV193: 0 | CW193: 0 | CX193: 0 | CY193: 0 | CZ193: 0 | DA193: 0 | DB193: 0 | DC193: 0
D194: Closing Balance | G194: =F190 -> 125193.3095 | H194: =H192-H193 -> 125193.3095 | I194: =I192-I193 -> 125193.3095 | J194: 123542.2246 | K194: 121911.0418 | L194: 120131.464 | M194: 118370.6111 | N194: 116456.7939 | O194: 114531.2727 | P194: 112476.7677 | Q194: 110438.3943 | R194: 108237.4715 | S194: 106051.2648 | T194: 103697.4913 | U194: 101356.9324 | V194: 98843.62999 | W194: 96310.37019 | X194: 93630.08562 | Y194: 90959.73129 | Z194: 88105.77307 | AA194: 85259.96257 | AB194: 82224.86228 | AC194: 79196.02564 | AD194: 75972.0326 | AE194: 72718.12912 | AF194: 69296.63625 | AG194: 65877.30778 | AH194: 62250.51451 | AI194: 58623.67057 | AJ194: 54782.91691 | AK194: 50939.77806 | AL194: 46876.07929 | AM194: 42770.5344 | AN194: 38473.95901 | AO194: 34169.94125 | AP194: 29631.41029 | AQ194: 25082.71372 | AR194: 20292.1968 | AS194: 15488.65091 | AT194: 10435.74433 | AU194: 5326.747382 | AV194: 1.809894457e-10 | AW194: 1.809894457e-10 | AX194: 1.809894457e-10 | AY194: 1.809894457e-10 | AZ194: 1.809894457e-10 | BA194: 1.809894457e-10 | BB194: 1.809894457e-10 | BC194: 1.809894457e-10 | BD194: 1.809894457e-10 | BE194: 1.809894457e-10 | BF194: 1.809894457e-10 | BG194: 1.809894457e-10 | BH194: 1.809894457e-10 | BI194: 1.809894457e-10 | BJ194: 1.809894457e-10 | BK194: 1.809894457e-10 | BL194: 1.809894457e-10 | BM194: 1.809894457e-10 | BN194: 1.809894457e-10 | BO194: 1.809894457e-10 | BP194: 1.809894457e-10 | BQ194: 1.809894457e-10 | BR194: 1.809894457e-10 | BS194: 1.809894457e-10 | BT194: 1.809894457e-10 | BU194: =BU192-BU193 -> 1.809894457e-10 | BV194: 1.809894457e-10 | BW194: 1.809894457e-10 | BX194: 1.809894457e-10 | BY194: 1.809894457e-10 | BZ194: 1.809894457e-10 | CA194: 1.809894457e-10 | CB194: 1.809894457e-10 | CC194: 1.809894457e-10 | CD194: 1.809894457e-10 | CE194: 1.809894457e-10 | CF194: 1.809894457e-10 | CG194: 1.809894457e-10 | CH194: 1.809894457e-10 | CI194: 1.809894457e-10 | CJ194: 1.809894457e-10 | CK194: 1.809894457e-10 | CL194: 1.809894457e-10 | CM194: 1.809894457e-10 | CN194: 1.809894457e-10 | CO194: 1.809894457e-10 | CP194: 1.809894457e-10 | CQ194: 1.809894457e-10 | CR194: 1.809894457e-10 | CS194: 1.809894457e-10 | CT194: 1.809894457e-10 | CU194: 1.809894457e-10 | CV194: 1.809894457e-10 | CW194: 1.809894457e-10 | CX194: 1.809894457e-10 | CY194: 1.809894457e-10 | CZ194: 1.809894457e-10 | DA194: 1.809894457e-10 | DB194: 1.809894457e-10 | DC194: 1.809894457e-10
D195: Interest | F195: =F189 -> 0.0165 | H195: =H192*$F$195*H$5 -> 0 | I195: 2065.689607 | J195: 2065.689607 | K195: 2038.446705 | L195: 2011.53219 | M195: 1982.169155 | N195: 1953.115083 | O195: 1921.5371 | P195: 1889.765999 | Q195: 1855.866668 | R195: 1822.233506 | S195: 1785.918279 | T195: 1749.84587 | U195: 1711.008606 | V195: 1672.389385 | W195: 1630.919895 | X195: 1589.121108 | Y195: 1544.896413 | Z195: 1500.835566 | AA195: 1453.745256 | AB195: 1406.789382 | AC195: 1356.710228 | AD195: 1306.734423 | AE195: 1253.538538 | AF195: 1199.849131 | AG195: 1143.394498 | AH195: 1086.975578 | AI195: 1027.133489 | AJ195: 967.2905644 | AK195: 903.918129 | AL195: 840.506338 | AM195: 773.4553084 | AN195: =AN192*$F$195*AN$5 -> 705.7138176 | AO195: 634.8203237 | AP195: 563.8040307 | AQ195: 488.9182698 | AR195: 413.8647764 | AS195: 334.8212473 | AT195: 255.5627401 | AU195: 172.1897814 | AV195: 87.89133181 | AW195: 2.986325853e-12 | AX195: 2.986325853e-12 | AY195: 2.986325853e-12 | AZ195: 2.986325853e-12 | BA195: 2.986325853e-12 | BB195: 2.986325853e-12 | BC195: 2.986325853e-12 | BD195: 2.986325853e-12 | BE195: 2.986325853e-12 | BF195: 2.986325853e-12 | BG195: 2.986325853e-12 | BH195: 2.986325853e-12 | BI195: 2.986325853e-12 | BJ195: 2.986325853e-12 | BK195: 2.986325853e-12 | BL195: 2.986325853e-12 | BM195: 2.986325853e-12 | BN195: 2.986325853e-12 | BO195: 2.986325853e-12 | BP195: 2.986325853e-12 | BQ195: 0 | BR195: 0 | BS195: 0 | BT195: =BT192*$F$195*BT$5 -> 0 | BU195: 0 | BV195: 0 | BW195: 0 | BX195: 0 | BY195: 0 | BZ195: 0 | CA195: 0 | CB195: 0 | CC195: 0 | CD195: 0 | CE195: 0 | CF195: 0 | CG195: 0 | CH195: 0 | CI195: 0 | CJ195: 0 | CK195: 0 | CL195: 0 | CM195: 0 | CN195: 0 | CO195: 0 | CP195: 0 | CQ195: 0 | CR195: 0 | CS195: 0 | CT195: 0 | CU195: 0 | CV195: 0 | CW195: 0 | CX195: 0 | CY195: 0 | CZ195: 0 | DA195: 0 | DB195: 0 | DC195: 0
D197: Min Debt from DSCR | F197: =MIN(F190,F169,F150) -> 115433.6166 | G197: =MATCH(F197,F:F,0) -> 169 | H197: =INDEX(G:G,$G$197) -> 2 | I197: =INDEX(D:D,$G$197) -> Size of Debt from P90
D199: P99/P50 | F199: =AVERAGE(I199:DC199) -> 0.6472283975 | I199: =IF(I145,I186/I145) -> 0.646461268 | J199: =IF(J145,J186/J145) -> 0.647883402 | K199: 0.646461268 | L199: 0.647883402 | M199: 0.646461268 | N199: 0.647883402 | O199: 0.6469418035 | P199: 0.647883402 | Q199: 0.646461268 | R199: 0.647883402 | S199: 0.646461268 | T199: 0.647883402 | U199: 0.646461268 | V199: 0.647883402 | W199: 0.6469418035 | X199: 0.647883402 | Y199: 0.646461268 | Z199: 0.647883402 | AA199: 0.646461268 | AB199: 0.647883402 | AC199: 0.646461268 | AD199: 0.647883402 | AE199: 0.6469418035 | AF199: 0.647883402 | AG199: 0.646461268 | AH199: 0.647883402 | AI199: 0.646461268 | AJ199: 0.647883402 | AK199: 0.646461268 | AL199: 0.647883402 | AM199: 0.6469418035 | AN199: 0.647883402 | AO199: 0.646461268 | AP199: 0.647883402 | AQ199: 0.646461268 | AR199: 0.647883402 | AS199: 0.646461268 | AT199: 0.647883402 | AU199: 0.6469418035 | AV199: 0.647883402 | AW199: 0.646461268 | AX199: 0.647883402 | AY199: 0.646461268 | AZ199: 0.647883402 | BA199: 0.646461268 | BB199: 0.647883402 | BC199: 0.6469418035 | BD199: 0.647883402 | BE199: 0.646461268 | BF199: 0.647883402 | BG199: 0.646461268 | BH199: 0.647883402 | BI199: 0.646461268 | BJ199: 0.647883402 | BK199: 0.6469418035 | BL199: 0.647883402 | BM199: 0.646461268 | BN199: 0.647883402 | BO199: 0.646461268 | BP199: 0.647883402 | BQ199: FALSE | BR199: FALSE | BS199: FALSE | BT199: FALSE | BU199: FALSE | BV199: =IF(BV145,BV186/BV145) -> FALSE | BW199: FALSE | BX199: FALSE | BY199: FALSE | BZ199: FALSE | CA199: FALSE | CB199: FALSE | CC199: FALSE | CD199: FALSE | CE199: FALSE | CF199: FALSE | CG199: FALSE | CH199: FALSE | CI199: FALSE | CJ199: FALSE | CK199: FALSE | CL199: FALSE | CM199: FALSE | CN199: FALSE | CO199: FALSE | CP199: FALSE | CQ199: FALSE | CR199: FALSE | CS199: FALSE | CT199: FALSE | CU199: FALSE | CV199: FALSE | CW199: FALSE | CX199: FALSE | CY199: FALSE | CZ199: FALSE | DA199: FALSE | DB199: FALSE | DC199: FALSE
D200: P50/P99 EBITDA | I200: =I163/I184 -> 1.245613063 | J200: =J163/J184 -> 1.244088104 | K200: 1.245613063 | L200: 1.244088104 | M200: 1.245613063 | N200: 1.244088104 | O200: 1.245097033 | P200: 1.244088104 | Q200: 1.245613063 | R200: 1.244088104 | S200: 1.245613063 | T200: 1.244088104 | U200: 1.245613063 | V200: 1.244088104 | W200: 1.245097033 | X200: 1.244088104 | Y200: 1.245613063 | Z200: 1.244088104 | AA200: 1.245613063 | AB200: 1.244088104 | AC200: 1.245613063 | AD200: 1.244088104 | AE200: 1.245097033 | AF200: 1.244088104 | AG200: 1.245613063 | AH200: 1.244088104 | AI200: 1.245613063 | AJ200: 1.244088104 | AK200: 1.245613063 | AL200: 1.244088104 | AM200: 1.245097033 | AN200: 1.244088104 | AO200: 1.245613063 | AP200: 1.244088104 | AQ200: 1.245613063 | AR200: 1.244088104 | AS200: 1.245613063 | AT200: 1.244088104 | AU200: 1.245097033 | AV200: 1.244088104 | AW200: 1.245613063 | AX200: 1.244088104 | AY200: 1.245613063 | AZ200: 1.244088104 | BA200: 1.245613063 | BB200: 1.244088104 | BC200: 1.245097033 | BD200: 1.244088104 | BE200: 1.245613063 | BF200: 1.244088104 | BG200: 1.245613063 | BH200: 1.244088104 | BI200: 1.245613063 | BJ200: 1.244088104 | BK200: 1.245097033 | BL200: 1.244088104 | BM200: 1.245613063 | BN200: 1.244088104 | BO200: 1.245613063 | BP200: 1.244088104 | BV200: =BV163/BV184 -> 
A202: Project Finance
B203: Uses and Sources Summary
C204: Uses of Funds
D205: EPC Cost | H205: =F99 -> 168000
D206: Development Cost | H206: =F100 -> 5040
D207: Owners Cost | H207: =F101 -> 5520
D208: Fees | H208: =H212*F77 -> 2193.238715
D209: Total Cost | H209: =SUM(H205:H208) -> 180753.2387
C211: Sources of Funds | K211: DSCR Min | L211: Debt/Cap | M211: Max Debt/Cap
D212: Debt | G212: =H212/H209 -> 0.6386254398 | H212: =MIN(K212,M212) -> 115433.6166 | K212: =F197 -> 115433.6166 | L212: =F61 -> 0.93 | M212: =SUM(H205:H207)/(1/L212-F77) -> 169047.876 | O212: =MATCH(H212,K212:M212,0) -> 1 | P212: =CHOOSE(O212,K211&" "&I197,,M211) -> DSCR Min Size of Debt from P90
D213: Equity | G213: =H213/H209 -> 0.3613745602 | H213: =H209-H212 -> 65319.62215
D214: Total Sources | H214: =SUM(H212:H213) -> 180753.2387
A216: Debt Repayment, Interest and Schedule
B217: PV of CFADS over Loan Life
D218: Debt Repayment Switch | H218: =H136 -> FALSE | I218: FALSE | J218: TRUE | K218: TRUE | L218: TRUE | M218: TRUE | N218: TRUE | O218: TRUE | P218: TRUE | Q218: TRUE | R218: TRUE | S218: TRUE | T218: TRUE | U218: TRUE | V218: TRUE | W218: TRUE | X218: TRUE | Y218: TRUE | Z218: TRUE | AA218: TRUE | AB218: TRUE | AC218: TRUE | AD218: TRUE | AE218: TRUE | AF218: TRUE | AG218: TRUE | AH218: TRUE | AI218: TRUE | AJ218: TRUE | AK218: TRUE | AL218: TRUE | AM218: TRUE | AN218: TRUE | AO218: TRUE | AP218: TRUE | AQ218: TRUE | AR218: TRUE | AS218: TRUE | AT218: TRUE | AU218: TRUE | AV218: TRUE | AW218: FALSE | AX218: FALSE | AY218: FALSE | AZ218: FALSE | BA218: FALSE | BB218: FALSE | BC218: FALSE | BD218: FALSE | BE218: FALSE | BF218: FALSE | BG218: FALSE | BH218: FALSE | BI218: FALSE | BJ218: FALSE | BK218: FALSE | BL218: FALSE | BM218: FALSE | BN218: FALSE | BO218: FALSE | BP218: FALSE | BQ218: FALSE | BR218: FALSE | BS218: FALSE | BT218: =BT136 -> FALSE | BU218: FALSE | BV218: FALSE | BW218: FALSE | BX218: FALSE | BY218: FALSE | BZ218: FALSE | CA218: FALSE | CB218: FALSE | CC218: FALSE | CD218: FALSE | CE218: FALSE | CF218: FALSE | CG218: FALSE | CH218: FALSE | CI218: FALSE | CJ218: FALSE | CK218: FALSE | CL218: FALSE | CM218: FALSE | CN218: FALSE | CO218: FALSE | CP218: FALSE | CQ218: FALSE | CR218: FALSE | CS218: FALSE | CT218: FALSE | CU218: FALSE | CV218: FALSE | CW218: FALSE | CX218: FALSE | CY218: FALSE | CZ218: FALSE | DA218: FALSE | DB218: FALSE | DC218: FALSE
D220: P50 CFADS over Loan Life | H220: =H145*H218 -> 0 | I220: 0 | J220: 5736.795471 | K220: 5676.487708 | L220: 5851.531381 | M220: 5790.017462 | N220: 5968.562008 | O220: 5946.529257 | P220: 6087.933249 | Q220: 6023.934167 | R220: 6209.691914 | S220: 6144.412851 | T220: 6333.885752 | U220: 6267.301108 | V220: 6460.563467 | W220: 6436.714508 | X220: 6589.774736 | Y220: 6520.500072 | Z220: 6721.570231 | AA220: 6650.910074 | AB220: 6856.001636 | AC220: 6783.928275 | AD220: 6993.121668 | AE220: 6967.306788 | AF220: 7132.984102 | AG220: 7057.998978 | AH220: 7275.643784 | AI220: 7199.158957 | AJ220: 7421.156659 | AK220: 7343.142136 | AL220: 7569.579793 | AM220: 7541.636936 | AN220: 7720.971388 | AO220: 7639.805079 | AP220: 7875.390816 | AQ220: 7792.60118 | AR220: 8032.898633 | AS220: 7948.453204 | AT220: 8193.556605 | AU220: 8163.310359 | AV220: 8357.427737 | AW220: 0 | AX220: 0 | AY220: 0 | AZ220: 0 | BA220: 0 | BB220: 0 | BC220: 0 | BD220: 0 | BE220: 0 | BF220: 0 | BG220: 0 | BH220: 0 | BI220: 0 | BJ220: 0 | BK220: 0 | BL220: 0 | BM220: 0 | BN220: 0 | BO220: 0 | BP220: 0 | BQ220: 0 | BR220: 0 | BS220: 0 | BT220: =BT145*BT218 -> 0 | BU220: 0 | BV220: 0 | BW220: 0 | BX220: 0 | BY220: 0 | BZ220: 0 | CA220: 0 | CB220: 0 | CC220: 0 | CD220: 0 | CE220: 0 | CF220: 0 | CG220: 0 | CH220: 0 | CI220: 0 | CJ220: 0 | CK220: 0 | CL220: 0 | CM220: 0 | CN220: 0 | CO220: 0 | CP220: 0 | CQ220: 0 | CR220: 0 | CS220: 0 | CT220: 0 | CU220: 0 | CV220: 0 | CW220: 0 | CX220: 0 | CY220: 0 | CZ220: 0 | DA220: 0 | DB220: 0 | DC220: 0
D221: P90 CFADS over Loan Life | H221: =H185*H218 -> 0 | I221: =I185*I218 -> 0 | J221: 3716.774566 | K221: 3669.629441 | L221: 3791.110058 | M221: 3743.02203 | N221: 3866.932259 | O221: 3847.058362 | P221: 3944.270904 | Q221: 3894.24012 | R221: 4023.156322 | S221: 3972.124923 | T221: 4103.619449 | U221: 4051.567421 | V221: 4185.691838 | W221: 4164.179692 | X221: 4269.405674 | Y221: 4215.250745 | Z221: 4354.793788 | AA221: 4299.55576 | AB221: 4441.889664 | AC221: 4385.546875 | AD221: 4530.727457 | AE221: 4507.442019 | AF221: 4621.342006 | AG221: 4562.722969 | AH221: 4713.768846 | AI221: 4653.977428 | AJ221: 4808.044223 | AK221: 4747.056977 | AL221: 4904.205107 | AM221: 4879.000201 | AN221: 5002.28921 | AO221: 4938.838079 | AP221: 5102.334994 | AQ221: 5037.61484 | AR221: 5204.381694 | AS221: 5138.367137 | AT221: 5308.469328 | AU221: 5281.186726 | AV221: 5414.638714 | AW221: 0 | AX221: 0 | AY221: 0 | AZ221: 0 | BA221: 0 | BB221: 0 | BC221: 0 | BD221: 0 | BE221: 0 | BF221: 0 | BG221: 0 | BH221: 0 | BI221: 0 | BJ221: 0 | BK221: 0 | BL221: 0 | BM221: 0 | BN221: 0 | BO221: 0 | BP221: 0 | BQ221: 0 | BR221: 0 | BS221: 0 | BT221: 0 | BU221: =BU185*BU218 -> 0 | BV221: 0 | BW221: 0 | BX221: 0 | BY221: 0 | BZ221: 0 | CA221: 0 | CB221: 0 | CC221: 0 | CD221: 0 | CE221: 0 | CF221: 0 | CG221: 0 | CH221: 0 | CI221: 0 | CJ221: 0 | CK221: 0 | CL221: 0 | CM221: 0 | CN221: 0 | CO221: 0 | CP221: 0 | CQ221: 0 | CR221: 0 | CS221: 0 | CT221: 0 | CU221: 0 | CV221: 0 | CW221: 0 | CX221: 0 | CY221: 0 | CZ221: 0 | DA221: 0 | DB221: 0 | DC221: 0
D222: P99 CFADS over Loan Life | H222: =H185*H218 -> 0 | I222: =I185*I218 -> 0 | J222: 3716.774566 | K222: 3669.629441 | L222: 3791.110058 | M222: 3743.02203 | N222: 3866.932259 | O222: 3847.058362 | P222: 3944.270904 | Q222: 3894.24012 | R222: 4023.156322 | S222: 3972.124923 | T222: 4103.619449 | U222: 4051.567421 | V222: 4185.691838 | W222: 4164.179692 | X222: 4269.405674 | Y222: 4215.250745 | Z222: 4354.793788 | AA222: 4299.55576 | AB222: 4441.889664 | AC222: 4385.546875 | AD222: 4530.727457 | AE222: 4507.442019 | AF222: 4621.342006 | AG222: 4562.722969 | AH222: 4713.768846 | AI222: 4653.977428 | AJ222: 4808.044223 | AK222: 4747.056977 | AL222: 4904.205107 | AM222: 4879.000201 | AN222: 5002.28921 | AO222: 4938.838079 | AP222: 5102.334994 | AQ222: 5037.61484 | AR222: 5204.381694 | AS222: 5138.367137 | AT222: 5308.469328 | AU222: 5281.186726 | AV222: 5414.638714 | AW222: 0 | AX222: 0 | AY222: 0 | AZ222: 0 | BA222: 0 | BB222: 0 | BC222: 0 | BD222: 0 | BE222: 0 | BF222: 0 | BG222: 0 | BH222: 0 | BI222: 0 | BJ222: 0 | BK222: 0 | BL222: 0 | BM222: 0 | BN222: 0 | BO222: 0 | BP222: 0 | BQ222: 0 | BR222: 0 | BS222: 0 | BT222: 0 | BU222: =BU185*BU218 -> 0 | BV222: 0 | BW222: 0 | BX222: 0 | BY222: 0 | BZ222: 0 | CA222: 0 | CB222: 0 | CC222: 0 | CD222: 0 | CE222: 0 | CF222: 0 | CG222: 0 | CH222: 0 | CI222: 0 | CJ222: 0 | CK222: 0 | CL222: 0 | CM222: 0 | CN222: 0 | CO222: 0 | CP222: 0 | CQ222: 0 | CR222: 0 | CS222: 0 | CT222: 0 | CU222: 0 | CV222: 0 | CW222: 0 | CX222: 0 | CY222: 0 | CZ222: 0 | DA222: 0 | DB222: 0 | DC222: 0
D223: Applied CFADS | F223: =F21 -> 1 | H223: =INDEX(H220:H222,$F$223) -> 0 | I223: =INDEX(I220:I222,$F$223) -> 0 | J223: 5736.795471 | K223: 5676.487708 | L223: 5851.531381 | M223: 5790.017462 | N223: 5968.562008 | O223: 5946.529257 | P223: 6087.933249 | Q223: 6023.934167 | R223: 6209.691914 | S223: 6144.412851 | T223: 6333.885752 | U223: 6267.301108 | V223: 6460.563467 | W223: 6436.714508 | X223: 6589.774736 | Y223: 6520.500072 | Z223: 6721.570231 | AA223: 6650.910074 | AB223: 6856.001636 | AC223: 6783.928275 | AD223: 6993.121668 | AE223: 6967.306788 | AF223: 7132.984102 | AG223: 7057.998978 | AH223: 7275.643784 | AI223: 7199.158957 | AJ223: 7421.156659 | AK223: 7343.142136 | AL223: 7569.579793 | AM223: 7541.636936 | AN223: 7720.971388 | AO223: 7639.805079 | AP223: 7875.390816 | AQ223: 7792.60118 | AR223: 8032.898633 | AS223: 7948.453204 | AT223: 8193.556605 | AU223: 8163.310359 | AV223: 8357.427737 | AW223: 0 | AX223: 0 | AY223: 0 | AZ223: 0 | BA223: 0 | BB223: 0 | BC223: 0 | BD223: 0 | BE223: 0 | BF223: 0 | BG223: 0 | BH223: 0 | BI223: 0 | BJ223: 0 | BK223: 0 | BL223: 0 | BM223: 0 | BN223: 0 | BO223: 0 | BP223: 0 | BQ223: 0 | BR223: 0 | BS223: 0 | BT223: 0 | BU223: =INDEX(BU220:BU222,$F$223) -> 0 | BV223: 0 | BW223: 0 | BX223: 0 | BY223: 0 | BZ223: 0 | CA223: 0 | CB223: 0 | CC223: 0 | CD223: 0 | CE223: 0 | CF223: 0 | CG223: 0 | CH223: 0 | CI223: 0 | CJ223: 0 | CK223: 0 | CL223: 0 | CM223: 0 | CN223: 0 | CO223: 0 | CP223: 0 | CQ223: 0 | CR223: 0 | CS223: 0 | CT223: 0 | CU223: 0 | CV223: 0 | CW223: 0 | CX223: 0 | CY223: 0 | CZ223: 0 | DA223: 0 | DB223: 0 | DC223: 0
D225: Compound Factor | H225: =H189 -> 1 | I225: 1 | J225: 1.0165 | K225: 1.03327225 | L225: 1.050321242 | M225: 1.067651543 | N225: 1.085267793 | O225: 1.103174712 | P225: 1.121377094 | Q225: 1.139879816 | R225: 1.158687833 | S225: 1.177806183 | T225: 1.197239985 | U225: 1.216994444 | V225: 1.237074853 | W225: 1.257486588 | X225: 1.278235117 | Y225: 1.299325996 | Z225: 1.320764875 | AA225: 1.342557495 | AB225: 1.364709694 | AC225: 1.387227404 | AD225: 1.410116656 | AE225: 1.433383581 | AF225: 1.45703441 | AG225: 1.481075478 | AH225: 1.505513223 | AI225: 1.530354191 | AJ225: 1.555605036 | AK225: 1.581272519 | AL225: 1.607363515 | AM225: 1.633885013 | AN225: 1.660844116 | AO225: 1.688248044 | AP225: 1.716104137 | AQ225: 1.744419855 | AR225: 1.773202782 | AS225: 1.802460628 | AT225: 1.832201229 | AU225: 1.862432549 | AV225: 1.893162686 | AW225: 1.893162686 | AX225: 1.893162686 | AY225: 1.893162686 | AZ225: 1.893162686 | BA225: 1.893162686 | BB225: 1.893162686 | BC225: 1.893162686 | BD225: 1.893162686 | BE225: 1.893162686 | BF225: 1.893162686 | BG225: 1.893162686 | BH225: 1.893162686 | BI225: 1.893162686 | BJ225: 1.893162686 | BK225: 1.893162686 | BL225: 1.893162686 | BM225: 1.893162686 | BN225: 1.893162686 | BO225: 1.893162686 | BP225: 1.893162686 | BQ225: 1.893162686 | BR225: 1.893162686 | BS225: 1.893162686 | BT225: =BT189 -> 1.893162686 | BU225: 1.893162686 | BV225: 1.893162686 | BW225: 1.893162686 | BX225: 1.893162686 | BY225: 1.893162686 | BZ225: 1.893162686 | CA225: 1.893162686 | CB225: 1.893162686 | CC225: 1.893162686 | CD225: 1.893162686 | CE225: 1.893162686 | CF225: 1.893162686 | CG225: 1.893162686 | CH225: 1.893162686 | CI225: 1.893162686 | CJ225: 1.893162686 | CK225: 1.893162686 | CL225: 1.893162686 | CM225: 1.893162686 | CN225: 1.893162686 | CO225: 1.893162686 | CP225: 1.893162686 | CQ225: 1.893162686 | CR225: 1.893162686 | CS225: 1.893162686 | CT225: 1.893162686 | CU225: 1.893162686 | CV225: 1.893162686 | CW225: 1.893162686 | CX225: 1.893162686 | CY225: 1.893162686 | CZ225: 1.893162686 | DA225: 1.893162686 | DB225: 1.893162686 | DC225: 1.893162686
D226: PV of CFADS from Applied Cash Flow | F226: =SUMPRODUCT(H223:DC223/H225:DC225) -> 193421.0783
D227: Debt Applied in Sources and Uses | F227: =H212 -> 115433.6166
D228: LLCR for Sculpting | F228: =F226/F227 -> 1.675604422
D230: Tailored Repayment in Max Debt to Capital Case
D231: Minimum DSCR | F231: =F223 -> 1 | G231: =CHOOSE(F231,F57,F58,F59) -> 1.35
D232: Debt Life Target
D233: Non-Constant Curved DSCR
D235: Total Debt Service | F235: =F228 -> 1.675604422 | H235: =H223/$F$235 -> 0 | I235: 0 | J235: 3423.717076 | K235: 3387.725428 | L235: 3492.191417 | M235: 3455.479937 | N235: 3562.035246 | O235: 3548.886109 | P235: 3633.275951 | Q235: 3595.081326 | R235: 3705.94147 | S235: 3666.982953 | T235: 3780.060299 | U235: 3740.322612 | V235: 3855.661505 | W235: 3841.428456 | X235: 3932.774735 | Y235: 3891.431645 | Z235: 4011.43023 | AA235: 3969.260278 | AB235: 4091.658834 | AC235: 4048.645484 | AD235: 4173.492011 | AE235: 4158.085702 | AF235: 4256.961851 | AG235: 4212.210761 | AH235: 4342.101088 | AI235: 4296.454977 | AJ235: 4428.94311 | AK235: 4382.384076 | AL235: 4517.521972 | AM235: 4500.845687 | AN235: 4607.872412 | AO235: 4559.432393 | AP235: 4700.02986 | AQ235: 4650.621041 | AR235: 4794.030457 | AS235: 4743.633462 | AT235: 4889.911066 | AU235: 4871.860119 | AV235: 4987.709288 | AW235: 0 | AX235: 0 | AY235: 0 | AZ235: 0 | BA235: 0 | BB235: 0 | BC235: 0 | BD235: 0 | BE235: 0 | BF235: 0 | BG235: 0 | BH235: 0 | BI235: 0 | BJ235: 0 | BK235: 0 | BL235: 0 | BM235: 0 | BN235: 0 | BO235: 0 | BP235: 0 | BQ235: 0 | BR235: 0 | BS235: 0 | BT235: =BT223/$F$235 -> 0 | BU235: 0 | BV235: 0 | BW235: 0 | BX235: 0 | BY235: 0 | BZ235: 0 | CA235: 0 | CB235: 0 | CC235: 0 | CD235: 0 | CE235: 0 | CF235: 0 | CG235: 0 | CH235: 0 | CI235: 0 | CJ235: 0 | CK235: 0 | CL235: 0 | CM235: 0 | CN235: 0 | CO235: 0 | CP235: 0 | CQ235: 0 | CR235: 0 | CS235: 0 | CT235: 0 | CU235: 0 | CV235: 0 | CW235: 0 | CX235: 0 | CY235: 0 | CZ235: 0 | DA235: 0 | DB235: 0 | DC235: 0
C237: Debt Schedule
D238: Opening Balance | H238: =G241 -> 0 | I238: =H241 -> 115433.6166 | J238: 115433.6166 | K238: 113914.5542 | L238: 112406.4189 | M238: 110768.9334 | N238: 109141.1408 | O238: 107379.9344 | P238: 105602.8172 | Q238: 103711.9878 | R238: 101828.1542 | S238: 99802.3773 | T238: 97782.13358 | U238: 95615.47848 | V238: 93452.81126 | W238: 91139.12115 | X238: 88801.48819 | Y238: 86333.93801 | Z238: 83867.01634 | AA238: 81239.39188 | AB238: 78610.58157 | AC238: 75815.99733 | AD238: 73018.3158 | AE238: 70049.626 | AF238: 67047.35913 | AG238: 63896.6787 | AH238: 60738.76314 | AI238: 57398.85164 | AJ238: 54049.47772 | AK238: 50512.35099 | AL238: 46963.4207 | AM238: 43220.79517 | AN238: 39433.09261 | AO238: 35475.86622 | AP238: 31501.78562 | AQ238: 27321.53523 | AR238: 23121.71952 | AS238: 18709.19743 | AT238: 14274.26573 | AU238: 9619.880045 | AV238: 4906.747947 | AW238: 2.228262019e-10 | AX238: 2.228262019e-10 | AY238: 2.228262019e-10 | AZ238: 2.228262019e-10 | BA238: 2.228262019e-10 | BB238: 2.228262019e-10 | BC238: 2.228262019e-10 | BD238: 2.228262019e-10 | BE238: 2.228262019e-10 | BF238: 2.228262019e-10 | BG238: 2.228262019e-10 | BH238: 2.228262019e-10 | BI238: 2.228262019e-10 | BJ238: 2.228262019e-10 | BK238: 2.228262019e-10 | BL238: 2.228262019e-10 | BM238: 2.228262019e-10 | BN238: 2.228262019e-10 | BO238: 2.228262019e-10 | BP238: 2.228262019e-10 | BQ238: 2.228262019e-10 | BR238: 2.228262019e-10 | BS238: 2.228262019e-10 | BT238: 2.228262019e-10 | BU238: =BT241 -> 2.228262019e-10 | BV238: 2.228262019e-10 | BW238: 2.228262019e-10 | BX238: 2.228262019e-10 | BY238: 2.228262019e-10 | BZ238: 2.228262019e-10 | CA238: 2.228262019e-10 | CB238: 2.228262019e-10 | CC238: 2.228262019e-10 | CD238: 2.228262019e-10 | CE238: 2.228262019e-10 | CF238: 2.228262019e-10 | CG238: 2.228262019e-10 | CH238: 2.228262019e-10 | CI238: 2.228262019e-10 | CJ238: 2.228262019e-10 | CK238: 2.228262019e-10 | CL238: 2.228262019e-10 | CM238: 2.228262019e-10 | CN238: 2.228262019e-10 | CO238: 2.228262019e-10 | CP238: 2.228262019e-10 | CQ238: 2.228262019e-10 | CR238: 2.228262019e-10 | CS238: 2.228262019e-10 | CT238: 2.228262019e-10 | CU238: 2.228262019e-10 | CV238: 2.228262019e-10 | CW238: 2.228262019e-10 | CX238: 2.228262019e-10 | CY238: 2.228262019e-10 | CZ238: 2.228262019e-10 | DA238: 2.228262019e-10 | DB238: 2.228262019e-10 | DC238: 2.228262019e-10
D239: Add: Debt Issue | F239: =H212 -> 115433.6166 | H239: =$F$239*H4 -> 115433.6166 | I239: 0 | J239: 0 | K239: 0 | L239: 0 | M239: 0 | N239: 0 | O239: 0 | P239: 0 | Q239: 0 | R239: 0 | S239: 0 | T239: 0 | U239: 0 | V239: 0 | W239: 0 | X239: 0 | Y239: 0 | Z239: 0 | AA239: 0 | AB239: 0 | AC239: 0 | AD239: 0 | AE239: 0 | AF239: 0 | AG239: 0 | AH239: 0 | AI239: 0 | AJ239: 0 | AK239: 0 | AL239: 0 | AM239: 0 | AN239: =$F$239*AN4 -> 0 | AO239: 0 | AP239: 0 | AQ239: 0 | AR239: 0 | AS239: 0 | AT239: 0 | AU239: 0 | AV239: 0 | AW239: 0 | AX239: 0 | AY239: 0 | AZ239: 0 | BA239: 0 | BB239: 0 | BC239: 0 | BD239: 0 | BE239: 0 | BF239: 0 | BG239: 0 | BH239: 0 | BI239: 0 | BJ239: 0 | BK239: 0 | BL239: 0 | BM239: 0 | BN239: 0 | BO239: 0 | BP239: 0 | BQ239: 0 | BR239: 0 | BS239: 0 | BT239: =$F$239*BT4 -> 0 | BU239: 0 | BV239: 0 | BW239: 0 | BX239: 0 | BY239: 0 | BZ239: 0 | CA239: 0 | CB239: 0 | CC239: 0 | CD239: 0 | CE239: 0 | CF239: 0 | CG239: 0 | CH239: 0 | CI239: 0 | CJ239: 0 | CK239: 0 | CL239: 0 | CM239: 0 | CN239: 0 | CO239: 0 | CP239: 0 | CQ239: 0 | CR239: 0 | CS239: 0 | CT239: 0 | CU239: 0 | CV239: 0 | CW239: 0 | CX239: 0 | CY239: 0 | CZ239: 0 | DA239: 0 | DB239: 0 | DC239: 0
D240: Less: Debt Repayment | H240: =(H235-H242)*H218 -> 0 | I240: 0 | J240: 1519.062403 | K240: 1508.135285 | L240: 1637.485506 | M240: 1627.792536 | N240: 1761.206422 | O240: 1777.117191 | P240: 1890.829466 | Q240: 1883.833528 | R240: 2025.776925 | S240: 2020.243727 | T240: 2166.655095 | U240: 2162.667217 | V240: 2313.690119 | W240: 2337.632958 | X240: 2467.55018 | Y240: 2466.921668 | Z240: 2627.62446 | AA240: 2628.810312 | AB240: 2794.584239 | AC240: 2797.681528 | AD240: 2968.6898 | AE240: 3002.266873 | AF240: 3150.680426 | AG240: 3157.915563 | AH240: 3339.911497 | AI240: 3349.373925 | AJ240: 3537.126728 | AK240: 3548.930285 | AL240: 3742.625531 | AM240: 3787.702567 | AN240: 3957.226384 | AO240: 3974.0806 | AP240: 4180.250397 | AQ240: 4199.81571 | AR240: 4412.522085 | AS240: 4434.931704 | AT240: 4654.385682 | AU240: 4713.132099 | AV240: 4906.747947 | AW240: 0 | AX240: 0 | AY240: 0 | AZ240: 0 | BA240: 0 | BB240: 0 | BC240: 0 | BD240: 0 | BE240: 0 | BF240: 0 | BG240: 0 | BH240: 0 | BI240: 0 | BJ240: 0 | BK240: 0 | BL240: 0 | BM240: 0 | BN240: 0 | BO240: 0 | BP240: 0 | BQ240: 0 | BR240: 0 | BS240: 0 | BT240: =(BT235-BT242)*BT218 -> 0 | BU240: 0 | BV240: 0 | BW240: 0 | BX240: 0 | BY240: 0 | BZ240: 0 | CA240: 0 | CB240: 0 | CC240: 0 | CD240: 0 | CE240: 0 | CF240: 0 | CG240: 0 | CH240: 0 | CI240: 0 | CJ240: 0 | CK240: 0 | CL240: 0 | CM240: 0 | CN240: 0 | CO240: 0 | CP240: 0 | CQ240: 0 | CR240: 0 | CS240: 0 | CT240: 0 | CU240: 0 | CV240: 0 | CW240: 0 | CX240: 0 | CY240: 0 | CZ240: 0 | DA240: 0 | DB240: 0 | DC240: 0
D241: Closing Balance | H241: =H238+H239-H240 -> 115433.6166 | I241: =I238+I239-I240 -> 115433.6166 | J241: 113914.5542 | K241: 112406.4189 | L241: 110768.9334 | M241: 109141.1408 | N241: 107379.9344 | O241: 105602.8172 | P241: 103711.9878 | Q241: 101828.1542 | R241: 99802.3773 | S241: 97782.13358 | T241: 95615.47848 | U241: 93452.81126 | V241: 91139.12115 | W241: 88801.48819 | X241: 86333.93801 | Y241: 83867.01634 | Z241: 81239.39188 | AA241: 78610.58157 | AB241: 75815.99733 | AC241: 73018.3158 | AD241: 70049.626 | AE241: 67047.35913 | AF241: 63896.6787 | AG241: 60738.76314 | AH241: 57398.85164 | AI241: 54049.47772 | AJ241: 50512.35099 | AK241: 46963.4207 | AL241: 43220.79517 | AM241: 39433.09261 | AN241: 35475.86622 | AO241: 31501.78562 | AP241: 27321.53523 | AQ241: 23121.71952 | AR241: 18709.19743 | AS241: 14274.26573 | AT241: 9619.880045 | AU241: 4906.747947 | AV241: 2.228262019e-10 | AW241: 2.228262019e-10 | AX241: 2.228262019e-10 | AY241: 2.228262019e-10 | AZ241: 2.228262019e-10 | BA241: 2.228262019e-10 | BB241: 2.228262019e-10 | BC241: 2.228262019e-10 | BD241: 2.228262019e-10 | BE241: 2.228262019e-10 | BF241: 2.228262019e-10 | BG241: 2.228262019e-10 | BH241: 2.228262019e-10 | BI241: 2.228262019e-10 | BJ241: 2.228262019e-10 | BK241: 2.228262019e-10 | BL241: 2.228262019e-10 | BM241: 2.228262019e-10 | BN241: 2.228262019e-10 | BO241: 2.228262019e-10 | BP241: 2.228262019e-10 | BQ241: 2.228262019e-10 | BR241: 2.228262019e-10 | BS241: 2.228262019e-10 | BT241: 2.228262019e-10 | BU241: =BU238+BU239-BU240 -> 2.228262019e-10 | BV241: 2.228262019e-10 | BW241: 2.228262019e-10 | BX241: 2.228262019e-10 | BY241: 2.228262019e-10 | BZ241: 2.228262019e-10 | CA241: 2.228262019e-10 | CB241: 2.228262019e-10 | CC241: 2.228262019e-10 | CD241: 2.228262019e-10 | CE241: 2.228262019e-10 | CF241: 2.228262019e-10 | CG241: 2.228262019e-10 | CH241: 2.228262019e-10 | CI241: 2.228262019e-10 | CJ241: 2.228262019e-10 | CK241: 2.228262019e-10 | CL241: 2.228262019e-10 | CM241: 2.228262019e-10 | CN241: 2.228262019e-10 | CO241: 2.228262019e-10 | CP241: 2.228262019e-10 | CQ241: 2.228262019e-10 | CR241: 2.228262019e-10 | CS241: 2.228262019e-10 | CT241: 2.228262019e-10 | CU241: 2.228262019e-10 | CV241: 2.228262019e-10 | CW241: 2.228262019e-10 | CX241: 2.228262019e-10 | CY241: 2.228262019e-10 | CZ241: 2.228262019e-10 | DA241: 2.228262019e-10 | DB241: 2.228262019e-10 | DC241: 2.228262019e-10
D242: Intrest Expense | F242: =F195 -> 0.0165 | H242: =H238*$F$242 -> 0 | I242: 1904.654673 | J242: 1904.654673 | K242: 1879.590144 | L242: 1854.705911 | M242: 1827.687401 | N242: 1800.828824 | O242: 1771.768918 | P242: 1742.446484 | Q242: 1711.247798 | R242: 1680.164545 | S242: 1646.739226 | T242: 1613.405204 | U242: 1577.655395 | V242: 1541.971386 | W242: 1503.795499 | X242: 1465.224555 | Y242: 1424.509977 | Z242: 1383.80577 | AA242: 1340.449966 | AB242: 1297.074596 | AC242: 1250.963956 | AD242: 1204.802211 | AE242: 1155.818829 | AF242: 1106.281426 | AG242: 1054.295199 | AH242: 1002.189592 | AI242: 947.0810521 | AJ242: 891.8163823 | AK242: 833.4537913 | AL242: 774.8964416 | AM242: 713.1431204 | AN242: 650.646028 | AO242: 585.3517927 | AP242: 519.7794628 | AQ242: 450.8053312 | AR242: 381.508372 | AS242: 308.7017576 | AT242: 235.5253845 | AU242: 158.7280207 | AV242: 80.96134112 | AW242: 3.676632332e-12 | AX242: 3.676632332e-12 | AY242: 3.676632332e-12 | AZ242: 3.676632332e-12 | BA242: 3.676632332e-12 | BB242: 3.676632332e-12 | BC242: 3.676632332e-12 | BD242: 3.676632332e-12 | BE242: 3.676632332e-12 | BF242: 3.676632332e-12 | BG242: 3.676632332e-12 | BH242: 3.676632332e-12 | BI242: 3.676632332e-12 | BJ242: 3.676632332e-12 | BK242: 3.676632332e-12 | BL242: 3.676632332e-12 | BM242: 3.676632332e-12 | BN242: 3.676632332e-12 | BO242: 3.676632332e-12 | BP242: 3.676632332e-12 | BQ242: 3.676632332e-12 | BR242: 3.676632332e-12 | BS242: 3.676632332e-12 | BT242: =BT238*$F$242 -> 3.676632332e-12 | BU242: 3.676632332e-12 | BV242: 3.676632332e-12 | BW242: 3.676632332e-12 | BX242: 3.676632332e-12 | BY242: 3.676632332e-12 | BZ242: 3.676632332e-12 | CA242: 3.676632332e-12 | CB242: 3.676632332e-12 | CC242: 3.676632332e-12 | CD242: 3.676632332e-12 | CE242: 3.676632332e-12 | CF242: 3.676632332e-12 | CG242: 3.676632332e-12 | CH242: 3.676632332e-12 | CI242: 3.676632332e-12 | CJ242: 3.676632332e-12 | CK242: 3.676632332e-12 | CL242: 3.676632332e-12 | CM242: 3.676632332e-12 | CN242: 3.676632332e-12 | CO242: 3.676632332e-12 | CP242: 3.676632332e-12 | CQ242: 3.676632332e-12 | CR242: 3.676632332e-12 | CS242: 3.676632332e-12 | CT242: 3.676632332e-12 | CU242: 3.676632332e-12 | CV242: 3.676632332e-12 | CW242: 3.676632332e-12 | CX242: 3.676632332e-12 | CY242: 3.676632332e-12 | CZ242: 3.676632332e-12 | DA242: 3.676632332e-12 | DB242: 3.676632332e-12 | DC242: 3.676632332e-12
C244: Cash Trap Schedule
D245: Opening Balance | H245: =G248 -> 0 | I245: =H248 -> 0 | J245: 3660.529354 | K245: 0 | L245: 0 | M245: 0 | N245: 0 | O245: 0 | P245: 0 | Q245: 0 | R245: 0 | S245: 0 | T245: 0 | U245: 0 | V245: 0 | W245: 0 | X245: 0 | Y245: 0 | Z245: 0 | AA245: 0 | AB245: 0 | AC245: 0 | AD245: 0 | AE245: 0 | AF245: 0 | AG245: 0 | AH245: 0 | AI245: 0 | AJ245: 0 | AK245: 0 | AL245: 0 | AM245: 0 | AN245: 0 | AO245: 0 | AP245: 0 | AQ245: 0 | AR245: 0 | AS245: 0 | AT245: 0 | AU245: 0 | AV245: 0 | AW245: 0 | AX245: 0 | AY245: 0 | AZ245: 0 | BA245: 0 | BB245: 0 | BC245: 0 | BD245: 0 | BE245: 0 | BF245: 0 | BG245: 0 | BH245: 0 | BI245: 0 | BJ245: 0 | BK245: 0 | BL245: 0 | BM245: 0 | BN245: 0 | BO245: 0 | BP245: 0 | BQ245: 0 | BR245: 0 | BS245: 0 | BT245: 0 | BU245: =BT248 -> 0 | BV245: 0 | BW245: 0 | BX245: 0 | BY245: 0 | BZ245: 0 | CA245: 0 | CB245: 0 | CC245: 0 | CD245: 0 | CE245: 0 | CF245: 0 | CG245: 0 | CH245: 0 | CI245: 0 | CJ245: 0 | CK245: 0 | CL245: 0 | CM245: 0 | CN245: 0 | CO245: 0 | CP245: 0 | CQ245: 0 | CR245: 0 | CS245: 0 | CT245: 0 | CU245: 0 | CV245: 0 | CW245: 0 | CX245: 0 | CY245: 0 | CZ245: 0 | DA245: 0 | DB245: 0 | DC245: 0
D246: Add: Cash Trapped | H246: =H261 -> 0 | I246: =I261 -> 3660.529354 | J246: 0 | K246: 0 | L246: 0 | M246: 0 | N246: 0 | O246: 0 | P246: 0 | Q246: 0 | R246: 0 | S246: 0 | T246: 0 | U246: 0 | V246: 0 | W246: 0 | X246: 0 | Y246: 0 | Z246: 0 | AA246: 0 | AB246: 0 | AC246: 0 | AD246: 0 | AE246: 0 | AF246: 0 | AG246: 0 | AH246: 0 | AI246: 0 | AJ246: 0 | AK246: 0 | AL246: 0 | AM246: 0 | AN246: 0 | AO246: 0 | AP246: 0 | AQ246: 0 | AR246: 0 | AS246: 0 | AT246: 0 | AU246: 0 | AV246: 0 | AW246: 0 | AX246: 0 | AY246: 0 | AZ246: 0 | BA246: 0 | BB246: 0 | BC246: 0 | BD246: 0 | BE246: 0 | BF246: 0 | BG246: 0 | BH246: 0 | BI246: 0 | BJ246: 0 | BK246: 0 | BL246: 0 | BM246: 0 | BN246: 0 | BO246: 0 | BP246: 0 | BQ246: 0 | BR246: 0 | BS246: 0 | BT246: 0 | BU246: =BU261 -> 0 | BV246: 0 | BW246: 0 | BX246: 0 | BY246: 0 | BZ246: 0 | CA246: 0 | CB246: 0 | CC246: 0 | CD246: 0 | CE246: 0 | CF246: 0 | CG246: 0 | CH246: 0 | CI246: 0 | CJ246: 0 | CK246: 0 | CL246: 0 | CM246: 0 | CN246: 0 | CO246: 0 | CP246: 0 | CQ246: 0 | CR246: 0 | CS246: 0 | CT246: 0 | CU246: 0 | CV246: 0 | CW246: 0 | CX246: 0 | CY246: 0 | CZ246: 0 | DA246: 0 | DB246: 0 | DC246: 0
D247: Less: Cash Released | H247: =H245*NOT(H251) -> 0 | I247: =I245*NOT(I251) -> 0 | J247: 3660.529354 | K247: 0 | L247: 0 | M247: 0 | N247: 0 | O247: 0 | P247: 0 | Q247: 0 | R247: 0 | S247: 0 | T247: 0 | U247: 0 | V247: 0 | W247: 0 | X247: 0 | Y247: 0 | Z247: 0 | AA247: 0 | AB247: 0 | AC247: 0 | AD247: 0 | AE247: 0 | AF247: 0 | AG247: 0 | AH247: 0 | AI247: 0 | AJ247: 0 | AK247: 0 | AL247: 0 | AM247: 0 | AN247: 0 | AO247: 0 | AP247: 0 | AQ247: 0 | AR247: 0 | AS247: 0 | AT247: 0 | AU247: 0 | AV247: 0 | AW247: 0 | AX247: 0 | AY247: 0 | AZ247: 0 | BA247: 0 | BB247: 0 | BC247: 0 | BD247: 0 | BE247: 0 | BF247: 0 | BG247: 0 | BH247: 0 | BI247: 0 | BJ247: 0 | BK247: 0 | BL247: 0 | BM247: 0 | BN247: 0 | BO247: 0 | BP247: 0 | BQ247: 0 | BR247: 0 | BS247: 0 | BT247: 0 | BU247: =BU245*NOT(BU251) -> 0 | BV247: 0 | BW247: 0 | BX247: 0 | BY247: 0 | BZ247: 0 | CA247: 0 | CB247: 0 | CC247: 0 | CD247: 0 | CE247: 0 | CF247: 0 | CG247: 0 | CH247: 0 | CI247: 0 | CJ247: 0 | CK247: 0 | CL247: 0 | CM247: 0 | CN247: 0 | CO247: 0 | CP247: 0 | CQ247: 0 | CR247: 0 | CS247: 0 | CT247: 0 | CU247: 0 | CV247: 0 | CW247: 0 | CX247: 0 | CY247: 0 | CZ247: 0 | DA247: 0 | DB247: 0 | DC247: 0
... 30 more rows

Sheet Financial Model
A1: Timing | J1: 1 | K1: 2 | L1: 3 | M1: 4 | N1: 5 | O1: 6 | P1: 7 | Q1: 8 | R1: 9 | S1: 10 | T1: 11 | U1: 12 | V1: 13 | W1: 14 | X1: 15 | Y1: 16 | Z1: 17 | AA1: 18 | AB1: 19 | AC1: 20 | AD1: 21 | AE1: 22 | AF1: 23 | AG1: 24 | AH1: 25 | AI1: 26 | AJ1: 27 | AK1: 28 | AL1: 29 | AM1: 30 | AN1: 31 | AO1: 32 | AP1: 33 | AQ1: 34 | AR1: 35 | AS1: 36 | AT1: 37 | AU1: 38 | AV1: 39 | AW1: 40 | AX1: 41 | AY1: 42 | AZ1: 43 | BA1: 44 | BB1: 45 | BC1: 46 | BD1: 47 | BE1: 48 | BF1: 49 | BG1: 50 | BH1: 51 | BI1: 52 | BJ1: 53 | BK1: 54 | BL1: 55 | BM1: 56 | BN1: 57 | BO1: 58 | BP1: 59 | BQ1: 60 | BR1: 61 | BS1: 62 | BT1: 63 | BU1: 64 | BV1: 65 | BW1: 66 | BX1: 67 | BY1: 68 | BZ1: 69 | CA1: 70 | CB1: 71 | CC1: 72 | CD1: 73 | CE1: 74 | CF1: 75 | CG1: 76 | CH1: 77 | CI1: 78 | CJ1: 79 | CK1: 80 | CL1: 81 | CM1: 82 | CN1: 83 | CO1: 84 | CP1: 85 | CQ1: 86 | CR1: 87 | CS1: 88 | CT1: 89 | CU1: 90 | CV1: 91 | CW1: 92 | CX1: 93 | CY1: 94 | CZ1: 95 | DA1: 96 | DB1: 97 | DC1: 98 | DD1: 99 | DE1: 100 | DF1: 101 | DG1: 102 | DH1: 103 | DI1: 104 | DJ1: 105 | DK1: 106 | DL1: 107 | DM1: 108 | DN1: 109 | DO1: 110 | DP1: 111 | DQ1: 112 | DR1: 113 | DS1: 114 | DT1: 115 | DU1: 116 | DV1: 117 | DW1: 118 | DX1: 119 | DY1: 120 | DZ1: 121 | EA1: 122 | EB1: 123 | EC1: 124 | ED1: 125 | EE1: 126 | EF1: 127 | EG1: 128 | EH1: 129 | EI1: 130 | EJ1: 131 | EK1: 132 | EL1: 133 | EM1: 134 | EN1: 135 | EO1: 136 | EP1: 137 | EQ1: 138 | ER1: 139 | ES1: 140 | ET1: 141 | EU1: 142 | EV1: 143 | EW1: 144 | EX1: 145 | EY1: 146 | EZ1: 147
E2: Debt Size | F2: =E206 -> P99 Applied | G2: =E207 -> DSCR | H2: =F13 -> 36 | J2: =J1<=$H$2 -> TRUE | K2: =K1<=$H$2 -> TRUE | L2: TRUE | M2: TRUE | N2: TRUE | O2: TRUE | P2: TRUE | Q2: TRUE | R2: TRUE | S2: TRUE | T2: TRUE | U2: TRUE | V2: TRUE | W2: TRUE | X2: TRUE | Y2: TRUE | Z2: TRUE | AA2: TRUE | AB2: TRUE | AC2: TRUE | AD2: TRUE | AE2: TRUE | AF2: TRUE | AG2: TRUE | AH2: TRUE | AI2: TRUE | AJ2: TRUE | AK2: TRUE | AL2: TRUE | AM2: TRUE | AN2: TRUE | AO2: TRUE | AP2: TRUE | AQ2: TRUE | AR2: TRUE | AS2: TRUE | AT2: FALSE | AU2: FALSE | AV2: FALSE | AW2: FALSE | AX2: FALSE | AY2: FALSE | AZ2: FALSE | BA2: FALSE | BB2: FALSE | BC2: FALSE | BD2: FALSE | BE2: FALSE | BF2: FALSE | BG2: FALSE | BH2: FALSE | BI2: FALSE | BJ2: FALSE | BK2: FALSE | BL2: FALSE | BM2: FALSE | BN2: FALSE | BO2: FALSE | BP2: FALSE | BQ2: FALSE | BR2: FALSE | BS2: FALSE | BT2: FALSE | BU2: FALSE | BV2: FALSE | BW2: =BW1<=$H$2 -> FALSE | BX2: FALSE | BY2: FALSE | BZ2: FALSE | CA2: FALSE | CB2: FALSE | CC2: FALSE | CD2: FALSE | CE2: FALSE | CF2: FALSE | CG2: FALSE | CH2: FALSE | CI2: FALSE | CJ2: FALSE | CK2: FALSE | CL2: FALSE | CM2: FALSE | CN2: FALSE | CO2: FALSE | CP2: FALSE | CQ2: FALSE | CR2: FALSE | CS2: FALSE | CT2: FALSE | CU2: FALSE | CV2: FALSE | CW2: FALSE | CX2: FALSE | CY2: FALSE | CZ2: FALSE | DA2: FALSE | DB2: FALSE | DC2: FALSE | DD2: FALSE | DE2: FALSE | DF2: FALSE | DG2: FALSE | DH2: FALSE | DI2: FALSE | DJ2: FALSE | DK2: FALSE | DL2: FALSE | DM2: FALSE | DN2: FALSE | DO2: FALSE | DP2: FALSE | DQ2: FALSE | DR2: FALSE | DS2: FALSE | DT2: FALSE | DU2: FALSE | DV2: FALSE | DW2: FALSE | DX2: FALSE | DY2: FALSE | DZ2: FALSE | EA2: FALSE | EB2: FALSE | EC2: FALSE | ED2: FALSE | EE2: FALSE | EF2: FALSE | EG2: FALSE | EH2: FALSE | EI2: =EI1<=$H$2 -> FALSE | EJ2: FALSE | EK2: FALSE | EL2: FALSE | EM2: FALSE | EN2: FALSE | EO2: FALSE | EP2: FALSE | EQ2: FALSE | ER2: FALSE | ES2: FALSE | ET2: FALSE | EU2: FALSE | EV2: FALSE | EW2: FALSE | EX2: FALSE | EY2: FALSE | EZ2: FALSE
B3: Months in Period | G3: 1 | H3: 6 | J3: =IF(J2,$G$3,$H$3) -> 1 | K3: =IF(K2,$G$3,$H$3) -> 1 | L3: 1 | M3: 1 | N3: 1 | O3: 1 | P3: 1 | Q3: 1 | R3: 1 | S3: 1 | T3: 1 | U3: 1 | V3: 1 | W3: 1 | X3: 1 | Y3: 1 | Z3: 1 | AA3: 1 | AB3: 1 | AC3: 1 | AD3: 1 | AE3: 1 | AF3: 1 | AG3: 1 | AH3: 1 | AI3: 1 | AJ3: 1 | AK3: 1 | AL3: 1 | AM3: 1 | AN3: 1 | AO3: 1 | AP3: 1 | AQ3: 1 | AR3: 1 | AS3: 1 | AT3: 6 | AU3: 6 | AV3: 6 | AW3: 6 | AX3: 6 | AY3: 6 | AZ3: 6 | BA3: 6 | BB3: 6 | BC3: 6 | BD3: 6 | BE3: 6 | BF3: 6 | BG3: 6 | BH3: 6 | BI3: 6 | BJ3: 6 | BK3: 6 | BL3: 6 | BM3: 6 | BN3: 6 | BO3: 6 | BP3: 6 | BQ3: 6 | BR3: 6 | BS3: 6 | BT3: 6 | BU3: 6 | BV3: 6 | BW3: =IF(BW2,$G$3,$H$3) -> 6 | BX3: 6 | BY3: 6 | BZ3: 6 | CA3: 6 | CB3: 6 | CC3: 6 | CD3: 6 | CE3: 6 | CF3: 6 | CG3: 6 | CH3: 6 | CI3: 6 | CJ3: 6 | CK3: 6 | CL3: 6 | CM3: 6 | CN3: 6 | CO3: 6 | CP3: 6 | CQ3: 6 | CR3: 6 | CS3: 6 | CT3: 6 | CU3: 6 | CV3: 6 | CW3: 6 | CX3: 6 | CY3: 6 | CZ3: 6 | DA3: 6 | DB3: 6 | DC3: 6 | DD3: 6 | DE3: 6 | DF3: 6 | DG3: 6 | DH3: 6 | DI3: 6 | DJ3: 6 | DK3: 6 | DL3: 6 | DM3: 6 | DN3: 6 | DO3: 6 | DP3: 6 | DQ3: 6 | DR3: 6 | DS3: 6 | DT3: 6 | DU3: 6 | DV3: 6 | DW3: 6 | DX3: 6 | DY3: 6 | DZ3: 6 | EA3: 6 | EB3: 6 | EC3: 6 | ED3: 6 | EE3: 6 | EF3: 6 | EG3: 6 | EH3: 6 | EI3: =IF(EI2,$G$3,$H$3) -> 6 | EJ3: 6 | EK3: 6 | EL3: 6 | EM3: 6 | EN3: 6 | EO3: 6 | EP3: 6 | EQ3: 6 | ER3: 6 | ES3: 6 | ET3: 6 | EU3: 6 | EV3: 6 | EW3: 6 | EX3: 6 | EY3: 6 | EZ3: 6
B4: Start of Period | E4: Equity IRR | F4: =F451 -> 0.1033206522 | J4: =I5+1 -> 2019-01-01 | K4: =J5+1 -> 2019-02-01 | L4: 2019-03-01 | M4: 2019-04-01 | N4: 2019-05-01 | O4: 2019-06-01 | P4: 2019-07-01 | Q4: 2019-08-01 | R4: 2019-09-01 | S4: 2019-10-01 | T4: 2019-11-01 | U4: 2019-12-01 | V4: 2020-01-01 | W4: 2020-02-01 | X4: 2020-03-01 | Y4: 2020-04-01 | Z4: 2020-05-01 | AA4: 2020-06-01 | AB4: 2020-07-01 | AC4: 2020-08-01 | AD4: 2020-09-01 | AE4: 2020-10-01 | AF4: 2020-11-01 | AG4: 2020-12-01 | AH4: 2021-01-01 | AI4: 2021-02-01 | AJ4: 2021-03-01 | AK4: 2021-04-01 | AL4: 2021-05-01 | AM4: 2021-06-01 | AN4: 2021-07-01 | AO4: 2021-08-01 | AP4: 2021-09-01 | AQ4: 2021-10-01 | AR4: 2021-11-01 | AS4: 2021-12-01 | AT4: 2022-01-01 | AU4: 2022-07-01 | AV4: 2023-01-01 | AW4: 2023-07-01 | AX4: 2024-01-01 | AY4: 2024-07-01 | AZ4: 2025-01-01 | BA4: 2025-07-01 | BB4: 2026-01-01 | BC4: 2026-07-01 | BD4: 2027-01-01 | BE4: 2027-07-01 | BF4: 2028-01-01 | BG4: 2028-07-01 | BH4: 2029-01-01 | BI4: 2029-07-01 | BJ4: 2030-01-01 | BK4: 2030-07-01 | BL4: 2031-01-01 | BM4: 2031-07-01 | BN4: 2032-01-01 | BO4: 2032-07-01 | BP4: 2033-01-01 | BQ4: 2033-07-01 | BR4: 2034-01-01 | BS4: 2034-07-01 | BT4: 2035-01-01 | BU4: 2035-07-01 | BV4: 2036-01-01 | BW4: =BV5+1 -> 2036-07-01 | BX4: 2037-01-01 | BY4: 2037-07-01 | BZ4: 2038-01-01 | CA4: 2038-07-01 | CB4: 2039-01-01 | CC4: 2039-07-01 | CD4: 2040-01-01 | CE4: 2040-07-01 | CF4: 2041-01-01 | CG4: 2041-07-01 | CH4: 2042-01-01 | CI4: 2042-07-01 | CJ4: 2043-01-01 | CK4: 2043-07-01 | CL4: 2044-01-01 | CM4: 2044-07-01 | CN4: 2045-01-01 | CO4: 2045-07-01 | CP4: 2046-01-01 | CQ4: 2046-07-01 | CR4: 2047-01-01 | CS4: 2047-07-01 | CT4: 2048-01-01 | CU4: 2048-07-01 | CV4: 2049-01-01 | CW4: 2049-07-01 | CX4: 2050-01-01 | CY4: 2050-07-01 | CZ4: 2051-01-01 | DA4: 2051-07-01 | DB4: 2052-01-01 | DC4: 2052-07-01 | DD4: 2053-01-01 | DE4: 2053-07-01 | DF4: 2054-01-01 | DG4: 2054-07-01 | DH4: 2055-01-01 | DI4: 2055-07-01 | DJ4: 2056-01-01 | DK4: 2056-07-01 | DL4: 2057-01-01 | DM4: 2057-07-01 | DN4: 2058-01-01 | DO4: 2058-07-01 | DP4: 2059-01-01 | DQ4: 2059-07-01 | DR4: 2060-01-01 | DS4: 2060-07-01 | DT4: 2061-01-01 | DU4: 2061-07-01 | DV4: 2062-01-01 | DW4: 2062-07-01 | DX4: 2063-01-01 | DY4: 2063-07-01 | DZ4: 2064-01-01 | EA4: 2064-07-01 | EB4: 2065-01-01 | EC4: 2065-07-01 | ED4: 2066-01-01 | EE4: 2066-07-01 | EF4: 2067-01-01 | EG4: 2067-07-01 | EH4: 2068-01-01 | EI4: =EH5+1 -> 2068-07-01 | EJ4: 2069-01-01 | EK4: 2069-07-01 | EL4: 2070-01-01 | EM4: 2070-07-01 | EN4: 2071-01-01 | EO4: 2071-07-01 | EP4: 2072-01-01 | EQ4: 2072-07-01 | ER4: 2073-01-01 | ES4: 2073-07-01 | ET4: 2074-01-01 | EU4: 2074-07-01 | EV4: 2075-01-01 | EW4: 2075-07-01 | EX4: 2076-01-01 | EY4: 2076-07-01 | EZ4: 2077-01-01
B5: End of Period | E5: Debt IRR | F5: =E464 -> 0.03991530836 | I5: =F12-1 -> 2018-12-31 | J5: =EDATE(J4,J3)-1 -> 2019-01-31 | K5: =EDATE(K4,K3)-1 -> 2019-02-28 | L5: 2019-03-31 | M5: 2019-04-30 | N5: 2019-05-31 | O5: 2019-06-30 | P5: 2019-07-31 | Q5: 2019-08-31 | R5: 2019-09-30 | S5: 2019-10-31 | T5: 2019-11-30 | U5: 2019-12-31 | V5: 2020-01-31 | W5: 2020-02-29 | X5: 2020-03-31 | Y5: 2020-04-30 | Z5: 2020-05-31 | AA5: 2020-06-30 | AB5: 2020-07-31 | AC5: 2020-08-31 | AD5: 2020-09-30 | AE5: 2020-10-31 | AF5: 2020-11-30 | AG5: 2020-12-31 | AH5: 2021-01-31 | AI5: 2021-02-28 | AJ5: 2021-03-31 | AK5: 2021-04-30 | AL5: 2021-05-31 | AM5: 2021-06-30 | AN5: 2021-07-31 | AO5: 2021-08-31 | AP5: 2021-09-30 | AQ5: 2021-10-31 | AR5: 2021-11-30 | AS5: 2021-12-31 | AT5: 2022-06-30 | AU5: 2022-12-31 | AV5: 2023-06-30 | AW5: 2023-12-31 | AX5: 2024-06-30 | AY5: 2024-12-31 | AZ5: 2025-06-30 | BA5: 2025-12-31 | BB5: 2026-06-30 | BC5: 2026-12-31 | BD5: 2027-06-30 | BE5: 2027-12-31 | BF5: 2028-06-30 | BG5: 2028-12-31 | BH5: 2029-06-30 | BI5: 2029-12-31 | BJ5: 2030-06-30 | BK5: 2030-12-31 | BL5: 2031-06-30 | BM5: 2031-12-31 | BN5: 2032-06-30 | BO5: 2032-12-31 | BP5: 2033-06-30 | BQ5: 2033-12-31 | BR5: 2034-06-30 | BS5: 2034-12-31 | BT5: 2035-06-30 | BU5: 2035-12-31 | BV5: 2036-06-30 | BW5: =EDATE(BW4,BW3)-1 -> 2036-12-31 | BX5: 2037-06-30 | BY5: 2037-12-31 | BZ5: 2038-06-30 | CA5: 2038-12-31 | CB5: 2039-06-30 | CC5: 2039-12-31 | CD5: 2040-06-30 | CE5: 2040-12-31 | CF5: 2041-06-30 | CG5: 2041-12-31 | CH5: 2042-06-30 | CI5: 2042-12-31 | CJ5: 2043-06-30 | CK5: 2043-12-31 | CL5: 2044-06-30 | CM5: 2044-12-31 | CN5: 2045-06-30 | CO5: 2045-12-31 | CP5: 2046-06-30 | CQ5: 2046-12-31 | CR5: 2047-06-30 | CS5: 2047-12-31 | CT5: 2048-06-30 | CU5: 2048-12-31 | CV5: 2049-06-30 | CW5: 2049-12-31 | CX5: 2050-06-30 | CY5: 2050-12-31 | CZ5: 2051-06-30 | DA5: 2051-12-31 | DB5: 2052-06-30 | DC5: 2052-12-31 | DD5: 2053-06-30 | DE5: 2053-12-31 | DF5: 2054-06-30 | DG5: 2054-12-31 | DH5: 2055-06-30 | DI5: 2055-12-31 | DJ5: 2056-06-30 | DK5: 2056-12-31 | DL5: 2057-06-30 | DM5: 2057-12-31 | DN5: 2058-06-30 | DO5: 2058-12-31 | DP5: 2059-06-30 | DQ5: 2059-12-31 | DR5: 2060-06-30 | DS5: 2060-12-31 | DT5: 2061-06-30 | DU5: 2061-12-31 | DV5: 2062-06-30 | DW5: 2062-12-31 | DX5: 2063-06-30 | DY5: 2063-12-31 | DZ5: 2064-06-30 | EA5: 2064-12-31 | EB5: 2065-06-30 | EC5: 2065-12-31 | ED5: 2066-06-30 | EE5: 2066-12-31 | EF5: 2067-06-30 | EG5: 2067-12-31 | EH5: 2068-06-30 | EI5: =EDATE(EI4,EI3)-1 -> 2068-12-31 | EJ5: 2069-06-30 | EK5: 2069-12-31 | EL5: 2070-06-30 | EM5: 2070-12-31 | EN5: 2071-06-30 | EO5: 2071-12-31 | EP5: 2072-06-30 | EQ5: 2072-12-31 | ER5: 2073-06-30 | ES5: 2073-12-31 | ET5: 2074-06-30 | EU5: 2074-12-31 | EV5: 2075-06-30 | EW5: 2075-12-31 | EX5: 2076-06-30 | EY5: 2076-12-31 | EZ5: 2077-06-30
B6: Construction
B7: Construction | E7: Project IRR | F7: =F130 -> 0.05326978862 | G7: =F12 -> 2019-01-01 | H7: =F14 -> 2022-01-01 | J7: =J4<$H$7 -> TRUE | K7: =K4<$H$7 -> TRUE | L7: TRUE | M7: TRUE | N7: TRUE | O7: TRUE | P7: TRUE | Q7: TRUE | R7: TRUE | S7: TRUE | T7: TRUE | U7: TRUE | V7: TRUE | W7: TRUE | X7: TRUE | Y7: TRUE | Z7: TRUE | AA7: TRUE | AB7: TRUE | AC7: TRUE | AD7: TRUE | AE7: TRUE | AF7: TRUE | AG7: TRUE | AH7: TRUE | AI7: =AI4<$H$7 -> TRUE | AJ7: TRUE | AK7: TRUE | AL7: TRUE | AM7: TRUE | AN7: TRUE | AO7: TRUE | AP7: TRUE | AQ7: TRUE | AR7: TRUE | AS7: TRUE | AT7: FALSE | AU7: FALSE | AV7: FALSE | AW7: FALSE | AX7: FALSE | AY7: FALSE | AZ7: FALSE | BA7: FALSE | BB7: FALSE | BC7: FALSE | BD7: FALSE | BE7: FALSE | BF7: FALSE | BG7: FALSE | BH7: FALSE | BI7: FALSE | BJ7: FALSE | BK7: FALSE | BL7: FALSE | BM7: FALSE | BN7: FALSE | BO7: FALSE | BP7: FALSE | BQ7: FALSE | BR7: FALSE | BS7: FALSE | BT7: FALSE | BU7: FALSE | BV7: FALSE | BW7: FALSE | BX7: FALSE | BY7: FALSE | BZ7: FALSE | CA7: FALSE | CB7: FALSE | CC7: FALSE | CD7: FALSE | CE7: FALSE | CF7: FALSE | CG7: FALSE | CH7: FALSE | CI7: FALSE | CJ7: FALSE | CK7: FALSE | CL7: FALSE | CM7: FALSE | CN7: FALSE | CO7: FALSE | CP7: FALSE | CQ7: FALSE | CR7: FALSE | CS7: FALSE | CT7: FALSE | CU7: =CU4<$H$7 -> FALSE | CV7: FALSE | CW7: FALSE | CX7: FALSE | CY7: FALSE | CZ7: FALSE | DA7: FALSE | DB7: FALSE | DC7: FALSE | DD7: FALSE | DE7: FALSE | DF7: FALSE | DG7: FALSE | DH7: FALSE | DI7: FALSE | DJ7: FALSE | DK7: FALSE | DL7: FALSE | DM7: FALSE | DN7: FALSE | DO7: FALSE | DP7: FALSE | DQ7: FALSE | DR7: FALSE | DS7: FALSE | DT7: FALSE | DU7: FALSE | DV7: FALSE | DW7: FALSE | DX7: FALSE | DY7: FALSE | DZ7: FALSE | EA7: FALSE | EB7: FALSE | EC7: FALSE | ED7: FALSE | EE7: FALSE | EF7: FALSE | EG7: FALSE | EH7: FALSE | EI7: FALSE | EJ7: FALSE | EK7: FALSE | EL7: FALSE | EM7: FALSE | EN7: FALSE | EO7: FALSE | EP7: FALSE | EQ7: FALSE | ER7: FALSE | ES7: FALSE | ET7: FALSE | EU7: FALSE | EV7: FALSE | EW7: FALSE | EX7: FALSE | EY7: FALSE | EZ7: FALSE
B8: Operation | E8: Pre-tax IRR | F8: =F121 -> 0.06375357807 | G8: =F14 -> 2022-01-01 | H8: =F16 -> 2057-01-01 | J8: =AND(NOT(J7),J4<$H$8) -> FALSE | K8: =AND(NOT(K7),K4<$H$8) -> FALSE | L8: FALSE | M8: FALSE | N8: FALSE | O8: FALSE | P8: FALSE | Q8: FALSE | R8: FALSE | S8: FALSE | T8: FALSE | U8: FALSE | V8: FALSE | W8: FALSE | X8: FALSE | Y8: FALSE | Z8: FALSE | AA8: FALSE | AB8: FALSE | AC8: FALSE | AD8: FALSE | AE8: FALSE | AF8: FALSE | AG8: FALSE | AH8: FALSE | AI8: =AND(NOT(AI7),AI4<$H$8) -> FALSE | AJ8: FALSE | AK8: FALSE | AL8: FALSE | AM8: FALSE | AN8: FALSE | AO8: FALSE | AP8: FALSE | AQ8: FALSE | AR8: FALSE | AS8: FALSE | AT8: TRUE | AU8: TRUE | AV8: TRUE | AW8: TRUE | AX8: TRUE | AY8: TRUE | AZ8: TRUE | BA8: TRUE | BB8: TRUE | BC8: TRUE | BD8: TRUE | BE8: TRUE | BF8: TRUE | BG8: TRUE | BH8: TRUE | BI8: TRUE | BJ8: TRUE | BK8: TRUE | BL8: TRUE | BM8: TRUE | BN8: TRUE | BO8: TRUE | BP8: TRUE | BQ8: TRUE | BR8: TRUE | BS8: TRUE | BT8: TRUE | BU8: TRUE | BV8: TRUE | BW8: TRUE | BX8: TRUE | BY8: TRUE | BZ8: TRUE | CA8: TRUE | CB8: TRUE | CC8: TRUE | CD8: TRUE | CE8: TRUE | CF8: TRUE | CG8: TRUE | CH8: TRUE | CI8: TRUE | CJ8: TRUE | CK8: TRUE | CL8: TRUE | CM8: TRUE | CN8: TRUE | CO8: TRUE | CP8: TRUE | CQ8: TRUE | CR8: TRUE | CS8: TRUE | CT8: TRUE | CU8: =AND(NOT(CU7),CU4<$H$8) -> TRUE | CV8: TRUE | CW8: TRUE | CX8: TRUE | CY8: TRUE | CZ8: TRUE | DA8: TRUE | DB8: TRUE | DC8: TRUE | DD8: TRUE | DE8: TRUE | DF8: TRUE | DG8: TRUE | DH8: TRUE | DI8: TRUE | DJ8: TRUE | DK8: TRUE | DL8: FALSE | DM8: FALSE | DN8: FALSE | DO8: FALSE | DP8: FALSE | DQ8: FALSE | DR8: FALSE | DS8: FALSE | DT8: FALSE | DU8: FALSE | DV8: FALSE | DW8: FALSE | DX8: FALSE | DY8: FALSE | DZ8: FALSE | EA8: FALSE | EB8: FALSE | EC8: FALSE | ED8: FALSE | EE8: FALSE | EF8: FALSE | EG8: FALSE | EH8: FALSE | EI8: FALSE | EJ8: FALSE | EK8: FALSE | EL8: FALSE | EM8: FALSE | EN8: FALSE | EO8: FALSE | EP8: FALSE | EQ8: FALSE | ER8: FALSE | ES8: FALSE | ET8: FALSE | EU8: FALSE | EV8: FALSE | EW8: FALSE | EX8: FALSE | EY8: FALSE | EZ8: FALSE
A10: Assumptions
B11: Timing
C12: Financial Close | E12: Date | F12: 2019-01-01
C13: Construction | E13: Years | F13: =G13 -> 36 | G13: 36
C14: COD | E14: Date | F14: =EDATE(F12,F13*$G$3) -> 2022-01-01
C15: Operations | E15: Years | F15: =G15 -> 35 | G15: 35
C16: Decommissioning | E16: Date | F16: =EDATE(F14,F15*12) -> 2057-01-01
B18: Operating
C19: Apply P50 Case | E19: Euro | F19: TRUE
C20: Apply P99 Case | E20: Euro | F20: =NOT(F19) -> FALSE
C22: EPC Cost/kW | E22: Euro/kW | F22: ='Inputs and Operations'!F25 -> 1400
C23: Capital Expenditure | E23: Euro | F23: ='Inputs and Operations'!F99 -> 168000
C24: S-Cruve Mean | E24: Periods | F24: =F13/2.5 -> 14.4 | G24: Euro
C25: S-Cruve Standard Deviation | E25: Periods | F25: =F13/4 -> 9
C27: Development Fee | E27: % | F27: =G27/100 -> 0.2 | G27: 20
C28: Target IRR | E28: % | F28: =G28/100 -> 0.11 | G28: 11
C30: Tax Rate | E30: Percent | F30: 0.21
A32: Financing Assumptions
B33: Senior Financing
C34: Debt Size
D35: DSCR - P50 | E35: Times | F35: =G35/100 -> 1.35 | G35: 135
D36: DSCR - P99 | E36: Times | F36: =G36/100 -> 1 | G36: 100
D37: DSCR Applied | F37: =SUMPRODUCT(F19:F20*F35:F36) -> 1.35
D39: Maximum Debt to Capital | E39: % | F39: =G39/100 -> 0.89 | G39: 89
D41: Up-Front Equity | E41: Percent | F41: =G41/100 -> 0.5 | G41: 50
D43: Tenure - Years | E43: Years | F43: =G43 -> 27 | G43: 27
D44: Tenure - Periods | E44: Periods | F44: =F43*12/H3 -> 54
D45: Repayment Date | E45: Date | F45: =EDATE(F14,F43*12) -> 2049-01-01
F47: =F12 -> 2019-01-01 | G47: =F14 -> 2022-01-01 | H47: =EDATE(G47,4*12) -> 2026-01-01 | I47: =EDATE(H47,4*12) -> 2030-01-01 | J47: 2034-01-01
D48: Annual Base Rate | E48: % p.a. | F48: 0.015 | G48: 0.015 | H48: 0.015 | I48: 0.015 | J48: 0.015
D49: Annual Credit Spread | E49: % p.a. | F49: =E50/1000 -> 0.017 | G49: =F49+0.25% -> 0.0195 | H49: =G49+0.25% -> 0.022 | I49: 0.0245 | J49: =I49+0.25% -> 0.027
D50: Total | E50: 17 | F50: =F48+F49 -> 0.032 | G50: =G48+G49 -> 0.0345 | H50: 0.037 | I50: 0.0395 | J50: 0.042
D52: Commitment Fee | E52: % p.a. | F52: 0.01
D53: Up-Front Fee | E53: % | F53: 0.015
D55: DSRA Percent | E55: Percent | F55: 1
D56: Cash Sweep Percent | E56: Percent | F56: 0
B58: Mezzanine Financing
C59: Debt Size
D60: Total DSCR - P50 | F60: 1.2
D61: Debt to Capital | F61: 0
D63: Tenor | E63: Years | F63: =G63 -> 18 | G63: 18
F64: 1 | G64: 5 | H64: 9 | I64: 14
D65: Interest Rate | E65: % p.a. | F65: 0.05 | G65: 0.05 | H65: 0.05 | I65: 0.05
D67: Cash Sweep | E67: % | F67: 0
B69: EBL Loan
C70: Include EBL | E70: Switch | F70: FALSE
C71: Interest Rate on EBL | E71: % p.a. | F71: 0.015
A73: Re-financing Assumptions
B74: Re-financing Issue Number 1
C75: Re-financing Period After COD (Year) | E75: Year | F75: =[0]!refi1 -> 36 | G75: 36
C76: Re-financing Period After COD (Period) | E76: Period | F76: =F75*12/$H$3 -> 72
C77: Re-finance Date | F77: =EDATE($F$14,F75*12) -> 2058-01-01
C78: Re-financing DSCR - Sizing | F78: 1.25
C79: Re-financing Tenor - Tail (Years) | F79: 2
C80: Re-financing Tenor - Tail (Periods) | F80: =F79*12/$H$3 -> 4
C81: Maturity of Re-financing | F81: =EDATE($F$16,-F80*$H$3) -> 2055-01-01
C82: Re-financing Term (Years) | F82: =DAYS360(F77,F81)/360 -> -3
C83: Re-financing Term (Periods) | F83: =F82*12/H3 -> -6
C84: Re-financing Interest Rate | F84: 0.035
B86: Re-financing Issue Number 2
C87: Re-financing Period After COD (Year) | F87: =G87 -> 36 | G87: 36
C88: Re-financing Period After COD (Period) | E88: Period | F88: =F87*12/$H$3 -> 72
C89: Re-finance Date | F89: =EDATE($F$14,F88*$H$3) -> 2058-01-01
C90: Re-financing DSCR - Sizing | F90: 1.25
C91: Re-financing Tenor - Tail (Years) | F91: 1
C92: Re-financing Tenor - Tail (Periods) | F92: =F91*12/$H$3 -> 2
C93: Maturity of Re-financing | F93: =EDATE($F$16,-F92*$H$3) -> 2056-01-01
C94: Re-financing Term (Years) | F94: =DAYS360(F89,F93)/360 -> -2
C95: Re-financing Term (Periods) | F95: =F94*12/$H$3 -> -4
C96: Re-financing Interest Rate | F96: 0.03
B98: Re-financing Issue Number 3
C99: Re-financing Period After COD (Year) | F99: =G99 -> 36 | G99: 36
C100: Re-financing Period After COD | F100: =F99*12/H3 -> 72
C101: Re-finance Date | F101: =EDATE($F$14,F100*$H$3) -> 2058-01-01
C102: Re-financing DSCR - Sizing | F102: 1.2
C103: Re-financing Tenor - Tail (Years) | F103: 0
C104: Re-financing Tenor - Tail (Periods) | F104: =F103*12/$H$3 -> 0
C105: Maturity of Re-financing | F105: =EDATE($F$16,-F104*$H$3) -> 2057-01-01
C106: Re-financing Term (Years) | F106: =DAYS360(F101,F105)/360 -> -1
C107: Re-financing Term (Periods) | F107: =F106*12/$H$3 -> -2
C108: Re-financing Interest Rate | F108: 0.029
A110: Operations
B111: Operation Period | J111: =I111+J8 -> 0 | K111: 0 | L111: 0 | M111: 0 | N111: 0 | O111: 0 | P111: 0 | Q111: 0 | R111: 0 | S111: 0 | T111: 0 | U111: 0 | V111: 0 | W111: 0 | X111: 0 | Y111: 0 | Z111: 0 | AA111: 0 | AB111: 0 | AC111: 0 | AD111: 0 | AE111: 0 | AF111: 0 | AG111: 0 | AH111: 0 | AI111: 0 | AJ111: 0 | AK111: 0 | AL111: 0 | AM111: 0 | AN111: 0 | AO111: 0 | AP111: =AO111+AP8 -> 0 | AQ111: 0 | AR111: 0 | AS111: 0 | AT111: 1 | AU111: 2 | AV111: 3 | AW111: 4 | AX111: 5 | AY111: 6 | AZ111: 7 | BA111: 8 | BB111: 9 | BC111: 10 | BD111: 11 | BE111: 12 | BF111: 13 | BG111: 14 | BH111: 15 | BI111: 16 | BJ111: 17 | BK111: 18 | BL111: 19 | BM111: 20 | BN111: 21 | BO111: 22 | BP111: 23 | BQ111: 24 | BR111: 25 | BS111: 26 | BT111: 27 | BU111: 28 | BV111: =BU111+BV8 -> 29 | BW111: 30 | BX111: 31 | BY111: 32 | BZ111: 33 | CA111: 34 | CB111: 35 | CC111: 36 | CD111: 37 | CE111: 38 | CF111: 39 | CG111: 40 | CH111: 41 | CI111: 42 | CJ111: 43 | CK111: 44 | CL111: 45 | CM111: 46 | CN111: 47 | CO111: 48 | CP111: 49 | CQ111: 50 | CR111: 51 | CS111: 52 | CT111: 53 | CU111: 54 | CV111: 55 | CW111: 56 | CX111: 57 | CY111: 58 | CZ111: 59 | DA111: 60 | DB111: =DA111+DB8 -> 61 | DC111: 62 | DD111: 63 | DE111: 64 | DF111: 65 | DG111: 66 | DH111: 67 | DI111: 68 | DJ111: 69 | DK111: 70 | DL111: 70 | DM111: 70 | DN111: 70 | DO111: 70 | DP111: 70 | DQ111: 70 | DR111: 70 | DS111: 70 | DT111: 70 | DU111: 70 | DV111: 70 | DW111: 70 | DX111: 70 | DY111: 70 | DZ111: 70 | EA111: 70 | EB111: 70 | EC111: 70 | ED111: 70 | EE111: 70 | EF111: 70 | EG111: 70 | EH111: =EG111+EH8 -> 70 | EI111: 70 | EJ111: 70 | EK111: 70 | EL111: 70 | EM111: 70 | EN111: 70 | EO111: 70 | EP111: 70 | EQ111: 70 | ER111: 70 | ES111: 70 | ET111: 70 | EU111: 70 | EV111: 70 | EW111: 70 | EX111: 70 | EY111: 70 | EZ111: 70
C112: EBITDA - P50 | J112: =LOOKUP(J111,'Inputs and Operations'!1:1,'Inputs and Operations'!144:144) -> 0 | K112: =LOOKUP(K111,'Inputs and Operations'!1:1,'Inputs and Operations'!144:144) -> 0 | L112: =LOOKUP(L111,'Inputs and Operations'!1:1,'Inputs and Operations'!144:144) -> 0 | M112: =LOOKUP(M111,'Inputs and Operations'!1:1,'Inputs and Operations'!144:144) -> 0 | N112: =LOOKUP(N111,'Inputs and Operations'!1:1,'Inputs and Operations'!144:144) -> 0 | O112: =LOOKUP(O111,'Inputs and Operations'!1:1,'Inputs and Operations'!144:144) -> 0 | P112: =LOOKUP(P111,'Inputs and Operations'!1:1,'Inputs and Operations'!144:144) -> 0 | Q112: =LOOKUP(Q111,'Inputs and Operations'!1:1,'Inputs and Operations'!144:144) -> 0 | R112: =LOOKUP(R111,'Inputs and Operations'!1:1,'Inputs and Operations'!144:144) -> 0 | S112: =LOOKUP(S111,'Inputs and Operations'!1:1,'Inputs and Operations'!144:144) -> 0 | T112: =LOOKUP(T111,'Inputs and Operations'!1:1,'Inputs and Operations'!144:144) -> 0 | U112: =LOOKUP(U111,'Inputs and Operations'!1:1,'Inputs and Operations'!144:144) -> 0 | V112: =LOOKUP(V111,'Inputs and Operations'!1:1,'Inputs and Operations'!144:144) -> 0 | W112: =LOOKUP(W111,'Inputs and Operations'!1:1,'Inputs and Operations'!144:144) -> 0 | X112: =LOOKUP(X111,'Inputs and Operations'!1:1,'Inputs and Operations'!144:144) -> 0 | Y112: =LOOKUP(Y111,'Inputs and Operations'!1:1,'Inputs and Operations'!144:144) -> 0 | Z112: =LOOKUP(Z111,'Inputs and Operations'!1:1,'Inputs and Operations'!144:144) -> 0 | AA112: =LOOKUP(AA111,'Inputs and Operations'!1:1,'Inputs and Operations'!144:144) -> 0 | AB112: =LOOKUP(AB111,'Inputs and Operations'!1:1,'Inputs and Operations'!144:144) -> 0 | AC112: =LOOKUP(AC111,'Inputs and Operations'!1:1,'Inputs and Operations'!144:144) -> 0 | AD112: =LOOKUP(AD111,'Inputs and Operations'!1:1,'Inputs and Operations'!144:144) -> 0 | AE112: =LOOKUP(AE111,'Inputs and Operations'!1:1,'Inputs and Operations'!144:144) -> 0 | AF112: =LOOKUP(AF111,'Inputs and Operations'!1:1,'Inputs and Operations'!144:144) -> 0 | AG112: =LOOKUP(AG111,'Inputs and Operations'!1:1,'Inputs and Operations'!144:144) -> 0 | AH112: =LOOKUP(AH111,'Inputs and Operations'!1:1,'Inputs and Operations'!144:144) -> 0 | AI112: =LOOKUP(AI111,'Inputs and Operations'!1:1,'Inputs and Operations'!144:144) -> 0 | AJ112: =LOOKUP(AJ111,'Inputs and Operations'!1:1,'Inputs and Operations'!144:144) -> 0 | AK112: =LOOKUP(AK111,'Inputs and Operations'!1:1,'Inputs and Operations'!144:144) -> 0 | AL112: =LOOKUP(AL111,'Inputs and Operations'!1:1,'Inputs and Operations'!144:144) -> 0 | AM112: =LOOKUP(AM111,'Inputs and Operations'!1:1,'Inputs and Operations'!144:144) -> 0 | AN112: =LOOKUP(AN111,'Inputs and Operations'!1:1,'Inputs and Operations'!144:144) -> 0 | AO112: =LOOKUP(AO111,'Inputs and Operations'!1:1,'Inputs and Operations'!144:144) -> 0 | AP112: =LOOKUP(AP111,'Inputs and Operations'!1:1,'Inputs and Operations'!144:144) -> 0 | AQ112: =LOOKUP(AQ111,'Inputs and Operations'!1:1,'Inputs and Operations'!144:144) -> 0 | AR112: =LOOKUP(AR111,'Inputs and Operations'!1:1,'Inputs and Operations'!144:144) -> 0 | AS112: =LOOKUP(AS111,'Inputs and Operations'!1:1,'Inputs and Operations'!144:144) -> 0 | AT112: =LOOKUP(AT111,'Inputs and Operations'!1:1,'Inputs and Operations'!144:144) -> 0 | AU112: =LOOKUP(AU111,'Inputs and Operations'!1:1,'Inputs and Operations'!144:144) -> 5565.184027 | AV112: =LOOKUP(AV111,'Inputs and Operations'!1:1,'Inputs and Operations'!144:144) -> 5736.795471 | AW112: =LOOKUP(AW111,'Inputs and Operations'!1:1,'Inputs and Operations'!144:144) -> 5676.487708 | AX112: =LOOKUP(AX111,'Inputs and Operations'!1:1,'Inputs and Operations'!144:144) -> 5851.531381 | AY112: =LOOKUP(AY111,'Inputs and Operations'!1:1,'Inputs and Operations'!144:144) -> 5790.017462 | AZ112: =LOOKUP(AZ111,'Inputs and Operations'!1:1,'Inputs and Operations'!144:144) -> 5968.562008 | BA112: =LOOKUP(BA111,'Inputs and Operations'!1:1,'Inputs and Operations'!144:144) -> 5946.529257 | BB112: =LOOKUP(BB111,'Inputs and Operations'!1:1,'Inputs and Operations'!144:144) -> 6087.933249 | BC112: =LOOKUP(BC111,'Inputs and Operations'!1:1,'Inputs and Operations'!144:144) -> 6023.934167 | BD112: =LOOKUP(BD111,'Inputs and Operations'!1:1,'Inputs and Operations'!144:144) -> 6209.691914 | BE112: =LOOKUP(BE111,'Inputs and Operations'!1:1,'Inputs and Operations'!144:144) -> 6144.412851 | BF112: =LOOKUP(BF111,'Inputs and Operations'!1:1,'Inputs and Operations'!144:144) -> 6333.885752 | BG112: =LOOKUP(BG111,'Inputs and Operations'!1:1,'Inputs and Operations'!144:144) -> 6267.301108 | BH112: =LOOKUP(BH111,'Inputs and Operations'!1:1,'Inputs and Operations'!144:144) -> 6460.563467 | BI112: =LOOKUP(BI111,'Inputs and Operations'!1:1,'Inputs and Operations'!144:144) -> 6436.714508 | BJ112: =LOOKUP(BJ111,'Inputs and Operations'!1:1,'Inputs and Operations'!144:144) -> 6589.774736 | BK112: =LOOKUP(BK111,'Inputs and Operations'!1:1,'Inputs and Operations'!144:144) -> 6520.500072 | BL112: =LOOKUP(BL111,'Inputs and Operations'!1:1,'Inputs and Operations'!144:144) -> 6721.570231 | BM112: =LOOKUP(BM111,'Inputs and Operations'!1:1,'Inputs and Operations'!144:144) -> 6650.910074 | BN112: =LOOKUP(BN111,'Inputs and Operations'!1:1,'Inputs and Operations'!144:144) -> 6856.001636 | BO112: =LOOKUP(BO111,'Inputs and Operations'!1:1,'Inputs and Operations'!144:144) -> 6783.928275 | BP112: =LOOKUP(BP111,'Inputs and Operations'!1:1,'Inputs and Operations'!144:144) -> 6993.121668 | BQ112: =LOOKUP(BQ111,'Inputs and Operations'!1:1,'Inputs and Operations'!144:144) -> 6967.306788 | BR112: =LOOKUP(BR111,'Inputs and Operations'!1:1,'Inputs and Operations'!144:144) -> 7132.984102 | BS112: =LOOKUP(BS111,'Inputs and Operations'!1:1,'Inputs and Operations'!144:144) -> 7057.998978 | BT112: =LOOKUP(BT111,'Inputs and Operations'!1:1,'Inputs and Operations'!144:144) -> 7275.643784 | BU112: =LOOKUP(BU111,'Inputs and Operations'!1:1,'Inputs and Operations'!144:144) -> 7199.158957 | BV112: =LOOKUP(BV111,'Inputs and Operations'!1:1,'Inputs and Operations'!144:144) -> 7421.156659 | BW112: =LOOKUP(BW111,'Inputs and Operations'!1:1,'Inputs and Operations'!144:144) -> 7343.142136 | BX112: =LOOKUP(BX111,'Inputs and Operations'!1:1,'Inputs and Operations'!144:144) -> 7569.579793 | BY112: =LOOKUP(BY111,'Inputs and Operations'!1:1,'Inputs and Operations'!144:144) -> 7541.636936 | BZ112: =LOOKUP(BZ111,'Inputs and Operations'!1:1,'Inputs and Operations'!144:144) -> 7720.971388 | CA112: =LOOKUP(CA111,'Inputs and Operations'!1:1,'Inputs and Operations'!144:144) -> 7639.805079 | CB112: =LOOKUP(CB111,'Inputs and Operations'!1:1,'Inputs and Operations'!144:144) -> 7875.390816 | CC112: =LOOKUP(CC111,'Inputs and Operations'!1:1,'Inputs and Operations'!144:144) -> 7792.60118 | CD112: =LOOKUP(CD111,'Inputs and Operations'!1:1,'Inputs and Operations'!144:144) -> 8032.898633 | CE112: =LOOKUP(CE111,'Inputs and Operations'!1:1,'Inputs and Operations'!144:144) -> 7948.453204 | CF112: =LOOKUP(CF111,'Inputs and Operations'!1:1,'Inputs and Operations'!144:144) -> 8193.556605 | CG112: =LOOKUP(CG111,'Inputs and Operations'!1:1,'Inputs and Operations'!144:144) -> 8163.310359 | CH112: =LOOKUP(CH111,'Inputs and Operations'!1:1,'Inputs and Operations'!144:144) -> 8357.427737 | CI112: =LOOKUP(CI111,'Inputs and Operations'!1:1,'Inputs and Operations'!144:144) -> 8269.570713 | CJ112: =LOOKUP(CJ111,'Inputs and Operations'!1:1,'Inputs and Operations'!144:144) -> 8524.576292 | CK112: =LOOKUP(CK111,'Inputs and Operations'!1:1,'Inputs and Operations'!144:144) -> 8434.962128 | CL112: =LOOKUP(CL111,'Inputs and Operations'!1:1,'Inputs and Operations'!144:144) -> 8695.067818 | CM112: =LOOKUP(CM111,'Inputs and Operations'!1:1,'Inputs and Operations'!144:144) -> 8603.66137 | CN112: =LOOKUP(CN111,'Inputs and Operations'!1:1,'Inputs and Operations'!144:144) -> 8868.969174 | CO112: =LOOKUP(CO111,'Inputs and Operations'!1:1,'Inputs and Operations'!144:144) -> 8836.229664 | CP112: =LOOKUP(CP111,'Inputs and Operations'!1:1,'Inputs and Operations'!144:144) -> 9046.348558 | CQ112: =LOOKUP(CQ111,'Inputs and Operations'!1:1,'Inputs and Operations'!144:144) -> 8951.249289 | CR112: =LOOKUP(CR111,'Inputs and Operations'!1:1,'Inputs and Operations'!144:144) -> 9227.275529 | CS112: =LOOKUP(CS111,'Inputs and Operations'!1:1,'Inputs and Operations'!144:144) -> 9130.274275 | CT112: =LOOKUP(CT111,'Inputs and Operations'!1:1,'Inputs and Operations'!144:144) -> 9411.821039 | CU112: =LOOKUP(CU111,'Inputs and Operations'!1:1,'Inputs and Operations'!144:144) -> 9312.879761 | CV112: =LOOKUP(CV111,'Inputs and Operations'!1:1,'Inputs and Operations'!144:144) -> 9600.05746 | CW112: =LOOKUP(CW111,'Inputs and Operations'!1:1,'Inputs and Operations'!144:144) -> 9564.619162 | CX112: =LOOKUP(CX111,'Inputs and Operations'!1:1,'Inputs and Operations'!144:144) -> 9792.058609 | CY112: =LOOKUP(CY111,'Inputs and Operations'!1:1,'Inputs and Operations'!144:144) -> 9689.120103 | CZ112: =LOOKUP(CZ111,'Inputs and Operations'!1:1,'Inputs and Operations'!144:144) -> 9987.899782 | DA112: =LOOKUP(DA111,'Inputs and Operations'!1:1,'Inputs and Operations'!144:144) -> 9882.902505 | DB112: =LOOKUP(DB111,'Inputs and Operations'!1:1,'Inputs and Operations'!144:144) -> 10187.65778 | DC112: =LOOKUP(DC111,'Inputs and Operations'!1:1,'Inputs and Operations'!144:144) -> 0 | DD112: =LOOKUP(DD111,'Inputs and Operations'!1:1,'Inputs and Operations'!144:144) -> 0 | DE112: =LOOKUP(DE111,'Inputs and Operations'!1:1,'Inputs and Operations'!144:144) -> 0 | DF112: =LOOKUP(DF111,'Inputs and Operations'!1:1,'Inputs and Operations'!144:144) -> 0 | DG112: =LOOKUP(DG111,'Inputs and Operations'!1:1,'Inputs and Operations'!144:144) -> 0 | DH112: =LOOKUP(DH111,'Inputs and Operations'!1:1,'Inputs and Operations'!144:144) -> 0 | DI112: =LOOKUP(DI111,'Inputs and Operations'!1:1,'Inputs and Operations'!144:144) -> 0 | DJ112: =LOOKUP(DJ111,'Inputs and Operations'!1:1,'Inputs and Operations'!144:144) -> 0 | DK112: =LOOKUP(DK111,'Inputs and Operations'!1:1,'Inputs and Operations'!144:144) -> 0 | DL112: =LOOKUP(DL111,'Inputs and Operations'!1:1,'Inputs and Operations'!144:144) -> 0 | DM112: =LOOKUP(DM111,'Inputs and Operations'!1:1,'Inputs and Operations'!144:144) -> 0 | DN112: =LOOKUP(DN111,'Inputs and Operations'!1:1,'Inputs and Operations'!144:144) -> 0 | DO112: =LOOKUP(DO111,'Inputs and Operations'!1:1,'Inputs and Operations'!144:144) -> 0 | DP112: =LOOKUP(DP111,'Inputs and Operations'!1:1,'Inputs and Operations'!144:144) -> 0 | DQ112: =LOOKUP(DQ111,'Inputs and Operations'!1:1,'Inputs and Operations'!144:144) -> 0 | DR112: =LOOKUP(DR111,'Inputs and Operations'!1:1,'Inputs and Operations'!144:144) -> 0 | DS112: =LOOKUP(DS111,'Inputs and Operations'!1:1,'Inputs and Operations'!144:144) -> 0 | DT112: =LOOKUP(DT111,'Inputs and Operations'!1:1,'Inputs and Operations'!144:144) -> 0 | DU112: =LOOKUP(DU111,'Inputs and Operations'!1:1,'Inputs and Operations'!144:144) -> 0 | DV112: =LOOKUP(DV111,'Inputs and Operations'!1:1,'Inputs and Operations'!144:144) -> 0 | DW112: =LOOKUP(DW111,'Inputs and Operations'!1:1,'Inputs and Operations'!144:144) -> 0 | DX112: =LOOKUP(DX111,'Inputs and Operations'!1:1,'Inputs and Operations'!144:144) -> 0 | DY112: =LOOKUP(DY111,'Inputs and Operations'!1:1,'Inputs and Operations'!144:144) -> 0 | DZ112: =LOOKUP(DZ111,'Inputs and Operations'!1:1,'Inputs and Operations'!144:144) -> 0 | EA112: =LOOKUP(EA111,'Inputs and Operations'!1:1,'Inputs and Operations'!144:144) -> 0 | EB112: =LOOKUP(EB111,'Inputs and Operations'!1:1,'Inputs and Operations'!144:144) -> 0 | EC112: =LOOKUP(EC111,'Inputs and Operations'!1:1,'Inputs and Operations'!144:144) -> 0 | ED112: =LOOKUP(ED111,'Inputs and Operations'!1:1,'Inputs and Operations'!144:144) -> 0 | EE112: =LOOKUP(EE111,'Inputs and Operations'!1:1,'Inputs and Operations'!144:144) -> 0 | EF112: =LOOKUP(EF111,'Inputs and Operations'!1:1,'Inputs and Operations'!144:144) -> 0 | EG112: =LOOKUP(EG111,'Inputs and Operations'!1:1,'Inputs and Operations'!144:144) -> 0 | EH112: =LOOKUP(EH111,'Inputs and Operations'!1:1,'Inputs and Operations'!144:144) -> 0 | EI112: =LOOKUP(EI111,'Inputs and Operations'!1:1,'Inputs and Operations'!144:144) -> 0 | EJ112: =LOOKUP(EJ111,'Inputs and Operations'!1:1,'Inputs and Operations'!144:144) -> 0 | EK112: =LOOKUP(EK111,'Inputs and Operations'!1:1,'Inputs and Operations'!144:144) -> 0 | EL112: =LOOKUP(EL111,'Inputs and Operations'!1:1,'Inputs and Operations'!144:144) -> 0 | EM112: =LOOKUP(EM111,'Inputs and Operations'!1:1,'Inputs and Operations'!144:144) -> 0 | EN112: =LOOKUP(EN111,'Inputs and Operations'!1:1,'Inputs and Operations'!144:144) -> 0 | EO112: =LOOKUP(EO111,'Inputs and Operations'!1:1,'Inputs and Operations'!144:144) -> 0 | EP112: =LOOKUP(EP111,'Inputs and Operations'!1:1,'Inputs and Operations'!144:144) -> 0 | EQ112: =LOOKUP(EQ111,'Inputs and Operations'!1:1,'Inputs and Operations'!144:144) -> 0 | ER112: =LOOKUP(ER111,'Inputs and Operations'!1:1,'Inputs and Operations'!144:144) -> 0 | ES112: =LOOKUP(ES111,'Inputs and Operations'!1:1,'Inputs and Operations'!144:144) -> 0 | ET112: =LOOKUP(ET111,'Inputs and Operations'!1:1,'Inputs and Operations'!144:144) -> 0 | EU112: =LOOKUP(EU111,'Inputs and Operations'!1:1,'Inputs and Operations'!144:144) -> 0 | EV112: =LOOKUP(EV111,'Inputs and Operations'!1:1,'Inputs and Operations'!144:144) -> 0 | EW112: =LOOKUP(EW111,'Inputs and Operations'!1:1,'Inputs and Operations'!144:144) -> 0 | EX112: =LOOKUP(EX111,'Inputs and Operations'!1:1,'Inputs and Operations'!144:144) -> 0 | EY112: =LOOKUP(EY111,'Inputs and Operations'!1:1,'Inputs and Operations'!144:144) -> 0 | EZ112: =LOOKUP(EZ111,'Inputs and Operations'!1:1,'Inputs and Operations'!144:144) -> 0
C113: EBITDA - P99 | J113: =LOOKUP(J111,'Inputs and Operations'!1:1,'Inputs and Operations'!185:185) -> 0 | K113: =LOOKUP(K111,'Inputs and Operations'!1:1,'Inputs and Operations'!185:185) -> 0 | L113: =LOOKUP(L111,'Inputs and Operations'!1:1,'Inputs and Operations'!185:185) -> 0 | M113: =LOOKUP(M111,'Inputs and Operations'!1:1,'Inputs and Operations'!185:185) -> 0 | N113: =LOOKUP(N111,'Inputs and Operations'!1:1,'Inputs and Operations'!185:185) -> 0 | O113: =LOOKUP(O111,'Inputs and Operations'!1:1,'Inputs and Operations'!185:185) -> 0 | P113: =LOOKUP(P111,'Inputs and Operations'!1:1,'Inputs and Operations'!185:185) -> 0 | Q113: =LOOKUP(Q111,'Inputs and Operations'!1:1,'Inputs and Operations'!185:185) -> 0 | R113: =LOOKUP(R111,'Inputs and Operations'!1:1,'Inputs and Operations'!185:185) -> 0 | S113: =LOOKUP(S111,'Inputs and Operations'!1:1,'Inputs and Operations'!185:185) -> 0 | T113: =LOOKUP(T111,'Inputs and Operations'!1:1,'Inputs and Operations'!185:185) -> 0 | U113: =LOOKUP(U111,'Inputs and Operations'!1:1,'Inputs and Operations'!185:185) -> 0 | V113: =LOOKUP(V111,'Inputs and Operations'!1:1,'Inputs and Operations'!185:185) -> 0 | W113: =LOOKUP(W111,'Inputs and Operations'!1:1,'Inputs and Operations'!185:185) -> 0 | X113: =LOOKUP(X111,'Inputs and Operations'!1:1,'Inputs and Operations'!185:185) -> 0 | Y113: =LOOKUP(Y111,'Inputs and Operations'!1:1,'Inputs and Operations'!185:185) -> 0 | Z113: =LOOKUP(Z111,'Inputs and Operations'!1:1,'Inputs and Operations'!185:185) -> 0 | AA113: =LOOKUP(AA111,'Inputs and Operations'!1:1,'Inputs and Operations'!185:185) -> 0 | AB113: =LOOKUP(AB111,'Inputs and Operations'!1:1,'Inputs and Operations'!185:185) -> 0 | AC113: =LOOKUP(AC111,'Inputs and Operations'!1:1,'Inputs and Operations'!185:185) -> 0 | AD113: =LOOKUP(AD111,'Inputs and Operations'!1:1,'Inputs and Operations'!185:185) -> 0 | AE113: =LOOKUP(AE111,'Inputs and Operations'!1:1,'Inputs and Operations'!185:185) -> 0 | AF113: =LOOKUP(AF111,'Inputs and Operations'!1:1,'Inputs and Operations'!185:185) -> 0 | AG113: =LOOKUP(AG111,'Inputs and Operations'!1:1,'Inputs and Operations'!185:185) -> 0 | AH113: =LOOKUP(AH111,'Inputs and Operations'!1:1,'Inputs and Operations'!185:185) -> 0 | AI113: =LOOKUP(AI111,'Inputs and Operations'!1:1,'Inputs and Operations'!185:185) -> 0 | AJ113: =LOOKUP(AJ111,'Inputs and Operations'!1:1,'Inputs and Operations'!185:185) -> 0 | AK113: =LOOKUP(AK111,'Inputs and Operations'!1:1,'Inputs and Operations'!185:185) -> 0 | AL113: =LOOKUP(AL111,'Inputs and Operations'!1:1,'Inputs and Operations'!185:185) -> 0 | AM113: =LOOKUP(AM111,'Inputs and Operations'!1:1,'Inputs and Operations'!185:185) -> 0 | AN113: =LOOKUP(AN111,'Inputs and Operations'!1:1,'Inputs and Operations'!185:185) -> 0 | AO113: =LOOKUP(AO111,'Inputs and Operations'!1:1,'Inputs and Operations'!185:185) -> 0 | AP113: =LOOKUP(AP111,'Inputs and Operations'!1:1,'Inputs and Operations'!185:185) -> 0 | AQ113: =LOOKUP(AQ111,'Inputs and Operations'!1:1,'Inputs and Operations'!185:185) -> 0 | AR113: =LOOKUP(AR111,'Inputs and Operations'!1:1,'Inputs and Operations'!185:185) -> 0 | AS113: =LOOKUP(AS111,'Inputs and Operations'!1:1,'Inputs and Operations'!185:185) -> 0 | AT113: =LOOKUP(AT111,'Inputs and Operations'!1:1,'Inputs and Operations'!185:185) -> 0 | AU113: =LOOKUP(AU111,'Inputs and Operations'!1:1,'Inputs and Operations'!185:185) -> 3597.675923 | AV113: =LOOKUP(AV111,'Inputs and Operations'!1:1,'Inputs and Operations'!185:185) -> 3716.774566 | AW113: =LOOKUP(AW111,'Inputs and Operations'!1:1,'Inputs and Operations'!185:185) -> 3669.629441 | AX113: =LOOKUP(AX111,'Inputs and Operations'!1:1,'Inputs and Operations'!185:185) -> 3791.110058 | AY113: =LOOKUP(AY111,'Inputs and Operations'!1:1,'Inputs and Operations'!185:185) -> 3743.02203 | AZ113: =LOOKUP(AZ111,'Inputs and Operations'!1:1,'Inputs and Operations'!185:185) -> 3866.932259 | BA113: =LOOKUP(BA111,'Inputs and Operations'!1:1,'Inputs and Operations'!185:185) -> 3847.058362 | BB113: =LOOKUP(BB111,'Inputs and Operations'!1:1,'Inputs and Operations'!185:185) -> 3944.270904 | BC113: =LOOKUP(BC111,'Inputs and Operations'!1:1,'Inputs and Operations'!185:185) -> 3894.24012 | BD113: =LOOKUP(BD111,'Inputs and Operations'!1:1,'Inputs and Operations'!185:185) -> 4023.156322 | BE113: =LOOKUP(BE111,'Inputs and Operations'!1:1,'Inputs and Operations'!185:185) -> 3972.124923 | BF113: =LOOKUP(BF111,'Inputs and Operations'!1:1,'Inputs and Operations'!185:185) -> 4103.619449 | BG113: =LOOKUP(BG111,'Inputs and Operations'!1:1,'Inputs and Operations'!185:185) -> 4051.567421 | BH113: =LOOKUP(BH111,'Inputs and Operations'!1:1,'Inputs and Operations'!185:185) -> 4185.691838 | BI113: =LOOKUP(BI111,'Inputs and Operations'!1:1,'Inputs and Operations'!185:185) -> 4164.179692 | BJ113: =LOOKUP(BJ111,'Inputs and Operations'!1:1,'Inputs and Operations'!185:185) -> 4269.405674 | BK113: =LOOKUP(BK111,'Inputs and Operations'!1:1,'Inputs and Operations'!185:185) -> 4215.250745 | BL113: =LOOKUP(BL111,'Inputs and Operations'!1:1,'Inputs and Operations'!185:185) -> 4354.793788 | BM113: =LOOKUP(BM111,'Inputs and Operations'!1:1,'Inputs and Operations'!185:185) -> 4299.55576 | BN113: =LOOKUP(BN111,'Inputs and Operations'!1:1,'Inputs and Operations'!185:185) -> 4441.889664 | BO113: =LOOKUP(BO111,'Inputs and Operations'!1:1,'Inputs and Operations'!185:185) -> 4385.546875 | BP113: =LOOKUP(BP111,'Inputs and Operations'!1:1,'Inputs and Operations'!185:185) -> 4530.727457 | BQ113: =LOOKUP(BQ111,'Inputs and Operations'!1:1,'Inputs and Operations'!185:185) -> 4507.442019 | BR113: =LOOKUP(BR111,'Inputs and Operations'!1:1,'Inputs and Operations'!185:185) -> 4621.342006 | BS113: =LOOKUP(BS111,'Inputs and Operations'!1:1,'Inputs and Operations'!185:185) -> 4562.722969 | BT113: =LOOKUP(BT111,'Inputs and Operations'!1:1,'Inputs and Operations'!185:185) -> 4713.768846 | BU113: =LOOKUP(BU111,'Inputs and Operations'!1:1,'Inputs and Operations'!185:185) -> 4653.977428 | BV113: =LOOKUP(BV111,'Inputs and Operations'!1:1,'Inputs and Operations'!185:185) -> 4808.044223 | BW113: =LOOKUP(BW111,'Inputs and Operations'!1:1,'Inputs and Operations'!185:185) -> 4747.056977 | BX113: =LOOKUP(BX111,'Inputs and Operations'!1:1,'Inputs and Operations'!185:185) -> 4904.205107 | BY113: =LOOKUP(BY111,'Inputs and Operations'!1:1,'Inputs and Operations'!185:185) -> 4879.000201 | BZ113: =LOOKUP(BZ111,'Inputs and Operations'!1:1,'Inputs and Operations'!185:185) -> 5002.28921 | CA113: =LOOKUP(CA111,'Inputs and Operations'!1:1,'Inputs and Operations'!185:185) -> 4938.838079 | CB113: =LOOKUP(CB111,'Inputs and Operations'!1:1,'Inputs and Operations'!185:185) -> 5102.334994 | CC113: =LOOKUP(CC111,'Inputs and Operations'!1:1,'Inputs and Operations'!185:185) -> 5037.61484 | CD113: =LOOKUP(CD111,'Inputs and Operations'!1:1,'Inputs and Operations'!185:185) -> 5204.381694 | CE113: =LOOKUP(CE111,'Inputs and Operations'!1:1,'Inputs and Operations'!185:185) -> 5138.367137 | CF113: =LOOKUP(CF111,'Inputs and Operations'!1:1,'Inputs and Operations'!185:185) -> 5308.469328 | CG113: =LOOKUP(CG111,'Inputs and Operations'!1:1,'Inputs and Operations'!185:185) -> 5281.186726 | CH113: =LOOKUP(CH111,'Inputs and Operations'!1:1,'Inputs and Operations'!185:185) -> 5414.638714 | CI113: =LOOKUP(CI111,'Inputs and Operations'!1:1,'Inputs and Operations'!185:185) -> 5345.957169 | CJ113: =LOOKUP(CJ111,'Inputs and Operations'!1:1,'Inputs and Operations'!185:185) -> 5522.931488 | CK113: =LOOKUP(CK111,'Inputs and Operations'!1:1,'Inputs and Operations'!185:185) -> 5452.876313 | CL113: =LOOKUP(CL111,'Inputs and Operations'!1:1,'Inputs and Operations'!185:185) -> 5633.390118 | CM113: =LOOKUP(CM111,'Inputs and Operations'!1:1,'Inputs and Operations'!185:185) -> 5561.933839 | CN113: =LOOKUP(CN111,'Inputs and Operations'!1:1,'Inputs and Operations'!185:185) -> 5746.057921 | CO113: =LOOKUP(CO111,'Inputs and Operations'!1:1,'Inputs and Operations'!185:185) -> 5716.526355 | CP113: =LOOKUP(CP111,'Inputs and Operations'!1:1,'Inputs and Operations'!185:185) -> 5860.979079 | CQ113: =LOOKUP(CQ111,'Inputs and Operations'!1:1,'Inputs and Operations'!185:185) -> 5786.635966 | CR113: =LOOKUP(CR111,'Inputs and Operations'!1:1,'Inputs and Operations'!185:185) -> 5978.198661 | CS113: =LOOKUP(CS111,'Inputs and Operations'!1:1,'Inputs and Operations'!185:185) -> 5902.368685 | CT113: =LOOKUP(CT111,'Inputs and Operations'!1:1,'Inputs and Operations'!185:185) -> 6097.762634 | CU113: =LOOKUP(CU111,'Inputs and Operations'!1:1,'Inputs and Operations'!185:185) -> 6020.416059 | CV113: =LOOKUP(CV111,'Inputs and Operations'!1:1,'Inputs and Operations'!185:185) -> 6219.717886 | CW113: =LOOKUP(CW111,'Inputs and Operations'!1:1,'Inputs and Operations'!185:185) -> 6187.75197 | CX113: =LOOKUP(CX111,'Inputs and Operations'!1:1,'Inputs and Operations'!185:185) -> 6344.112244 | CY113: =LOOKUP(CY111,'Inputs and Operations'!1:1,'Inputs and Operations'!185:185) -> 6263.640868 | CZ113: =LOOKUP(CZ111,'Inputs and Operations'!1:1,'Inputs and Operations'!185:185) -> 6470.994489 | DA113: =LOOKUP(DA111,'Inputs and Operations'!1:1,'Inputs and Operations'!185:185) -> 6388.913685 | DB113: =LOOKUP(DB111,'Inputs and Operations'!1:1,'Inputs and Operations'!185:185) -> 6600.414379 | DC113: =LOOKUP(DC111,'Inputs and Operations'!1:1,'Inputs and Operations'!185:185) -> 0 | DD113: =LOOKUP(DD111,'Inputs and Operations'!1:1,'Inputs and Operations'!185:185) -> 0 | DE113: =LOOKUP(DE111,'Inputs and Operations'!1:1,'Inputs and Operations'!185:185) -> 0 | DF113: =LOOKUP(DF111,'Inputs and Operations'!1:1,'Inputs and Operations'!185:185) -> 0 | DG113: =LOOKUP(DG111,'Inputs and Operations'!1:1,'Inputs and Operations'!185:185) -> 0 | DH113: =LOOKUP(DH111,'Inputs and Operations'!1:1,'Inputs and Operations'!185:185) -> 0 | DI113: =LOOKUP(DI111,'Inputs and Operations'!1:1,'Inputs and Operations'!185:185) -> 0 | DJ113: =LOOKUP(DJ111,'Inputs and Operations'!1:1,'Inputs and Operations'!185:185) -> 0 | DK113: =LOOKUP(DK111,'Inputs and Operations'!1:1,'Inputs and Operations'!185:185) -> 0 | DL113: =LOOKUP(DL111,'Inputs and Operations'!1:1,'Inputs and Operations'!185:185) -> 0 | DM113: =LOOKUP(DM111,'Inputs and Operations'!1:1,'Inputs and Operations'!185:185) -> 0 | DN113: =LOOKUP(DN111,'Inputs and Operations'!1:1,'Inputs and Operations'!185:185) -> 0 | DO113: =LOOKUP(DO111,'Inputs and Operations'!1:1,'Inputs and Operations'!185:185) -> 0 | DP113: =LOOKUP(DP111,'Inputs and Operations'!1:1,'Inputs and Operations'!185:185) -> 0 | DQ113: =LOOKUP(DQ111,'Inputs and Operations'!1:1,'Inputs and Operations'!185:185) -> 0 | DR113: =LOOKUP(DR111,'Inputs and Operations'!1:1,'Inputs and Operations'!185:185) -> 0 | DS113: =LOOKUP(DS111,'Inputs and Operations'!1:1,'Inputs and Operations'!185:185) -> 0 | DT113: =LOOKUP(DT111,'Inputs and Operations'!1:1,'Inputs and Operations'!185:185) -> 0 | DU113: =LOOKUP(DU111,'Inputs and Operations'!1:1,'Inputs and Operations'!185:185) -> 0 | DV113: =LOOKUP(DV111,'Inputs and Operations'!1:1,'Inputs and Operations'!185:185) -> 0 | DW113: =LOOKUP(DW111,'Inputs and Operations'!1:1,'Inputs and Operations'!185:185) -> 0 | DX113: =LOOKUP(DX111,'Inputs and Operations'!1:1,'Inputs and Operations'!185:185) -> 0 | DY113: =LOOKUP(DY111,'Inputs and Operations'!1:1,'Inputs and Operations'!185:185) -> 0 | DZ113: =LOOKUP(DZ111,'Inputs and Operations'!1:1,'Inputs and Operations'!185:185) -> 0 | EA113: =LOOKUP(EA111,'Inputs and Operations'!1:1,'Inputs and Operations'!185:185) -> 0 | EB113: =LOOKUP(EB111,'Inputs and Operations'!1:1,'Inputs and Operations'!185:185) -> 0 | EC113: =LOOKUP(EC111,'Inputs and Operations'!1:1,'Inputs and Operations'!185:185) -> 0 | ED113: =LOOKUP(ED111,'Inputs and Operations'!1:1,'Inputs and Operations'!185:185) -> 0 | EE113: =LOOKUP(EE111,'Inputs and Operations'!1:1,'Inputs and Operations'!185:185) -> 0 | EF113: =LOOKUP(EF111,'Inputs and Operations'!1:1,'Inputs and Operations'!185:185) -> 0 | EG113: =LOOKUP(EG111,'Inputs and Operations'!1:1,'Inputs and Operations'!185:185) -> 0 | EH113: =LOOKUP(EH111,'Inputs and Operations'!1:1,'Inputs and Operations'!185:185) -> 0 | EI113: =LOOKUP(EI111,'Inputs and Operations'!1:1,'Inputs and Operations'!185:185) -> 0 | EJ113: =LOOKUP(EJ111,'Inputs and Operations'!1:1,'Inputs and Operations'!185:185) -> 0 | EK113: =LOOKUP(EK111,'Inputs and Operations'!1:1,'Inputs and Operations'!185:185) -> 0 | EL113: =LOOKUP(EL111,'Inputs and Operations'!1:1,'Inputs and Operations'!185:185) -> 0 | EM113: =LOOKUP(EM111,'Inputs and Operations'!1:1,'Inputs and Operations'!185:185) -> 0 | EN113: =LOOKUP(EN111,'Inputs and Operations'!1:1,'Inputs and Operations'!185:185) -> 0 | EO113: =LOOKUP(EO111,'Inputs and Operations'!1:1,'Inputs and Operations'!185:185) -> 0 | EP113: =LOOKUP(EP111,'Inputs and Operations'!1:1,'Inputs and Operations'!185:185) -> 0 | EQ113: =LOOKUP(EQ111,'Inputs and Operations'!1:1,'Inputs and Operations'!185:185) -> 0 | ER113: =LOOKUP(ER111,'Inputs and Operations'!1:1,'Inputs and Operations'!185:185) -> 0 | ES113: =LOOKUP(ES111,'Inputs and Operations'!1:1,'Inputs and Operations'!185:185) -> 0 | ET113: =LOOKUP(ET111,'Inputs and Operations'!1:1,'Inputs and Operations'!185:185) -> 0 | EU113: =LOOKUP(EU111,'Inputs and Operations'!1:1,'Inputs and Operations'!185:185) -> 0 | EV113: =LOOKUP(EV111,'Inputs and Operations'!1:1,'Inputs and Operations'!185:185) -> 0 | EW113: =LOOKUP(EW111,'Inputs and Operations'!1:1,'Inputs and Operations'!185:185) -> 0 | EX113: =LOOKUP(EX111,'Inputs and Operations'!1:1,'Inputs and Operations'!185:185) -> 0 | EY113: =LOOKUP(EY111,'Inputs and Operations'!1:1,'Inputs and Operations'!185:185) -> 0 | EZ113: =LOOKUP(EZ111,'Inputs and Operations'!1:1,'Inputs and Operations'!185:185) -> 0
C114: EBITDA Applied (P50 is TRUE) | F114: =F19 -> TRUE | J114: =IF($F$114,J112,J113) -> 0 | K114: 0 | L114: 0 | M114: 0 | N114: 0 | O114: 0 | P114: 0 | Q114: 0 | R114: 0 | S114: 0 | T114: 0 | U114: 0 | V114: 0 | W114: 0 | X114: 0 | Y114: 0 | Z114: 0 | AA114: 0 | AB114: 0 | AC114: 0 | AD114: 0 | AE114: 0 | AF114: 0 | AG114: 0 | AH114: 0 | AI114: 0 | AJ114: 0 | AK114: 0 | AL114: 0 | AM114: 0 | AN114: 0 | AO114: 0 | AP114: =IF($F$114,AP112,AP113) -> 0 | AQ114: 0 | AR114: 0 | AS114: 0 | AT114: 0 | AU114: 5565.184027 | AV114: 5736.795471 | AW114: 5676.487708 | AX114: 5851.531381 | AY114: 5790.017462 | AZ114: 5968.562008 | BA114: 5946.529257 | BB114: 6087.933249 | BC114: 6023.934167 | BD114: 6209.691914 | BE114: 6144.412851 | BF114: 6333.885752 | BG114: 6267.301108 | BH114: 6460.563467 | BI114: 6436.714508 | BJ114: 6589.774736 | BK114: 6520.500072 | BL114: 6721.570231 | BM114: 6650.910074 | BN114: 6856.001636 | BO114: 6783.928275 | BP114: 6993.121668 | BQ114: 6967.306788 | BR114: 7132.984102 | BS114: 7057.998978 | BT114: 7275.643784 | BU114: 7199.158957 | BV114: =IF($F$114,BV112,BV113) -> 7421.156659 | BW114: 7343.142136 | BX114: 7569.579793 | BY114: 7541.636936 | BZ114: 7720.971388 | CA114: 7639.805079 | CB114: 7875.390816 | CC114: 7792.60118 | CD114: 8032.898633 | CE114: 7948.453204 | CF114: 8193.556605 | CG114: 8163.310359 | CH114: 8357.427737 | CI114: 8269.570713 | CJ114: 8524.576292 | CK114: 8434.962128 | CL114: 8695.067818 | CM114: 8603.66137 | CN114: 8868.969174 | CO114: 8836.229664 | CP114: 9046.348558 | CQ114: 8951.249289 | CR114: 9227.275529 | CS114: 9130.274275 | CT114: 9411.821039 | CU114: 9312.879761 | CV114: 9600.05746 | CW114: 9564.619162 | CX114: 9792.058609 | CY114: 9689.120103 | CZ114: 9987.899782 | DA114: 9882.902505 | DB114: =IF($F$114,DB112,DB113) -> 10187.65778 | DC114: 0 | DD114: 0 | DE114: 0 | DF114: 0 | DG114: 0 | DH114: 0 | DI114: 0 | DJ114: 0 | DK114: 0 | DL114: 0 | DM114: 0 | DN114: 0 | DO114: 0 | DP114: 0 | DQ114: 0 | DR114: 0 | DS114: 0 | DT114: 0 | DU114: 0 | DV114: 0 | DW114: 0 | DX114: 0 | DY114: 0 | DZ114: 0 | EA114: 0 | EB114: 0 | EC114: 0 | ED114: 0 | EE114: 0 | EF114: 0 | EG114: 0 | EH114: =IF($F$114,EH112,EH113) -> 0 | EI114: 0 | EJ114: 0 | EK114: 0 | EL114: 0 | EM114: 0 | EN114: 0 | EO114: 0 | EP114: 0 | EQ114: 0 | ER114: 0 | ES114: 0 | ET114: 0 | EU114: 0 | EV114: 0 | EW114: 0 | EX114: 0 | EY114: 0 | EZ114: 0
C116: Construction Period | J116: =I116+J7 -> 1 | K116: 2 | L116: 3 | M116: 4 | N116: 5 | O116: 6 | P116: 7 | Q116: 8 | R116: 9 | S116: 10 | T116: 11 | U116: 12 | V116: 13 | W116: 14 | X116: 15 | Y116: 16 | Z116: 17 | AA116: 18 | AB116: 19 | AC116: 20 | AD116: 21 | AE116: 22 | AF116: 23 | AG116: 24 | AH116: 25 | AI116: 26 | AJ116: 27 | AK116: 28 | AL116: 29 | AM116: 30 | AN116: 31 | AO116: 32 | AP116: =AO116+AP7 -> 33 | AQ116: 34 | AR116: 35 | AS116: 36 | AT116: 36 | AU116: 36 | AV116: 36 | AW116: 36 | AX116: 36 | AY116: 36 | AZ116: 36 | BA116: 36 | BB116: 36 | BC116: 36 | BD116: 36 | BE116: 36 | BF116: 36 | BG116: 36 | BH116: 36 | BI116: 36 | BJ116: 36 | BK116: 36 | BL116: 36 | BM116: 36 | BN116: 36 | BO116: 36 | BP116: 36 | BQ116: 36 | BR116: 36 | BS116: 36 | BT116: 36 | BU116: 36 | BV116: =BU116+BV7 -> 36 | BW116: 36 | BX116: 36 | BY116: 36 | BZ116: 36 | CA116: 36 | CB116: 36 | CC116: 36 | CD116: 36 | CE116: 36 | CF116: 36 | CG116: 36 | CH116: 36 | CI116: 36 | CJ116: 36 | CK116: 36 | CL116: 36 | CM116: 36 | CN116: 36 | CO116: 36 | CP116: 36 | CQ116: 36 | CR116: 36 | CS116: 36 | CT116: 36 | CU116: 36 | CV116: 36 | CW116: 36 | CX116: 36 | CY116: 36 | CZ116: 36 | DA116: 36 | DB116: =DA116+DB7 -> 36 | DC116: 36 | DD116: 36 | DE116: 36 | DF116: 36 | DG116: 36 | DH116: 36 | DI116: 36 | DJ116: 36 | DK116: 36 | DL116: 36 | DM116: 36 | DN116: 36 | DO116: 36 | DP116: 36 | DQ116: 36 | DR116: 36 | DS116: 36 | DT116: 36 | DU116: 36 | DV116: 36 | DW116: 36 | DX116: 36 | DY116: 36 | DZ116: 36 | EA116: 36 | EB116: 36 | EC116: 36 | ED116: 36 | EE116: 36 | EF116: 36 | EG116: 36 | EH116: =EG116+EH7 -> 36 | EI116: 36 | EJ116: 36 | EK116: 36 | EL116: 36 | EM116: 36 | EN116: 36 | EO116: 36 | EP116: 36 | EQ116: 36 | ER116: 36 | ES116: 36 | ET116: 36 | EU116: 36 | EV116: 36 | EW116: 36 | EX116: 36 | EY116: 36 | EZ116: 36
C117: Unadjusted Normal | G117: =F24 -> 14.4 | H117: =F25 -> 9 | J117: =_xlfn.NORM.DIST(J116,$G$117,$H$117,0)*J7 -> 0.01463179802 | K117: 0.0171578598 | L117: 0.01987315739 | M117: 0.02273573345 | N117: 0.02569149671 | O117: 0.02867531399 | P117: 0.03161296993 | Q117: 0.0344239541 | R117: 0.03702495588 | S117: 0.03933387062 | T117: 0.04127405704 | U117: 0.04277854162 | V117: 0.04379385028 | W117: 0.04428316198 | X117: 0.04422852515 | Y117: 0.04363195084 | Z117: 0.04251528989 | AA117: 0.04091890448 | AB117: 0.03889924666 | AC117: 0.03652554656 | AD117: 0.03387588077 | AE117: 0.03103293186 | AF117: 0.02807975793 | AG117: 0.02509586972 | AH117: 0.02215386385 | AI117: 0.01931679422 | AJ117: 0.01663638507 | AK117: 0.01415211062 | AL117: 0.01189109379 | AM117: 0.009868717899 | AN117: 0.008089804087 | AO117: 0.006550185717 | AP117: =_xlfn.NORM.DIST(AP116,$G$117,$H$117,0)*AP7 -> 0.005238507413 | AQ117: 0.004138089235 | AR117: 0.003228720716 | AS117: 0.002488281144 | AT117: 0 | AU117: 0 | AV117: 0 | AW117: 0 | AX117: 0 | AY117: 0 | AZ117: 0 | BA117: 0 | BB117: 0 | BC117: 0 | BD117: 0 | BE117: 0 | BF117: 0 | BG117: 0 | BH117: 0 | BI117: 0 | BJ117: 0 | BK117: 0 | BL117: 0 | BM117: 0 | BN117: 0 | BO117: 0 | BP117: 0 | BQ117: 0 | BR117: 0 | BS117: 0 | BT117: 0 | BU117: 0 | BV117: =_xlfn.NORM.DIST(BV116,$G$117,$H$117,0)*BV7 -> 0 | BW117: 0 | BX117: 0 | BY117: 0 | BZ117: 0 | CA117: 0 | CB117: 0 | CC117: 0 | CD117: 0 | CE117: 0 | CF117: 0 | CG117: 0 | CH117: 0 | CI117: 0 | CJ117: 0 | CK117: 0 | CL117: 0 | CM117: 0 | CN117: 0 | CO117: 0 | CP117: 0 | CQ117: 0 | CR117: 0 | CS117: 0 | CT117: 0 | CU117: 0 | CV117: 0 | CW117: 0 | CX117: 0 | CY117: 0 | CZ117: 0 | DA117: 0 | DB117: =_xlfn.NORM.DIST(DB116,$G$117,$H$117,0)*DB7 -> 0 | DC117: 0 | DD117: 0 | DE117: 0 | DF117: 0 | DG117: 0 | DH117: 0 | DI117: 0 | DJ117: 0 | DK117: 0 | DL117: 0 | DM117: 0 | DN117: 0 | DO117: 0 | DP117: 0 | DQ117: 0 | DR117: 0 | DS117: 0 | DT117: 0 | DU117: 0 | DV117: 0 | DW117: 0 | DX117: 0 | DY117: 0 | DZ117: 0 | EA117: 0 | EB117: 0 | EC117: 0 | ED117: 0 | EE117: 0 | EF117: 0 | EG117: 0 | EH117: =_xlfn.NORM.DIST(EH116,$G$117,$H$117,0)*EH7 -> 0 | EI117: 0 | EJ117: 0 | EK117: 0 | EL117: 0 | EM117: 0 | EN117: 0 | EO117: 0 | EP117: 0 | EQ117: 0 | ER117: 0 | ES117: 0 | ET117: 0 | EU117: 0 | EV117: 0 | EW117: 0 | EX117: 0 | EY117: 0 | EZ117: 0
C118: S-Curve (Adjusted Normal) | H118: =SUM(J117:EZ117) -> 0.9318471784 | J118: =J117/$H$118*J7 -> 0.01570192877 | K118: 0.01841273998 | L118: 0.02132662721 | M118: 0.02439856446 | N118: 0.02757050437 | O118: 0.03077255011 | P118: 0.03392505838 | Q118: 0.03694163045 | R118: 0.03973286257 | S118: 0.04221064519 | T118: 0.04429273168 | U118: 0.04590725026 | V118: 0.04699681589 | W118: 0.04752191455 | X118: 0.04746328172 | Y118: 0.04682307555 | Z118: 0.045624745 | AA118: 0.0439116042 | AB118: 0.041744234 | AC118: 0.03919692779 | AD118: 0.0363534725 | AE118: 0.03330259787 | AF118: 0.03013343667 | AG118: 0.02693131481 | AH118: 0.02377413847 | AI118: 0.02072957312 | AJ118: 0.01785312598 | AK118: 0.01518715831 | AL118: 0.01276077673 | AM118: 0.01059048965 | AN118: 0.008681470819 | AO118: 0.007029248861 | AP118: =AP117/$H$118*AP7 -> 0.005621637897 | AQ118: 0.004440738063 | AR118: 0.003464860753 | AS118: 0.002670267402 | AT118: 0 | AU118: 0 | AV118: 0 | AW118: 0 | AX118: 0 | AY118: 0 | AZ118: 0 | BA118: 0 | BB118: 0 | BC118: 0 | BD118: 0 | BE118: 0 | BF118: 0 | BG118: 0 | BH118: 0 | BI118: 0 | BJ118: 0 | BK118: 0 | BL118: 0 | BM118: 0 | BN118: 0 | BO118: 0 | BP118: 0 | BQ118: 0 | BR118: 0 | BS118: 0 | BT118: 0 | BU118: 0 | BV118: =BV117/$H$118*BV7 -> 0 | BW118: 0 | BX118: 0 | BY118: 0 | BZ118: 0 | CA118: 0 | CB118: 0 | CC118: 0 | CD118: 0 | CE118: 0 | CF118: 0 | CG118: 0 | CH118: 0 | CI118: 0 | CJ118: 0 | CK118: 0 | CL118: 0 | CM118: 0 | CN118: 0 | CO118: 0 | CP118: 0 | CQ118: 0 | CR118: 0 | CS118: 0 | CT118: 0 | CU118: 0 | CV118: 0 | CW118: 0 | CX118: 0 | CY118: 0 | CZ118: 0 | DA118: 0 | DB118: =DB117/$H$118*DB7 -> 0 | DC118: 0 | DD118: 0 | DE118: 0 | DF118: 0 | DG118: 0 | DH118: 0 | DI118: 0 | DJ118: 0 | DK118: 0 | DL118: 0 | DM118: 0 | DN118: 0 | DO118: 0 | DP118: 0 | DQ118: 0 | DR118: 0 | DS118: 0 | DT118: 0 | DU118: 0 | DV118: 0 | DW118: 0 | DX118: 0 | DY118: 0 | DZ118: 0 | EA118: 0 | EB118: 0 | EC118: 0 | ED118: 0 | EE118: 0 | EF118: 0 | EG118: 0 | EH118: =EH117/$H$118*EH7 -> 0 | EI118: 0 | EJ118: 0 | EK118: 0 | EL118: 0 | EM118: 0 | EN118: 0 | EO118: 0 | EP118: 0 | EQ118: 0 | ER118: 0 | ES118: 0 | ET118: 0 | EU118: 0 | EV118: 0 | EW118: 0 | EX118: 0 | EY118: 0 | EZ118: 0
D119: Capital Expenditures | G119: =F13 -> 36 | H119: =F23 -> 168000 | J119: =J118*$H$119 -> 2637.924033 | K119: 3093.340317 | L119: 3582.873371 | M119: 4098.958829 | N119: 4631.844734 | O119: 5169.788418 | P119: 5699.409807 | Q119: 6206.193916 | R119: 6675.120912 | S119: 7091.388392 | T119: 7441.178922 | U119: 7712.418043 | V119: 7895.46507 | W119: 7983.681644 | X119: 7973.831328 | Y119: 7866.276692 | Z119: 7664.957159 | AA119: 7377.149506 | AB119: 7013.031311 | AC119: 6585.083868 | AD119: 6107.38338 | AE119: 5594.836442 | AF119: 5062.41736 | AG119: 4524.460888 | AH119: 3994.055263 | AI119: 3482.568284 | AJ119: 2999.325165 | AK119: 2551.442596 | AL119: 2143.810491 | AM119: 1779.202261 | AN119: 1458.487098 | AO119: 1180.913809 | AP119: =AP118*$H$119 -> 944.4351668 | AQ119: 746.0439947 | AR119: 582.0966064 | AS119: 448.6049235 | AT119: 0 | AU119: 0 | AV119: 0 | AW119: 0 | AX119: 0 | AY119: 0 | AZ119: 0 | BA119: 0 | BB119: 0 | BC119: 0 | BD119: 0 | BE119: 0 | BF119: 0 | BG119: 0 | BH119: 0 | BI119: 0 | BJ119: 0 | BK119: 0 | BL119: 0 | BM119: 0 | BN119: 0 | BO119: 0 | BP119: 0 | BQ119: 0 | BR119: 0 | BS119: 0 | BT119: 0 | BU119: 0 | BV119: =BV118*$H$119 -> 0 | BW119: 0 | BX119: 0 | BY119: 0 | BZ119: 0 | CA119: 0 | CB119: 0 | CC119: 0 | CD119: 0 | CE119: 0 | CF119: 0 | CG119: 0 | CH119: 0 | CI119: 0 | CJ119: 0 | CK119: 0 | CL119: 0 | CM119: 0 | CN119: 0 | CO119: 0 | CP119: 0 | CQ119: 0 | CR119: 0 | CS119: 0 | CT119: 0 | CU119: 0 | CV119: 0 | CW119: 0 | CX119: 0 | CY119: 0 | CZ119: 0 | DA119: 0 | DB119: =DB118*$H$119 -> 0 | DC119: 0 | DD119: 0 | DE119: 0 | DF119: 0 | DG119: 0 | DH119: 0 | DI119: 0 | DJ119: 0 | DK119: 0 | DL119: 0 | DM119: 0 | DN119: 0 | DO119: 0 | DP119: 0 | DQ119: 0 | DR119: 0 | DS119: 0 | DT119: 0 | DU119: 0 | DV119: 0 | DW119: 0 | DX119: 0 | DY119: 0 | DZ119: 0 | EA119: 0 | EB119: 0 | EC119: 0 | ED119: 0 | EE119: 0 | EF119: 0 | EG119: 0 | EH119: =EH118*$H$119 -> 0 | EI119: 0 | EJ119: 0 | EK119: 0 | EL119: 0 | EM119: 0 | EN119: 0 | EO119: 0 | EP119: 0 | EQ119: 0 | ER119: 0 | ES119: 0 | ET119: 0 | EU119: 0 | EV119: 0 | EW119: 0 | EX119: 0 | EY119: 0 | EZ119: 0
C121: Pre-tax Project IRR | F121: =XIRR(J121:EZ121,J4:EZ4) -> 0.06375357807 | H121: =SUM(J121:EZ121) -> 290865.5752 | J121: =J114-J119 -> -2637.924033 | K121: =K114-K119 -> -3093.340317 | L121: -3582.873371 | M121: -4098.958829 | N121: -4631.844734 | O121: -5169.788418 | P121: -5699.409807 | Q121: -6206.193916 | R121: -6675.120912 | S121: -7091.388392 | T121: -7441.178922 | U121: -7712.418043 | V121: -7895.46507 | W121: -7983.681644 | X121: -7973.831328 | Y121: -7866.276692 | Z121: -7664.957159 | AA121: -7377.149506 | AB121: -7013.031311 | AC121: -6585.083868 | AD121: -6107.38338 | AE121: -5594.836442 | AF121: -5062.41736 | AG121: -4524.460888 | AH121: -3994.055263 | AI121: -3482.568284 | AJ121: -2999.325165 | AK121: -2551.442596 | AL121: -2143.810491 | AM121: -1779.202261 | AN121: -1458.487098 | AO121: -1180.913809 | AP121: -944.4351668 | AQ121: -746.0439947 | AR121: -582.0966064 | AS121: -448.6049235 | AT121: 0 | AU121: 5565.184027 | AV121: 5736.795471 | AW121: 5676.487708 | AX121: 5851.531381 | AY121: 5790.017462 | AZ121: 5968.562008 | BA121: 5946.529257 | BB121: 6087.933249 | BC121: 6023.934167 | BD121: 6209.691914 | BE121: 6144.412851 | BF121: 6333.885752 | BG121: 6267.301108 | BH121: 6460.563467 | BI121: 6436.714508 | BJ121: 6589.774736 | BK121: 6520.500072 | BL121: 6721.570231 | BM121: 6650.910074 | BN121: 6856.001636 | BO121: 6783.928275 | BP121: 6993.121668 | BQ121: 6967.306788 | BR121: 7132.984102 | BS121: 7057.998978 | BT121: 7275.643784 | BU121: 7199.158957 | BV121: 7421.156659 | BW121: =BW114-BW119 -> 7343.142136 | BX121: 7569.579793 | BY121: 7541.636936 | BZ121: 7720.971388 | CA121: 7639.805079 | CB121: 7875.390816 | CC121: 7792.60118 | CD121: 8032.898633 | CE121: 7948.453204 | CF121: 8193.556605 | CG121: 8163.310359 | CH121: 8357.427737 | CI121: 8269.570713 | CJ121: 8524.576292 | CK121: 8434.962128 | CL121: 8695.067818 | CM121: 8603.66137 | CN121: 8868.969174 | CO121: 8836.229664 | CP121: 9046.348558 | CQ121: 8951.249289 | CR121: 9227.275529 | CS121: 9130.274275 | CT121: 9411.821039 | CU121: 9312.879761 | CV121: 9600.05746 | CW121: 9564.619162 | CX121: 9792.058609 | CY121: 9689.120103 | CZ121: 9987.899782 | DA121: 9882.902505 | DB121: 10187.65778 | DC121: 0 | DD121: 0 | DE121: 0 | DF121: 0 | DG121: 0 | DH121: 0 | DI121: 0 | DJ121: 0 | DK121: 0 | DL121: 0 | DM121: 0 | DN121: 0 | DO121: 0 | DP121: 0 | DQ121: 0 | DR121: 0 | DS121: 0 | DT121: 0 | DU121: 0 | DV121: 0 | DW121: 0 | DX121: 0 | DY121: 0 | DZ121: 0 | EA121: 0 | EB121: 0 | EC121: 0 | ED121: 0 | EE121: 0 | EF121: 0 | EG121: 0 | EH121: 0 | EI121: =EI114-EI119 -> 0 | EJ121: 0 | EK121: 0 | EL121: 0 | EM121: 0 | EN121: 0 | EO121: 0 | EP121: 0 | EQ121: 0 | ER121: 0 | ES121: 0 | ET121: 0 | EU121: 0 | EV121: 0 | EW121: 0 | EX121: 0 | EY121: 0 | EZ121: 0
C123: Accumulated Plant | J123: =I123+J119 -> 2637.924033 | K123: 5731.26435 | L123: 9314.13772 | M123: 13413.09655 | N123: 18044.94128 | O123: 23214.7297 | P123: 28914.13951 | Q123: 35120.33342 | R123: 41795.45434 | S123: 48886.84273 | T123: 56328.02165 | U123: 64040.43969 | V123: 71935.90476 | W123: 79919.58641 | X123: 87893.41774 | Y123: 95759.69443 | Z123: 103424.6516 | AA123: 110801.8011 | AB123: 117814.8324 | AC123: 124399.9163 | AD123: 130507.2997 | AE123: 136102.1361 | AF123: 141164.5535 | AG123: 145689.0143 | AH123: 149683.0696 | AI123: 153165.6379 | AJ123: 156164.9631 | AK123: 158716.4056 | AL123: 160860.2161 | AM123: 162639.4184 | AN123: 164097.9055 | AO123: 165278.8193 | AP123: =AO123+AP119 -> 166223.2545 | AQ123: 166969.2985 | AR123: 167551.3951 | AS123: 168000 | AT123: 168000 | AU123: 168000 | AV123: 168000 | AW123: 168000 | AX123: 168000 | AY123: 168000 | AZ123: 168000 | BA123: 168000 | BB123: 168000 | BC123: 168000 | BD123: 168000 | BE123: 168000 | BF123: 168000 | BG123: 168000 | BH123: 168000 | BI123: 168000 | BJ123: 168000 | BK123: 168000 | BL123: 168000 | BM123: 168000 | BN123: 168000 | BO123: 168000 | BP123: 168000 | BQ123: 168000 | BR123: 168000 | BS123: 168000 | BT123: 168000 | BU123: 168000 | BV123: =BU123+BV119 -> 168000 | BW123: 168000 | BX123: 168000 | BY123: 168000 | BZ123: 168000 | CA123: 168000 | CB123: 168000 | CC123: 168000 | CD123: 168000 | CE123: 168000 | CF123: 168000 | CG123: 168000 | CH123: 168000 | CI123: 168000 | CJ123: 168000 | CK123: 168000 | CL123: 168000 | CM123: 168000 | CN123: 168000 | CO123: 168000 | CP123: 168000 | CQ123: 168000 | CR123: 168000 | CS123: 168000 | CT123: 168000 | CU123: 168000 | CV123: 168000 | CW123: 168000 | CX123: 168000 | CY123: 168000 | CZ123: 168000 | DA123: 168000 | DB123: =DA123+DB119 -> 168000 | DC123: 168000 | DD123: 168000 | DE123: 168000 | DF123: 168000 | DG123: 168000 | DH123: 168000 | DI123: 168000 | DJ123: 168000 | DK123: 168000 | DL123: 168000 | DM123: 168000 | DN123: 168000 | DO123: 168000 | DP123: 168000 | DQ123: 168000 | DR123: 168000 | DS123: 168000 | DT123: 168000 | DU123: 168000 | DV123: 168000 | DW123: 168000 | DX123: 168000 | DY123: 168000 | DZ123: 168000 | EA123: 168000 | EB123: 168000 | EC123: 168000 | ED123: 168000 | EE123: 168000 | EF123: 168000 | EG123: 168000 | EH123: =EG123+EH119 -> 168000 | EI123: 168000 | EJ123: 168000 | EK123: 168000 | EL123: 168000 | EM123: 168000 | EN123: 168000 | EO123: 168000 | EP123: 168000 | EQ123: 168000 | ER123: 168000 | ES123: 168000 | ET123: 168000 | EU123: 168000 | EV123: 168000 | EW123: 168000 | EX123: 168000 | EY123: 168000 | EZ123: 168000
C124: Accumulated Depreciation | J124: =I124+J126 -> 0 | K124: =J124+K126 -> 0 | L124: 0 | M124: 0 | N124: 0 | O124: 0 | P124: 0 | Q124: 0 | R124: 0 | S124: 0 | T124: 0 | U124: 0 | V124: 0 | W124: 0 | X124: 0 | Y124: 0 | Z124: 0 | AA124: 0 | AB124: 0 | AC124: 0 | AD124: 0 | AE124: 0 | AF124: 0 | AG124: 0 | AH124: 0 | AI124: =AH124+AI126 -> 0 | AJ124: =AI124+AJ126 -> 0 | AK124: =AJ124+AK126 -> 0 | AL124: =AK124+AL126 -> 0 | AM124: =AL124+AM126 -> 0 | AN124: =AM124+AN126 -> 0 | AO124: =AN124+AO126 -> 0 | AP124: =AO124+AP126 -> 0 | AQ124: =AP124+AQ126 -> 0 | AR124: =AQ124+AR126 -> 0 | AS124: =AR124+AS126 -> 0 | AT124: =AS124+AT126 -> 2400 | AU124: =AT124+AU126 -> 4800 | AV124: =AU124+AV126 -> 7200 | AW124: =AV124+AW126 -> 9600 | AX124: =AW124+AX126 -> 12000 | AY124: =AX124+AY126 -> 14400 | AZ124: =AY124+AZ126 -> 16800 | BA124: =AZ124+BA126 -> 19200 | BB124: =BA124+BB126 -> 21600 | BC124: =BB124+BC126 -> 24000 | BD124: =BC124+BD126 -> 26400 | BE124: =BD124+BE126 -> 28800 | BF124: =BE124+BF126 -> 31200 | BG124: =BF124+BG126 -> 33600 | BH124: =BG124+BH126 -> 36000 | BI124: =BH124+BI126 -> 38400 | BJ124: =BI124+BJ126 -> 40800 | BK124: =BJ124+BK126 -> 43200 | BL124: =BK124+BL126 -> 45600 | BM124: =BL124+BM126 -> 48000 | BN124: =BM124+BN126 -> 50400 | BO124: =BN124+BO126 -> 52800 | BP124: =BO124+BP126 -> 55200 | BQ124: =BP124+BQ126 -> 57600 | BR124: =BQ124+BR126 -> 60000 | BS124: =BR124+BS126 -> 62400 | BT124: =BS124+BT126 -> 64800 | BU124: =BT124+BU126 -> 67200 | BV124: =BU124+BV126 -> 69600 | BW124: =BV124+BW126 -> 72000 | BX124: =BW124+BX126 -> 74400 | BY124: =BX124+BY126 -> 76800 | BZ124: =BY124+BZ126 -> 79200 | CA124: =BZ124+CA126 -> 81600 | CB124: =CA124+CB126 -> 84000 | CC124: =CB124+CC126 -> 86400 | CD124: =CC124+CD126 -> 88800 | CE124: =CD124+CE126 -> 91200 | CF124: =CE124+CF126 -> 93600 | CG124: =CF124+CG126 -> 96000 | CH124: =CG124+CH126 -> 98400 | CI124: =CH124+CI126 -> 100800 | CJ124: =CI124+CJ126 -> 103200 | CK124: =CJ124+CK126 -> 105600 | CL124: =CK124+CL126 -> 108000 | CM124: =CL124+CM126 -> 110400 | CN124: =CM124+CN126 -> 112800 | CO124: =CN124+CO126 -> 115200 | CP124: =CO124+CP126 -> 117600 | CQ124: =CP124+CQ126 -> 120000 | CR124: =CQ124+CR126 -> 122400 | CS124: =CR124+CS126 -> 124800 | CT124: =CS124+CT126 -> 127200 | CU124: =CT124+CU126 -> 129600 | CV124: =CU124+CV126 -> 132000 | CW124: =CV124+CW126 -> 134400 | CX124: =CW124+CX126 -> 136800 | CY124: =CX124+CY126 -> 139200 | CZ124: =CY124+CZ126 -> 141600 | DA124: =CZ124+DA126 -> 144000 | DB124: =DA124+DB126 -> 146400 | DC124: =DB124+DC126 -> 148800 | DD124: =DC124+DD126 -> 151200 | DE124: =DD124+DE126 -> 153600 | DF124: =DE124+DF126 -> 156000 | DG124: =DF124+DG126 -> 158400 | DH124: =DG124+DH126 -> 160800 | DI124: =DH124+DI126 -> 163200 | DJ124: =DI124+DJ126 -> 165600 | DK124: =DJ124+DK126 -> 168000 | DL124: =DK124+DL126 -> 168000 | DM124: =DL124+DM126 -> 168000 | DN124: =DM124+DN126 -> 168000 | DO124: =DN124+DO126 -> 168000 | DP124: =DO124+DP126 -> 168000 | DQ124: =DP124+DQ126 -> 168000 | DR124: =DQ124+DR126 -> 168000 | DS124: =DR124+DS126 -> 168000 | DT124: =DS124+DT126 -> 168000 | DU124: =DT124+DU126 -> 168000 | DV124: =DU124+DV126 -> 168000 | DW124: =DV124+DW126 -> 168000 | DX124: =DW124+DX126 -> 168000 | DY124: =DX124+DY126 -> 168000 | DZ124: =DY124+DZ126 -> 168000 | EA124: =DZ124+EA126 -> 168000 | EB124: =EA124+EB126 -> 168000 | EC124: =EB124+EC126 -> 168000 | ED124: =EC124+ED126 -> 168000 | EE124: =ED124+EE126 -> 168000 | EF124: =EE124+EF126 -> 168000 | EG124: =EF124+EG126 -> 168000 | EH124: =EG124+EH126 -> 168000 | EI124: =EH124+EI126 -> 168000 | EJ124: =EI124+EJ126 -> 168000 | EK124: =EJ124+EK126 -> 168000 | EL124: =EK124+EL126 -> 168000 | EM124: =EL124+EM126 -> 168000 | EN124: =EM124+EN126 -> 168000 | EO124: =EN124+EO126 -> 168000 | EP124: =EO124+EP126 -> 168000 | EQ124: =EP124+EQ126 -> 168000 | ER124: =EQ124+ER126 -> 168000 | ES124: =ER124+ES126 -> 168000 | ET124: =ES124+ET126 -> 168000 | EU124: =ET124+EU126 -> 168000 | EV124: =EU124+EV126 -> 168000 | EW124: =EV124+EW126 -> 168000 | EX124: =EW124+EX126 -> 168000 | EY124: =EX124+EY126 -> 168000 | EZ124: =EY124+EZ126 -> 168000
C125: Net Plant | J125: =J123-J124 -> 2637.924033 | K125: =K123-K124 -> 5731.26435 | L125: 9314.13772 | M125: 13413.09655 | N125: 18044.94128 | O125: 23214.7297 | P125: 28914.13951 | Q125: 35120.33342 | R125: 41795.45434 | S125: 48886.84273 | T125: 56328.02165 | U125: 64040.43969 | V125: 71935.90476 | W125: 79919.58641 | X125: 87893.41774 | Y125: 95759.69443 | Z125: 103424.6516 | AA125: 110801.8011 | AB125: 117814.8324 | AC125: 124399.9163 | AD125: 130507.2997 | AE125: 136102.1361 | AF125: 141164.5535 | AG125: 145689.0143 | AH125: 149683.0696 | AI125: =AI123-AI124 -> 153165.6379 | AJ125: 156164.9631 | AK125: 158716.4056 | AL125: 160860.2161 | AM125: 162639.4184 | AN125: 164097.9055 | AO125: 165278.8193 | AP125: 166223.2545 | AQ125: 166969.2985 | AR125: 167551.3951 | AS125: 168000 | AT125: 165600 | AU125: 163200 | AV125: 160800 | AW125: 158400 | AX125: 156000 | AY125: 153600 | AZ125: 151200 | BA125: 148800 | BB125: 146400 | BC125: 144000 | BD125: 141600 | BE125: 139200 | BF125: 136800 | BG125: 134400 | BH125: 132000 | BI125: 129600 | BJ125: 127200 | BK125: 124800 | BL125: 122400 | BM125: 120000 | BN125: 117600 | BO125: 115200 | BP125: 112800 | BQ125: 110400 | BR125: 108000 | BS125: 105600 | BT125: 103200 | BU125: 100800 | BV125: 98400 | BW125: 96000 | BX125: 93600 | BY125: 91200 | BZ125: 88800 | CA125: 86400 | CB125: 84000 | CC125: 81600 | CD125: 79200 | CE125: 76800 | CF125: 74400 | CG125: 72000 | CH125: 69600 | CI125: 67200 | CJ125: 64800 | CK125: 62400 | CL125: 60000 | CM125: 57600 | CN125: 55200 | CO125: 52800 | CP125: 50400 | CQ125: 48000 | CR125: 45600 | CS125: 43200 | CT125: 40800 | CU125: =CU123-CU124 -> 38400 | CV125: 36000 | CW125: 33600 | CX125: 31200 | CY125: 28800 | CZ125: 26400 | DA125: 24000 | DB125: 21600 | DC125: 19200 | DD125: 16800 | DE125: 14400 | DF125: 12000 | DG125: 9600 | DH125: 7200 | DI125: 4800 | DJ125: 2400 | DK125: 0 | DL125: 0 | DM125: 0 | DN125: 0 | DO125: 0 | DP125: 0 | DQ125: 0 | DR125: 0 | DS125: 0 | DT125: 0 | DU125: 0 | DV125: 0 | DW125: 0 | DX125: 0 | DY125: 0 | DZ125: 0 | EA125: 0 | EB125: 0 | EC125: 0 | ED125: 0 | EE125: 0 | EF125: 0 | EG125: 0 | EH125: 0 | EI125: 0 | EJ125: 0 | EK125: 0 | EL125: 0 | EM125: 0 | EN125: 0 | EO125: 0 | EP125: 0 | EQ125: 0 | ER125: 0 | ES125: 0 | ET125: 0 | EU125: 0 | EV125: 0 | EW125: 0 | EX125: 0 | EY125: 0 | EZ125: 0
C126: Depreciation | G126: =F15*12/H3 -> 70 | J126: =J123/$G$126*J8 -> 0 | K126: 0 | L126: 0 | M126: 0 | N126: 0 | O126: 0 | P126: 0 | Q126: 0 | R126: 0 | S126: 0 | T126: 0 | U126: 0 | V126: 0 | W126: 0 | X126: 0 | Y126: 0 | Z126: 0 | AA126: 0 | AB126: 0 | AC126: 0 | AD126: 0 | AE126: 0 | AF126: 0 | AG126: 0 | AH126: 0 | AI126: 0 | AJ126: 0 | AK126: 0 | AL126: 0 | AM126: 0 | AN126: 0 | AO126: 0 | AP126: =AP123/$G$126*AP8 -> 0 | AQ126: 0 | AR126: 0 | AS126: 0 | AT126: 2400 | AU126: 2400 | AV126: 2400 | AW126: 2400 | AX126: 2400 | AY126: 2400 | AZ126: 2400 | BA126: 2400 | BB126: 2400 | BC126: 2400 | BD126: 2400 | BE126: 2400 | BF126: 2400 | BG126: 2400 | BH126: 2400 | BI126: 2400 | BJ126: 2400 | BK126: 2400 | BL126: 2400 | BM126: 2400 | BN126: 2400 | BO126: 2400 | BP126: 2400 | BQ126: 2400 | BR126: 2400 | BS126: 2400 | BT126: 2400 | BU126: 2400 | BV126: =BV123/$G$126*BV8 -> 2400 | BW126: 2400 | BX126: 2400 | BY126: 2400 | BZ126: 2400 | CA126: 2400 | CB126: 2400 | CC126: 2400 | CD126: 2400 | CE126: 2400 | CF126: 2400 | CG126: 2400 | CH126: 2400 | CI126: 2400 | CJ126: 2400 | CK126: 2400 | CL126: 2400 | CM126: 2400 | CN126: 2400 | CO126: 2400 | CP126: 2400 | CQ126: 2400 | CR126: 2400 | CS126: 2400 | CT126: 2400 | CU126: 2400 | CV126: 2400 | CW126: 2400 | CX126: 2400 | CY126: 2400 | CZ126: 2400 | DA126: 2400 | DB126: =DB123/$G$126*DB8 -> 2400 | DC126: 2400 | DD126: 2400 | DE126: 2400 | DF126: 2400 | DG126: 2400 | DH126: 2400 | DI126: 2400 | DJ126: 2400 | DK126: 2400 | DL126: 0 | DM126: 0 | DN126: 0 | DO126: 0 | DP126: 0 | DQ126: 0 | DR126: 0 | DS126: 0 | DT126: 0 | DU126: 0 | DV126: 0 | DW126: 0 | DX126: 0 | DY126: 0 | DZ126: 0 | EA126: 0 | EB126: 0 | EC126: 0 | ED126: 0 | EE126: 0 | EF126: 0 | EG126: 0 | EH126: =EH123/$G$126*EH8 -> 0 | EI126: 0 | EJ126: 0 | EK126: 0 | EL126: 0 | EM126: 0 | EN126: 0 | EO126: 0 | EP126: 0 | EQ126: 0 | ER126: 0 | ES126: 0 | ET126: 0 | EU126: 0 | EV126: 0 | EW126: 0 | EX126: 0 | EY126: 0 | EZ126: 0
C128: EBIT | J128: =J114-J126 -> 0 | K128: 0 | L128: 0 | M128: 0 | N128: 0 | O128: 0 | P128: 0 | Q128: 0 | R128: 0 | S128: 0 | T128: 0 | U128: 0 | V128: 0 | W128: 0 | X128: 0 | Y128: 0 | Z128: 0 | AA128: 0 | AB128: 0 | AC128: 0 | AD128: 0 | AE128: 0 | AF128: 0 | AG128: 0 | AH128: 0 | AI128: 0 | AJ128: 0 | AK128: 0 | AL128: 0 | AM128: 0 | AN128: 0 | AO128: 0 | AP128: =AP114-AP126 -> 0 | AQ128: 0 | AR128: 0 | AS128: 0 | AT128: -2400 | AU128: 3165.184027 | AV128: 3336.795471 | AW128: 3276.487708 | AX128: 3451.531381 | AY128: 3390.017462 | AZ128: 3568.562008 | BA128: 3546.529257 | BB128: 3687.933249 | BC128: 3623.934167 | BD128: 3809.691914 | BE128: 3744.412851 | BF128: 3933.885752 | BG128: 3867.301108 | BH128: 4060.563467 | BI128: 4036.714508 | BJ128: 4189.774736 | BK128: 4120.500072 | BL128: 4321.570231 | BM128: 4250.910074 | BN128: 4456.001636 | BO128: 4383.928275 | BP128: 4593.121668 | BQ128: 4567.306788 | BR128: 4732.984102 | BS128: 4657.998978 | BT128: 4875.643784 | BU128: 4799.158957 | BV128: =BV114-BV126 -> 5021.156659 | BW128: 4943.142136 | BX128: 5169.579793 | BY128: 5141.636936 | BZ128: 5320.971388 | CA128: 5239.805079 | CB128: 5475.390816 | CC128: 5392.60118 | CD128: 5632.898633 | CE128: 5548.453204 | CF128: 5793.556605 | CG128: 5763.310359 | CH128: 5957.427737 | CI128: 5869.570713 | CJ128: 6124.576292 | CK128: 6034.962128 | CL128: 6295.067818 | CM128: 6203.66137 | CN128: 6468.969174 | CO128: 6436.229664 | CP128: 6646.348558 | CQ128: 6551.249289 | CR128: 6827.275529 | CS128: 6730.274275 | CT128: 7011.821039 | CU128: 6912.879761 | CV128: 7200.05746 | CW128: 7164.619162 | CX128: 7392.058609 | CY128: 7289.120103 | CZ128: 7587.899782 | DA128: 7482.902505 | DB128: =DB114-DB126 -> 7787.657777 | DC128: -2400 | DD128: -2400 | DE128: -2400 | DF128: -2400 | DG128: -2400 | DH128: -2400 | DI128: -2400 | DJ128: -2400 | DK128: -2400 | DL128: 0 | DM128: 0 | DN128: 0 | DO128: 0 | DP128: 0 | DQ128: 0 | DR128: 0 | DS128: 0 | DT128: 0 | DU128: 0 | DV128: 0 | DW128: 0 | DX128: 0 | DY128: 0 | DZ128: 0 | EA128: 0 | EB128: 0 | EC128: 0 | ED128: 0 | EE128: 0 | EF128: 0 | EG128: 0 | EH128: =EH114-EH126 -> 0 | EI128: 0 | EJ128: 0 | EK128: 0 | EL128: 0 | EM128: 0 | EN128: 0 | EO128: 0 | EP128: 0 | EQ128: 0 | ER128: 0 | ES128: 0 | ET128: 0 | EU128: 0 | EV128: 0 | EW128: 0 | EX128: 0 | EY128: 0 | EZ128: 0
C129: Taxes on EBIT | G129: =F30 -> 0.21 | J129: =J128*$G$129 -> 0 | K129: 0 | L129: 0 | M129: 0 | N129: 0 | O129: 0 | P129: 0 | Q129: 0 | R129: 0 | S129: 0 | T129: 0 | U129: 0 | V129: 0 | W129: 0 | X129: 0 | Y129: 0 | Z129: 0 | AA129: 0 | AB129: 0 | AC129: 0 | AD129: 0 | AE129: 0 | AF129: 0 | AG129: 0 | AH129: 0 | AI129: 0 | AJ129: 0 | AK129: 0 | AL129: 0 | AM129: 0 | AN129: 0 | AO129: 0 | AP129: =AP128*$G$129 -> 0 | AQ129: 0 | AR129: 0 | AS129: 0 | AT129: -504 | AU129: 664.6886457 | AV129: 700.727049 | AW129: 688.0624186 | AX129: 724.82159 | AY129: 711.903667 | AZ129: 749.3980218 | BA129: 744.7711439 | BB129: 774.4659822 | BC129: 761.0261751 | BD129: 800.0353019 | BE129: 786.3266986 | BF129: 826.1160079 | BG129: 812.1332326 | BH129: 852.7183281 | BI129: 847.7100466 | BJ129: 879.8526946 | BK129: 865.3050152 | BL129: 907.5297485 | BM129: 892.6911155 | BN129: 935.7603435 | BO129: 920.6249378 | BP129: 964.5555503 | BQ129: 959.1344255 | BR129: 993.9266614 | BS129: 978.1797853 | BT129: 1023.885195 | BU129: 1007.823381 | BV129: =BV128*$G$129 -> 1054.442898 | BW129: 1038.059849 | BX129: 1085.611756 | BY129: 1079.743757 | BZ129: 1117.403992 | CA129: 1100.359067 | CB129: 1149.832071 | CC129: 1132.446248 | CD129: 1182.908713 | CE129: 1165.175173 | CF129: 1216.646887 | CG129: 1210.295175 | CH129: 1251.059825 | CI129: 1232.60985 | CJ129: 1286.161021 | CK129: 1267.342047 | CL129: 1321.964242 | CM129: 1302.768888 | CN129: 1358.483527 | CO129: 1351.608229 | CP129: 1395.733197 | CQ129: 1375.762351 | CR129: 1433.727861 | CS129: 1413.357598 | CT129: 1472.482418 | CU129: 1451.70475 | CV129: 1512.012067 | CW129: 1504.570024 | CX129: 1552.332308 | CY129: 1530.715222 | CZ129: 1593.458954 | DA129: 1571.409526 | DB129: =DB128*$G$129 -> 1635.408133 | DC129: -504 | DD129: -504 | DE129: -504 | DF129: -504 | DG129: -504 | DH129: -504 | DI129: -504 | DJ129: -504 | DK129: -504 | DL129: 0 | DM129: 0 | DN129: 0 | DO129: 0 | DP129: 0 | DQ129: 0 | DR129: 0 | DS129: 0 | DT129: 0 | DU129: 0 | DV129: 0 | DW129: 0 | DX129: 0 | DY129: 0 | DZ129: 0 | EA129: 0 | EB129: 0 | EC129: 0 | ED129: 0 | EE129: 0 | EF129: 0 | EG129: 0 | EH129: =EH128*$G$129 -> 0 | EI129: 0 | EJ129: 0 | EK129: 0 | EL129: 0 | EM129: 0 | EN129: 0 | EO129: 0 | EP129: 0 | EQ129: 0 | ER129: 0 | ES129: 0 | ET129: 0 | EU129: 0 | EV129: 0 | EW129: 0 | EX129: 0 | EY129: 0 | EZ129: 0
C130: Post-tax Project IRR | F130: =XIRR(J130:EZ130,J4:EZ4) -> 0.05326978862 | J130: =J121-J129 -> -2637.924033 | K130: -3093.340317 | L130: -3582.873371 | M130: -4098.958829 | N130: -4631.844734 | O130: -5169.788418 | P130: -5699.409807 | Q130: -6206.193916 | R130: -6675.120912 | S130: -7091.388392 | T130: -7441.178922 | U130: -7712.418043 | V130: -7895.46507 | W130: -7983.681644 | X130: -7973.831328 | Y130: -7866.276692 | Z130: -7664.957159 | AA130: -7377.149506 | AB130: -7013.031311 | AC130: -6585.083868 | AD130: -6107.38338 | AE130: -5594.836442 | AF130: -5062.41736 | AG130: -4524.460888 | AH130: -3994.055263 | AI130: -3482.568284 | AJ130: -2999.325165 | AK130: -2551.442596 | AL130: -2143.810491 | AM130: -1779.202261 | AN130: -1458.487098 | AO130: -1180.913809 | AP130: =AP121-AP129 -> -944.4351668 | AQ130: -746.0439947 | AR130: -582.0966064 | AS130: -448.6049235 | AT130: 504 | AU130: 4900.495381 | AV130: 5036.068422 | AW130: 4988.425289 | AX130: 5126.709791 | AY130: 5078.113795 | AZ130: 5219.163987 | BA130: 5201.758113 | BB130: 5313.467266 | BC130: 5262.907992 | BD130: 5409.656612 | BE130: 5358.086152 | BF130: 5507.769744 | BG130: 5455.167875 | BH130: 5607.845139 | BI130: 5589.004461 | BJ130: 5709.922042 | BK130: 5655.195057 | BL130: 5814.040482 | BM130: 5758.218958 | BN130: 5920.241292 | BO130: 5863.303338 | BP130: 6028.566118 | BQ130: 6008.172363 | BR130: 6139.05744 | BS130: 6079.819192 | BT130: 6251.758589 | BU130: 6191.335576 | BV130: =BV121-BV129 -> 6366.713761 | BW130: 6305.082288 | BX130: 6483.968036 | BY130: 6461.893179 | BZ130: 6603.567397 | CA130: 6539.446012 | CB130: 6725.558745 | CC130: 6660.154932 | CD130: 6849.98992 | CE130: 6783.278031 | CF130: 6976.909718 | CG130: 6953.015183 | CH130: 7106.367912 | CI130: 7036.960864 | CJ130: 7238.415271 | CK130: 7167.620081 | CL130: 7373.103576 | CM130: 7300.892482 | CN130: 7510.485648 | CO130: 7484.621435 | CP130: 7650.615361 | CQ130: 7575.486939 | CR130: 7793.547668 | CS130: 7716.916677 | CT130: 7939.338621 | CU130: 7861.175011 | CV130: 8088.045394 | CW130: 8060.049138 | CX130: 8239.726301 | CY130: 8158.404881 | CZ130: 8394.440827 | DA130: 8311.492979 | DB130: =DB121-DB129 -> 8552.249644 | DC130: 504 | DD130: 504 | DE130: 504 | DF130: 504 | DG130: 504 | DH130: 504 | DI130: 504 | DJ130: 504 | DK130: 504 | DL130: 0 | DM130: 0 | DN130: 0 | DO130: 0 | DP130: 0 | DQ130: 0 | DR130: 0 | DS130: 0 | DT130: 0 | DU130: 0 | DV130: 0 | DW130: 0 | DX130: 0 | DY130: 0 | DZ130: 0 | EA130: 0 | EB130: 0 | EC130: 0 | ED130: 0 | EE130: 0 | EF130: 0 | EG130: 0 | EH130: =EH121-EH129 -> 0 | EI130: 0 | EJ130: 0 | EK130: 0 | EL130: 0 | EM130: 0 | EN130: 0 | EO130: 0 | EP130: 0 | EQ130: 0 | ER130: 0 | ES130: 0 | ET130: 0 | EU130: 0 | EV130: 0 | EW130: 0 | EX130: 0 | EY130: 0 | EZ130: 0
C131: NPV at Target IRR | F131: =F28 -> 0.11 | G131: =XNPV(F131,J130:EZ130,J4:EZ4) -> -72978.04874 | H131: npv_project | J131: ='Parallel Model P50'!J363 -> -2637.924033 | K131: ='Parallel Model P50'!K363 -> -3093.340317 | L131: ='Parallel Model P50'!L363 -> -3582.873371 | M131: ='Parallel Model P50'!M363 -> -4098.958829 | N131: ='Parallel Model P50'!N363 -> -4631.844734 | O131: ='Parallel Model P50'!O363 -> -5169.788418 | P131: ='Parallel Model P50'!P363 -> -5699.409807 | Q131: ='Parallel Model P50'!Q363 -> -6206.193916 | R131: ='Parallel Model P50'!R363 -> -6675.120912 | S131: ='Parallel Model P50'!S363 -> -7091.388392 | T131: ='Parallel Model P50'!T363 -> -7441.178922 | U131: ='Parallel Model P50'!U363 -> -7712.418043 | V131: ='Parallel Model P50'!V363 -> -7895.46507 | W131: ='Parallel Model P50'!W363 -> -7983.681644 | X131: ='Parallel Model P50'!X363 -> -7973.831328 | Y131: ='Parallel Model P50'!Y363 -> -7866.276692 | Z131: ='Parallel Model P50'!Z363 -> -7664.957159 | AA131: ='Parallel Model P50'!AA363 -> -7377.149506 | AB131: ='Parallel Model P50'!AB363 -> -7013.031311 | AC131: ='Parallel Model P50'!AC363 -> -6585.083868 | AD131: ='Parallel Model P50'!AD363 -> -6107.38338 | AE131: ='Parallel Model P50'!AE363 -> -5594.836442 | AF131: ='Parallel Model P50'!AF363 -> -5062.41736 | AG131: ='Parallel Model P50'!AG363 -> -4524.460888 | AH131: ='Parallel Model P50'!AH363 -> -3994.055263 | AI131: ='Parallel Model P50'!AI363 -> -3482.568284 | AJ131: ='Parallel Model P50'!AJ363 -> -2999.325165 | AK131: ='Parallel Model P50'!AK363 -> -2551.442596 | AL131: ='Parallel Model P50'!AL363 -> -2143.810491 | AM131: ='Parallel Model P50'!AM363 -> -1779.202261 | AN131: ='Parallel Model P50'!AN363 -> -1458.487098 | AO131: ='Parallel Model P50'!AO363 -> -1180.913809 | AP131: ='Parallel Model P50'!AP363 -> -944.4351668 | AQ131: ='Parallel Model P50'!AQ363 -> -746.0439947 | AR131: ='Parallel Model P50'!AR363 -> -582.0966064 | AS131: ='Parallel Model P50'!AS363 -> -448.6049235 | AT131: ='Parallel Model P50'!AT363 -> 504 | AU131: ='Parallel Model P50'!AU363 -> 4900.495381 | AV131: ='Parallel Model P50'!AV363 -> 5036.068422 | AW131: ='Parallel Model P50'!AW363 -> 4988.425289 | AX131: ='Parallel Model P50'!AX363 -> 5126.709791 | AY131: ='Parallel Model P50'!AY363 -> 5078.113795 | AZ131: ='Parallel Model P50'!AZ363 -> 5219.163987 | BA131: ='Parallel Model P50'!BA363 -> 5201.758113 | BB131: ='Parallel Model P50'!BB363 -> 5313.467266 | BC131: ='Parallel Model P50'!BC363 -> 5262.907992 | BD131: ='Parallel Model P50'!BD363 -> 5409.656612 | BE131: ='Parallel Model P50'!BE363 -> 5358.086152 | BF131: ='Parallel Model P50'!BF363 -> 5507.769744 | BG131: ='Parallel Model P50'!BG363 -> 5455.167875 | BH131: ='Parallel Model P50'!BH363 -> 5607.845139 | BI131: ='Parallel Model P50'!BI363 -> 5589.004461 | BJ131: ='Parallel Model P50'!BJ363 -> 5709.922042 | BK131: ='Parallel Model P50'!BK363 -> 5655.195057 | BL131: ='Parallel Model P50'!BL363 -> 5814.040482 | BM131: ='Parallel Model P50'!BM363 -> 5758.218958 | BN131: ='Parallel Model P50'!BN363 -> 5920.241292 | BO131: ='Parallel Model P50'!BO363 -> 5863.303338 | BP131: ='Parallel Model P50'!BP363 -> 6028.566118 | BQ131: ='Parallel Model P50'!BQ363 -> 6008.172363 | BR131: ='Parallel Model P50'!BR363 -> 6139.05744 | BS131: ='Parallel Model P50'!BS363 -> 6079.819192 | BT131: ='Parallel Model P50'!BT363 -> 6251.758589 | BU131: ='Parallel Model P50'!BU363 -> 6191.335576 | BV131: ='Parallel Model P50'!BV363 -> 6366.713761 | BW131: ='Parallel Model P50'!BW363 -> 6305.082288 | BX131: ='Parallel Model P50'!BX363 -> 6483.968036 | BY131: ='Parallel Model P50'!BY363 -> 6461.893179 | BZ131: ='Parallel Model P50'!BZ363 -> 6603.567397 | CA131: ='Parallel Model P50'!CA363 -> 6539.446012 | CB131: ='Parallel Model P50'!CB363 -> 6725.558745 | CC131: ='Parallel Model P50'!CC363 -> 6660.154932 | CD131: ='Parallel Model P50'!CD363 -> 6849.98992 | CE131: ='Parallel Model P50'!CE363 -> 6783.278031 | CF131: ='Parallel Model P50'!CF363 -> 6976.909718 | CG131: ='Parallel Model P50'!CG363 -> 6953.015183 | CH131: ='Parallel Model P50'!CH363 -> 7106.367912 | CI131: ='Parallel Model P50'!CI363 -> 7036.960864 | CJ131: ='Parallel Model P50'!CJ363 -> 7238.415271 | CK131: ='Parallel Model P50'!CK363 -> 7167.620081 | CL131: ='Parallel Model P50'!CL363 -> 7373.103576 | CM131: ='Parallel Model P50'!CM363 -> 7300.892482 | CN131: ='Parallel Model P50'!CN363 -> 7510.485648 | CO131: ='Parallel Model P50'!CO363 -> 7484.621435 | CP131: ='Parallel Model P50'!CP363 -> 7650.615361 | CQ131: ='Parallel Model P50'!CQ363 -> 7575.486939 | CR131: ='Parallel Model P50'!CR363 -> 7793.547668 | CS131: ='Parallel Model P50'!CS363 -> 7716.916677 | CT131: ='Parallel Model P50'!CT363 -> 7939.338621 | CU131: ='Parallel Model P50'!CU363 -> 7861.175011 | CV131: ='Parallel Model P50'!CV363 -> 8088.045394 | CW131: ='Parallel Model P50'!CW363 -> 8060.049138 | CX131: ='Parallel Model P50'!CX363 -> 8239.726301 | CY131: ='Parallel Model P50'!CY363 -> 8158.404881 | CZ131: ='Parallel Model P50'!CZ363 -> 8394.440827 | DA131: ='Parallel Model P50'!DA363 -> 8311.492979 | DB131: ='Parallel Model P50'!DB363 -> 8552.249644 | DC131: ='Parallel Model P50'!DC363 -> 504 | DD131: ='Parallel Model P50'!DD363 -> 504 | DE131: ='Parallel Model P50'!DE363 -> 504 | DF131: ='Parallel Model P50'!DF363 -> 504 | DG131: ='Parallel Model P50'!DG363 -> 504 | DH131: ='Parallel Model P50'!DH363 -> 504 | DI131: ='Parallel Model P50'!DI363 -> 504 | DJ131: ='Parallel Model P50'!DJ363 -> 504 | DK131: ='Parallel Model P50'!DK363 -> 504 | DL131: ='Parallel Model P50'!DL363 -> 0 | DM131: ='Parallel Model P50'!DM363 -> 0 | DN131: ='Parallel Model P50'!DN363 -> 0 | DO131: ='Parallel Model P50'!DO363 -> 0 | DP131: ='Parallel Model P50'!DP363 -> 0 | DQ131: ='Parallel Model P50'!DQ363 -> 0 | DR131: ='Parallel Model P50'!DR363 -> 0 | DS131: ='Parallel Model P50'!DS363 -> 0 | DT131: ='Parallel Model P50'!DT363 -> 0 | DU131: ='Parallel Model P50'!DU363 -> 0 | DV131: ='Parallel Model P50'!DV363 -> 0 | DW131: ='Parallel Model P50'!DW363 -> 0 | DX131: ='Parallel Model P50'!DX363 -> 0 | DY131: ='Parallel Model P50'!DY363 -> 0 | DZ131: ='Parallel Model P50'!DZ363 -> 0 | EA131: ='Parallel Model P50'!EA363 -> 0 | EB131: ='Parallel Model P50'!EB363 -> 0 | EC131: ='Parallel Model P50'!EC363 -> 0 | ED131: ='Parallel Model P50'!ED363 -> 0 | EE131: ='Parallel Model P50'!EE363 -> 0 | EF131: ='Parallel Model P50'!EF363 -> 0 | EG131: ='Parallel Model P50'!EG363 -> 0 | EH131: ='Parallel Model P50'!EH363 -> 0 | EI131: ='Parallel Model P50'!EI363 -> 0 | EJ131: ='Parallel Model P50'!EJ363 -> 0 | EK131: ='Parallel Model P50'!EK363 -> 0 | EL131: ='Parallel Model P50'!EL363 -> 0 | EM131: ='Parallel Model P50'!EM363 -> 0 | EN131: ='Parallel Model P50'!EN363 -> 0 | EO131: ='Parallel Model P50'!EO363 -> 0 | EP131: ='Parallel Model P50'!EP363 -> 0 | EQ131: ='Parallel Model P50'!EQ363 -> 0 | ER131: ='Parallel Model P50'!ER363 -> 0 | ES131: ='Parallel Model P50'!ES363 -> 0 | ET131: ='Parallel Model P50'!ET363 -> 0 | EU131: ='Parallel Model P50'!EU363 -> 0 | EV131: ='Parallel Model P50'!EV363 -> 0 | EW131: ='Parallel Model P50'!EW363 -> 0 | EX131: ='Parallel Model P50'!EX363 -> 0 | EY131: ='Parallel Model P50'!EY363 -> 0 | EZ131: ='Parallel Model P50'!EZ363 -> 0
A133: Sources and Uses
L134: =E204 -> FALSE | M134: =E205 -> TRUE
B135: Uses | J135: Computed | L135: P50 | M135: P99 | N135: Applied
C136: EPC | I136: =SUM(J119:EZ119) -> 168000 | J136: =SUM(J119:EZ119) -> 168000 | L136: =J136 -> 168000 | M136: =J136 -> 168000 | N136: =SUMPRODUCT($L$134:$M$134*L136:M136) -> 168000
C137: Development Fee | H137: =F27 -> 0.2 | I137: =H137*I143 -> 45095.19249 | J137: =I137 -> 45095.19249 | L137: =J137 -> 45095.19249 | M137: =L137 -> 45095.19249 | N137: =SUMPRODUCT($L$134:$M$134*L137:M137) -> 45095.19249
C138: IDC | I138: =N138 -> 8292.527548 | J138: =SUM(297:297) -> 8292.527548 | L138: ='Parallel Model P50'!H182 -> 9287.361765 | M138: ='Parallel Model P99'!H182 -> 8292.527548 | N138: =SUMPRODUCT($L$134:$M$134*L138:M138) -> 8292.527548
C139: IDC on Equity Bridge Loan
C140: Up-Front Fees | I140: =N140 -> 2226.552436 | J140: =SUM(J300:EZ300) -> 2226.552436 | L140: ='Parallel Model P50'!H184 -> 2439.870177 | M140: ='Parallel Model P99'!H184 -> 2226.552436 | N140: =SUMPRODUCT($L$134:$M$134*L140:M140) -> 2226.552436
C141: Commitment Fees | I141: =N141 -> 1861.690014 | J141: =SUM(J303:EZ303) -> 1861.690014 | L141: ='Parallel Model P50'!H185 -> 1977.439803 | M141: ='Parallel Model P99'!H185 -> 1861.690014 | N141: =SUMPRODUCT($L$134:$M$134*L141:M141) -> 1861.690014
C142: DSRA | I142: =N142 -> 0 | L142: ='Parallel Model P50'!H187 -> 0 | M142: ='Parallel Model P99'!H187 -> 0 | N142: =SUMPRODUCT($L$134:$M$134*L142:M142) -> 0
D143: Total | I143: =N143 -> 225475.9625 | J143: =SUM(I136:I142) -> 225475.9625 | K143: =J143-I143 -> 2.020454849e-05 | L143: ='Parallel Model P50'!H190 -> 227130.8397 | M143: ='Parallel Model P99'!H190 -> 225475.9625 | N143: =SUMPRODUCT($L$134:$M$134*L143:M143) -> 225475.9625
L144: =SUM(L136:L142) -> 226799.8642 | M144: =SUM(M136:M142) -> 225475.9625 | N144: =SUM(N136:N142) -> 225475.9625
B145: Sources
C146: Senior Debt (From Minimum) | I146: =E202 -> 148436.8291 | J146: =IFERROR(I146/$I$143,1) -> 0.6583266236 | L146: ='Parallel Model P50'!H205 -> 162658.0118
C147: Mezzanine Debt
C148: Equity | I148: =I143-I146-I147 -> 77039.13339
D149: Total | I149: =SUM(I146:I148) -> 225475.9625
C151: Equity Up-front | G151: =F41 -> 0.5 | I151: =G151*I148 -> 38519.5667
C152: Remaining Equity Pro-Rata | I152: =I148-I151 -> 38519.5667
C153: Total Left Over for Pro-Rata | I153: =I149-I151 -> 186956.3958
C154: Equity as Percent of Left Over Pro-Rata | I154: =I152/I153 -> 0.2060350304
C155: Debt as Percent of Left Over Pro-Rata | I155: =IF(I146,(I146+I147)/I153) -> 0.7939649696
A157: Re-financing Sources and Uses
C158: Re-financing Switch 1 | G158: =F77 -> 2058-01-01 | J158: =$G158=J$4 -> FALSE | K158: =$G158=K$4 -> FALSE | L158: FALSE | M158: FALSE | N158: FALSE | O158: FALSE | P158: FALSE | Q158: FALSE | R158: FALSE | S158: FALSE | T158: FALSE | U158: FALSE | V158: FALSE | W158: FALSE | X158: FALSE | Y158: FALSE | Z158: FALSE | AA158: FALSE | AB158: FALSE | AC158: FALSE | AD158: FALSE | AE158: FALSE | AF158: FALSE | AG158: FALSE | AH158: FALSE | AI158: FALSE | AJ158: FALSE | AK158: FALSE | AL158: FALSE | AM158: FALSE | AN158: FALSE | AO158: FALSE | AP158: FALSE | AQ158: FALSE | AR158: FALSE | AS158: FALSE | AT158: FALSE | AU158: FALSE | AV158: FALSE | AW158: FALSE | AX158: FALSE | AY158: FALSE | AZ158: FALSE | BA158: FALSE | BB158: FALSE | BC158: FALSE | BD158: FALSE | BE158: FALSE | BF158: FALSE | BG158: FALSE | BH158: FALSE | BI158: FALSE | BJ158: FALSE | BK158: FALSE | BL158: FALSE | BM158: FALSE | BN158: FALSE | BO158: FALSE | BP158: FALSE | BQ158: FALSE | BR158: FALSE | BS158: FALSE | BT158: FALSE | BU158: FALSE | BV158: FALSE | BW158: =$G158=BW$4 -> FALSE | BX158: FALSE | BY158: FALSE | BZ158: FALSE | CA158: FALSE | CB158: FALSE | CC158: FALSE | CD158: FALSE | CE158: FALSE | CF158: FALSE | CG158: FALSE | CH158: FALSE | CI158: FALSE | CJ158: FALSE | CK158: FALSE | CL158: FALSE | CM158: FALSE | CN158: FALSE | CO158: FALSE | CP158: FALSE | CQ158: FALSE | CR158: FALSE | CS158: FALSE | CT158: FALSE | CU158: FALSE | CV158: FALSE | CW158: FALSE | CX158: FALSE | CY158: FALSE | CZ158: FALSE | DA158: FALSE | DB158: FALSE | DC158: FALSE | DD158: FALSE | DE158: FALSE | DF158: FALSE | DG158: FALSE | DH158: FALSE | DI158: FALSE | DJ158: FALSE | DK158: FALSE | DL158: FALSE | DM158: FALSE | DN158: TRUE | DO158: FALSE | DP158: FALSE | DQ158: FALSE | DR158: FALSE | DS158: FALSE | DT158: FALSE | DU158: FALSE | DV158: FALSE | DW158: FALSE | DX158: FALSE | DY158: FALSE | DZ158: FALSE | EA158: FALSE | EB158: FALSE | EC158: FALSE | ED158: FALSE | EE158: FALSE | EF158: FALSE | EG158: FALSE | EH158: FALSE | EI158: =$G158=EI$4 -> FALSE | EJ158: FALSE | EK158: FALSE | EL158: FALSE | EM158: FALSE | EN158: FALSE | EO158: FALSE | EP158: FALSE | EQ158: FALSE | ER158: FALSE | ES158: FALSE | ET158: FALSE | EU158: FALSE | EV158: FALSE | EW158: FALSE | EX158: FALSE | EY158: FALSE | EZ158: FALSE
C159: Re-financing Switch 2 | G159: =F89 -> 2058-01-01 | J159: =J$4=$G159 -> FALSE | K159: =K$4=$G159 -> FALSE | L159: FALSE | M159: FALSE | N159: FALSE | O159: FALSE | P159: FALSE | Q159: FALSE | R159: FALSE | S159: FALSE | T159: FALSE | U159: FALSE | V159: FALSE | W159: FALSE | X159: FALSE | Y159: FALSE | Z159: FALSE | AA159: FALSE | AB159: FALSE | AC159: FALSE | AD159: FALSE | AE159: FALSE | AF159: FALSE | AG159: FALSE | AH159: FALSE | AI159: FALSE | AJ159: FALSE | AK159: FALSE | AL159: FALSE | AM159: FALSE | AN159: FALSE | AO159: FALSE | AP159: FALSE | AQ159: FALSE | AR159: FALSE | AS159: FALSE | AT159: FALSE | AU159: FALSE | AV159: FALSE | AW159: FALSE | AX159: FALSE | AY159: FALSE | AZ159: FALSE | BA159: FALSE | BB159: FALSE | BC159: FALSE | BD159: FALSE | BE159: FALSE | BF159: FALSE | BG159: FALSE | BH159: FALSE | BI159: FALSE | BJ159: FALSE | BK159: FALSE | BL159: FALSE | BM159: FALSE | BN159: FALSE | BO159: FALSE | BP159: FALSE | BQ159: FALSE | BR159: FALSE | BS159: FALSE | BT159: FALSE | BU159: FALSE | BV159: FALSE | BW159: =BW$4=$G159 -> FALSE | BX159: FALSE | BY159: FALSE | BZ159: FALSE | CA159: FALSE | CB159: FALSE | CC159: FALSE | CD159: FALSE | CE159: FALSE | CF159: FALSE | CG159: FALSE | CH159: FALSE | CI159: FALSE | CJ159: FALSE | CK159: FALSE | CL159: FALSE | CM159: FALSE | CN159: FALSE | CO159: FALSE | CP159: FALSE | CQ159: FALSE | CR159: FALSE | CS159: FALSE | CT159: FALSE | CU159: FALSE | CV159: FALSE | CW159: FALSE | CX159: FALSE | CY159: FALSE | CZ159: FALSE | DA159: FALSE | DB159: FALSE | DC159: FALSE | DD159: FALSE | DE159: FALSE | DF159: FALSE | DG159: FALSE | DH159: FALSE | DI159: FALSE | DJ159: FALSE | DK159: FALSE | DL159: FALSE | DM159: FALSE | DN159: TRUE | DO159: FALSE | DP159: FALSE | DQ159: FALSE | DR159: FALSE | DS159: FALSE | DT159: FALSE | DU159: FALSE | DV159: FALSE | DW159: FALSE | DX159: FALSE | DY159: FALSE | DZ159: FALSE | EA159: FALSE | EB159: FALSE | EC159: FALSE | ED159: FALSE | EE159: FALSE | EF159: FALSE | EG159: FALSE | EH159: FALSE | EI159: =EI$4=$G159 -> FALSE | EJ159: FALSE | EK159: FALSE | EL159: FALSE | EM159: FALSE | EN159: FALSE | EO159: FALSE | EP159: FALSE | EQ159: FALSE | ER159: FALSE | ES159: FALSE | ET159: FALSE | EU159: FALSE | EV159: FALSE | EW159: FALSE | EX159: FALSE | EY159: FALSE | EZ159: FALSE
C160: Re-financing Switch 3 | G160: =F101 -> 2058-01-01 | J160: =J$4=$G160 -> FALSE | K160: FALSE | L160: FALSE | M160: FALSE | N160: FALSE | O160: FALSE | P160: FALSE | Q160: FALSE | R160: FALSE | S160: FALSE | T160: FALSE | U160: FALSE | V160: FALSE | W160: FALSE | X160: FALSE | Y160: FALSE | Z160: FALSE | AA160: FALSE | AB160: FALSE | AC160: FALSE | AD160: FALSE | AE160: FALSE | AF160: FALSE | AG160: FALSE | AH160: FALSE | AI160: FALSE | AJ160: FALSE | AK160: FALSE | AL160: FALSE | AM160: FALSE | AN160: FALSE | AO160: FALSE | AP160: FALSE | AQ160: FALSE | AR160: FALSE | AS160: FALSE | AT160: FALSE | AU160: FALSE | AV160: FALSE | AW160: FALSE | AX160: FALSE | AY160: FALSE | AZ160: FALSE | BA160: FALSE | BB160: FALSE | BC160: FALSE | BD160: FALSE | BE160: FALSE | BF160: FALSE | BG160: FALSE | BH160: FALSE | BI160: FALSE | BJ160: FALSE | BK160: FALSE | BL160: FALSE | BM160: FALSE | BN160: FALSE | BO160: FALSE | BP160: FALSE | BQ160: FALSE | BR160: FALSE | BS160: FALSE | BT160: FALSE | BU160: FALSE | BV160: FALSE | BW160: FALSE | BX160: FALSE | BY160: FALSE | BZ160: FALSE | CA160: FALSE | CB160: FALSE | CC160: FALSE | CD160: FALSE | CE160: FALSE | CF160: FALSE | CG160: FALSE | CH160: FALSE | CI160: FALSE | CJ160: FALSE | CK160: FALSE | CL160: FALSE | CM160: FALSE | CN160: FALSE | CO160: FALSE | CP160: FALSE | CQ160: FALSE | CR160: FALSE | CS160: FALSE | CT160: FALSE | CU160: FALSE | CV160: FALSE | CW160: FALSE | CX160: FALSE | CY160: FALSE | CZ160: FALSE | DA160: FALSE | DB160: FALSE | DC160: FALSE | DD160: FALSE | DE160: FALSE | DF160: FALSE | DG160: FALSE | DH160: FALSE | DI160: FALSE | DJ160: FALSE | DK160: FALSE | DL160: FALSE | DM160: FALSE | DN160: TRUE | DO160: FALSE | DP160: FALSE | DQ160: FALSE | DR160: FALSE | DS160: FALSE | DT160: FALSE | DU160: FALSE | DV160: FALSE | DW160: FALSE | DX160: FALSE | DY160: FALSE | DZ160: FALSE | EA160: FALSE | EB160: FALSE | EC160: FALSE | ED160: FALSE | EE160: FALSE | EF160: FALSE | EG160: FALSE | EH160: FALSE | EI160: FALSE | EJ160: FALSE | EK160: FALSE | EL160: FALSE | EM160: FALSE | EN160: FALSE | EO160: FALSE | EP160: FALSE | EQ160: FALSE | ER160: FALSE | ES160: FALSE | ET160: FALSE | EU160: FALSE | EV160: FALSE | EW160: FALSE | EX160: FALSE | EY160: FALSE | EZ160: FALSE
C162: Sources:
D163: Re-financing Amount from Sculpting 1 | E163: Year/Amount | F163: =F75 -> 36 | G163: =E228 -> 0 | J163: =$G163*J158 -> 0 | K163: =$G163*K158 -> 0 | L163: 0 | M163: 0 | N163: 0 | O163: 0 | P163: 0 | Q163: 0 | R163: 0 | S163: 0 | T163: 0 | U163: 0 | V163: 0 | W163: 0 | X163: 0 | Y163: 0 | Z163: 0 | AA163: 0 | AB163: 0 | AC163: 0 | AD163: 0 | AE163: 0 | AF163: 0 | AG163: 0 | AH163: 0 | AI163: 0 | AJ163: 0 | AK163: 0 | AL163: 0 | AM163: 0 | AN163: 0 | AO163: 0 | AP163: 0 | AQ163: 0 | AR163: 0 | AS163: 0 | AT163: 0 | AU163: 0 | AV163: 0 | AW163: 0 | AX163: 0 | AY163: 0 | AZ163: 0 | BA163: 0 | BB163: 0 | BC163: 0 | BD163: 0 | BE163: 0 | BF163: 0 | BG163: 0 | BH163: 0 | BI163: 0 | BJ163: 0 | BK163: 0 | BL163: 0 | BM163: 0 | BN163: 0 | BO163: 0 | BP163: 0 | BQ163: 0 | BR163: 0 | BS163: 0 | BT163: 0 | BU163: 0 | BV163: 0 | BW163: =$G163*BW158 -> 0 | BX163: 0 | BY163: 0 | BZ163: 0 | CA163: 0 | CB163: 0 | CC163: 0 | CD163: 0 | CE163: 0 | CF163: 0 | CG163: 0 | CH163: 0 | CI163: 0 | CJ163: 0 | CK163: 0 | CL163: 0 | CM163: 0 | CN163: 0 | CO163: 0 | CP163: 0 | CQ163: 0 | CR163: 0 | CS163: 0 | CT163: 0 | CU163: 0 | CV163: 0 | CW163: 0 | CX163: 0 | CY163: 0 | CZ163: 0 | DA163: 0 | DB163: 0 | DC163: 0 | DD163: 0 | DE163: 0 | DF163: 0 | DG163: 0 | DH163: 0 | DI163: 0 | DJ163: 0 | DK163: 0 | DL163: 0 | DM163: 0 | DN163: 0 | DO163: 0 | DP163: 0 | DQ163: 0 | DR163: 0 | DS163: 0 | DT163: 0 | DU163: 0 | DV163: 0 | DW163: 0 | DX163: 0 | DY163: 0 | DZ163: 0 | EA163: 0 | EB163: 0 | EC163: 0 | ED163: 0 | EE163: 0 | EF163: 0 | EG163: 0 | EH163: 0 | EI163: =$G163*EI158 -> 0 | EJ163: 0 | EK163: 0 | EL163: 0 | EM163: 0 | EN163: 0 | EO163: 0 | EP163: 0 | EQ163: 0 | ER163: 0 | ES163: 0 | ET163: 0 | EU163: 0 | EV163: 0 | EW163: 0 | EX163: 0 | EY163: 0 | EZ163: 0
D164: Re-financing Amount from Sculpting 2 | E164: Year/Amount | F164: =F87 -> 36 | G164: =E236 -> 0 | J164: =$G164*J159 -> 0 | K164: 0 | L164: 0 | M164: 0 | N164: 0 | O164: 0 | P164: 0 | Q164: 0 | R164: 0 | S164: 0 | T164: 0 | U164: 0 | V164: 0 | W164: 0 | X164: 0 | Y164: 0 | Z164: 0 | AA164: 0 | AB164: 0 | AC164: 0 | AD164: 0 | AE164: 0 | AF164: 0 | AG164: 0 | AH164: 0 | AI164: 0 | AJ164: 0 | AK164: 0 | AL164: 0 | AM164: 0 | AN164: 0 | AO164: 0 | AP164: 0 | AQ164: 0 | AR164: 0 | AS164: 0 | AT164: 0 | AU164: 0 | AV164: 0 | AW164: 0 | AX164: 0 | AY164: 0 | AZ164: 0 | BA164: 0 | BB164: 0 | BC164: 0 | BD164: 0 | BE164: 0 | BF164: 0 | BG164: 0 | BH164: 0 | BI164: 0 | BJ164: 0 | BK164: 0 | BL164: 0 | BM164: 0 | BN164: 0 | BO164: 0 | BP164: 0 | BQ164: 0 | BR164: 0 | BS164: 0 | BT164: 0 | BU164: 0 | BV164: =$G164*BV159 -> 0 | BW164: 0 | BX164: 0 | BY164: 0 | BZ164: 0 | CA164: 0 | CB164: 0 | CC164: 0 | CD164: 0 | CE164: 0 | CF164: 0 | CG164: 0 | CH164: 0 | CI164: 0 | CJ164: 0 | CK164: 0 | CL164: 0 | CM164: 0 | CN164: 0 | CO164: 0 | CP164: 0 | CQ164: 0 | CR164: 0 | CS164: 0 | CT164: 0 | CU164: 0 | CV164: 0 | CW164: 0 | CX164: 0 | CY164: 0 | CZ164: 0 | DA164: 0 | DB164: 0 | DC164: 0 | DD164: 0 | DE164: 0 | DF164: 0 | DG164: 0 | DH164: 0 | DI164: 0 | DJ164: 0 | DK164: 0 | DL164: 0 | DM164: 0 | DN164: 0 | DO164: 0 | DP164: 0 | DQ164: 0 | DR164: 0 | DS164: 0 | DT164: 0 | DU164: 0 | DV164: 0 | DW164: 0 | DX164: 0 | DY164: 0 | DZ164: 0 | EA164: 0 | EB164: 0 | EC164: 0 | ED164: 0 | EE164: 0 | EF164: 0 | EG164: 0 | EH164: =$G164*EH159 -> 0 | EI164: 0 | EJ164: 0 | EK164: 0 | EL164: 0 | EM164: 0 | EN164: 0 | EO164: 0 | EP164: 0 | EQ164: 0 | ER164: 0 | ES164: 0 | ET164: 0 | EU164: 0 | EV164: 0 | EW164: 0 | EX164: 0 | EY164: 0 | EZ164: 0
D165: Re-financing Amount from Sculpting 3 | E165: Year/Amount | F165: =F99 -> 36 | G165: =E244 -> 0 | J165: =$G165*J160 -> 0 | K165: 0 | L165: 0 | M165: 0 | N165: 0 | O165: 0 | P165: 0 | Q165: 0 | R165: 0 | S165: 0 | T165: 0 | U165: 0 | V165: 0 | W165: 0 | X165: 0 | Y165: 0 | Z165: 0 | AA165: 0 | AB165: 0 | AC165: 0 | AD165: 0 | AE165: 0 | AF165: 0 | AG165: 0 | AH165: 0 | AI165: 0 | AJ165: 0 | AK165: 0 | AL165: 0 | AM165: 0 | AN165: 0 | AO165: 0 | AP165: 0 | AQ165: 0 | AR165: 0 | AS165: 0 | AT165: 0 | AU165: 0 | AV165: 0 | AW165: 0 | AX165: 0 | AY165: 0 | AZ165: 0 | BA165: 0 | BB165: 0 | BC165: 0 | BD165: 0 | BE165: 0 | BF165: 0 | BG165: 0 | BH165: 0 | BI165: 0 | BJ165: 0 | BK165: 0 | BL165: 0 | BM165: 0 | BN165: 0 | BO165: 0 | BP165: 0 | BQ165: 0 | BR165: 0 | BS165: 0 | BT165: 0 | BU165: 0 | BV165: =$G165*BV160 -> 0 | BW165: 0 | BX165: 0 | BY165: 0 | BZ165: 0 | CA165: 0 | CB165: 0 | CC165: 0 | CD165: 0 | CE165: 0 | CF165: 0 | CG165: 0 | CH165: 0 | CI165: 0 | CJ165: 0 | CK165: 0 | CL165: 0 | CM165: 0 | CN165: 0 | CO165: 0 | CP165: 0 | CQ165: 0 | CR165: 0 | CS165: 0 | CT165: 0 | CU165: 0 | CV165: 0 | CW165: 0 | CX165: 0 | CY165: 0 | CZ165: 0 | DA165: 0 | DB165: 0 | DC165: 0 | DD165: 0 | DE165: 0 | DF165: 0 | DG165: 0 | DH165: 0 | DI165: 0 | DJ165: 0 | DK165: 0 | DL165: 0 | DM165: 0 | DN165: 0 | DO165: 0 | DP165: 0 | DQ165: 0 | DR165: 0 | DS165: 0 | DT165: 0 | DU165: 0 | DV165: 0 | DW165: 0 | DX165: 0 | DY165: 0 | DZ165: 0 | EA165: 0 | EB165: 0 | EC165: 0 | ED165: 0 | EE165: 0 | EF165: 0 | EG165: 0 | EH165: =$G165*EH160 -> 0 | EI165: 0 | EJ165: 0 | EK165: 0 | EL165: 0 | EM165: 0 | EN165: 0 | EO165: 0 | EP165: 0 | EQ165: 0 | ER165: 0 | ES165: 0 | ET165: 0 | EU165: 0 | EV165: 0 | EW165: 0 | EX165: 0 | EY165: 0 | EZ165: 0
D166: Total | J166: =SUM(J163:J165) -> 0 | K166: =SUM(K163:K165) -> 0 | L166: 0 | M166: 0 | N166: 0 | O166: 0 | P166: 0 | Q166: 0 | R166: 0 | S166: 0 | T166: 0 | U166: 0 | V166: 0 | W166: 0 | X166: 0 | Y166: 0 | Z166: 0 | AA166: 0 | AB166: 0 | AC166: 0 | AD166: 0 | AE166: 0 | AF166: 0 | AG166: 0 | AH166: 0 | AI166: 0 | AJ166: 0 | AK166: 0 | AL166: 0 | AM166: 0 | AN166: 0 | AO166: 0 | AP166: 0 | AQ166: 0 | AR166: 0 | AS166: 0 | AT166: 0 | AU166: 0 | AV166: 0 | AW166: 0 | AX166: 0 | AY166: 0 | AZ166: 0 | BA166: 0 | BB166: 0 | BC166: 0 | BD166: 0 | BE166: 0 | BF166: 0 | BG166: 0 | BH166: 0 | BI166: 0 | BJ166: 0 | BK166: 0 | BL166: 0 | BM166: 0 | BN166: 0 | BO166: 0 | BP166: 0 | BQ166: 0 | BR166: 0 | BS166: 0 | BT166: 0 | BU166: 0 | BV166: 0 | BW166: =SUM(BW163:BW165) -> 0 | BX166: 0 | BY166: 0 | BZ166: 0 | CA166: 0 | CB166: 0 | CC166: 0 | CD166: 0 | CE166: 0 | CF166: 0 | CG166: 0 | CH166: 0 | CI166: 0 | CJ166: 0 | CK166: 0 | CL166: 0 | CM166: 0 | CN166: 0 | CO166: 0 | CP166: 0 | CQ166: 0 | CR166: 0 | CS166: 0 | CT166: 0 | CU166: 0 | CV166: 0 | CW166: 0 | CX166: 0 | CY166: 0 | CZ166: 0 | DA166: 0 | DB166: 0 | DC166: 0 | DD166: 0 | DE166: 0 | DF166: 0 | DG166: 0 | DH166: 0 | DI166: 0 | DJ166: 0 | DK166: 0 | DL166: 0 | DM166: 0 | DN166: 0 | DO166: 0 | DP166: 0 | DQ166: 0 | DR166: 0 | DS166: 0 | DT166: 0 | DU166: 0 | DV166: 0 | DW166: 0 | DX166: 0 | DY166: 0 | DZ166: 0 | EA166: 0 | EB166: 0 | EC166: 0 | ED166: 0 | EE166: 0 | EF166: 0 | EG166: 0 | EH166: 0 | EI166: =SUM(EI163:EI165) -> 0 | EJ166: 0 | EK166: 0 | EL166: 0 | EM166: 0 | EN166: 0 | EO166: 0 | EP166: 0 | EQ166: 0 | ER166: 0 | ES166: 0 | ET166: 0 | EU166: 0 | EV166: 0 | EW166: 0 | EX166: 0 | EY166: 0 | EZ166: 0
C168: Uses:
D169: Repayment of Base Debt | J169: =(J288-J290)*J158 -> 0 | K169: 0 | L169: 0 | M169: 0 | N169: 0 | O169: 0 | P169: 0 | Q169: 0 | R169: 0 | S169: 0 | T169: 0 | U169: 0 | V169: 0 | W169: 0 | X169: 0 | Y169: 0 | Z169: 0 | AA169: 0 | AB169: 0 | AC169: 0 | AD169: 0 | AE169: 0 | AF169: 0 | AG169: 0 | AH169: 0 | AI169: 0 | AJ169: 0 | AK169: 0 | AL169: 0 | AM169: 0 | AN169: 0 | AO169: 0 | AP169: =(AP288-AP290)*AP158 -> 0 | AQ169: 0 | AR169: 0 | AS169: 0 | AT169: 0 | AU169: 0 | AV169: 0 | AW169: 0 | AX169: 0 | AY169: 0 | AZ169: 0 | BA169: 0 | BB169: 0 | BC169: 0 | BD169: 0 | BE169: 0 | BF169: 0 | BG169: 0 | BH169: 0 | BI169: 0 | BJ169: 0 | BK169: 0 | BL169: 0 | BM169: 0 | BN169: 0 | BO169: 0 | BP169: 0 | BQ169: 0 | BR169: 0 | BS169: 0 | BT169: 0 | BU169: 0 | BV169: =(BV288-BV290)*BV158 -> 0 | BW169: 0 | BX169: 0 | BY169: 0 | BZ169: 0 | CA169: 0 | CB169: 0 | CC169: 0 | CD169: 0 | CE169: 0 | CF169: 0 | CG169: 0 | CH169: 0 | CI169: 0 | CJ169: 0 | CK169: 0 | CL169: 0 | CM169: 0 | CN169: 0 | CO169: 0 | CP169: 0 | CQ169: 0 | CR169: 0 | CS169: 0 | CT169: 0 | CU169: 0 | CV169: 0 | CW169: 0 | CX169: 0 | CY169: 0 | CZ169: 0 | DA169: 0 | DB169: =(DB288-DB290)*DB158 -> 0 | DC169: 0 | DD169: 0 | DE169: 0 | DF169: 0 | DG169: 0 | DH169: 0 | DI169: 0 | DJ169: 0 | DK169: 0 | DL169: 0 | DM169: 0 | DN169: 6.478883797e-05 | DO169: 0 | DP169: 0 | DQ169: 0 | DR169: 0 | DS169: 0 | DT169: 0 | DU169: 0 | DV169: 0 | DW169: 0 | DX169: 0 | DY169: 0 | DZ169: 0 | EA169: 0 | EB169: 0 | EC169: 0 | ED169: 0 | EE169: 0 | EF169: 0 | EG169: 0 | EH169: =(EH288-EH290)*EH158 -> 0 | EI169: 0 | EJ169: 0 | EK169: 0 | EL169: 0 | EM169: 0 | EN169: 0 | EO169: 0 | EP169: 0 | EQ169: 0 | ER169: 0 | ES169: 0 | ET169: 0 | EU169: 0 | EV169: 0 | EW169: 0 | EX169: 0 | EY169: 0 | EZ169: 0
D170: Repayment of 1st Refi with 2nd Refi | J170: =J321 -> 0 | K170: 0 | L170: 0 | M170: 0 | N170: 0 | O170: 0 | P170: 0 | Q170: 0 | R170: 0 | S170: 0 | T170: 0 | U170: 0 | V170: 0 | W170: 0 | X170: 0 | Y170: 0 | Z170: 0 | AA170: 0 | AB170: 0 | AC170: 0 | AD170: 0 | AE170: 0 | AF170: 0 | AG170: 0 | AH170: 0 | AI170: 0 | AJ170: 0 | AK170: 0 | AL170: 0 | AM170: 0 | AN170: 0 | AO170: 0 | AP170: =AP321 -> 0 | AQ170: 0 | AR170: 0 | AS170: 0 | AT170: 0 | AU170: 0 | AV170: 0 | AW170: 0 | AX170: 0 | AY170: 0 | AZ170: 0 | BA170: 0 | BB170: 0 | BC170: 0 | BD170: 0 | BE170: 0 | BF170: 0 | BG170: 0 | BH170: 0 | BI170: 0 | BJ170: 0 | BK170: 0 | BL170: 0 | BM170: 0 | BN170: 0 | BO170: 0 | BP170: 0 | BQ170: 0 | BR170: 0 | BS170: 0 | BT170: 0 | BU170: 0 | BV170: =BV321 -> 0 | BW170: 0 | BX170: 0 | BY170: 0 | BZ170: 0 | CA170: 0 | CB170: 0 | CC170: 0 | CD170: 0 | CE170: 0 | CF170: 0 | CG170: 0 | CH170: 0 | CI170: 0 | CJ170: 0 | CK170: 0 | CL170: 0 | CM170: 0 | CN170: 0 | CO170: 0 | CP170: 0 | CQ170: 0 | CR170: 0 | CS170: 0 | CT170: 0 | CU170: 0 | CV170: 0 | CW170: 0 | CX170: 0 | CY170: 0 | CZ170: 0 | DA170: 0 | DB170: =DB321 -> 0 | DC170: 0 | DD170: 0 | DE170: 0 | DF170: 0 | DG170: 0 | DH170: 0 | DI170: 0 | DJ170: 0 | DK170: 0 | DL170: 0 | DM170: 0 | DN170: 0 | DO170: 0 | DP170: 0 | DQ170: 0 | DR170: 0 | DS170: 0 | DT170: 0 | DU170: 0 | DV170: 0 | DW170: 0 | DX170: 0 | DY170: 0 | DZ170: 0 | EA170: 0 | EB170: 0 | EC170: 0 | ED170: 0 | EE170: 0 | EF170: 0 | EG170: 0 | EH170: =EH321 -> 0 | EI170: 0 | EJ170: 0 | EK170: 0 | EL170: 0 | EM170: 0 | EN170: 0 | EO170: 0 | EP170: 0 | EQ170: 0 | ER170: 0 | ES170: 0 | ET170: 0 | EU170: 0 | EV170: 0 | EW170: 0 | EX170: 0 | EY170: 0 | EZ170: 0
D171: Repayment of 2nd Refi with 3rd Refi | J171: =J333 -> 0 | K171: 0 | L171: 0 | M171: 0 | N171: 0 | O171: 0 | P171: 0 | Q171: 0 | R171: 0 | S171: 0 | T171: 0 | U171: 0 | V171: 0 | W171: 0 | X171: 0 | Y171: 0 | Z171: 0 | AA171: 0 | AB171: 0 | AC171: 0 | AD171: 0 | AE171: 0 | AF171: 0 | AG171: 0 | AH171: 0 | AI171: 0 | AJ171: 0 | AK171: 0 | AL171: 0 | AM171: 0 | AN171: 0 | AO171: 0 | AP171: =AP333 -> 0 | AQ171: 0 | AR171: 0 | AS171: 0 | AT171: 0 | AU171: 0 | AV171: 0 | AW171: 0 | AX171: 0 | AY171: 0 | AZ171: 0 | BA171: 0 | BB171: 0 | BC171: 0 | BD171: 0 | BE171: 0 | BF171: 0 | BG171: 0 | BH171: 0 | BI171: 0 | BJ171: 0 | BK171: 0 | BL171: 0 | BM171: 0 | BN171: 0 | BO171: 0 | BP171: 0 | BQ171: 0 | BR171: 0 | BS171: 0 | BT171: 0 | BU171: 0 | BV171: =BV333 -> 0 | BW171: 0 | BX171: 0 | BY171: 0 | BZ171: 0 | CA171: 0 | CB171: 0 | CC171: 0 | CD171: 0 | CE171: 0 | CF171: 0 | CG171: 0 | CH171: 0 | CI171: 0 | CJ171: 0 | CK171: 0 | CL171: 0 | CM171: 0 | CN171: 0 | CO171: 0 | CP171: 0 | CQ171: 0 | CR171: 0 | CS171: 0 | CT171: 0 | CU171: 0 | CV171: 0 | CW171: 0 | CX171: 0 | CY171: 0 | CZ171: 0 | DA171: 0 | DB171: =DB333 -> 0 | DC171: 0 | DD171: 0 | DE171: 0 | DF171: 0 | DG171: 0 | DH171: 0 | DI171: 0 | DJ171: 0 | DK171: 0 | DL171: 0 | DM171: 0 | DN171: 0 | DO171: 0 | DP171: 0 | DQ171: 0 | DR171: 0 | DS171: 0 | DT171: 0 | DU171: 0 | DV171: 0 | DW171: 0 | DX171: 0 | DY171: 0 | DZ171: 0 | EA171: 0 | EB171: 0 | EC171: 0 | ED171: 0 | EE171: 0 | EF171: 0 | EG171: 0 | EH171: =EH333 -> 0 | EI171: 0 | EJ171: 0 | EK171: 0 | EL171: 0 | EM171: 0 | EN171: 0 | EO171: 0 | EP171: 0 | EQ171: 0 | ER171: 0 | ES171: 0 | ET171: 0 | EU171: 0 | EV171: 0 | EW171: 0 | EX171: 0 | EY171: 0 | EZ171: 0
D172: Re-financing Fees and Swap Unwind
D173: Super Dividends | J173: =J166-J169-J170-J171-J172 -> 0 | K173: =K166-K169-K170-K171-K172 -> 0 | L173: 0 | M173: 0 | N173: 0 | O173: 0 | P173: 0 | Q173: 0 | R173: 0 | S173: 0 | T173: 0 | U173: 0 | V173: 0 | W173: 0 | X173: 0 | Y173: 0 | Z173: 0 | AA173: 0 | AB173: 0 | AC173: 0 | AD173: 0 | AE173: 0 | AF173: 0 | AG173: 0 | AH173: 0 | AI173: 0 | AJ173: 0 | AK173: 0 | AL173: 0 | AM173: 0 | AN173: 0 | AO173: 0 | AP173: 0 | AQ173: 0 | AR173: 0 | AS173: 0 | AT173: 0 | AU173: 0 | AV173: 0 | AW173: 0 | AX173: 0 | AY173: 0 | AZ173: 0 | BA173: 0 | BB173: 0 | BC173: 0 | BD173: 0 | BE173: 0 | BF173: 0 | BG173: 0 | BH173: 0 | BI173: 0 | BJ173: 0 | BK173: 0 | BL173: 0 | BM173: 0 | BN173: 0 | BO173: 0 | BP173: 0 | BQ173: 0 | BR173: 0 | BS173: 0 | BT173: 0 | BU173: 0 | BV173: 0 | BW173: =BW166-BW169-BW170-BW171-BW172 -> 0 | BX173: 0 | BY173: 0 | BZ173: 0 | CA173: 0 | CB173: 0 | CC173: 0 | CD173: 0 | CE173: 0 | CF173: 0 | CG173: 0 | CH173: 0 | CI173: 0 | CJ173: 0 | CK173: 0 | CL173: 0 | CM173: 0 | CN173: 0 | CO173: 0 | CP173: 0 | CQ173: 0 | CR173: 0 | CS173: 0 | CT173: 0 | CU173: 0 | CV173: 0 | CW173: 0 | CX173: 0 | CY173: 0 | CZ173: 0 | DA173: 0 | DB173: 0 | DC173: 0 | DD173: 0 | DE173: 0 | DF173: 0 | DG173: 0 | DH173: 0 | DI173: 0 | DJ173: 0 | DK173: 0 | DL173: 0 | DM173: 0 | DN173: -6.478883797e-05 | DO173: 0 | DP173: 0 | DQ173: 0 | DR173: 0 | DS173: 0 | DT173: 0 | DU173: 0 | DV173: 0 | DW173: 0 | DX173: 0 | DY173: 0 | DZ173: 0 | EA173: 0 | EB173: 0 | EC173: 0 | ED173: 0 | EE173: 0 | EF173: 0 | EG173: 0 | EH173: 0 | EI173: =EI166-EI169-EI170-EI171-EI172 -> 0 | EJ173: 0 | EK173: 0 | EL173: 0 | EM173: 0 | EN173: 0 | EO173: 0 | EP173: 0 | EQ173: 0 | ER173: 0 | ES173: 0 | ET173: 0 | EU173: 0 | EV173: 0 | EW173: 0 | EX173: 0 | EY173: 0 | EZ173: 0
A175: Sizing Using Alternative Methods with Different Parallel Models
B177: CFADS - P50 -- First UDF | J177: ='Parallel Model P50'!J253 -> 0 | K177: ='Parallel Model P50'!K253 -> 0 | L177: ='Parallel Model P50'!L253 -> 0 | M177: ='Parallel Model P50'!M253 -> 0 | N177: ='Parallel Model P50'!N253 -> 0 | O177: ='Parallel Model P50'!O253 -> 0 | P177: ='Parallel Model P50'!P253 -> 0 | Q177: ='Parallel Model P50'!Q253 -> 0 | R177: ='Parallel Model P50'!R253 -> 0 | S177: ='Parallel Model P50'!S253 -> 0 | T177: ='Parallel Model P50'!T253 -> 0 | U177: ='Parallel Model P50'!U253 -> 0 | V177: ='Parallel Model P50'!V253 -> 0 | W177: ='Parallel Model P50'!W253 -> 0 | X177: ='Parallel Model P50'!X253 -> 0 | Y177: ='Parallel Model P50'!Y253 -> 0 | Z177: ='Parallel Model P50'!Z253 -> 0 | AA177: ='Parallel Model P50'!AA253 -> 0 | AB177: ='Parallel Model P50'!AB253 -> 0 | AC177: ='Parallel Model P50'!AC253 -> 0 | AD177: ='Parallel Model P50'!AD253 -> 0 | AE177: ='Parallel Model P50'!AE253 -> 0 | AF177: ='Parallel Model P50'!AF253 -> 0 | AG177: ='Parallel Model P50'!AG253 -> 0 | AH177: ='Parallel Model P50'!AH253 -> 0 | AI177: ='Parallel Model P50'!AI253 -> 0 | AJ177: ='Parallel Model P50'!AJ253 -> 0 | AK177: ='Parallel Model P50'!AK253 -> 0 | AL177: ='Parallel Model P50'!AL253 -> 0 | AM177: ='Parallel Model P50'!AM253 -> 0 | AN177: ='Parallel Model P50'!AN253 -> 0 | AO177: ='Parallel Model P50'!AO253 -> 0 | AP177: ='Parallel Model P50'!AP253 -> 0 | AQ177: ='Parallel Model P50'!AQ253 -> 0 | AR177: ='Parallel Model P50'!AR253 -> 0 | AS177: ='Parallel Model P50'!AS253 -> 0 | AT177: ='Parallel Model P50'!AT253 -> 0 | AU177: ='Parallel Model P50'!AU253 -> 5565.184027 | AV177: ='Parallel Model P50'!AV253 -> 5736.795471 | AW177: ='Parallel Model P50'!AW253 -> 5676.487708 | AX177: ='Parallel Model P50'!AX253 -> 5851.531381 | AY177: ='Parallel Model P50'!AY253 -> 5790.017462 | AZ177: ='Parallel Model P50'!AZ253 -> 5968.562008 | BA177: ='Parallel Model P50'!BA253 -> 5946.529257 | BB177: ='Parallel Model P50'!BB253 -> 6087.933249 | BC177: ='Parallel Model P50'!BC253 -> 6023.934167 | BD177: ='Parallel Model P50'!BD253 -> 6209.691914 | BE177: ='Parallel Model P50'!BE253 -> 6144.412851 | BF177: ='Parallel Model P50'!BF253 -> 6333.885752 | BG177: ='Parallel Model P50'!BG253 -> 6267.301108 | BH177: ='Parallel Model P50'!BH253 -> 6460.563467 | BI177: ='Parallel Model P50'!BI253 -> 6436.714508 | BJ177: ='Parallel Model P50'!BJ253 -> 6589.774736 | BK177: ='Parallel Model P50'!BK253 -> 6520.500072 | BL177: ='Parallel Model P50'!BL253 -> 6721.570231 | BM177: ='Parallel Model P50'!BM253 -> 6650.910074 | BN177: ='Parallel Model P50'!BN253 -> 6856.001636 | BO177: ='Parallel Model P50'!BO253 -> 6783.928275 | BP177: ='Parallel Model P50'!BP253 -> 6934.520931 | BQ177: ='Parallel Model P50'!BQ253 -> 6697.663833 | BR177: ='Parallel Model P50'!BR253 -> 6849.83528 | BS177: ='Parallel Model P50'!BS253 -> 6779.421995 | BT177: ='Parallel Model P50'!BT253 -> 6940.181696 | BU177: ='Parallel Model P50'!BU253 -> 6867.819065 | BV177: ='Parallel Model P50'!BV253 -> 7031.243284 | BW177: ='Parallel Model P50'!BW253 -> 6956.87296 | BX177: ='Parallel Model P50'!BX253 -> 7122.995285 | BY177: ='Parallel Model P50'!BY253 -> 7087.346306 | BZ177: ='Parallel Model P50'!BZ253 -> 7215.277798 | CA177: ='Parallel Model P50'!CA253 -> 7136.707182 | CB177: ='Parallel Model P50'!CB253 -> 7308.323913 | CC177: ='Parallel Model P50'!CC253 -> 7227.559068 | CD177: ='Parallel Model P50'!CD253 -> 7401.974273 | CE177: ='Parallel Model P50'!CE253 -> 7318.94903 | CF177: ='Parallel Model P50'!CF253 -> 7496.195998 | CG177: ='Parallel Model P50'!CG253 -> 7454.993659 | CH177: ='Parallel Model P50'!CH253 -> 7590.809714 | CI177: ='Parallel Model P50'!CI253 -> 7503.054055 | CJ177: ='Parallel Model P50'!CJ253 -> 7686.061199 | CK177: ='Parallel Model P50'!CK253 -> 7595.833531 | CL177: ='Parallel Model P50'!CL253 -> 7781.77121 | CM177: ='Parallel Model P50'!CM253 -> 7688.996441 | CN177: ='Parallel Model P50'!CN253 -> 7877.897158 | CO177: ='Parallel Model P50'!CO253 -> 7830.28888 | CP177: ='Parallel Model P50'!CP253 -> 7974.237635 | CQ177: ='Parallel Model P50'!CQ253 -> 7876.130862 | CR177: ='Parallel Model P50'!CR253 -> 8071.051176 | CS177: ='Parallel Model P50'!CS253 -> 7970.157083 | CT177: ='Parallel Model P50'!CT253 -> 8168.135986 | CU177: ='Parallel Model P50'!CU253 -> 8064.3693 | CV177: ='Parallel Model P50'!CV253 -> 8265.437913 | CW177: ='Parallel Model P50'!CW253 -> 8237.441657 | CX177: ='Parallel Model P50'!CX253 -> 8417.118821 | CY177: ='Parallel Model P50'!CY253 -> 8335.797401 | CZ177: ='Parallel Model P50'!CZ253 -> 8571.833347 | DA177: ='Parallel Model P50'!DA253 -> 8488.885499 | DB177: ='Parallel Model P50'!DB253 -> 8729.642164 | DC177: ='Parallel Model P50'!DC253 -> 0 | DD177: ='Parallel Model P50'!DD253 -> 0 | DE177: ='Parallel Model P50'!DE253 -> 0 | DF177: ='Parallel Model P50'!DF253 -> 0 | DG177: ='Parallel Model P50'!DG253 -> 0 | DH177: ='Parallel Model P50'!DH253 -> 0 | DI177: ='Parallel Model P50'!DI253 -> 0 | DJ177: ='Parallel Model P50'!DJ253 -> 0 | DK177: ='Parallel Model P50'!DK253 -> 0 | DL177: ='Parallel Model P50'!DL253 -> 0 | DM177: ='Parallel Model P50'!DM253 -> 0 | DN177: ='Parallel Model P50'!DN253 -> 0 | DO177: ='Parallel Model P50'!DO253 -> 0 | DP177: ='Parallel Model P50'!DP253 -> 0 | DQ177: ='Parallel Model P50'!DQ253 -> 0 | DR177: ='Parallel Model P50'!DR253 -> 0 | DS177: ='Parallel Model P50'!DS253 -> 0 | DT177: ='Parallel Model P50'!DT253 -> 0 | DU177: ='Parallel Model P50'!DU253 -> 0 | DV177: ='Parallel Model P50'!DV253 -> 0 | DW177: ='Parallel Model P50'!DW253 -> 0 | DX177: ='Parallel Model P50'!DX253 -> 0 | DY177: ='Parallel Model P50'!DY253 -> 0 | DZ177: ='Parallel Model P50'!DZ253 -> 0 | EA177: ='Parallel Model P50'!EA253 -> 0 | EB177: ='Parallel Model P50'!EB253 -> 0 | EC177: ='Parallel Model P50'!EC253 -> 0 | ED177: ='Parallel Model P50'!ED253 -> 0 | EE177: ='Parallel Model P50'!EE253 -> 0 | EF177: ='Parallel Model P50'!EF253 -> 0 | EG177: ='Parallel Model P50'!EG253 -> 0 | EH177: ='Parallel Model P50'!EH253 -> 0 | EI177: ='Parallel Model P50'!EI253 -> 0 | EJ177: ='Parallel Model P50'!EJ253 -> 0 | EK177: ='Parallel Model P50'!EK253 -> 0 | EL177: ='Parallel Model P50'!EL253 -> 0 | EM177: ='Parallel Model P50'!EM253 -> 0 | EN177: ='Parallel Model P50'!EN253 -> 0 | EO177: ='Parallel Model P50'!EO253 -> 0 | EP177: ='Parallel Model P50'!EP253 -> 0 | EQ177: ='Parallel Model P50'!EQ253 -> 0 | ER177: ='Parallel Model P50'!ER253 -> 0 | ES177: ='Parallel Model P50'!ES253 -> 0 | ET177: ='Parallel Model P50'!ET253 -> 0 | EU177: ='Parallel Model P50'!EU253 -> 0 | EV177: ='Parallel Model P50'!EV253 -> 0 | EW177: ='Parallel Model P50'!EW253 -> 0 | EX177: ='Parallel Model P50'!EX253 -> 0 | EY177: ='Parallel Model P50'!EY253 -> 0 | EZ177: ='Parallel Model P50'!EZ253 -> 0
